Workbook

Sheet StaKa E 6 S.
A1: Name, Vorname | D1: =IF(ISBLANK(H1)," ",INDEX('Eingabe Spielernamen'!$F:$F,MATCH(H1,'Eingabe Spielernamen'!$B:$B,0))&", "&INDEX('Eingabe Spielernamen'!$G:$G,MATCH(H1,'Eingabe Spielernamen'!$B:$B,0))) -> , | H1: 101
A2: Verein: | D2: =IF($H1<>0,INDEX('Eingabe Spielernamen'!A:A,MATCH(H1,'Eingabe Spielernamen'!B:B,))," ") -> 0
A3: Serie | B3: Tisch | C3: Platz | D3: Spielpunkte | E3: gew. | F3: ver.. | G3: v.G. | H3: Gesamtpunkte
A4: 1 | B4: =LEFT(H1,1) -> 1 | C4: 1
A5: 2 | B5: =B4+C4 -> 2 | C5: =C4+1 -> 2
A6: Summe 1+2:
A7: 3 | B7: =B5+C5 -> 4 | C7: =C5+1 -> 3
A8: 4 | B8: =B7+C7 -> 7 | C8: =C7+1 -> 4
A9: Summe 3+4:
A10: Summe 1-4:
A11: 5 | B11: =B8+C8+1 -> 12 | C11: 2
A12: 6 | B12: =RIGHT(H1,2) -> 01 | C12: =LEFT(H1,1) -> 1
A13: Summe 5+6:
A14: Summe 1-6:
B15: wenn weniger als 16 Tische entsprechend vorrücken!
B16: wenn weniger als 16 Tische entsprechend vorrücken!
A17: Name, Vorname | D17: =IF(ISBLANK(H17)," ",INDEX('Eingabe Spielernamen'!$F:$F,MATCH(H17,'Eingabe Spielernamen'!$B:$B,0))&", "&INDEX('Eingabe Spielernamen'!$G:$G,MATCH(H17,'Eingabe Spielernamen'!$B:$B,0))) -> , | H17: =H1+1 -> 102
A18: Verein: | D18: =IF($H17<>0,INDEX('Eingabe Spielernamen'!A:A,MATCH(H17,'Eingabe Spielernamen'!B:B,))," ") -> 0
A19: Serie | B19: Tisch | C19: Platz | D19: Spielpunkte | E19: gew. | F19: ver.. | G19: v.G. | H19: Gesamtpunkte
A20: 1 | B20: =B4+1 -> 2 | C20: =C4 -> 1
A21: 2 | B21: =B20+C20 -> 3 | C21: =C20+1 -> 2
A22: Summe 1+2:
A23: 3 | B23: =B21+C21 -> 5 | C23: =C21+1 -> 3
A24: 4 | B24: =B23+C23 -> 8 | C24: =C23+1 -> 4
A25: Summe 3+4:
A26: Summe 1-4:
A27: 5 | B27: =B24+C24+1 -> 13 | C27: 2
A28: 6 | B28: =RIGHT(H17,2) -> 02 | C28: =LEFT(H17,1) -> 1
A29: Summe 5+6:
A30: Summe 1-6:
A31: Name, Vorname | D31: =IF(ISBLANK(H31)," ",INDEX('Eingabe Spielernamen'!$F:$F,MATCH(H31,'Eingabe Spielernamen'!$B:$B,0))&", "&INDEX('Eingabe Spielernamen'!$G:$G,MATCH(H31,'Eingabe Spielernamen'!$B:$B,0))) -> , | H31: =H17+1 -> 103
A32: Verein: | D32: =IF($H31<>0,INDEX('Eingabe Spielernamen'!A:A,MATCH(H31,'Eingabe Spielernamen'!B:B,))," ") -> 0
A33: Serie | B33: Tisch | C33: Platz | D33: Spielpunkte | E33: gew. | F33: ver.. | G33: v.G. | H33: Gesamtpunkte
A34: 1 | B34: =B20+1 -> 3 | C34: =C20 -> 1
A35: 2 | B35: =B34+C34 -> 4 | C35: =C34+1 -> 2
A36: Summe 1+2:
A37: 3 | B37: =B35+C35 -> 6 | C37: =C35+1 -> 3
A38: 4 | B38: =B37+C37 -> 9 | C38: =C37+1 -> 4
A39: Summe 3+4:
A40: Summe 1-4:
A41: 5 | B41: =B38+C38+1 -> 14 | C41: 2
A42: 6 | B42: =RIGHT(H31,2) -> 03 | C42: =LEFT(H31,1) -> 1
A43: Summe 5+6:
A44: Summe 1-6:
B45: wenn weniger als 16 Tische entsprechend vorrücken!
B46: wenn weniger als 16 Tische entsprechend vorrücken!
A47: Name, Vorname | D47: =IF(ISBLANK(H47)," ",INDEX('Eingabe Spielernamen'!$F:$F,MATCH(H47,'Eingabe Spielernamen'!$B:$B,0))&", "&INDEX('Eingabe Spielernamen'!$G:$G,MATCH(H47,'Eingabe Spielernamen'!$B:$B,0))) -> , | H47: =H31+1 -> 104
A48: Verein: | D48: =IF($H47<>0,INDEX('Eingabe Spielernamen'!A:A,MATCH(H47,'Eingabe Spielernamen'!B:B,))," ") -> 0
A49: Serie | B49: Tisch | C49: Platz | D49: Spielpunkte | E49: gew. | F49: ver.. | G49: v.G. | H49: Gesamtpunkte
A50: 1 | B50: =B34+1 -> 4 | C50: =C34 -> 1
A51: 2 | B51: =B50+C50 -> 5 | C51: =C50+1 -> 2
A52: Summe 1+2:
A53: 3 | B53: =B51+C51 -> 7 | C53: =C51+1 -> 3
A54: 4 | B54: =B53+C53 -> 10 | C54: =C53+1 -> 4
A55: Summe 3+4:
A56: Summe 1-4:
A57: 5 | B57: =B54+C54+1 -> 15 | C57: 2
A58: 6 | B58: =RIGHT(H47,2) -> 04 | C58: =LEFT(H47,1) -> 1
A59: Summe 5+6:
A60: Summe 1-6:
A61: Name, Vorname | D61: =IF(ISBLANK(H61)," ",INDEX('Eingabe Spielernamen'!$F:$F,MATCH(H61,'Eingabe Spielernamen'!$B:$B,0))&", "&INDEX('Eingabe Spielernamen'!$G:$G,MATCH(H61,'Eingabe Spielernamen'!$B:$B,0))) -> , | H61: =H47+1 -> 105
A62: Verein: | D62: =IF($H61<>0,INDEX('Eingabe Spielernamen'!A:A,MATCH(H61,'Eingabe Spielernamen'!B:B,))," ") -> 0
A63: Serie | B63: Tisch | C63: Platz | D63: Spielpunkte | E63: gew. | F63: ver.. | G63: v.G. | H63: Gesamtpunkte
A64: 1 | B64: =B50+1 -> 5 | C64: =C50 -> 1
A65: 2 | B65: =B64+C64 -> 6 | C65: =C64+1 -> 2
A66: Summe 1+2:
A67: 3 | B67: =B65+C65 -> 8 | C67: =C65+1 -> 3
A68: 4 | B68: =B67+C67 -> 11 | C68: =C67+1 -> 4
A69: Summe 3+4:
A70: Summe 1-4:
A71: 5 | B71: =B68+C68+1 -> 16 | C71: 2
A72: 6 | B72: =RIGHT(H61,2) -> 05 | C72: =LEFT(H61,1) -> 1
A73: Summe 5+6:
A74: Summe 1-6:
B75: wenn weniger als 16 Tische entsprechend vorrücken!
B76: wenn weniger als 16 Tische entsprechend vorrücken!
A77: Name, Vorname | D77: =IF(ISBLANK(H77)," ",INDEX('Eingabe Spielernamen'!$F:$F,MATCH(H77,'Eingabe Spielernamen'!$B:$B,0))&", "&INDEX('Eingabe Spielernamen'!$G:$G,MATCH(H77,'Eingabe Spielernamen'!$B:$B,0))) -> , | H77: =H61+1 -> 106
A78: Verein: | D78: =IF($H77<>0,INDEX('Eingabe Spielernamen'!A:A,MATCH(H77,'Eingabe Spielernamen'!B:B,))," ") -> 0
A79: Serie | B79: Tisch | C79: Platz | D79: Spielpunkte | E79: gew. | F79: ver.. | G79: v.G. | H79: Gesamtpunkte
A80: 1 | B80: =B64+1 -> 6 | C80: =C64 -> 1
A81: 2 | B81: =B80+C80 -> 7 | C81: =C80+1 -> 2
A82: Summe 1+2:
A83: 3 | B83: =B81+C81 -> 9 | C83: =C81+1 -> 3
A84: 4 | B84: =B83+C83 -> 12 | C84: =C83+1 -> 4
A85: Summe 3+4:
A86: Summe 1-4:
A87: 5 | B87: =B84+C84+1-16 -> 1 | C87: 2
A88: 6 | B88: =RIGHT(H77,2) -> 06 | C88: =LEFT(H77,1) -> 1
A89: Summe 5+6:
A90: Summe 1-6:
A91: Name, Vorname | D91: =IF(ISBLANK(H91)," ",INDEX('Eingabe Spielernamen'!$F:$F,MATCH(H91,'Eingabe Spielernamen'!$B:$B,0))&", "&INDEX('Eingabe Spielernamen'!$G:$G,MATCH(H91,'Eingabe Spielernamen'!$B:$B,0))) -> , | H91: =H77+1 -> 107
A92: Verein: | D92: =IF($H91<>0,INDEX('Eingabe Spielernamen'!A:A,MATCH(H91,'Eingabe Spielernamen'!B:B,))," ") -> 0
A93: Serie | B93: Tisch | C93: Platz | D93: Spielpunkte | E93: gew. | F93: ver.. | G93: v.G. | H93: Gesamtpunkte
A94: 1 | B94: =B80+1 -> 7 | C94: =C80 -> 1
A95: 2 | B95: =B94+C94 -> 8 | C95: =C94+1 -> 2
A96: Summe 1+2:
A97: 3 | B97: =B95+C95 -> 10 | C97: =C95+1 -> 3
A98: 4 | B98: =B97+C97 -> 13 | C98: =C97+1 -> 4
A99: Summe 3+4:
A100: Summe 1-4:
A101: 5 | B101: =B98+C98+1-16 -> 2 | C101: 2
A102: 6 | B102: =RIGHT(H91,2) -> 07 | C102: =LEFT(H91,1) -> 1
A103: Summe 5+6:
A104: Summe 1-6:
B105: wenn weniger als 16 Tische entsprechend vorrücken!
B106: wenn weniger als 16 Tische entsprechend vorrücken!
A107: Name, Vorname | D107: =IF(ISBLANK(H107)," ",INDEX('Eingabe Spielernamen'!$F:$F,MATCH(H107,'Eingabe Spielernamen'!$B:$B,0))&", "&INDEX('Eingabe Spielernamen'!$G:$G,MATCH(H107,'Eingabe Spielernamen'!$B:$B,0))) -> , | H107: =H91+1 -> 108
A108: Verein: | D108: =IF($H107<>0,INDEX('Eingabe Spielernamen'!A:A,MATCH(H107,'Eingabe Spielernamen'!B:B,))," ") -> 0
A109: Serie | B109: Tisch | C109: Platz | D109: Spielpunkte | E109: gew. | F109: ver.. | G109: v.G. | H109: Gesamtpunkte
A110: 1 | B110: =B94+1 -> 8 | C110: =C94 -> 1
A111: 2 | B111: =B110+C110 -> 9 | C111: =C110+1 -> 2
A112: Summe 1+2:
A113: 3 | B113: =B111+C111 -> 11 | C113: =C111+1 -> 3
A114: 4 | B114: =B113+C113 -> 14 | C114: =C113+1 -> 4
A115: Summe 3+4:
A116: Summe 1-4:
A117: 5 | B117: =B114+C114+1-16 -> 3 | C117: 2
A118: 6 | B118: =RIGHT(H107,2) -> 08 | C118: =LEFT(H107,1) -> 1
A119: Summe 5+6:
A120: Summe 1-6:
A121: Name, Vorname | D121: =IF(ISBLANK(H121)," ",INDEX('Eingabe Spielernamen'!$F:$F,MATCH(H121,'Eingabe Spielernamen'!$B:$B,0))&", "&INDEX('Eingabe Spielernamen'!$G:$G,MATCH(H121,'Eingabe Spielernamen'!$B:$B,0))) -> , | H121: =H107+1 -> 109
A122: Verein: | D122: =IF($H121<>0,INDEX('Eingabe Spielernamen'!A:A,MATCH(H121,'Eingabe Spielernamen'!B:B,))," ") -> 0
A123: Serie | B123: Tisch | C123: Platz | D123: Spielpunkte | E123: gew. | F123: ver.. | G123: v.G. | H123: Gesamtpunkte
A124: 1 | B124: =B110+1 -> 9 | C124: =C110 -> 1
A125: 2 | B125: =B124+C124 -> 10 | C125: =C124+1 -> 2
A126: Summe 1+2:
A127: 3 | B127: =B125+C125 -> 12 | C127: =C125+1 -> 3
A128: 4 | B128: =B127+C127 -> 15 | C128: =C127+1 -> 4
A129: Summe 3+4:
A130: Summe 1-4:
A131: 5 | B131: =B128+C128+1-16 -> 4 | C131: 2
A132: 6 | B132: =RIGHT(H121,2) -> 09 | C132: =LEFT(H121,1) -> 1
A133: Summe 5+6:
A134: Summe 1-6:
B135: wenn weniger als 16 Tische entsprechend vorrücken!
B136: wenn weniger als 16 Tische entsprechend vorrücken!
A137: Name, Vorname | D137: =IF(ISBLANK(H137)," ",INDEX('Eingabe Spielernamen'!$F:$F,MATCH(H137,'Eingabe Spielernamen'!$B:$B,0))&", "&INDEX('Eingabe Spielernamen'!$G:$G,MATCH(H137,'Eingabe Spielernamen'!$B:$B,0))) -> , | H137: =H121+1 -> 110
A138: Verein: | D138: =IF($H137<>0,INDEX('Eingabe Spielernamen'!A:A,MATCH(H137,'Eingabe Spielernamen'!B:B,))," ") -> 0
A139: Serie | B139: Tisch | C139: Platz | D139: Spielpunkte | E139: gew. | F139: ver.. | G139: v.G. | H139: Gesamtpunkte
A140: 1 | B140: =B124+1 -> 10 | C140: =C124 -> 1
A141: 2 | B141: =B140+C140 -> 11 | C141: =C140+1 -> 2
A142: Summe 1+2:
A143: 3 | B143: =B141+C141 -> 13 | C143: =C141+1 -> 3
A144: 4 | B144: =B143+C143 -> 16 | C144: =C143+1 -> 4
A145: Summe 3+4:
A146: Summe 1-4:
A147: 5 | B147: =B144+C144+1-16 -> 5 | C147: 2
A148: 6 | B148: =RIGHT(H137,2) -> 10 | C148: =LEFT(H137,1) -> 1
A149: Summe 5+6:
A150: Summe 1-6:
A151: Name, Vorname | D151: =IF(ISBLANK(H151)," ",INDEX('Eingabe Spielernamen'!$F:$F,MATCH(H151,'Eingabe Spielernamen'!$B:$B,0))&", "&INDEX('Eingabe Spielernamen'!$G:$G,MATCH(H151,'Eingabe Spielernamen'!$B:$B,0))) -> , | H151: =H137+1 -> 111
A152: Verein: | D152: =IF($H151<>0,INDEX('Eingabe Spielernamen'!A:A,MATCH(H151,'Eingabe Spielernamen'!B:B,))," ") -> 0
A153: Serie | B153: Tisch | C153: Platz | D153: Spielpunkte | E153: gew. | F153: ver.. | G153: v.G. | H153: Gesamtpunkte
A154: 1 | B154: =B140+1 -> 11 | C154: =C140 -> 1
A155: 2 | B155: =B154+C154 -> 12 | C155: =C154+1 -> 2
A156: Summe 1+2:
A157: 3 | B157: =B155+C155 -> 14 | C157: =C155+1 -> 3
A158: 4 | B158: =B157+C157-16 -> 1 | C158: =C157+1 -> 4
A159: Summe 3+4:
A160: Summe 1-4:
A161: 5 | B161: =B158+C158+1 -> 6 | C161: 2
A162: 6 | B162: =RIGHT(H151,2) -> 11 | C162: =LEFT(H151,1) -> 1
A163: Summe 5+6:
A164: Summe 1-6:
B165: wenn weniger als 16 Tische entsprechend vorrücken!
B166: wenn weniger als 16 Tische entsprechend vorrücken!
A167: Name, Vorname | D167: =IF(ISBLANK(H167)," ",INDEX('Eingabe Spielernamen'!$F:$F,MATCH(H167,'Eingabe Spielernamen'!$B:$B,0))&", "&INDEX('Eingabe Spielernamen'!$G:$G,MATCH(H167,'Eingabe Spielernamen'!$B:$B,0))) -> , | H167: =H151+1 -> 112
A168: Verein: | D168: =IF($H167<>0,INDEX('Eingabe Spielernamen'!A:A,MATCH(H167,'Eingabe Spielernamen'!B:B,))," ") -> 0
A169: Serie | B169: Tisch | C169: Platz | D169: Spielpunkte | E169: gew. | F169: ver.. | G169: v.G. | H169: Gesamtpunkte
A170: 1 | B170: =B154+1 -> 12 | C170: =C154 -> 1
A171: 2 | B171: =B170+C170 -> 13 | C171: =C170+1 -> 2
A172: Summe 1+2:
A173: 3 | B173: =B171+C171 -> 15 | C173: =C171+1 -> 3
A174: 4 | B174: =B173+C173-16 -> 2 | C174: =C173+1 -> 4
A175: Summe 3+4:
A176: Summe 1-4:
A177: 5 | B177: =B174+C174+1 -> 7 | C177: 2
A178: 6 | B178: =RIGHT(H167,2) -> 12 | C178: =LEFT(H167,1) -> 1
A179: Summe 5+6:
A180: Summe 1-6:
A181: Name, Vorname | D181: =IF(ISBLANK(H181)," ",INDEX('Eingabe Spielernamen'!$F:$F,MATCH(H181,'Eingabe Spielernamen'!$B:$B,0))&", "&INDEX('Eingabe Spielernamen'!$G:$G,MATCH(H181,'Eingabe Spielernamen'!$B:$B,0))) -> , | H181: =H167+1 -> 113
A182: Verein: | D182: =IF($H181<>0,INDEX('Eingabe Spielernamen'!A:A,MATCH(H181,'Eingabe Spielernamen'!B:B,))," ") -> 0
A183: Serie | B183: Tisch | C183: Platz | D183: Spielpunkte | E183: gew. | F183: ver.. | G183: v.G. | H183: Gesamtpunkte
A184: 1 | B184: =B170+1 -> 13 | C184: =C170 -> 1
A185: 2 | B185: =B184+C184 -> 14 | C185: =C184+1 -> 2
A186: Summe 1+2:
A187: 3 | B187: =B185+C185 -> 16 | C187: =C185+1 -> 3
A188: 4 | B188: =B187+C187-16 -> 3 | C188: =C187+1 -> 4
A189: Summe 3+4:
A190: Summe 1-4:
A191: 5 | B191: =B188+C188+1 -> 8 | C191: 2
A192: 6 | B192: =RIGHT(H181,2) -> 13 | C192: =LEFT(H181,1) -> 1
A193: Summe 5+6:
A194: Summe 1-6:
B195: wenn weniger als 16 Tische entsprechend vorrücken!
B196: wenn weniger als 16 Tische entsprechend vorrücken!
A197: Name, Vorname | D197: =IF(ISBLANK(H197)," ",INDEX('Eingabe Spielernamen'!$F:$F,MATCH(H197,'Eingabe Spielernamen'!$B:$B,0))&", "&INDEX('Eingabe Spielernamen'!$G:$G,MATCH(H197,'Eingabe Spielernamen'!$B:$B,0))) -> , | H197: =H181+1 -> 114
A198: Verein: | D198: =IF($H197<>0,INDEX('Eingabe Spielernamen'!A:A,MATCH(H197,'Eingabe Spielernamen'!B:B,))," ") -> 0
A199: Serie | B199: Tisch | C199: Platz | D199: Spielpunkte | E199: gew. | F199: ver.. | G199: v.G. | H199: Gesamtpunkte
A200: 1 | B200: =B184+1 -> 14 | C200: =C184 -> 1
... 760 more rows

Sheet Eingabe Spielernamen
A1: Summen aller Delegationen: | C1: =$C23+$C40+$C57+$C74 -> 44 | D1: =$D23+$D40+$D57+$D74 -> 44 | E1: =$E23+$E40+$E57+$E74 -> 44 | H1: =$H23+$H40+$H57+$H74 -> 0 | I1: =$I23+$I40+$I57+$I74 -> 0 | J1: =$J23+$J40+$J57+$J74 -> 0 | K1: =$K23+$K40+$K57+$K74 -> 0 | L1: =$L23+$L40+$L57+$L74 -> 0 | M1: =$M23+$M40+$M57+$M74 -> 0 | N1: =$N23+$N40+$N57+$N74 -> 0 | O1: =$O23+$O40+$O57+$O74 -> 0 | P1: =$P23+$P40+$P57+$P74 -> 0 | Q1: =$Q23+$Q40+$Q57+$Q74 -> 0 | R1: =$R23+$R40+$R57+$R74 -> 0
A2: Startgelder Einzel-Preisskat: | C2: =C1*10 -> 440 | D2: =D1*10 -> 440 | E2: 440
A3: Eingaben nur in den "bunten" Feldern möglich! | G3: Vier - Städte - Turnier | H3: 2020 | O3: Copyright: | P3: Hans A. Knobbe | R3: 2019-06-12
A4: Delegation | B4: Start- | C4: Einzel-Preissakt | F4: Name | G4: Vorname | H4: 1. Serie | I4: 2. Serie | J4: Summe | K4: 3. Serie | L4: 4. Serie | M4: Summe | N4: Summe | O4: 5. Serie | P4: 6. Serie | Q4: Summe | R4: Summe
C5: "Freiwillig" | J5: 1. + 2. | M5: 3. + 4. | N5: 1. - 4. | Q5: 5. + 6. | R5: 1. - 6. Serie
A6: 2020-05-29 | B6: Nummer | C6: 1. Tag | D6: 2. Tag | E6: 3. Tag | H6: =A6 -> 2020-05-29 | I6: =A6 -> 2020-05-29 | K6: =A6+1 -> 2020-05-30 | L6: =A6+1 -> 2020-05-30 | O6: =A6+2 -> 2020-05-31 | P6: =A6+2 -> 2020-05-31
B7: 101 | C7: x | D7: x | E7: x | H7: =SUMIF('Eingabe 1-6'!B$13:B$212,B7,'Eingabe 1-6'!J$13:J$212) -> 0 | I7: =SUMIF('Eingabe 1-6'!N$13:N$212,B7,'Eingabe 1-6'!V$13:V$212) -> 0 | J7: =H7+I7 -> 0 | K7: =SUMIF('Eingabe 1-6'!Z$13:Z$212,B7,'Eingabe 1-6'!AH$13:AH$212) -> 0 | L7: =SUMIF('Eingabe 1-6'!AL$13:AL$212,B7,'Eingabe 1-6'!AT$13:AT$212) -> 0 | M7: =K7+L7 -> 0 | N7: =J7+M7 -> 0 | O7: =SUMIF('Eingabe 1-6'!AX$13:AX$212,B7,'Eingabe 1-6'!BF$13:BF$212) -> 0 | P7: =SUMIF('Eingabe 1-6'!BJ$13:BJ$212,B7,'Eingabe 1-6'!BR$13:BR$212) -> 0 | Q7: =O7+P7 -> 0 | R7: =N7+Q7 -> 0
A8: =A7 -> 0 | B8: 102 | C8: x | D8: x | E8: x | H8: =SUMIF('Eingabe 1-6'!B$13:B$212,B8,'Eingabe 1-6'!J$13:J$212) -> 0 | I8: =SUMIF('Eingabe 1-6'!N$13:N$212,B8,'Eingabe 1-6'!V$13:V$212) -> 0 | J8: =H8+I8 -> 0 | K8: =SUMIF('Eingabe 1-6'!Z$13:Z$212,B8,'Eingabe 1-6'!AH$13:AH$212) -> 0 | L8: =SUMIF('Eingabe 1-6'!AL$13:AL$212,B8,'Eingabe 1-6'!AT$13:AT$212) -> 0 | M8: =K8+L8 -> 0 | N8: =J8+M8 -> 0 | O8: =SUMIF('Eingabe 1-6'!AX$13:AX$212,B8,'Eingabe 1-6'!BF$13:BF$212) -> 0 | P8: =SUMIF('Eingabe 1-6'!BJ$13:BJ$212,B8,'Eingabe 1-6'!BR$13:BR$212) -> 0 | Q8: =O8+P8 -> 0 | R8: =N8+Q8 -> 0
A9: =A8 -> 0 | B9: 103 | C9: x | D9: x | E9: x | H9: =SUMIF('Eingabe 1-6'!B$13:B$212,B9,'Eingabe 1-6'!J$13:J$212) -> 0 | I9: =SUMIF('Eingabe 1-6'!N$13:N$212,B9,'Eingabe 1-6'!V$13:V$212) -> 0 | J9: 0 | K9: =SUMIF('Eingabe 1-6'!Z$13:Z$212,B9,'Eingabe 1-6'!AH$13:AH$212) -> 0 | L9: =SUMIF('Eingabe 1-6'!AL$13:AL$212,B9,'Eingabe 1-6'!AT$13:AT$212) -> 0 | M9: 0 | N9: 0 | O9: =SUMIF('Eingabe 1-6'!AX$13:AX$212,B9,'Eingabe 1-6'!BF$13:BF$212) -> 0 | P9: =SUMIF('Eingabe 1-6'!BJ$13:BJ$212,B9,'Eingabe 1-6'!BR$13:BR$212) -> 0 | Q9: 0 | R9: 0
A10: 0 | B10: 104 | C10: x | D10: x | E10: x | H10: =SUMIF('Eingabe 1-6'!B$13:B$212,B10,'Eingabe 1-6'!J$13:J$212) -> 0 | I10: =SUMIF('Eingabe 1-6'!N$13:N$212,B10,'Eingabe 1-6'!V$13:V$212) -> 0 | J10: 0 | K10: =SUMIF('Eingabe 1-6'!Z$13:Z$212,B10,'Eingabe 1-6'!AH$13:AH$212) -> 0 | L10: =SUMIF('Eingabe 1-6'!AL$13:AL$212,B10,'Eingabe 1-6'!AT$13:AT$212) -> 0 | M10: 0 | N10: 0 | O10: =SUMIF('Eingabe 1-6'!AX$13:AX$212,B10,'Eingabe 1-6'!BF$13:BF$212) -> 0 | P10: =SUMIF('Eingabe 1-6'!BJ$13:BJ$212,B10,'Eingabe 1-6'!BR$13:BR$212) -> 0 | Q10: 0 | R10: 0
A11: 0 | B11: 105 | C11: x | D11: x | E11: x | H11: =SUMIF('Eingabe 1-6'!B$13:B$212,B11,'Eingabe 1-6'!J$13:J$212) -> 0 | I11: =SUMIF('Eingabe 1-6'!N$13:N$212,B11,'Eingabe 1-6'!V$13:V$212) -> 0 | J11: 0 | K11: =SUMIF('Eingabe 1-6'!Z$13:Z$212,B11,'Eingabe 1-6'!AH$13:AH$212) -> 0 | L11: =SUMIF('Eingabe 1-6'!AL$13:AL$212,B11,'Eingabe 1-6'!AT$13:AT$212) -> 0 | M11: 0 | N11: 0 | O11: =SUMIF('Eingabe 1-6'!AX$13:AX$212,B11,'Eingabe 1-6'!BF$13:BF$212) -> 0 | P11: =SUMIF('Eingabe 1-6'!BJ$13:BJ$212,B11,'Eingabe 1-6'!BR$13:BR$212) -> 0 | Q11: 0 | R11: 0
A12: 0 | B12: 106 | C12: x | D12: x | E12: x | H12: =SUMIF('Eingabe 1-6'!B$13:B$212,B12,'Eingabe 1-6'!J$13:J$212) -> 0 | I12: =SUMIF('Eingabe 1-6'!N$13:N$212,B12,'Eingabe 1-6'!V$13:V$212) -> 0 | J12: 0 | K12: =SUMIF('Eingabe 1-6'!Z$13:Z$212,B12,'Eingabe 1-6'!AH$13:AH$212) -> 0 | L12: =SUMIF('Eingabe 1-6'!AL$13:AL$212,B12,'Eingabe 1-6'!AT$13:AT$212) -> 0 | M12: 0 | N12: 0 | O12: =SUMIF('Eingabe 1-6'!AX$13:AX$212,B12,'Eingabe 1-6'!BF$13:BF$212) -> 0 | P12: =SUMIF('Eingabe 1-6'!BJ$13:BJ$212,B12,'Eingabe 1-6'!BR$13:BR$212) -> 0 | Q12: 0 | R12: 0
A13: 0 | B13: 107 | C13: x | D13: x | E13: x | H13: =SUMIF('Eingabe 1-6'!B$13:B$212,B13,'Eingabe 1-6'!J$13:J$212) -> 0 | I13: =SUMIF('Eingabe 1-6'!N$13:N$212,B13,'Eingabe 1-6'!V$13:V$212) -> 0 | J13: 0 | K13: =SUMIF('Eingabe 1-6'!Z$13:Z$212,B13,'Eingabe 1-6'!AH$13:AH$212) -> 0 | L13: =SUMIF('Eingabe 1-6'!AL$13:AL$212,B13,'Eingabe 1-6'!AT$13:AT$212) -> 0 | M13: 0 | N13: 0 | O13: =SUMIF('Eingabe 1-6'!AX$13:AX$212,B13,'Eingabe 1-6'!BF$13:BF$212) -> 0 | P13: =SUMIF('Eingabe 1-6'!BJ$13:BJ$212,B13,'Eingabe 1-6'!BR$13:BR$212) -> 0 | Q13: 0 | R13: 0
A14: 0 | B14: 108 | C14: x | D14: x | E14: x | H14: =SUMIF('Eingabe 1-6'!B$13:B$212,B14,'Eingabe 1-6'!J$13:J$212) -> 0 | I14: =SUMIF('Eingabe 1-6'!N$13:N$212,B14,'Eingabe 1-6'!V$13:V$212) -> 0 | J14: 0 | K14: =SUMIF('Eingabe 1-6'!Z$13:Z$212,B14,'Eingabe 1-6'!AH$13:AH$212) -> 0 | L14: =SUMIF('Eingabe 1-6'!AL$13:AL$212,B14,'Eingabe 1-6'!AT$13:AT$212) -> 0 | M14: 0 | N14: 0 | O14: =SUMIF('Eingabe 1-6'!AX$13:AX$212,B14,'Eingabe 1-6'!BF$13:BF$212) -> 0 | P14: =SUMIF('Eingabe 1-6'!BJ$13:BJ$212,B14,'Eingabe 1-6'!BR$13:BR$212) -> 0 | Q14: 0 | R14: 0
A15: 0 | B15: 109 | C15: x | D15: x | E15: x | H15: =SUMIF('Eingabe 1-6'!B$13:B$212,B15,'Eingabe 1-6'!J$13:J$212) -> 0 | I15: =SUMIF('Eingabe 1-6'!N$13:N$212,B15,'Eingabe 1-6'!V$13:V$212) -> 0 | J15: 0 | K15: =SUMIF('Eingabe 1-6'!Z$13:Z$212,B15,'Eingabe 1-6'!AH$13:AH$212) -> 0 | L15: =SUMIF('Eingabe 1-6'!AL$13:AL$212,B15,'Eingabe 1-6'!AT$13:AT$212) -> 0 | M15: 0 | N15: 0 | O15: =SUMIF('Eingabe 1-6'!AX$13:AX$212,B15,'Eingabe 1-6'!BF$13:BF$212) -> 0 | P15: =SUMIF('Eingabe 1-6'!BJ$13:BJ$212,B15,'Eingabe 1-6'!BR$13:BR$212) -> 0 | Q15: 0 | R15: 0
A16: 0 | B16: 110 | C16: x | D16: x | E16: x | H16: =SUMIF('Eingabe 1-6'!B$13:B$212,B16,'Eingabe 1-6'!J$13:J$212) -> 0 | I16: =SUMIF('Eingabe 1-6'!N$13:N$212,B16,'Eingabe 1-6'!V$13:V$212) -> 0 | J16: 0 | K16: =SUMIF('Eingabe 1-6'!Z$13:Z$212,B16,'Eingabe 1-6'!AH$13:AH$212) -> 0 | L16: =SUMIF('Eingabe 1-6'!AL$13:AL$212,B16,'Eingabe 1-6'!AT$13:AT$212) -> 0 | M16: 0 | N16: 0 | O16: =SUMIF('Eingabe 1-6'!AX$13:AX$212,B16,'Eingabe 1-6'!BF$13:BF$212) -> 0 | P16: =SUMIF('Eingabe 1-6'!BJ$13:BJ$212,B16,'Eingabe 1-6'!BR$13:BR$212) -> 0 | Q16: 0 | R16: 0
A17: 0 | B17: 111 | C17: x | D17: x | E17: x | H17: =SUMIF('Eingabe 1-6'!B$13:B$212,B17,'Eingabe 1-6'!J$13:J$212) -> 0 | I17: =SUMIF('Eingabe 1-6'!N$13:N$212,B17,'Eingabe 1-6'!V$13:V$212) -> 0 | J17: 0 | K17: =SUMIF('Eingabe 1-6'!Z$13:Z$212,B17,'Eingabe 1-6'!AH$13:AH$212) -> 0 | L17: =SUMIF('Eingabe 1-6'!AL$13:AL$212,B17,'Eingabe 1-6'!AT$13:AT$212) -> 0 | M17: 0 | N17: 0 | O17: =SUMIF('Eingabe 1-6'!AX$13:AX$212,B17,'Eingabe 1-6'!BF$13:BF$212) -> 0 | P17: =SUMIF('Eingabe 1-6'!BJ$13:BJ$212,B17,'Eingabe 1-6'!BR$13:BR$212) -> 0 | Q17: 0 | R17: 0
A18: 0 | B18: 112 | H18: =SUMIF('Eingabe 1-6'!B$13:B$212,B18,'Eingabe 1-6'!J$13:J$212) -> 0 | I18: =SUMIF('Eingabe 1-6'!N$13:N$212,B18,'Eingabe 1-6'!V$13:V$212) -> 0 | J18: 0 | K18: =SUMIF('Eingabe 1-6'!Z$13:Z$212,B18,'Eingabe 1-6'!AH$13:AH$212) -> 0 | L18: =SUMIF('Eingabe 1-6'!AL$13:AL$212,B18,'Eingabe 1-6'!AT$13:AT$212) -> 0 | M18: 0 | N18: 0 | O18: =SUMIF('Eingabe 1-6'!AX$13:AX$212,B18,'Eingabe 1-6'!BF$13:BF$212) -> 0 | P18: =SUMIF('Eingabe 1-6'!BJ$13:BJ$212,B18,'Eingabe 1-6'!BR$13:BR$212) -> 0 | Q18: 0 | R18: 0
A19: 0 | B19: 113 | H19: =SUMIF('Eingabe 1-6'!B$13:B$212,B19,'Eingabe 1-6'!J$13:J$212) -> 0 | I19: =SUMIF('Eingabe 1-6'!N$13:N$212,B19,'Eingabe 1-6'!V$13:V$212) -> 0 | J19: 0 | K19: =SUMIF('Eingabe 1-6'!Z$13:Z$212,B19,'Eingabe 1-6'!AH$13:AH$212) -> 0 | L19: =SUMIF('Eingabe 1-6'!AL$13:AL$212,B19,'Eingabe 1-6'!AT$13:AT$212) -> 0 | M19: 0 | N19: 0 | O19: =SUMIF('Eingabe 1-6'!AX$13:AX$212,B19,'Eingabe 1-6'!BF$13:BF$212) -> 0 | P19: =SUMIF('Eingabe 1-6'!BJ$13:BJ$212,B19,'Eingabe 1-6'!BR$13:BR$212) -> 0 | Q19: 0 | R19: 0
A20: 0 | B20: 114 | H20: =SUMIF('Eingabe 1-6'!B$13:B$212,B20,'Eingabe 1-6'!J$13:J$212) -> 0 | I20: =SUMIF('Eingabe 1-6'!N$13:N$212,B20,'Eingabe 1-6'!V$13:V$212) -> 0 | J20: 0 | K20: =SUMIF('Eingabe 1-6'!Z$13:Z$212,B20,'Eingabe 1-6'!AH$13:AH$212) -> 0 | L20: =SUMIF('Eingabe 1-6'!AL$13:AL$212,B20,'Eingabe 1-6'!AT$13:AT$212) -> 0 | M20: 0 | N20: 0 | O20: =SUMIF('Eingabe 1-6'!AX$13:AX$212,B20,'Eingabe 1-6'!BF$13:BF$212) -> 0 | P20: =SUMIF('Eingabe 1-6'!BJ$13:BJ$212,B20,'Eingabe 1-6'!BR$13:BR$212) -> 0 | Q20: 0 | R20: 0
A21: 0 | B21: 115 | H21: =SUMIF('Eingabe 1-6'!B$13:B$212,B21,'Eingabe 1-6'!J$13:J$212) -> 0 | I21: =SUMIF('Eingabe 1-6'!N$13:N$212,B21,'Eingabe 1-6'!V$13:V$212) -> 0 | J21: 0 | K21: =SUMIF('Eingabe 1-6'!Z$13:Z$212,B21,'Eingabe 1-6'!AH$13:AH$212) -> 0 | L21: =SUMIF('Eingabe 1-6'!AL$13:AL$212,B21,'Eingabe 1-6'!AT$13:AT$212) -> 0 | M21: 0 | N21: 0 | O21: =SUMIF('Eingabe 1-6'!AX$13:AX$212,B21,'Eingabe 1-6'!BF$13:BF$212) -> 0 | P21: =SUMIF('Eingabe 1-6'!BJ$13:BJ$212,B21,'Eingabe 1-6'!BR$13:BR$212) -> 0 | Q21: 0 | R21: 0
A22: 0 | B22: 116 | H22: =SUMIF('Eingabe 1-6'!B$13:B$212,B22,'Eingabe 1-6'!J$13:J$212) -> 0 | I22: =SUMIF('Eingabe 1-6'!N$13:N$212,B22,'Eingabe 1-6'!V$13:V$212) -> 0 | J22: 0 | K22: =SUMIF('Eingabe 1-6'!Z$13:Z$212,B22,'Eingabe 1-6'!AH$13:AH$212) -> 0 | L22: =SUMIF('Eingabe 1-6'!AL$13:AL$212,B22,'Eingabe 1-6'!AT$13:AT$212) -> 0 | M22: 0 | N22: 0 | O22: =SUMIF('Eingabe 1-6'!AX$13:AX$212,B22,'Eingabe 1-6'!BF$13:BF$212) -> 0 | P22: =SUMIF('Eingabe 1-6'!BJ$13:BJ$212,B22,'Eingabe 1-6'!BR$13:BR$212) -> 0 | Q22: 0 | R22: 0
A23: =A7 -> 0 | B23: Summe | C23: =COUNTA(C7:C22) -> 11 | D23: =COUNTA(D7:D22) -> 11 | E23: =COUNTA(E7:E22) -> 11 | H23: =SUM(H7:H22) -> 0 | I23: 0 | J23: 0 | K23: 0 | L23: 0 | M23: 0 | N23: =J23+M23 -> 0 | O23: =SUM(O7:O22) -> 0 | P23: =SUM(P7:P22) -> 0 | Q23: =SUM(Q7:Q22) -> 0 | R23: =SUM(R7:R22) -> 0
B24: 201 | C24: x | D24: x | E24: x | H24: =SUMIF('Eingabe 1-6'!B$13:B$212,B24,'Eingabe 1-6'!J$13:J$212) -> 0 | I24: =SUMIF('Eingabe 1-6'!N$13:N$212,B24,'Eingabe 1-6'!V$13:V$212) -> 0 | J24: =H24+I24 -> 0 | K24: =SUMIF('Eingabe 1-6'!Z$13:Z$212,B24,'Eingabe 1-6'!AH$13:AH$212) -> 0 | L24: =SUMIF('Eingabe 1-6'!AL$13:AL$212,B24,'Eingabe 1-6'!AT$13:AT$212) -> 0 | M24: =K24+L24 -> 0 | N24: 0 | O24: =SUMIF('Eingabe 1-6'!AX$13:AX$212,B24,'Eingabe 1-6'!BF$13:BF$212) -> 0 | P24: =SUMIF('Eingabe 1-6'!BJ$13:BJ$212,B24,'Eingabe 1-6'!BR$13:BR$212) -> 0 | Q24: =O24+P24 -> 0 | R24: =N24+Q24 -> 0
A25: =A24 -> 0 | B25: 202 | C25: x | D25: x | E25: x | H25: =SUMIF('Eingabe 1-6'!B$13:B$212,B25,'Eingabe 1-6'!J$13:J$212) -> 0 | I25: =SUMIF('Eingabe 1-6'!N$13:N$212,B25,'Eingabe 1-6'!V$13:V$212) -> 0 | J25: 0 | K25: =SUMIF('Eingabe 1-6'!Z$13:Z$212,B25,'Eingabe 1-6'!AH$13:AH$212) -> 0 | L25: =SUMIF('Eingabe 1-6'!AL$13:AL$212,B25,'Eingabe 1-6'!AT$13:AT$212) -> 0 | M25: 0 | N25: 0 | O25: =SUMIF('Eingabe 1-6'!AX$13:AX$212,B25,'Eingabe 1-6'!BF$13:BF$212) -> 0 | P25: =SUMIF('Eingabe 1-6'!BJ$13:BJ$212,B25,'Eingabe 1-6'!BR$13:BR$212) -> 0 | Q25: 0 | R25: 0
A26: =A25 -> 0 | B26: 203 | C26: x | D26: x | E26: x | H26: =SUMIF('Eingabe 1-6'!B$13:B$212,B26,'Eingabe 1-6'!J$13:J$212) -> 0 | I26: =SUMIF('Eingabe 1-6'!N$13:N$212,B26,'Eingabe 1-6'!V$13:V$212) -> 0 | J26: 0 | K26: =SUMIF('Eingabe 1-6'!Z$13:Z$212,B26,'Eingabe 1-6'!AH$13:AH$212) -> 0 | L26: =SUMIF('Eingabe 1-6'!AL$13:AL$212,B26,'Eingabe 1-6'!AT$13:AT$212) -> 0 | M26: 0 | N26: 0 | O26: =SUMIF('Eingabe 1-6'!AX$13:AX$212,B26,'Eingabe 1-6'!BF$13:BF$212) -> 0 | P26: =SUMIF('Eingabe 1-6'!BJ$13:BJ$212,B26,'Eingabe 1-6'!BR$13:BR$212) -> 0 | Q26: 0 | R26: 0
A27: 0 | B27: 204 | C27: x | D27: x | E27: x | H27: =SUMIF('Eingabe 1-6'!B$13:B$212,B27,'Eingabe 1-6'!J$13:J$212) -> 0 | I27: =SUMIF('Eingabe 1-6'!N$13:N$212,B27,'Eingabe 1-6'!V$13:V$212) -> 0 | J27: 0 | K27: =SUMIF('Eingabe 1-6'!Z$13:Z$212,B27,'Eingabe 1-6'!AH$13:AH$212) -> 0 | L27: =SUMIF('Eingabe 1-6'!AL$13:AL$212,B27,'Eingabe 1-6'!AT$13:AT$212) -> 0 | M27: 0 | N27: 0 | O27: =SUMIF('Eingabe 1-6'!AX$13:AX$212,B27,'Eingabe 1-6'!BF$13:BF$212) -> 0 | P27: =SUMIF('Eingabe 1-6'!BJ$13:BJ$212,B27,'Eingabe 1-6'!BR$13:BR$212) -> 0 | Q27: 0 | R27: 0
A28: 0 | B28: 205 | C28: x | D28: x | E28: x | H28: =SUMIF('Eingabe 1-6'!B$13:B$212,B28,'Eingabe 1-6'!J$13:J$212) -> 0 | I28: =SUMIF('Eingabe 1-6'!N$13:N$212,B28,'Eingabe 1-6'!V$13:V$212) -> 0 | J28: 0 | K28: =SUMIF('Eingabe 1-6'!Z$13:Z$212,B28,'Eingabe 1-6'!AH$13:AH$212) -> 0 | L28: =SUMIF('Eingabe 1-6'!AL$13:AL$212,B28,'Eingabe 1-6'!AT$13:AT$212) -> 0 | M28: 0 | N28: 0 | O28: =SUMIF('Eingabe 1-6'!AX$13:AX$212,B28,'Eingabe 1-6'!BF$13:BF$212) -> 0 | P28: =SUMIF('Eingabe 1-6'!BJ$13:BJ$212,B28,'Eingabe 1-6'!BR$13:BR$212) -> 0 | Q28: 0 | R28: 0
A29: 0 | B29: 206 | C29: x | D29: x | E29: x | H29: =SUMIF('Eingabe 1-6'!B$13:B$212,B29,'Eingabe 1-6'!J$13:J$212) -> 0 | I29: =SUMIF('Eingabe 1-6'!N$13:N$212,B29,'Eingabe 1-6'!V$13:V$212) -> 0 | J29: 0 | K29: =SUMIF('Eingabe 1-6'!Z$13:Z$212,B29,'Eingabe 1-6'!AH$13:AH$212) -> 0 | L29: =SUMIF('Eingabe 1-6'!AL$13:AL$212,B29,'Eingabe 1-6'!AT$13:AT$212) -> 0 | M29: 0 | N29: 0 | O29: =SUMIF('Eingabe 1-6'!AX$13:AX$212,B29,'Eingabe 1-6'!BF$13:BF$212) -> 0 | P29: =SUMIF('Eingabe 1-6'!BJ$13:BJ$212,B29,'Eingabe 1-6'!BR$13:BR$212) -> 0 | Q29: 0 | R29: 0
A30: 0 | B30: 207 | C30: x | D30: x | E30: x | H30: =SUMIF('Eingabe 1-6'!B$13:B$212,B30,'Eingabe 1-6'!J$13:J$212) -> 0 | I30: =SUMIF('Eingabe 1-6'!N$13:N$212,B30,'Eingabe 1-6'!V$13:V$212) -> 0 | J30: 0 | K30: =SUMIF('Eingabe 1-6'!Z$13:Z$212,B30,'Eingabe 1-6'!AH$13:AH$212) -> 0 | L30: =SUMIF('Eingabe 1-6'!AL$13:AL$212,B30,'Eingabe 1-6'!AT$13:AT$212) -> 0 | M30: 0 | N30: 0 | O30: =SUMIF('Eingabe 1-6'!AX$13:AX$212,B30,'Eingabe 1-6'!BF$13:BF$212) -> 0 | P30: =SUMIF('Eingabe 1-6'!BJ$13:BJ$212,B30,'Eingabe 1-6'!BR$13:BR$212) -> 0 | Q30: 0 | R30: 0
A31: 0 | B31: 208 | C31: x | D31: x | E31: x | H31: =SUMIF('Eingabe 1-6'!B$13:B$212,B31,'Eingabe 1-6'!J$13:J$212) -> 0 | I31: =SUMIF('Eingabe 1-6'!N$13:N$212,B31,'Eingabe 1-6'!V$13:V$212) -> 0 | J31: 0 | K31: =SUMIF('Eingabe 1-6'!Z$13:Z$212,B31,'Eingabe 1-6'!AH$13:AH$212) -> 0 | L31: =SUMIF('Eingabe 1-6'!AL$13:AL$212,B31,'Eingabe 1-6'!AT$13:AT$212) -> 0 | M31: 0 | N31: 0 | O31: =SUMIF('Eingabe 1-6'!AX$13:AX$212,B31,'Eingabe 1-6'!BF$13:BF$212) -> 0 | P31: =SUMIF('Eingabe 1-6'!BJ$13:BJ$212,B31,'Eingabe 1-6'!BR$13:BR$212) -> 0 | Q31: 0 | R31: 0
A32: 0 | B32: 209 | C32: x | D32: x | E32: x | H32: =SUMIF('Eingabe 1-6'!B$13:B$212,B32,'Eingabe 1-6'!J$13:J$212) -> 0 | I32: =SUMIF('Eingabe 1-6'!N$13:N$212,B32,'Eingabe 1-6'!V$13:V$212) -> 0 | J32: 0 | K32: =SUMIF('Eingabe 1-6'!Z$13:Z$212,B32,'Eingabe 1-6'!AH$13:AH$212) -> 0 | L32: =SUMIF('Eingabe 1-6'!AL$13:AL$212,B32,'Eingabe 1-6'!AT$13:AT$212) -> 0 | M32: 0 | N32: 0 | O32: =SUMIF('Eingabe 1-6'!AX$13:AX$212,B32,'Eingabe 1-6'!BF$13:BF$212) -> 0 | P32: =SUMIF('Eingabe 1-6'!BJ$13:BJ$212,B32,'Eingabe 1-6'!BR$13:BR$212) -> 0 | Q32: 0 | R32: 0
A33: 0 | B33: 210 | C33: x | D33: x | E33: x | H33: =SUMIF('Eingabe 1-6'!B$13:B$212,B33,'Eingabe 1-6'!J$13:J$212) -> 0 | I33: =SUMIF('Eingabe 1-6'!N$13:N$212,B33,'Eingabe 1-6'!V$13:V$212) -> 0 | J33: 0 | K33: =SUMIF('Eingabe 1-6'!Z$13:Z$212,B33,'Eingabe 1-6'!AH$13:AH$212) -> 0 | L33: =SUMIF('Eingabe 1-6'!AL$13:AL$212,B33,'Eingabe 1-6'!AT$13:AT$212) -> 0 | M33: 0 | N33: 0 | O33: =SUMIF('Eingabe 1-6'!AX$13:AX$212,B33,'Eingabe 1-6'!BF$13:BF$212) -> 0 | P33: =SUMIF('Eingabe 1-6'!BJ$13:BJ$212,B33,'Eingabe 1-6'!BR$13:BR$212) -> 0 | Q33: 0 | R33: 0
A34: 0 | B34: 211 | C34: x | D34: x | E34: x | H34: =SUMIF('Eingabe 1-6'!B$13:B$212,B34,'Eingabe 1-6'!J$13:J$212) -> 0 | I34: =SUMIF('Eingabe 1-6'!N$13:N$212,B34,'Eingabe 1-6'!V$13:V$212) -> 0 | J34: 0 | K34: =SUMIF('Eingabe 1-6'!Z$13:Z$212,B34,'Eingabe 1-6'!AH$13:AH$212) -> 0 | L34: =SUMIF('Eingabe 1-6'!AL$13:AL$212,B34,'Eingabe 1-6'!AT$13:AT$212) -> 0 | M34: 0 | N34: 0 | O34: =SUMIF('Eingabe 1-6'!AX$13:AX$212,B34,'Eingabe 1-6'!BF$13:BF$212) -> 0 | P34: =SUMIF('Eingabe 1-6'!BJ$13:BJ$212,B34,'Eingabe 1-6'!BR$13:BR$212) -> 0 | Q34: 0 | R34: 0
A35: 0 | B35: 212 | H35: =SUMIF('Eingabe 1-6'!B$13:B$212,B35,'Eingabe 1-6'!J$13:J$212) -> 0 | I35: =SUMIF('Eingabe 1-6'!N$13:N$212,B35,'Eingabe 1-6'!V$13:V$212) -> 0 | J35: 0 | K35: =SUMIF('Eingabe 1-6'!Z$13:Z$212,B35,'Eingabe 1-6'!AH$13:AH$212) -> 0 | L35: =SUMIF('Eingabe 1-6'!AL$13:AL$212,B35,'Eingabe 1-6'!AT$13:AT$212) -> 0 | M35: 0 | N35: 0 | O35: =SUMIF('Eingabe 1-6'!AX$13:AX$212,B35,'Eingabe 1-6'!BF$13:BF$212) -> 0 | P35: =SUMIF('Eingabe 1-6'!BJ$13:BJ$212,B35,'Eingabe 1-6'!BR$13:BR$212) -> 0 | Q35: 0 | R35: 0
A36: 0 | B36: 213 | H36: =SUMIF('Eingabe 1-6'!B$13:B$212,B36,'Eingabe 1-6'!J$13:J$212) -> 0 | I36: =SUMIF('Eingabe 1-6'!N$13:N$212,B36,'Eingabe 1-6'!V$13:V$212) -> 0 | J36: 0 | K36: =SUMIF('Eingabe 1-6'!Z$13:Z$212,B36,'Eingabe 1-6'!AH$13:AH$212) -> 0 | L36: =SUMIF('Eingabe 1-6'!AL$13:AL$212,B36,'Eingabe 1-6'!AT$13:AT$212) -> 0 | M36: 0 | N36: 0 | O36: =SUMIF('Eingabe 1-6'!AX$13:AX$212,B36,'Eingabe 1-6'!BF$13:BF$212) -> 0 | P36: =SUMIF('Eingabe 1-6'!BJ$13:BJ$212,B36,'Eingabe 1-6'!BR$13:BR$212) -> 0 | Q36: 0 | R36: 0
A37: 0 | B37: 214 | H37: =SUMIF('Eingabe 1-6'!B$13:B$212,B37,'Eingabe 1-6'!J$13:J$212) -> 0 | I37: =SUMIF('Eingabe 1-6'!N$13:N$212,B37,'Eingabe 1-6'!V$13:V$212) -> 0 | J37: 0 | K37: =SUMIF('Eingabe 1-6'!Z$13:Z$212,B37,'Eingabe 1-6'!AH$13:AH$212) -> 0 | L37: =SUMIF('Eingabe 1-6'!AL$13:AL$212,B37,'Eingabe 1-6'!AT$13:AT$212) -> 0 | M37: 0 | N37: 0 | O37: =SUMIF('Eingabe 1-6'!AX$13:AX$212,B37,'Eingabe 1-6'!BF$13:BF$212) -> 0 | P37: =SUMIF('Eingabe 1-6'!BJ$13:BJ$212,B37,'Eingabe 1-6'!BR$13:BR$212) -> 0 | Q37: 0 | R37: 0
A38: 0 | B38: 215 | H38: =SUMIF('Eingabe 1-6'!B$13:B$212,B38,'Eingabe 1-6'!J$13:J$212) -> 0 | I38: =SUMIF('Eingabe 1-6'!N$13:N$212,B38,'Eingabe 1-6'!V$13:V$212) -> 0 | J38: 0 | K38: =SUMIF('Eingabe 1-6'!Z$13:Z$212,B38,'Eingabe 1-6'!AH$13:AH$212) -> 0 | L38: =SUMIF('Eingabe 1-6'!AL$13:AL$212,B38,'Eingabe 1-6'!AT$13:AT$212) -> 0 | M38: 0 | N38: 0 | O38: =SUMIF('Eingabe 1-6'!AX$13:AX$212,B38,'Eingabe 1-6'!BF$13:BF$212) -> 0 | P38: =SUMIF('Eingabe 1-6'!BJ$13:BJ$212,B38,'Eingabe 1-6'!BR$13:BR$212) -> 0 | Q38: 0 | R38: 0
A39: 0 | B39: 216 | H39: =SUMIF('Eingabe 1-6'!B$13:B$212,B39,'Eingabe 1-6'!J$13:J$212) -> 0 | I39: =SUMIF('Eingabe 1-6'!N$13:N$212,B39,'Eingabe 1-6'!V$13:V$212) -> 0 | J39: 0 | K39: =SUMIF('Eingabe 1-6'!Z$13:Z$212,B39,'Eingabe 1-6'!AH$13:AH$212) -> 0 | L39: =SUMIF('Eingabe 1-6'!AL$13:AL$212,B39,'Eingabe 1-6'!AT$13:AT$212) -> 0 | M39: 0 | N39: 0 | O39: =SUMIF('Eingabe 1-6'!AX$13:AX$212,B39,'Eingabe 1-6'!BF$13:BF$212) -> 0 | P39: =SUMIF('Eingabe 1-6'!BJ$13:BJ$212,B39,'Eingabe 1-6'!BR$13:BR$212) -> 0 | Q39: 0 | R39: 0
A40: =A24 -> 0 | B40: Summe | C40: =COUNTA(C24:C39) -> 11 | D40: =COUNTA(D24:D39) -> 11 | E40: 11 | H40: =SUM(H24:H39) -> 0 | I40: 0 | J40: 0 | K40: 0 | L40: 0 | M40: 0 | N40: 0 | O40: 0 | P40: 0 | Q40: 0 | R40: 0
B41: 301 | C41: x | D41: x | E41: x | H41: =SUMIF('Eingabe 1-6'!B$13:B$212,B41,'Eingabe 1-6'!J$13:J$212) -> 0 | I41: =SUMIF('Eingabe 1-6'!N$13:N$212,B41,'Eingabe 1-6'!V$13:V$212) -> 0 | J41: =H41+I41 -> 0 | K41: =SUMIF('Eingabe 1-6'!Z$13:Z$212,B41,'Eingabe 1-6'!AH$13:AH$212) -> 0 | L41: =SUMIF('Eingabe 1-6'!AL$13:AL$212,B41,'Eingabe 1-6'!AT$13:AT$212) -> 0 | M41: =K41+L41 -> 0 | N41: =J41+M41 -> 0 | O41: =SUMIF('Eingabe 1-6'!AX$13:AX$212,B41,'Eingabe 1-6'!BF$13:BF$212) -> 0 | P41: =SUMIF('Eingabe 1-6'!BJ$13:BJ$212,B41,'Eingabe 1-6'!BR$13:BR$212) -> 0 | Q41: =O41+P41 -> 0 | R41: =N41+Q41 -> 0
A42: =A41 -> 0 | B42: 302 | C42: x | D42: x | E42: x | H42: =SUMIF('Eingabe 1-6'!B$13:B$212,B42,'Eingabe 1-6'!J$13:J$212) -> 0 | I42: =SUMIF('Eingabe 1-6'!N$13:N$212,B42,'Eingabe 1-6'!V$13:V$212) -> 0 | J42: 0 | K42: =SUMIF('Eingabe 1-6'!Z$13:Z$212,B42,'Eingabe 1-6'!AH$13:AH$212) -> 0 | L42: =SUMIF('Eingabe 1-6'!AL$13:AL$212,B42,'Eingabe 1-6'!AT$13:AT$212) -> 0 | M42: 0 | N42: 0 | O42: =SUMIF('Eingabe 1-6'!AX$13:AX$212,B42,'Eingabe 1-6'!BF$13:BF$212) -> 0 | P42: =SUMIF('Eingabe 1-6'!BJ$13:BJ$212,B42,'Eingabe 1-6'!BR$13:BR$212) -> 0 | Q42: 0 | R42: 0
A43: =A42 -> 0 | B43: 303 | C43: x | D43: x | E43: x | H43: =SUMIF('Eingabe 1-6'!B$13:B$212,B43,'Eingabe 1-6'!J$13:J$212) -> 0 | I43: =SUMIF('Eingabe 1-6'!N$13:N$212,B43,'Eingabe 1-6'!V$13:V$212) -> 0 | J43: 0 | K43: =SUMIF('Eingabe 1-6'!Z$13:Z$212,B43,'Eingabe 1-6'!AH$13:AH$212) -> 0 | L43: =SUMIF('Eingabe 1-6'!AL$13:AL$212,B43,'Eingabe 1-6'!AT$13:AT$212) -> 0 | M43: 0 | N43: 0 | O43: =SUMIF('Eingabe 1-6'!AX$13:AX$212,B43,'Eingabe 1-6'!BF$13:BF$212) -> 0 | P43: =SUMIF('Eingabe 1-6'!BJ$13:BJ$212,B43,'Eingabe 1-6'!BR$13:BR$212) -> 0 | Q43: 0 | R43: 0
A44: 0 | B44: 304 | C44: x | D44: x | E44: x | H44: =SUMIF('Eingabe 1-6'!B$13:B$212,B44,'Eingabe 1-6'!J$13:J$212) -> 0 | I44: =SUMIF('Eingabe 1-6'!N$13:N$212,B44,'Eingabe 1-6'!V$13:V$212) -> 0 | J44: 0 | K44: =SUMIF('Eingabe 1-6'!Z$13:Z$212,B44,'Eingabe 1-6'!AH$13:AH$212) -> 0 | L44: =SUMIF('Eingabe 1-6'!AL$13:AL$212,B44,'Eingabe 1-6'!AT$13:AT$212) -> 0 | M44: 0 | N44: 0 | O44: =SUMIF('Eingabe 1-6'!AX$13:AX$212,B44,'Eingabe 1-6'!BF$13:BF$212) -> 0 | P44: =SUMIF('Eingabe 1-6'!BJ$13:BJ$212,B44,'Eingabe 1-6'!BR$13:BR$212) -> 0 | Q44: 0 | R44: 0
A45: 0 | B45: 305 | C45: x | D45: x | E45: x | H45: =SUMIF('Eingabe 1-6'!B$13:B$212,B45,'Eingabe 1-6'!J$13:J$212) -> 0 | I45: =SUMIF('Eingabe 1-6'!N$13:N$212,B45,'Eingabe 1-6'!V$13:V$212) -> 0 | J45: 0 | K45: =SUMIF('Eingabe 1-6'!Z$13:Z$212,B45,'Eingabe 1-6'!AH$13:AH$212) -> 0 | L45: =SUMIF('Eingabe 1-6'!AL$13:AL$212,B45,'Eingabe 1-6'!AT$13:AT$212) -> 0 | M45: 0 | N45: 0 | O45: =SUMIF('Eingabe 1-6'!AX$13:AX$212,B45,'Eingabe 1-6'!BF$13:BF$212) -> 0 | P45: =SUMIF('Eingabe 1-6'!BJ$13:BJ$212,B45,'Eingabe 1-6'!BR$13:BR$212) -> 0 | Q45: 0 | R45: 0
A46: 0 | B46: 306 | C46: x | D46: x | E46: x | H46: =SUMIF('Eingabe 1-6'!B$13:B$212,B46,'Eingabe 1-6'!J$13:J$212) -> 0 | I46: =SUMIF('Eingabe 1-6'!N$13:N$212,B46,'Eingabe 1-6'!V$13:V$212) -> 0 | J46: 0 | K46: =SUMIF('Eingabe 1-6'!Z$13:Z$212,B46,'Eingabe 1-6'!AH$13:AH$212) -> 0 | L46: =SUMIF('Eingabe 1-6'!AL$13:AL$212,B46,'Eingabe 1-6'!AT$13:AT$212) -> 0 | M46: 0 | N46: 0 | O46: =SUMIF('Eingabe 1-6'!AX$13:AX$212,B46,'Eingabe 1-6'!BF$13:BF$212) -> 0 | P46: =SUMIF('Eingabe 1-6'!BJ$13:BJ$212,B46,'Eingabe 1-6'!BR$13:BR$212) -> 0 | Q46: 0 | R46: 0
A47: 0 | B47: 307 | C47: x | D47: x | E47: x | H47: =SUMIF('Eingabe 1-6'!B$13:B$212,B47,'Eingabe 1-6'!J$13:J$212) -> 0 | I47: =SUMIF('Eingabe 1-6'!N$13:N$212,B47,'Eingabe 1-6'!V$13:V$212) -> 0 | J47: 0 | K47: =SUMIF('Eingabe 1-6'!Z$13:Z$212,B47,'Eingabe 1-6'!AH$13:AH$212) -> 0 | L47: =SUMIF('Eingabe 1-6'!AL$13:AL$212,B47,'Eingabe 1-6'!AT$13:AT$212) -> 0 | M47: 0 | N47: 0 | O47: =SUMIF('Eingabe 1-6'!AX$13:AX$212,B47,'Eingabe 1-6'!BF$13:BF$212) -> 0 | P47: =SUMIF('Eingabe 1-6'!BJ$13:BJ$212,B47,'Eingabe 1-6'!BR$13:BR$212) -> 0 | Q47: 0 | R47: 0
A48: 0 | B48: 308 | C48: x | D48: x | E48: x | H48: =SUMIF('Eingabe 1-6'!B$13:B$212,B48,'Eingabe 1-6'!J$13:J$212) -> 0 | I48: =SUMIF('Eingabe 1-6'!N$13:N$212,B48,'Eingabe 1-6'!V$13:V$212) -> 0 | J48: 0 | K48: =SUMIF('Eingabe 1-6'!Z$13:Z$212,B48,'Eingabe 1-6'!AH$13:AH$212) -> 0 | L48: =SUMIF('Eingabe 1-6'!AL$13:AL$212,B48,'Eingabe 1-6'!AT$13:AT$212) -> 0 | M48: 0 | N48: 0 | O48: =SUMIF('Eingabe 1-6'!AX$13:AX$212,B48,'Eingabe 1-6'!BF$13:BF$212) -> 0 | P48: =SUMIF('Eingabe 1-6'!BJ$13:BJ$212,B48,'Eingabe 1-6'!BR$13:BR$212) -> 0 | Q48: 0 | R48: 0
A49: 0 | B49: 309 | C49: x | D49: x | E49: x | H49: =SUMIF('Eingabe 1-6'!B$13:B$212,B49,'Eingabe 1-6'!J$13:J$212) -> 0 | I49: =SUMIF('Eingabe 1-6'!N$13:N$212,B49,'Eingabe 1-6'!V$13:V$212) -> 0 | J49: 0 | K49: =SUMIF('Eingabe 1-6'!Z$13:Z$212,B49,'Eingabe 1-6'!AH$13:AH$212) -> 0 | L49: =SUMIF('Eingabe 1-6'!AL$13:AL$212,B49,'Eingabe 1-6'!AT$13:AT$212) -> 0 | M49: 0 | N49: 0 | O49: =SUMIF('Eingabe 1-6'!AX$13:AX$212,B49,'Eingabe 1-6'!BF$13:BF$212) -> 0 | P49: =SUMIF('Eingabe 1-6'!BJ$13:BJ$212,B49,'Eingabe 1-6'!BR$13:BR$212) -> 0 | Q49: 0 | R49: 0
A50: 0 | B50: 310 | C50: x | D50: x | E50: x | H50: =SUMIF('Eingabe 1-6'!B$13:B$212,B50,'Eingabe 1-6'!J$13:J$212) -> 0 | I50: =SUMIF('Eingabe 1-6'!N$13:N$212,B50,'Eingabe 1-6'!V$13:V$212) -> 0 | J50: 0 | K50: =SUMIF('Eingabe 1-6'!Z$13:Z$212,B50,'Eingabe 1-6'!AH$13:AH$212) -> 0 | L50: =SUMIF('Eingabe 1-6'!AL$13:AL$212,B50,'Eingabe 1-6'!AT$13:AT$212) -> 0 | M50: 0 | N50: 0 | O50: =SUMIF('Eingabe 1-6'!AX$13:AX$212,B50,'Eingabe 1-6'!BF$13:BF$212) -> 0 | P50: =SUMIF('Eingabe 1-6'!BJ$13:BJ$212,B50,'Eingabe 1-6'!BR$13:BR$212) -> 0 | Q50: 0 | R50: 0
A51: 0 | B51: 311 | C51: x | D51: x | E51: x | H51: =SUMIF('Eingabe 1-6'!B$13:B$212,B51,'Eingabe 1-6'!J$13:J$212) -> 0 | I51: =SUMIF('Eingabe 1-6'!N$13:N$212,B51,'Eingabe 1-6'!V$13:V$212) -> 0 | J51: 0 | K51: =SUMIF('Eingabe 1-6'!Z$13:Z$212,B51,'Eingabe 1-6'!AH$13:AH$212) -> 0 | L51: =SUMIF('Eingabe 1-6'!AL$13:AL$212,B51,'Eingabe 1-6'!AT$13:AT$212) -> 0 | M51: 0 | N51: 0 | O51: =SUMIF('Eingabe 1-6'!AX$13:AX$212,B51,'Eingabe 1-6'!BF$13:BF$212) -> 0 | P51: =SUMIF('Eingabe 1-6'!BJ$13:BJ$212,B51,'Eingabe 1-6'!BR$13:BR$212) -> 0 | Q51: 0 | R51: 0
A52: 0 | B52: 312 | H52: =SUMIF('Eingabe 1-6'!B$13:B$212,B52,'Eingabe 1-6'!J$13:J$212) -> 0 | I52: =SUMIF('Eingabe 1-6'!N$13:N$212,B52,'Eingabe 1-6'!V$13:V$212) -> 0 | J52: 0 | K52: =SUMIF('Eingabe 1-6'!Z$13:Z$212,B52,'Eingabe 1-6'!AH$13:AH$212) -> 0 | L52: =SUMIF('Eingabe 1-6'!AL$13:AL$212,B52,'Eingabe 1-6'!AT$13:AT$212) -> 0 | M52: 0 | N52: 0 | O52: =SUMIF('Eingabe 1-6'!AX$13:AX$212,B52,'Eingabe 1-6'!BF$13:BF$212) -> 0 | P52: =SUMIF('Eingabe 1-6'!BJ$13:BJ$212,B52,'Eingabe 1-6'!BR$13:BR$212) -> 0 | Q52: 0 | R52: 0
A53: 0 | B53: 313 | H53: =SUMIF('Eingabe 1-6'!B$13:B$212,B53,'Eingabe 1-6'!J$13:J$212) -> 0 | I53: =SUMIF('Eingabe 1-6'!N$13:N$212,B53,'Eingabe 1-6'!V$13:V$212) -> 0 | J53: 0 | K53: =SUMIF('Eingabe 1-6'!Z$13:Z$212,B53,'Eingabe 1-6'!AH$13:AH$212) -> 0 | L53: =SUMIF('Eingabe 1-6'!AL$13:AL$212,B53,'Eingabe 1-6'!AT$13:AT$212) -> 0 | M53: 0 | N53: 0 | O53: =SUMIF('Eingabe 1-6'!AX$13:AX$212,B53,'Eingabe 1-6'!BF$13:BF$212) -> 0 | P53: =SUMIF('Eingabe 1-6'!BJ$13:BJ$212,B53,'Eingabe 1-6'!BR$13:BR$212) -> 0 | Q53: 0 | R53: 0
A54: 0 | B54: 314 | H54: =SUMIF('Eingabe 1-6'!B$13:B$212,B54,'Eingabe 1-6'!J$13:J$212) -> 0 | I54: =SUMIF('Eingabe 1-6'!N$13:N$212,B54,'Eingabe 1-6'!V$13:V$212) -> 0 | J54: 0 | K54: =SUMIF('Eingabe 1-6'!Z$13:Z$212,B54,'Eingabe 1-6'!AH$13:AH$212) -> 0 | L54: =SUMIF('Eingabe 1-6'!AL$13:AL$212,B54,'Eingabe 1-6'!AT$13:AT$212) -> 0 | M54: 0 | N54: 0 | O54: =SUMIF('Eingabe 1-6'!AX$13:AX$212,B54,'Eingabe 1-6'!BF$13:BF$212) -> 0 | P54: =SUMIF('Eingabe 1-6'!BJ$13:BJ$212,B54,'Eingabe 1-6'!BR$13:BR$212) -> 0 | Q54: 0 | R54: 0
A55: 0 | B55: 315 | H55: =SUMIF('Eingabe 1-6'!B$13:B$212,B55,'Eingabe 1-6'!J$13:J$212) -> 0 | I55: =SUMIF('Eingabe 1-6'!N$13:N$212,B55,'Eingabe 1-6'!V$13:V$212) -> 0 | J55: 0 | K55: =SUMIF('Eingabe 1-6'!Z$13:Z$212,B55,'Eingabe 1-6'!AH$13:AH$212) -> 0 | L55: =SUMIF('Eingabe 1-6'!AL$13:AL$212,B55,'Eingabe 1-6'!AT$13:AT$212) -> 0 | M55: 0 | N55: 0 | O55: =SUMIF('Eingabe 1-6'!AX$13:AX$212,B55,'Eingabe 1-6'!BF$13:BF$212) -> 0 | P55: =SUMIF('Eingabe 1-6'!BJ$13:BJ$212,B55,'Eingabe 1-6'!BR$13:BR$212) -> 0 | Q55: 0 | R55: 0
A56: 0 | B56: 316 | H56: =SUMIF('Eingabe 1-6'!B$13:B$212,B56,'Eingabe 1-6'!J$13:J$212) -> 0 | I56: =SUMIF('Eingabe 1-6'!N$13:N$212,B56,'Eingabe 1-6'!V$13:V$212) -> 0 | J56: 0 | K56: =SUMIF('Eingabe 1-6'!Z$13:Z$212,B56,'Eingabe 1-6'!AH$13:AH$212) -> 0 | L56: =SUMIF('Eingabe 1-6'!AL$13:AL$212,B56,'Eingabe 1-6'!AT$13:AT$212) -> 0 | M56: 0 | N56: 0 | O56: =SUMIF('Eingabe 1-6'!AX$13:AX$212,B56,'Eingabe 1-6'!BF$13:BF$212) -> 0 | P56: =SUMIF('Eingabe 1-6'!BJ$13:BJ$212,B56,'Eingabe 1-6'!BR$13:BR$212) -> 0 | Q56: 0 | R56: 0
A57: =A41 -> 0 | B57: Summe | C57: =COUNTA(C41:C56) -> 11 | D57: =COUNTA(D41:D56) -> 11 | E57: 11 | H57: =SUM(H41:H56) -> 0 | I57: 0 | J57: 0 | K57: 0 | L57: 0 | M57: 0 | N57: 0 | O57: 0 | P57: 0 | Q57: 0 | R57: 0
B58: 401 | C58: x | D58: x | E58: x | H58: =SUMIF('Eingabe 1-6'!B$13:B$212,B58,'Eingabe 1-6'!J$13:J$212) -> 0 | I58: =SUMIF('Eingabe 1-6'!N$13:N$212,B58,'Eingabe 1-6'!V$13:V$212) -> 0 | J58: =H58+I58 -> 0 | K58: =SUMIF('Eingabe 1-6'!Z$13:Z$212,B58,'Eingabe 1-6'!AH$13:AH$212) -> 0 | L58: =SUMIF('Eingabe 1-6'!AL$13:AL$212,B58,'Eingabe 1-6'!AT$13:AT$212) -> 0 | M58: =K58+L58 -> 0 | N58: =J58+M58 -> 0 | O58: =SUMIF('Eingabe 1-6'!AX$13:AX$212,B58,'Eingabe 1-6'!BF$13:BF$212) -> 0 | P58: =SUMIF('Eingabe 1-6'!BJ$13:BJ$212,B58,'Eingabe 1-6'!BR$13:BR$212) -> 0 | Q58: =O58+P58 -> 0 | R58: =N58+Q58 -> 0
A59: =A58 -> 0 | B59: 402 | C59: x | D59: x | E59: x | H59: =SUMIF('Eingabe 1-6'!B$13:B$212,B59,'Eingabe 1-6'!J$13:J$212) -> 0 | I59: =SUMIF('Eingabe 1-6'!N$13:N$212,B59,'Eingabe 1-6'!V$13:V$212) -> 0 | J59: =H59+I59 -> 0 | K59: =SUMIF('Eingabe 1-6'!Z$13:Z$212,B59,'Eingabe 1-6'!AH$13:AH$212) -> 0 | L59: =SUMIF('Eingabe 1-6'!AL$13:AL$212,B59,'Eingabe 1-6'!AT$13:AT$212) -> 0 | M59: =K59+L59 -> 0 | N59: =J59+M59 -> 0 | O59: =SUMIF('Eingabe 1-6'!AX$13:AX$212,B59,'Eingabe 1-6'!BF$13:BF$212) -> 0 | P59: =SUMIF('Eingabe 1-6'!BJ$13:BJ$212,B59,'Eingabe 1-6'!BR$13:BR$212) -> 0 | Q59: =O59+P59 -> 0 | R59: =N59+Q59 -> 0
A60: =A59 -> 0 | B60: 403 | C60: x | D60: x | E60: x | H60: =SUMIF('Eingabe 1-6'!B$13:B$212,B60,'Eingabe 1-6'!J$13:J$212) -> 0 | I60: =SUMIF('Eingabe 1-6'!N$13:N$212,B60,'Eingabe 1-6'!V$13:V$212) -> 0 | J60: 0 | K60: =SUMIF('Eingabe 1-6'!Z$13:Z$212,B60,'Eingabe 1-6'!AH$13:AH$212) -> 0 | L60: =SUMIF('Eingabe 1-6'!AL$13:AL$212,B60,'Eingabe 1-6'!AT$13:AT$212) -> 0 | M60: 0 | N60: 0 | O60: =SUMIF('Eingabe 1-6'!AX$13:AX$212,B60,'Eingabe 1-6'!BF$13:BF$212) -> 0 | P60: =SUMIF('Eingabe 1-6'!BJ$13:BJ$212,B60,'Eingabe 1-6'!BR$13:BR$212) -> 0 | Q60: 0 | R60: 0
A61: 0 | B61: 404 | C61: x | D61: x | E61: x | H61: =SUMIF('Eingabe 1-6'!B$13:B$212,B61,'Eingabe 1-6'!J$13:J$212) -> 0 | I61: =SUMIF('Eingabe 1-6'!N$13:N$212,B61,'Eingabe 1-6'!V$13:V$212) -> 0 | J61: 0 | K61: =SUMIF('Eingabe 1-6'!Z$13:Z$212,B61,'Eingabe 1-6'!AH$13:AH$212) -> 0 | L61: =SUMIF('Eingabe 1-6'!AL$13:AL$212,B61,'Eingabe 1-6'!AT$13:AT$212) -> 0 | M61: 0 | N61: 0 | O61: =SUMIF('Eingabe 1-6'!AX$13:AX$212,B61,'Eingabe 1-6'!BF$13:BF$212) -> 0 | P61: =SUMIF('Eingabe 1-6'!BJ$13:BJ$212,B61,'Eingabe 1-6'!BR$13:BR$212) -> 0 | Q61: 0 | R61: 0
A62: 0 | B62: 405 | C62: x | D62: x | E62: x | H62: =SUMIF('Eingabe 1-6'!B$13:B$212,B62,'Eingabe 1-6'!J$13:J$212) -> 0 | I62: =SUMIF('Eingabe 1-6'!N$13:N$212,B62,'Eingabe 1-6'!V$13:V$212) -> 0 | J62: 0 | K62: =SUMIF('Eingabe 1-6'!Z$13:Z$212,B62,'Eingabe 1-6'!AH$13:AH$212) -> 0 | L62: =SUMIF('Eingabe 1-6'!AL$13:AL$212,B62,'Eingabe 1-6'!AT$13:AT$212) -> 0 | M62: 0 | N62: 0 | O62: =SUMIF('Eingabe 1-6'!AX$13:AX$212,B62,'Eingabe 1-6'!BF$13:BF$212) -> 0 | P62: =SUMIF('Eingabe 1-6'!BJ$13:BJ$212,B62,'Eingabe 1-6'!BR$13:BR$212) -> 0 | Q62: 0 | R62: 0
A63: 0 | B63: 406 | C63: x | D63: x | E63: x | H63: =SUMIF('Eingabe 1-6'!B$13:B$212,B63,'Eingabe 1-6'!J$13:J$212) -> 0 | I63: =SUMIF('Eingabe 1-6'!N$13:N$212,B63,'Eingabe 1-6'!V$13:V$212) -> 0 | J63: 0 | K63: =SUMIF('Eingabe 1-6'!Z$13:Z$212,B63,'Eingabe 1-6'!AH$13:AH$212) -> 0 | L63: =SUMIF('Eingabe 1-6'!AL$13:AL$212,B63,'Eingabe 1-6'!AT$13:AT$212) -> 0 | M63: 0 | N63: 0 | O63: =SUMIF('Eingabe 1-6'!AX$13:AX$212,B63,'Eingabe 1-6'!BF$13:BF$212) -> 0 | P63: =SUMIF('Eingabe 1-6'!BJ$13:BJ$212,B63,'Eingabe 1-6'!BR$13:BR$212) -> 0 | Q63: 0 | R63: 0
A64: 0 | B64: 407 | C64: x | D64: x | E64: x | H64: =SUMIF('Eingabe 1-6'!B$13:B$212,B64,'Eingabe 1-6'!J$13:J$212) -> 0 | I64: =SUMIF('Eingabe 1-6'!N$13:N$212,B64,'Eingabe 1-6'!V$13:V$212) -> 0 | J64: 0 | K64: =SUMIF('Eingabe 1-6'!Z$13:Z$212,B64,'Eingabe 1-6'!AH$13:AH$212) -> 0 | L64: =SUMIF('Eingabe 1-6'!AL$13:AL$212,B64,'Eingabe 1-6'!AT$13:AT$212) -> 0 | M64: 0 | N64: 0 | O64: =SUMIF('Eingabe 1-6'!AX$13:AX$212,B64,'Eingabe 1-6'!BF$13:BF$212) -> 0 | P64: =SUMIF('Eingabe 1-6'!BJ$13:BJ$212,B64,'Eingabe 1-6'!BR$13:BR$212) -> 0 | Q64: 0 | R64: 0
A65: 0 | B65: 408 | C65: x | D65: x | E65: x | H65: =SUMIF('Eingabe 1-6'!B$13:B$212,B65,'Eingabe 1-6'!J$13:J$212) -> 0 | I65: =SUMIF('Eingabe 1-6'!N$13:N$212,B65,'Eingabe 1-6'!V$13:V$212) -> 0 | J65: 0 | K65: =SUMIF('Eingabe 1-6'!Z$13:Z$212,B65,'Eingabe 1-6'!AH$13:AH$212) -> 0 | L65: =SUMIF('Eingabe 1-6'!AL$13:AL$212,B65,'Eingabe 1-6'!AT$13:AT$212) -> 0 | M65: 0 | N65: 0 | O65: =SUMIF('Eingabe 1-6'!AX$13:AX$212,B65,'Eingabe 1-6'!BF$13:BF$212) -> 0 | P65: =SUMIF('Eingabe 1-6'!BJ$13:BJ$212,B65,'Eingabe 1-6'!BR$13:BR$212) -> 0 | Q65: 0 | R65: 0
A66: 0 | B66: 409 | C66: x | D66: x | E66: x | H66: =SUMIF('Eingabe 1-6'!B$13:B$212,B66,'Eingabe 1-6'!J$13:J$212) -> 0 | I66: =SUMIF('Eingabe 1-6'!N$13:N$212,B66,'Eingabe 1-6'!V$13:V$212) -> 0 | J66: 0 | K66: =SUMIF('Eingabe 1-6'!Z$13:Z$212,B66,'Eingabe 1-6'!AH$13:AH$212) -> 0 | L66: =SUMIF('Eingabe 1-6'!AL$13:AL$212,B66,'Eingabe 1-6'!AT$13:AT$212) -> 0 | M66: 0 | N66: 0 | O66: =SUMIF('Eingabe 1-6'!AX$13:AX$212,B66,'Eingabe 1-6'!BF$13:BF$212) -> 0 | P66: =SUMIF('Eingabe 1-6'!BJ$13:BJ$212,B66,'Eingabe 1-6'!BR$13:BR$212) -> 0 | Q66: 0 | R66: 0
A67: 0 | B67: 410 | C67: x | D67: x | E67: x | H67: =SUMIF('Eingabe 1-6'!B$13:B$212,B67,'Eingabe 1-6'!J$13:J$212) -> 0 | I67: =SUMIF('Eingabe 1-6'!N$13:N$212,B67,'Eingabe 1-6'!V$13:V$212) -> 0 | J67: 0 | K67: =SUMIF('Eingabe 1-6'!Z$13:Z$212,B67,'Eingabe 1-6'!AH$13:AH$212) -> 0 | L67: =SUMIF('Eingabe 1-6'!AL$13:AL$212,B67,'Eingabe 1-6'!AT$13:AT$212) -> 0 | M67: 0 | N67: 0 | O67: =SUMIF('Eingabe 1-6'!AX$13:AX$212,B67,'Eingabe 1-6'!BF$13:BF$212) -> 0 | P67: =SUMIF('Eingabe 1-6'!BJ$13:BJ$212,B67,'Eingabe 1-6'!BR$13:BR$212) -> 0 | Q67: 0 | R67: 0
A68: 0 | B68: 411 | C68: x | D68: x | E68: x | H68: =SUMIF('Eingabe 1-6'!B$13:B$212,B68,'Eingabe 1-6'!J$13:J$212) -> 0 | I68: =SUMIF('Eingabe 1-6'!N$13:N$212,B68,'Eingabe 1-6'!V$13:V$212) -> 0 | J68: 0 | K68: =SUMIF('Eingabe 1-6'!Z$13:Z$212,B68,'Eingabe 1-6'!AH$13:AH$212) -> 0 | L68: =SUMIF('Eingabe 1-6'!AL$13:AL$212,B68,'Eingabe 1-6'!AT$13:AT$212) -> 0 | M68: 0 | N68: 0 | O68: =SUMIF('Eingabe 1-6'!AX$13:AX$212,B68,'Eingabe 1-6'!BF$13:BF$212) -> 0 | P68: =SUMIF('Eingabe 1-6'!BJ$13:BJ$212,B68,'Eingabe 1-6'!BR$13:BR$212) -> 0 | Q68: 0 | R68: 0
A69: 0 | B69: 412 | H69: =SUMIF('Eingabe 1-6'!B$13:B$212,B69,'Eingabe 1-6'!J$13:J$212) -> 0 | I69: =SUMIF('Eingabe 1-6'!N$13:N$212,B69,'Eingabe 1-6'!V$13:V$212) -> 0 | J69: 0 | K69: =SUMIF('Eingabe 1-6'!Z$13:Z$212,B69,'Eingabe 1-6'!AH$13:AH$212) -> 0 | L69: =SUMIF('Eingabe 1-6'!AL$13:AL$212,B69,'Eingabe 1-6'!AT$13:AT$212) -> 0 | M69: 0 | N69: 0 | O69: =SUMIF('Eingabe 1-6'!AX$13:AX$212,B69,'Eingabe 1-6'!BF$13:BF$212) -> 0 | P69: =SUMIF('Eingabe 1-6'!BJ$13:BJ$212,B69,'Eingabe 1-6'!BR$13:BR$212) -> 0 | Q69: 0 | R69: 0
A70: 0 | B70: 413 | H70: =SUMIF('Eingabe 1-6'!B$13:B$212,B70,'Eingabe 1-6'!J$13:J$212) -> 0 | I70: =SUMIF('Eingabe 1-6'!N$13:N$212,B70,'Eingabe 1-6'!V$13:V$212) -> 0 | J70: 0 | K70: =SUMIF('Eingabe 1-6'!Z$13:Z$212,B70,'Eingabe 1-6'!AH$13:AH$212) -> 0 | L70: =SUMIF('Eingabe 1-6'!AL$13:AL$212,B70,'Eingabe 1-6'!AT$13:AT$212) -> 0 | M70: 0 | N70: 0 | O70: =SUMIF('Eingabe 1-6'!AX$13:AX$212,B70,'Eingabe 1-6'!BF$13:BF$212) -> 0 | P70: =SUMIF('Eingabe 1-6'!BJ$13:BJ$212,B70,'Eingabe 1-6'!BR$13:BR$212) -> 0 | Q70: 0 | R70: 0
A71: 0 | B71: 414 | H71: =SUMIF('Eingabe 1-6'!B$13:B$212,B71,'Eingabe 1-6'!J$13:J$212) -> 0 | I71: =SUMIF('Eingabe 1-6'!N$13:N$212,B71,'Eingabe 1-6'!V$13:V$212) -> 0 | J71: 0 | K71: =SUMIF('Eingabe 1-6'!Z$13:Z$212,B71,'Eingabe 1-6'!AH$13:AH$212) -> 0 | L71: =SUMIF('Eingabe 1-6'!AL$13:AL$212,B71,'Eingabe 1-6'!AT$13:AT$212) -> 0 | M71: 0 | N71: 0 | O71: =SUMIF('Eingabe 1-6'!AX$13:AX$212,B71,'Eingabe 1-6'!BF$13:BF$212) -> 0 | P71: =SUMIF('Eingabe 1-6'!BJ$13:BJ$212,B71,'Eingabe 1-6'!BR$13:BR$212) -> 0 | Q71: 0 | R71: 0
A72: 0 | B72: 415 | H72: =SUMIF('Eingabe 1-6'!B$13:B$212,B72,'Eingabe 1-6'!J$13:J$212) -> 0 | I72: =SUMIF('Eingabe 1-6'!N$13:N$212,B72,'Eingabe 1-6'!V$13:V$212) -> 0 | J72: 0 | K72: =SUMIF('Eingabe 1-6'!Z$13:Z$212,B72,'Eingabe 1-6'!AH$13:AH$212) -> 0 | L72: =SUMIF('Eingabe 1-6'!AL$13:AL$212,B72,'Eingabe 1-6'!AT$13:AT$212) -> 0 | M72: 0 | N72: 0 | O72: =SUMIF('Eingabe 1-6'!AX$13:AX$212,B72,'Eingabe 1-6'!BF$13:BF$212) -> 0 | P72: =SUMIF('Eingabe 1-6'!BJ$13:BJ$212,B72,'Eingabe 1-6'!BR$13:BR$212) -> 0 | Q72: 0 | R72: 0
A73: 0 | B73: 416 | H73: =SUMIF('Eingabe 1-6'!B$13:B$212,B73,'Eingabe 1-6'!J$13:J$212) -> 0 | I73: =SUMIF('Eingabe 1-6'!N$13:N$212,B73,'Eingabe 1-6'!V$13:V$212) -> 0 | J73: 0 | K73: =SUMIF('Eingabe 1-6'!Z$13:Z$212,B73,'Eingabe 1-6'!AH$13:AH$212) -> 0 | L73: =SUMIF('Eingabe 1-6'!AL$13:AL$212,B73,'Eingabe 1-6'!AT$13:AT$212) -> 0 | M73: 0 | N73: 0 | O73: =SUMIF('Eingabe 1-6'!AX$13:AX$212,B73,'Eingabe 1-6'!BF$13:BF$212) -> 0 | P73: =SUMIF('Eingabe 1-6'!BJ$13:BJ$212,B73,'Eingabe 1-6'!BR$13:BR$212) -> 0 | Q73: 0 | R73: 0
A74: =A58 -> 0 | B74: Summe | C74: =COUNTA(C58:C73) -> 11 | D74: =COUNTA(D58:D73) -> 11 | E74: 11 | H74: =SUM(H58:H73) -> 0 | I74: 0 | J74: 0 | K74: 0 | L74: 0 | M74: 0 | N74: =SUM(N58:N73) -> 0 | O74: 0 | P74: 0 | Q74: 0 | R74: 0

Sheet Eingabe 1-6
B1: 1 | C1: 11 | F1: Eingabe der Tischnummern : | N1: 1 | O1: 11 | R1: Eingabe der Tischnummern : | Z1: 1 | AA1: 11 | AD1: Eingabe der Tischnummern : | AL1: 1 | AM1: 11 | AP1: Eingabe der Tischnummern : | AX1: 1 | AY1: 11 | BB1: Eingabe der Tischnummern : | BJ1: 1 | BK1: 11 | BN1: Eingabe der Tischnummern : | CD1: 1 | CE1: 11
B2: 2 | C2: 12 | N2: 2 | O2: 12 | Z2: 2 | AA2: 12 | AL2: 2 | AM2: 12 | AX2: 2 | AY2: 12 | BJ2: 2 | BK2: 12 | CD2: 2 | CE2: 12
B3: 3 | C3: 13 | N3: 3 | O3: 13 | Z3: 3 | AA3: 13 | AL3: 3 | AM3: 13 | AX3: 3 | AY3: 13 | BJ3: 3 | BK3: 13 | CD3: 3 | CE3: 13
B4: 4 | C4: 14 | N4: 4 | O4: 14 | Z4: 4 | AA4: 14 | AL4: 4 | AM4: 14 | AX4: 4 | AY4: 14 | BJ4: 4 | BK4: 14 | CD4: 4 | CE4: 14
B5: 5 | C5: 15 | N5: 5 | O5: 15 | Z5: 5 | AA5: 15 | AL5: 5 | AM5: 15 | AX5: 5 | AY5: 15 | BJ5: 5 | BK5: 15 | CD5: 5 | CE5: 15
B6: 6 | C6: 16 | N6: 6 | O6: 16 | Z6: 6 | AA6: 16 | AL6: 6 | AM6: 16 | AX6: 6 | AY6: 16 | BJ6: 6 | BK6: 16 | CD6: 6 | CE6: 16
B7: 7 | C7: 17 | I7: Umsetzungen bitte in der jeweilige Serie in Spalte C vornehmen! | L7: =COUNT(F13:F76)-48 -> 0 | N7: 7 | O7: 17 | U7: Umsetzungen bitte in der jeweilige Serie in Spalte C vornehmen! | X7: =COUNT(R13:R76)-48 -> 0 | Z7: 7 | AA7: 17 | AG7: Umsetzungen bitte in der jeweilige Serie in Spalte C vornehmen! | AJ7: =COUNT(AD13:AD76)-48 -> 0 | AL7: 7 | AM7: 17 | AS7: Umsetzungen bitte in der jeweilige Serie in Spalte C vornehmen! | AV7: =COUNT(AP13:AP76)-48 -> 0 | AX7: 7 | AY7: 17 | BE7: Umsetzungen bitte in der jeweilige Serie in Spalte C vornehmen! | BH7: =COUNT(BB13:BB76)-48 -> 0 | BJ7: 7 | BK7: 17 | BQ7: Umsetzungen bitte in der jeweilige Serie in Spalte C vornehmen! | BT7: =COUNT(BN13:BN76)-48 -> 0 | CD7: 7 | CE7: 17
B8: 8 | C8: 18 | N8: 8 | O8: 18 | Z8: 8 | AA8: 18 | AL8: 8 | AM8: 18 | AX8: 8 | AY8: 18 | BJ8: 8 | BK8: 18 | CD8: 8 | CE8: 18
B9: 9 | C9: 19 | N9: 9 | O9: 19 | Z9: 9 | AA9: 19 | AL9: 9 | AM9: 19 | AX9: 9 | AY9: 19 | BJ9: 9 | BK9: 19 | CD9: 9 | CE9: 19
B10: 10 | C10: 20 | N10: 10 | O10: 20 | Z10: 10 | AA10: 20 | AL10: 10 | AM10: 20 | AX10: 10 | AY10: 20 | BJ10: 10 | BK10: 20 | CD10: 10 | CE10: 20
B11: 1. Serie | G11: =COUNT(F13:F76)-48&" Tische eingegeben" -> 0 Tische eingegeben | L11: =SUM(L13:L76) -> 0 | N11: 2. Serie | S11: =COUNT(R13:R76)-48&" Tische eingegeben" -> 0 Tische eingegeben | X11: =SUM(X13:X76) -> 0 | Z11: 3. Serie | AE11: =COUNT(AD13:AD76)-48&" Tische eingegeben" -> 0 Tische eingegeben | AJ11: =SUM(AJ13:AJ76) -> 0 | AL11: 4. Serie | AQ11: =COUNT(AP13:AP76)-48&" Tische eingegeben" -> 0 Tische eingegeben | AV11: =SUM(AV13:AV76) -> 0 | AX11: 5. Serie | BC11: =COUNT(BB13:BB76)-48&" Tische eingegeben" -> 0 Tische eingegeben | BH11: =SUM(BH13:BH76) -> 0 | BJ11: 6. Serie | BO11: =COUNT(BN13:BN76)-48&" Tische eingegeben" -> 0 Tische eingegeben | BT11: =SUM(BT13:BT76) -> 0 | BU11: Abrechnung: | BV11: =BV12-BV21 -> 0 | CC11: 1.Serie | CH11: 2.Serie | CM11: 3.Serie | CR11: 4.Serie | CW11: 5.Serie | DB11: 6.Serie
B12: Nr. | C12: Spielername | F12: Tisch | G12: Sp.P. | H12: gew. | I12: verl. | J12: Punkte vorab | K12: Kontr. | L12: Verl-Geld | N12: Nr. | O12: Spielername | R12: Tisch | S12: Sp.P. | T12: gew. | U12: verl. | V12: Punkte vorab | W12: Kontr. | X12: Verl-Geld | Z12: Nr. | AA12: Spielername | AD12: Tisch | AE12: Sp.P. | AF12: gew. | AG12: verl. | AH12: Punkte vorab | AI12: Kontr. | AJ12: Verl-Geld | AL12: Nr. | AM12: Spielername | AP12: Tisch | AQ12: Sp.P. | AR12: gew. | AS12: verl. | AT12: Punkte vorab | AU12: Kontr. | AV12: Verl-Geld | AX12: Nr. | AY12: Spielername | BB12: Tisch | BC12: Sp.P. | BD12: gew. | BE12: verl. | BF12: Punkte vorab | BG12: Kontr. | BH12: Verl-Geld | BJ12: Nr. | BK12: Spielername | BN12: Tisch | BO12: Sp.P. | BP12: gew. | BQ12: verl. | BR12: Punkte vorab | BS12: Kontr. | BT12: Verl-Geld | BU12: Einnahmen: | BV12: =BV13+BV14+BV15+BV16+BV17+BV18 -> 0 | CC12: Tisch | CD12: 1.Sp. | CE12: 2.Sp. | CF12: 3.Sp. | CG12: 4.Sp. | CH12: Tisch | CI12: 1.Sp. | CJ12: 2.Sp. | CK12: 3.Sp. | CL12: 4.Sp. | CM12: Tisch | CN12: 1.Sp. | CO12: 2.Sp. | CP12: 3.Sp. | CQ12: 4.Sp. | CR12: Tisch | CS12: 1.Sp. | CT12: 2.Sp. | CU12: 3.Sp. | CV12: 4.Sp. | CW12: Tisch | CX12: 1.Sp. | CY12: 2.Sp. | CZ12: 3.Sp. | DA12: 4.Sp. | DB12: Tisch | DC12: 1.Sp. | DD12: 2.Sp. | DE12: 3.Sp. | DF12: 4.Sp. | DG12: Tisch | DH12: 1.Serie | DI12: 2.Serie | DJ12: 3.Serie | DK12: 4.Serie | DL12: 5.Serie | DM12: 6.Serie
A13: =IF(COUNTIF(B$13:B13,B13)>1,"X","") ->  | B13: =IF(ISBLANK(F13)," ",INDEX(CD:CD,MATCH(F13,CC:CC,0))) ->  | C13: =IF(ISBLANK(F13)," ",INDEX('Eingabe Spielernamen'!$F:$F,MATCH(B13,'Eingabe Spielernamen'!$B:$B,0))&", "&INDEX('Eingabe Spielernamen'!$G:$G,MATCH(B13,'Eingabe Spielernamen'!$B:$B,0))) ->  | K13: =IF(ISBLANK(G13)," ",G13+(H13-I13)*50+IF(COUNT(G13:G16)=3,(I14+I15+I16)*40,(I14+I15+I16)*30)) ->  | L13: =IF(I13<4,I13*1,IF(I13>3,I13*1)) -> 0 | M13: =IF(COUNTIF(N$13:N13,N13)>1,"X","") ->  | N13: =IF(ISBLANK(R13)," ",INDEX(CI:CI,MATCH(R13,CH:CH,0))) ->  | O13: =IF(ISBLANK(R13)," ",INDEX('Eingabe Spielernamen'!$F:$F,MATCH(N13,'Eingabe Spielernamen'!$B:$B,0))&", "&INDEX('Eingabe Spielernamen'!$G:$G,MATCH(N13,'Eingabe Spielernamen'!$B:$B,0))) ->  | W13: =IF(ISBLANK(S13)," ",S13+(T13-U13)*50+IF(COUNT(S13:S16)=3,(U14+U15+U16)*40,(U14+U15+U16)*30)) ->  | X13: =IF(U13<4,U13*1,IF(U13>3,U13*1)) -> 0 | Y13: =IF(COUNTIF(Z$13:Z13,Z13)>1,"X","") ->  | Z13: =IF(ISBLANK(AD13)," ",INDEX(CN:CN,MATCH(AD13,CM:CM,0))) ->  | AA13: =IF(ISBLANK(AD13)," ",INDEX('Eingabe Spielernamen'!$F:$F,MATCH(Z13,'Eingabe Spielernamen'!$B:$B,0))&", "&INDEX('Eingabe Spielernamen'!$G:$G,MATCH(Z13,'Eingabe Spielernamen'!$B:$B,0))) ->  | AI13: =IF(ISBLANK(AE13)," ",AE13+(AF13-AG13)*50+IF(COUNT(AE13:AE16)=3,(AG14+AG15+AG16)*40,(AG14+AG15+AG16)*30)) ->  | AJ13: =IF(AG13<4,AG13*1,IF(AG13>3,AG13*1)) -> 0 | AK13: =IF(COUNTIF(AL$13:AL13,AL13)>1,"X","") ->  | AL13: =IF(ISBLANK(AP13)," ",INDEX(CS:CS,MATCH(AP13,CR:CR,0))) ->  | AM13: =IF(ISBLANK(AP13)," ",INDEX('Eingabe Spielernamen'!$F:$F,MATCH(AL13,'Eingabe Spielernamen'!$B:$B,0))&", "&INDEX('Eingabe Spielernamen'!$G:$G,MATCH(AL13,'Eingabe Spielernamen'!$B:$B,0))) ->  | AU13: =IF(ISBLANK(AQ13)," ",AQ13+(AR13-AS13)*50+IF(COUNT(AQ13:AQ16)=3,(AS14+AS15+AS16)*40,(AS14+AS15+AS16)*30)) ->  | AV13: =IF(AS13<4,AS13*1,IF(AS13>3,AS13*1)) -> 0 | AW13: =IF(COUNTIF(AX$13:AX13,AX13)>1,"X","") ->  | AX13: =IF(ISBLANK(BB13)," ",INDEX(CX:CX,MATCH(BB13,CW:CW,0))) ->  | AY13: =IF(ISBLANK(BB13)," ",INDEX('Eingabe Spielernamen'!$F:$F,MATCH(AX13,'Eingabe Spielernamen'!$B:$B,0))&", "&INDEX('Eingabe Spielernamen'!$G:$G,MATCH(AX13,'Eingabe Spielernamen'!$B:$B,0))) ->  | BG13: =IF(ISBLANK(BC13)," ",BC13+(BD13-BE13)*50+IF(COUNT(BC13:BC16)=3,(BE14+BE15+BE16)*40,(BE14+BE15+BE16)*30)) ->  | BH13: =IF(BE13<4,BE13*1,IF(BE13>3,BE13*1)) -> 0 | BI13: =IF(COUNTIF(BJ$13:BJ13,BJ13)>1,"X","") ->  | BJ13: =IF(ISBLANK(BN13)," ",INDEX(DC:DC,MATCH(BN13,DB:DB,0))) ->  | BK13: =IF(ISBLANK(BN13)," ",INDEX('Eingabe Spielernamen'!$F:$F,MATCH(BJ13,'Eingabe Spielernamen'!$B:$B,0))&", "&INDEX('Eingabe Spielernamen'!$G:$G,MATCH(BJ13,'Eingabe Spielernamen'!$B:$B,0))) ->  | BS13: =IF(ISBLANK(BO13)," ",BO13+(BP13-BQ13)*50+IF(COUNT(BO13:BO16)=3,(BQ14+BQ15+BQ16)*40,(BQ14+BQ15+BQ16)*30)) ->  | BT13: =IF(BQ13<4,BQ13*1,IF(BQ13>3,BQ13*1)) -> 0 | BU13: =B11 -> 1. Serie | BV13: =L11 -> 0 | BW13: =SUM(L13:L16) -> 0 | BX13: =SUM(X13:X16) -> 0 | BY13: =SUM(AJ13:AJ16) -> 0 | BZ13: =SUM(AV13:AV16) -> 0 | CA13: =SUM(BH13:BH16) -> 0 | CB13: =SUM(BT13:BT16) -> 0 | CC13: 1 | CD13: ='1. Serie'!$C2 -> 101 | CE13: ='1. Serie'!$C3 -> 202 | CF13: ='1. Serie'!$C4 -> 303 | CG13: ='1. Serie'!$C5 -> 404 | CH13: 1 | CI13: ='2. Serie'!$C2 -> 101 | CJ13: ='2. Serie'!$C3 -> 202 | CK13: ='2. Serie'!$C4 -> 303 | CL13: ='2. Serie'!$C5 -> 404 | CM13: 1 | CN13: ='3. Serie'!$C2 -> 101 | CO13: ='3. Serie'!$C3 -> 202 | CP13: ='3. Serie'!$C4 -> 303 | CQ13: ='3. Serie'!$C5 -> 404 | CR13: 1 | CS13: ='4. Serie'!$C2 -> 101 | CT13: ='4. Serie'!$C3 -> 202 | CU13: ='4. Serie'!$C4 -> 303 | CV13: ='4. Serie'!$C5 -> 404 | CW13: 1 | CX13: ='5. Serie'!$C2 -> 403 | CY13: ='5. Serie'!$C3 -> 106 | CZ13: ='5. Serie'!$C4 -> 205 | DA13: ='5. Serie'!$C5 -> 304 | DB13: 1 | DC13: ='6. Serie'!$C2 -> 101 | DD13: ='6. Serie'!$C3 -> 201 | DE13: ='6. Serie'!$C4 -> 301 | DF13: ='6. Serie'!$C5 -> 401 | DG13: 1 | DH13: =F13 -> 0 | DI13: =R13 -> 0 | DJ13: =AD13 -> 0 | DK13: =AP13 -> 0 | DL13: =BB13 -> 0 | DM13: =BN13 -> 0 | DO13: =K13 ->  | DP13: =W13 ->  | DQ13: =AI13 ->  | DR13: =AU13 -> 
A14: =IF(COUNTIF(B$13:B14,B14)>1,"X","") -> X | B14: =IF(ISBLANK(F13)," ",INDEX(CE:CE,MATCH(F13,CC:CC,0))) ->  | C14: =IF(ISBLANK(F14)," ",INDEX('Eingabe Spielernamen'!$F:$F,MATCH(B14,'Eingabe Spielernamen'!$B:$B,0))&", "&INDEX('Eingabe Spielernamen'!$G:$G,MATCH(B14,'Eingabe Spielernamen'!$B:$B,0))) ->  | F14: =F13 -> 0 | K14: =IF(ISBLANK(G14)," ",G14+(H14-I14)*50+IF(COUNT(G13:G16)=3,(I13+I15+I16)*40,(I13+I15+I16)*30)) ->  | L14: 0 | M14: =IF(COUNTIF(N$13:N14,N14)>1,"X","") -> X | N14: =IF(ISBLANK(R13)," ",INDEX(CJ:CJ,MATCH(R13,CH:CH,0))) ->  | O14: =IF(ISBLANK(R14)," ",INDEX('Eingabe Spielernamen'!$F:$F,MATCH(N14,'Eingabe Spielernamen'!$B:$B,0))&", "&INDEX('Eingabe Spielernamen'!$G:$G,MATCH(N14,'Eingabe Spielernamen'!$B:$B,0))) ->  | R14: =R13 -> 0 | W14: =IF(ISBLANK(S14)," ",S14+(T14-U14)*50+IF(COUNT(S13:S16)=3,(U13+U15+U16)*40,(U13+U15+U16)*30)) ->  | X14: 0 | Y14: =IF(COUNTIF(Z$13:Z14,Z14)>1,"X","") -> X | Z14: =IF(ISBLANK(AD13)," ",INDEX(CO:CO,MATCH(AD13,CM:CM,0))) ->  | AA14: =IF(ISBLANK(AD14)," ",INDEX('Eingabe Spielernamen'!$F:$F,MATCH(Z14,'Eingabe Spielernamen'!$B:$B,0))&", "&INDEX('Eingabe Spielernamen'!$G:$G,MATCH(Z14,'Eingabe Spielernamen'!$B:$B,0))) ->  | AD14: =AD13 -> 0 | AI14: =IF(ISBLANK(AE14)," ",AE14+(AF14-AG14)*50+IF(COUNT(AE13:AE16)=3,(AG13+AG15+AG16)*40,(AG13+AG15+AG16)*30)) ->  | AJ14: 0 | AK14: =IF(COUNTIF(AL$13:AL14,AL14)>1,"X","") -> X | AL14: =IF(ISBLANK(AP13)," ",INDEX(CT:CT,MATCH(AP13,CR:CR,0))) ->  | AM14: =IF(ISBLANK(AP14)," ",INDEX('Eingabe Spielernamen'!$F:$F,MATCH(AL14,'Eingabe Spielernamen'!$B:$B,0))&", "&INDEX('Eingabe Spielernamen'!$G:$G,MATCH(AL14,'Eingabe Spielernamen'!$B:$B,0))) ->  | AP14: =AP13 -> 0 | AU14: =IF(ISBLANK(AQ14)," ",AQ14+(AR14-AS14)*50+IF(COUNT(AQ13:AQ16)=3,(AS13+AS15+AS16)*40,(AS13+AS15+AS16)*30)) ->  | AV14: 0 | AW14: =IF(COUNTIF(AX$13:AX14,AX14)>1,"X","") -> X | AX14: =IF(ISBLANK(BB13)," ",INDEX(CY:CY,MATCH(BB13,CW:CW,0))) ->  | AY14: =IF(ISBLANK(BB14)," ",INDEX('Eingabe Spielernamen'!$F:$F,MATCH(AX14,'Eingabe Spielernamen'!$B:$B,0))&", "&INDEX('Eingabe Spielernamen'!$G:$G,MATCH(AX14,'Eingabe Spielernamen'!$B:$B,0))) ->  | BB14: =BB13 -> 0 | BG14: =IF(ISBLANK(BC14)," ",BC14+(BD14-BE14)*50+IF(COUNT(BC13:BC16)=3,(BE13+BE15+BE16)*40,(BE13+BE15+BE16)*30)) ->  | BH14: 0 | BI14: =IF(COUNTIF(BJ$13:BJ14,BJ14)>1,"X","") -> X | BJ14: =IF(ISBLANK(BN13)," ",INDEX(DD:DD,MATCH(BN13,DB:DB,0))) ->  | BK14: =IF(ISBLANK(BN14)," ",INDEX('Eingabe Spielernamen'!$F:$F,MATCH(BJ14,'Eingabe Spielernamen'!$B:$B,0))&", "&INDEX('Eingabe Spielernamen'!$G:$G,MATCH(BJ14,'Eingabe Spielernamen'!$B:$B,0))) ->  | BN14: =BN13 -> 0 | BS14: =IF(ISBLANK(BO14)," ",BO14+(BP14-BQ14)*50+IF(COUNT(BO13:BO16)=3,(BQ13+BQ15+BQ16)*40,(BQ13+BQ15+BQ16)*30)) ->  | BT14: 0 | BU14: =N11 -> 2. Serie | BV14: =X11 -> 0 | CC14: 2 | CD14: ='1. Serie'!$C6 -> 102 | CE14: ='1. Serie'!$C7 -> 203 | CF14: ='1. Serie'!$C8 -> 304 | CG14: ='1. Serie'!$C9 -> 405 | CH14: 2 | CI14: ='2. Serie'!$C6 -> 102 | CJ14: ='2. Serie'!$C7 -> 203 | CK14: ='2. Serie'!$C8 -> 304 | CL14: ='2. Serie'!$C9 -> 405 | CM14: 2 | CN14: ='3. Serie'!$C6 -> 102 | CO14: ='3. Serie'!$C7 -> 203 | CP14: ='3. Serie'!$C8 -> 304 | CQ14: ='3. Serie'!$C9 -> 405 | CR14: 2 | CS14: ='4. Serie'!$C6 -> 102 | CT14: ='4. Serie'!$C7 -> 203 | CU14: ='4. Serie'!$C8 -> 304 | CV14: ='4. Serie'!$C9 -> 405 | CW14: 2 | CX14: ='5. Serie'!$C6 -> 404 | CY14: ='5. Serie'!$C7 -> 107 | CZ14: ='5. Serie'!$C8 -> 206 | DA14: ='5. Serie'!$C9 -> 305 | DB14: 2 | DC14: ='6. Serie'!$C6 -> 102 | DD14: ='6. Serie'!$C7 -> 202 | DE14: ='6. Serie'!$C8 -> 302 | DF14: ='6. Serie'!$C9 -> 402 | DG14: 2 | DH14: =F17 -> 0 | DI14: =R17 -> 0 | DJ14: =AD17 -> 0 | DK14: =AP17 -> 0 | DL14: =BB17 -> 0 | DM14: =BN17 -> 0
A15: =IF(COUNTIF(B$13:B15,B15)>1,"X","") -> X | B15: =IF(ISBLANK(F13)," ",INDEX(CF:CF,MATCH(F13,CC:CC,0))) ->  | C15: =IF(ISBLANK(F15)," ",INDEX('Eingabe Spielernamen'!$F:$F,MATCH(B15,'Eingabe Spielernamen'!$B:$B,0))&", "&INDEX('Eingabe Spielernamen'!$G:$G,MATCH(B15,'Eingabe Spielernamen'!$B:$B,0))) ->  | F15: =F13 -> 0 | K15: =IF(ISBLANK(G15)," ",G15+(H15-I15)*50+IF(COUNT(G13:G16)=3,(I13+I14+I16)*40,(I13+I14+I16)*30)) ->  | L15: 0 | M15: =IF(COUNTIF(N$13:N15,N15)>1,"X","") -> X | N15: =IF(ISBLANK(R13)," ",INDEX(CK:CK,MATCH(R13,CH:CH,0))) ->  | O15: =IF(ISBLANK(R15)," ",INDEX('Eingabe Spielernamen'!$F:$F,MATCH(N15,'Eingabe Spielernamen'!$B:$B,0))&", "&INDEX('Eingabe Spielernamen'!$G:$G,MATCH(N15,'Eingabe Spielernamen'!$B:$B,0))) ->  | R15: =R13 -> 0 | W15: =IF(ISBLANK(S15)," ",S15+(T15-U15)*50+IF(COUNT(S13:S16)=3,(U13+U14+U16)*40,(U13+U14+U16)*30)) ->  | X15: 0 | Y15: =IF(COUNTIF(Z$13:Z15,Z15)>1,"X","") -> X | Z15: =IF(ISBLANK(AD13)," ",INDEX(CP:CP,MATCH(AD13,CM:CM,0))) ->  | AA15: =IF(ISBLANK(AD15)," ",INDEX('Eingabe Spielernamen'!$F:$F,MATCH(Z15,'Eingabe Spielernamen'!$B:$B,0))&", "&INDEX('Eingabe Spielernamen'!$G:$G,MATCH(Z15,'Eingabe Spielernamen'!$B:$B,0))) ->  | AD15: =AD13 -> 0 | AI15: =IF(ISBLANK(AE15)," ",AE15+(AF15-AG15)*50+IF(COUNT(AE13:AE16)=3,(AG13+AG14+AG16)*40,(AG13+AG14+AG16)*30)) ->  | AJ15: 0 | AK15: =IF(COUNTIF(AL$13:AL15,AL15)>1,"X","") -> X | AL15: =IF(ISBLANK(AP13)," ",INDEX(CU:CU,MATCH(AP13,CR:CR,0))) ->  | AM15: =IF(ISBLANK(AP15)," ",INDEX('Eingabe Spielernamen'!$F:$F,MATCH(AL15,'Eingabe Spielernamen'!$B:$B,0))&", "&INDEX('Eingabe Spielernamen'!$G:$G,MATCH(AL15,'Eingabe Spielernamen'!$B:$B,0))) ->  | AP15: =AP13 -> 0 | AU15: =IF(ISBLANK(AQ15)," ",AQ15+(AR15-AS15)*50+IF(COUNT(AQ13:AQ16)=3,(AS13+AS14+AS16)*40,(AS13+AS14+AS16)*30)) ->  | AV15: 0 | AW15: =IF(COUNTIF(AX$13:AX15,AX15)>1,"X","") -> X | AX15: =IF(ISBLANK(BB13)," ",INDEX(CZ:CZ,MATCH(BB13,CW:CW,0))) ->  | AY15: =IF(ISBLANK(BB15)," ",INDEX('Eingabe Spielernamen'!$F:$F,MATCH(AX15,'Eingabe Spielernamen'!$B:$B,0))&", "&INDEX('Eingabe Spielernamen'!$G:$G,MATCH(AX15,'Eingabe Spielernamen'!$B:$B,0))) ->  | BB15: =BB13 -> 0 | BG15: =IF(ISBLANK(BC15)," ",BC15+(BD15-BE15)*50+IF(COUNT(BC13:BC16)=3,(BE13+BE14+BE16)*40,(BE13+BE14+BE16)*30)) ->  | BH15: 0 | BI15: =IF(COUNTIF(BJ$13:BJ15,BJ15)>1,"X","") -> X | BJ15: =IF(ISBLANK(BN13)," ",INDEX(DE:DE,MATCH(BN13,DB:DB,0))) ->  | BK15: =IF(ISBLANK(BN15)," ",INDEX('Eingabe Spielernamen'!$F:$F,MATCH(BJ15,'Eingabe Spielernamen'!$B:$B,0))&", "&INDEX('Eingabe Spielernamen'!$G:$G,MATCH(BJ15,'Eingabe Spielernamen'!$B:$B,0))) ->  | BN15: =BN13 -> 0 | BS15: =IF(ISBLANK(BO15)," ",BO15+(BP15-BQ15)*50+IF(COUNT(BO13:BO16)=3,(BQ13+BQ14+BQ16)*40,(BQ13+BQ14+BQ16)*30)) ->  | BT15: 0 | BU15: =Z11 -> 3. Serie | BV15: =AJ11 -> 0 | CC15: 3 | CD15: ='1. Serie'!$C10 -> 103 | CE15: ='1. Serie'!$C11 -> 204 | CF15: ='1. Serie'!$C12 -> 305 | CG15: ='1. Serie'!$C13 -> 406 | CH15: 3 | CI15: ='2. Serie'!$C10 -> 103 | CJ15: ='2. Serie'!$C11 -> 204 | CK15: ='2. Serie'!$C12 -> 305 | CL15: ='2. Serie'!$C13 -> 406 | CM15: 3 | CN15: ='3. Serie'!$C10 -> 103 | CO15: ='3. Serie'!$C11 -> 204 | CP15: ='3. Serie'!$C12 -> 305 | CQ15: ='3. Serie'!$C13 -> 406 | CR15: 3 | CS15: ='4. Serie'!$C10 -> 103 | CT15: ='4. Serie'!$C11 -> 204 | CU15: ='4. Serie'!$C12 -> 305 | CV15: ='4. Serie'!$C13 -> 406 | CW15: 3 | CX15: ='5. Serie'!$C10 -> 405 | CY15: ='5. Serie'!$C11 -> 108 | CZ15: ='5. Serie'!$C12 -> 207 | DA15: ='5. Serie'!$C13 -> 306 | DB15: 3 | DC15: ='6. Serie'!$C10 -> 103 | DD15: ='6. Serie'!$C11 -> 203 | DE15: ='6. Serie'!$C12 -> 303 | DF15: ='6. Serie'!$C13 -> 403 | DG15: 3 | DH15: =F21 -> 0 | DI15: =R21 -> 0 | DJ15: =AD21 -> 0 | DK15: =AP21 -> 0 | DL15: =BB21 -> 0 | DM15: =BN21 -> 0
A16: =IF(COUNTIF(B$13:B16,B16)>1,"X","") -> X | B16: =IF(ISBLANK(F13)," ",INDEX(CG:CG,MATCH(F13,CC:CC,0))) ->  | C16: =IF(ISBLANK(F16)," ",INDEX('Eingabe Spielernamen'!$F:$F,MATCH(B16,'Eingabe Spielernamen'!$B:$B,0))&", "&INDEX('Eingabe Spielernamen'!$G:$G,MATCH(B16,'Eingabe Spielernamen'!$B:$B,0))) ->  | F16: =F13 -> 0 | K16: =IF(ISBLANK(G16)," ",G16+(H16-I16)*50+IF(COUNT(G13:G16)=3,(I13+I14+I15)*40,(I13+I14+I15)*30)) ->  | L16: 0 | M16: =IF(COUNTIF(N$13:N16,N16)>1,"X","") -> X | N16: =IF(ISBLANK(R13)," ",INDEX(CL:CL,MATCH(R13,CH:CH,0))) ->  | O16: =IF(ISBLANK(R16)," ",INDEX('Eingabe Spielernamen'!$F:$F,MATCH(N16,'Eingabe Spielernamen'!$B:$B,0))&", "&INDEX('Eingabe Spielernamen'!$G:$G,MATCH(N16,'Eingabe Spielernamen'!$B:$B,0))) ->  | R16: =R13 -> 0 | W16: =IF(ISBLANK(S16)," ",S16+(T16-U16)*50+IF(COUNT(S13:S16)=3,(U13+U14+U15)*40,(U13+U14+U15)*30)) ->  | X16: 0 | Y16: =IF(COUNTIF(Z$13:Z16,Z16)>1,"X","") -> X | Z16: =IF(ISBLANK(AD13)," ",INDEX(CQ:CQ,MATCH(AD13,CM:CM,0))) ->  | AA16: =IF(ISBLANK(AD16)," ",INDEX('Eingabe Spielernamen'!$F:$F,MATCH(Z16,'Eingabe Spielernamen'!$B:$B,0))&", "&INDEX('Eingabe Spielernamen'!$G:$G,MATCH(Z16,'Eingabe Spielernamen'!$B:$B,0))) ->  | AD16: =AD13 -> 0 | AI16: =IF(ISBLANK(AE16)," ",AE16+(AF16-AG16)*50+IF(COUNT(AE13:AE16)=3,(AG13+AG14+AG15)*40,(AG13+AG14+AG15)*30)) ->  | AJ16: 0 | AK16: =IF(COUNTIF(AL$13:AL16,AL16)>1,"X","") -> X | AL16: =IF(ISBLANK(AP13)," ",INDEX(CV:CV,MATCH(AP13,CR:CR,0))) ->  | AM16: =IF(ISBLANK(AP16)," ",INDEX('Eingabe Spielernamen'!$F:$F,MATCH(AL16,'Eingabe Spielernamen'!$B:$B,0))&", "&INDEX('Eingabe Spielernamen'!$G:$G,MATCH(AL16,'Eingabe Spielernamen'!$B:$B,0))) ->  | AP16: =AP13 -> 0 | AU16: =IF(ISBLANK(AQ16)," ",AQ16+(AR16-AS16)*50+IF(COUNT(AQ13:AQ16)=3,(AS13+AS14+AS15)*40,(AS13+AS14+AS15)*30)) ->  | AV16: 0 | AW16: =IF(COUNTIF(AX$13:AX16,AX16)>1,"X","") -> X | AX16: =IF(ISBLANK(BB13)," ",INDEX(DA:DA,MATCH(BB13,CW:CW,0))) ->  | AY16: =IF(ISBLANK(BB16)," ",INDEX('Eingabe Spielernamen'!$F:$F,MATCH(AX16,'Eingabe Spielernamen'!$B:$B,0))&", "&INDEX('Eingabe Spielernamen'!$G:$G,MATCH(AX16,'Eingabe Spielernamen'!$B:$B,0))) ->  | BB16: =BB13 -> 0 | BG16: =IF(ISBLANK(BC16)," ",BC16+(BD16-BE16)*50+IF(COUNT(BC13:BC16)=3,(BE13+BE14+BE15)*40,(BE13+BE14+BE15)*30)) ->  | BH16: 0 | BI16: =IF(COUNTIF(BJ$13:BJ16,BJ16)>1,"X","") -> X | BJ16: =IF(ISBLANK(BN13)," ",INDEX(DF:DF,MATCH(BN13,DB:DB,0))) ->  | BK16: =IF(ISBLANK(BN16)," ",INDEX('Eingabe Spielernamen'!$F:$F,MATCH(BJ16,'Eingabe Spielernamen'!$B:$B,0))&", "&INDEX('Eingabe Spielernamen'!$G:$G,MATCH(BJ16,'Eingabe Spielernamen'!$B:$B,0))) ->  | BN16: =BN13 -> 0 | BS16: =IF(ISBLANK(BO16)," ",BO16+(BP16-BQ16)*50+IF(COUNT(BO13:BO16)=3,(BQ13+BQ14+BQ15)*40,(BQ13+BQ14+BQ15)*30)) ->  | BT16: 0 | BU16: =AL11 -> 4. Serie | BV16: =AV11 -> 0 | CC16: 4 | CD16: ='1. Serie'!$C14 -> 104 | CE16: ='1. Serie'!$C15 -> 205 | CF16: ='1. Serie'!$C16 -> 306 | CG16: ='1. Serie'!$C17 -> 407 | CH16: 4 | CI16: ='2. Serie'!$C14 -> 104 | CJ16: ='2. Serie'!$C15 -> 205 | CK16: ='2. Serie'!$C16 -> 306 | CL16: ='2. Serie'!$C17 -> 407 | CM16: 4 | CN16: ='3. Serie'!$C14 -> 104 | CO16: ='3. Serie'!$C15 -> 205 | CP16: ='3. Serie'!$C16 -> 306 | CQ16: ='3. Serie'!$C17 -> 407 | CR16: 4 | CS16: ='4. Serie'!$C14 -> 104 | CT16: ='4. Serie'!$C15 -> 205 | CU16: ='4. Serie'!$C16 -> 306 | CV16: ='4. Serie'!$C17 -> 407 | CW16: 4 | CX16: ='5. Serie'!$C14 -> 406 | CY16: ='5. Serie'!$C15 -> 109 | CZ16: ='5. Serie'!$C16 -> 208 | DA16: ='5. Serie'!$C17 -> 307 | DB16: 4 | DC16: ='6. Serie'!$C14 -> 104 | DD16: ='6. Serie'!$C15 -> 204 | DE16: ='6. Serie'!$C16 -> 304 | DF16: ='6. Serie'!$C17 -> 404 | DG16: 4 | DH16: =F25 -> 0 | DI16: =R25 -> 0 | DJ16: =AD25 -> 0 | DK16: =AP25 -> 0 | DL16: =BB25 -> 0 | DM16: =BN25 -> 0
A17: =IF(COUNTIF(B$13:B17,B17)>1,"X","") -> X | B17: =IF(ISBLANK(F17)," ",INDEX(CD:CD,MATCH(F17,CC:CC,0))) ->  | C17: =IF(ISBLANK(F17)," ",INDEX('Eingabe Spielernamen'!$F:$F,MATCH(B17,'Eingabe Spielernamen'!$B:$B,0))&", "&INDEX('Eingabe Spielernamen'!$G:$G,MATCH(B17,'Eingabe Spielernamen'!$B:$B,0))) ->  | K17: =IF(ISBLANK(G17)," ",G17+(H17-I17)*50+IF(COUNT(G17:G20)=3,(I18+I19+I20)*40,(I18+I19+I20)*30)) ->  | L17: 0 | M17: =IF(COUNTIF(N$13:N17,N17)>1,"X","") -> X | N17: =IF(ISBLANK(R17)," ",INDEX(CI:CI,MATCH(R17,CH:CH,0))) ->  | O17: =IF(ISBLANK(R17)," ",INDEX('Eingabe Spielernamen'!$F:$F,MATCH(N17,'Eingabe Spielernamen'!$B:$B,0))&", "&INDEX('Eingabe Spielernamen'!$G:$G,MATCH(N17,'Eingabe Spielernamen'!$B:$B,0))) ->  | W17: =IF(ISBLANK(S17)," ",S17+(T17-U17)*50+IF(COUNT(S17:S20)=3,(U18+U19+U20)*40,(U18+U19+U20)*30)) ->  | X17: 0 | Y17: =IF(COUNTIF(Z$13:Z17,Z17)>1,"X","") -> X | Z17: =IF(ISBLANK(AD17)," ",INDEX(CN:CN,MATCH(AD17,CM:CM,0))) ->  | AA17: =IF(ISBLANK(AD17)," ",INDEX('Eingabe Spielernamen'!$F:$F,MATCH(Z17,'Eingabe Spielernamen'!$B:$B,0))&", "&INDEX('Eingabe Spielernamen'!$G:$G,MATCH(Z17,'Eingabe Spielernamen'!$B:$B,0))) ->  | AI17: =IF(ISBLANK(AE17)," ",AE17+(AF17-AG17)*50+IF(COUNT(AE17:AE20)=3,(AG18+AG19+AG20)*40,(AG18+AG19+AG20)*30)) ->  | AJ17: 0 | AK17: =IF(COUNTIF(AL$13:AL17,AL17)>1,"X","") -> X | AL17: =IF(ISBLANK(AP17)," ",INDEX(CS:CS,MATCH(AP17,CR:CR,0))) ->  | AM17: =IF(ISBLANK(AP17)," ",INDEX('Eingabe Spielernamen'!$F:$F,MATCH(AL17,'Eingabe Spielernamen'!$B:$B,0))&", "&INDEX('Eingabe Spielernamen'!$G:$G,MATCH(AL17,'Eingabe Spielernamen'!$B:$B,0))) ->  | AU17: =IF(ISBLANK(AQ17)," ",AQ17+(AR17-AS17)*50+IF(COUNT(AQ17:AQ20)=3,(AS18+AS19+AS20)*40,(AS18+AS19+AS20)*30)) ->  | AV17: 0 | AW17: =IF(COUNTIF(AX$13:AX17,AX17)>1,"X","") -> X | AX17: =IF(ISBLANK(BB17)," ",INDEX(CX:CX,MATCH(BB17,CW:CW,0))) ->  | AY17: =IF(ISBLANK(BB17)," ",INDEX('Eingabe Spielernamen'!$F:$F,MATCH(AX17,'Eingabe Spielernamen'!$B:$B,0))&", "&INDEX('Eingabe Spielernamen'!$G:$G,MATCH(AX17,'Eingabe Spielernamen'!$B:$B,0))) ->  | BG17: =IF(ISBLANK(BC17)," ",BC17+(BD17-BE17)*50+IF(COUNT(BC17:BC20)=3,(BE18+BE19+BE20)*40,(BE18+BE19+BE20)*30)) ->  | BH17: 0 | BI17: =IF(COUNTIF(BJ$13:BJ17,BJ17)>1,"X","") -> X | BJ17: =IF(ISBLANK(BN17)," ",INDEX(DC:DC,MATCH(BN17,DB:DB,0))) ->  | BK17: =IF(ISBLANK(BN17)," ",INDEX('Eingabe Spielernamen'!$F:$F,MATCH(BJ17,'Eingabe Spielernamen'!$B:$B,0))&", "&INDEX('Eingabe Spielernamen'!$G:$G,MATCH(BJ17,'Eingabe Spielernamen'!$B:$B,0))) ->  | BS17: =IF(ISBLANK(BO17)," ",BO17+(BP17-BQ17)*50+IF(COUNT(BO17:BO20)=3,(BQ18+BQ19+BQ20)*40,(BQ18+BQ19+BQ20)*30)) ->  | BT17: 0 | BU17: =AX11 -> 5. Serie | BV17: =BH11 -> 0 | BW17: =SUM(L17:L20) -> 0 | BX17: =SUM(X17:X20) -> 0 | BY17: =SUM(AJ17:AJ20) -> 0 | BZ17: =SUM(AV17:AV20) -> 0 | CA17: =SUM(BH17:BH20) -> 0 | CB17: =SUM(BT17:BT20) -> 0 | CC17: 5 | CD17: ='1. Serie'!$C18 -> 105 | CE17: ='1. Serie'!$C19 -> 206 | CF17: ='1. Serie'!$C20 -> 307 | CG17: ='1. Serie'!$C21 -> 408 | CH17: 5 | CI17: ='2. Serie'!$C18 -> 105 | CJ17: ='2. Serie'!$C19 -> 206 | CK17: ='2. Serie'!$C20 -> 307 | CL17: ='2. Serie'!$C21 -> 408 | CM17: 5 | CN17: ='3. Serie'!$C18 -> 105 | CO17: ='3. Serie'!$C19 -> 206 | CP17: ='3. Serie'!$C20 -> 307 | CQ17: ='3. Serie'!$C21 -> 408 | CR17: 5 | CS17: ='4. Serie'!$C18 -> 105 | CT17: ='4. Serie'!$C19 -> 206 | CU17: ='4. Serie'!$C20 -> 307 | CV17: ='4. Serie'!$C21 -> 408 | CW17: 5 | CX17: ='5. Serie'!$C18 -> 407 | CY17: ='5. Serie'!$C19 -> 110 | CZ17: ='5. Serie'!$C20 -> 209 | DA17: ='5. Serie'!$C21 -> 308 | DB17: 5 | DC17: ='6. Serie'!$C18 -> 105 | DD17: ='6. Serie'!$C19 -> 205 | DE17: ='6. Serie'!$C20 -> 305 | DF17: ='6. Serie'!$C21 -> 405 | DG17: 5 | DH17: =F29 -> 0 | DI17: =R29 -> 0 | DJ17: =AD29 -> 0 | DK17: =AP29 -> 0 | DL17: =BB29 -> 0 | DM17: =BN29 -> 0
A18: =IF(COUNTIF(B$13:B18,B18)>1,"X","") -> X | B18: =IF(ISBLANK(F17)," ",INDEX(CE:CE,MATCH(F17,CC:CC,0))) ->  | C18: =IF(ISBLANK(F18)," ",INDEX('Eingabe Spielernamen'!$F:$F,MATCH(B18,'Eingabe Spielernamen'!$B:$B,0))&", "&INDEX('Eingabe Spielernamen'!$G:$G,MATCH(B18,'Eingabe Spielernamen'!$B:$B,0))) ->  | F18: =F17 -> 0 | K18: =IF(ISBLANK(G18)," ",G18+(H18-I18)*50+IF(COUNT(G17:G20)=3,(I17+I19+I20)*40,(I17+I19+I20)*30)) ->  | L18: 0 | M18: =IF(COUNTIF(N$13:N18,N18)>1,"X","") -> X | N18: =IF(ISBLANK(R17)," ",INDEX(CJ:CJ,MATCH(R17,CH:CH,0))) ->  | O18: =IF(ISBLANK(R18)," ",INDEX('Eingabe Spielernamen'!$F:$F,MATCH(N18,'Eingabe Spielernamen'!$B:$B,0))&", "&INDEX('Eingabe Spielernamen'!$G:$G,MATCH(N18,'Eingabe Spielernamen'!$B:$B,0))) ->  | R18: =R17 -> 0 | W18: =IF(ISBLANK(S18)," ",S18+(T18-U18)*50+IF(COUNT(S17:S20)=3,(U17+U19+U20)*40,(U17+U19+U20)*30)) ->  | X18: 0 | Y18: =IF(COUNTIF(Z$13:Z18,Z18)>1,"X","") -> X | Z18: =IF(ISBLANK(AD17)," ",INDEX(CO:CO,MATCH(AD17,CM:CM,0))) ->  | AA18: =IF(ISBLANK(AD18)," ",INDEX('Eingabe Spielernamen'!$F:$F,MATCH(Z18,'Eingabe Spielernamen'!$B:$B,0))&", "&INDEX('Eingabe Spielernamen'!$G:$G,MATCH(Z18,'Eingabe Spielernamen'!$B:$B,0))) ->  | AD18: =AD17 -> 0 | AI18: =IF(ISBLANK(AE18)," ",AE18+(AF18-AG18)*50+IF(COUNT(AE17:AE20)=3,(AG17+AG19+AG20)*40,(AG17+AG19+AG20)*30)) ->  | AJ18: 0 | AK18: =IF(COUNTIF(AL$13:AL18,AL18)>1,"X","") -> X | AL18: =IF(ISBLANK(AP17)," ",INDEX(CT:CT,MATCH(AP17,CR:CR,0))) ->  | AM18: =IF(ISBLANK(AP18)," ",INDEX('Eingabe Spielernamen'!$F:$F,MATCH(AL18,'Eingabe Spielernamen'!$B:$B,0))&", "&INDEX('Eingabe Spielernamen'!$G:$G,MATCH(AL18,'Eingabe Spielernamen'!$B:$B,0))) ->  | AP18: =AP17 -> 0 | AU18: =IF(ISBLANK(AQ18)," ",AQ18+(AR18-AS18)*50+IF(COUNT(AQ17:AQ20)=3,(AS17+AS19+AS20)*40,(AS17+AS19+AS20)*30)) ->  | AV18: 0 | AW18: =IF(COUNTIF(AX$13:AX18,AX18)>1,"X","") -> X | AX18: =IF(ISBLANK(BB17)," ",INDEX(CY:CY,MATCH(BB17,CW:CW,0))) ->  | AY18: =IF(ISBLANK(BB18)," ",INDEX('Eingabe Spielernamen'!$F:$F,MATCH(AX18,'Eingabe Spielernamen'!$B:$B,0))&", "&INDEX('Eingabe Spielernamen'!$G:$G,MATCH(AX18,'Eingabe Spielernamen'!$B:$B,0))) ->  | BB18: =BB17 -> 0 | BG18: =IF(ISBLANK(BC18)," ",BC18+(BD18-BE18)*50+IF(COUNT(BC17:BC20)=3,(BE17+BE19+BE20)*40,(BE17+BE19+BE20)*30)) ->  | BH18: 0 | BI18: =IF(COUNTIF(BJ$13:BJ18,BJ18)>1,"X","") -> X | BJ18: =IF(ISBLANK(BN17)," ",INDEX(DD:DD,MATCH(BN17,DB:DB,0))) ->  | BK18: =IF(ISBLANK(BN18)," ",INDEX('Eingabe Spielernamen'!$F:$F,MATCH(BJ18,'Eingabe Spielernamen'!$B:$B,0))&", "&INDEX('Eingabe Spielernamen'!$G:$G,MATCH(BJ18,'Eingabe Spielernamen'!$B:$B,0))) ->  | BN18: =BN17 -> 0 | BS18: =IF(ISBLANK(BO18)," ",BO18+(BP18-BQ18)*50+IF(COUNT(BO17:BO20)=3,(BQ17+BQ19+BQ20)*40,(BQ17+BQ19+BQ20)*30)) ->  | BT18: 0 | BU18: =BJ11 -> 6. Serie | BV18: =BT11 -> 0 | CC18: 6 | CD18: ='1. Serie'!$C22 -> 106 | CE18: ='1. Serie'!$C23 -> 207 | CF18: ='1. Serie'!$C24 -> 308 | CG18: ='1. Serie'!$C25 -> 409 | CH18: 6 | CI18: ='2. Serie'!$C22 -> 106 | CJ18: ='2. Serie'!$C23 -> 207 | CK18: ='2. Serie'!$C24 -> 308 | CL18: ='2. Serie'!$C25 -> 409 | CM18: 6 | CN18: ='3. Serie'!$C22 -> 106 | CO18: ='3. Serie'!$C23 -> 207 | CP18: ='3. Serie'!$C24 -> 308 | CQ18: ='3. Serie'!$C25 -> 409 | CR18: 6 | CS18: ='4. Serie'!$C22 -> 106 | CT18: ='4. Serie'!$C23 -> 207 | CU18: ='4. Serie'!$C24 -> 308 | CV18: ='4. Serie'!$C25 -> 409 | CW18: 6 | CX18: ='5. Serie'!$C22 -> 408 | CY18: ='5. Serie'!$C23 -> 111 | CZ18: ='5. Serie'!$C24 -> 210 | DA18: ='5. Serie'!$C25 -> 309 | DB18: 6 | DC18: ='6. Serie'!$C22 -> 106 | DD18: ='6. Serie'!$C23 -> 206 | DE18: ='6. Serie'!$C24 -> 306 | DF18: ='6. Serie'!$C25 -> 406 | DG18: 6 | DH18: =F33 -> 0 | DI18: =R33 -> 0 | DJ18: =AD33 -> 0 | DK18: =AP33 -> 0 | DL18: =BB33 -> 0 | DM18: =BN33 -> 0
A19: =IF(COUNTIF(B$13:B19,B19)>1,"X","") -> X | B19: =IF(ISBLANK(F17)," ",INDEX(CF:CF,MATCH(F17,CC:CC,0))) ->  | C19: =IF(ISBLANK(F19)," ",INDEX('Eingabe Spielernamen'!$F:$F,MATCH(B19,'Eingabe Spielernamen'!$B:$B,0))&", "&INDEX('Eingabe Spielernamen'!$G:$G,MATCH(B19,'Eingabe Spielernamen'!$B:$B,0))) ->  | F19: =F17 -> 0 | K19: =IF(ISBLANK(G19)," ",G19+(H19-I19)*50+IF(COUNT(G17:G20)=3,(I17+I18+I20)*40,(I17+I18+I20)*30)) ->  | L19: 0 | M19: =IF(COUNTIF(N$13:N19,N19)>1,"X","") -> X | N19: =IF(ISBLANK(R17)," ",INDEX(CK:CK,MATCH(R17,CH:CH,0))) ->  | O19: =IF(ISBLANK(R19)," ",INDEX('Eingabe Spielernamen'!$F:$F,MATCH(N19,'Eingabe Spielernamen'!$B:$B,0))&", "&INDEX('Eingabe Spielernamen'!$G:$G,MATCH(N19,'Eingabe Spielernamen'!$B:$B,0))) ->  | R19: =R17 -> 0 | W19: =IF(ISBLANK(S19)," ",S19+(T19-U19)*50+IF(COUNT(S17:S20)=3,(U17+U18+U20)*40,(U17+U18+U20)*30)) ->  | X19: 0 | Y19: =IF(COUNTIF(Z$13:Z19,Z19)>1,"X","") -> X | Z19: =IF(ISBLANK(AD17)," ",INDEX(CP:CP,MATCH(AD17,CM:CM,0))) ->  | AA19: =IF(ISBLANK(AD19)," ",INDEX('Eingabe Spielernamen'!$F:$F,MATCH(Z19,'Eingabe Spielernamen'!$B:$B,0))&", "&INDEX('Eingabe Spielernamen'!$G:$G,MATCH(Z19,'Eingabe Spielernamen'!$B:$B,0))) ->  | AD19: =AD17 -> 0 | AI19: =IF(ISBLANK(AE19)," ",AE19+(AF19-AG19)*50+IF(COUNT(AE17:AE20)=3,(AG17+AG18+AG20)*40,(AG17+AG18+AG20)*30)) ->  | AJ19: 0 | AK19: =IF(COUNTIF(AL$13:AL19,AL19)>1,"X","") -> X | AL19: =IF(ISBLANK(AP17)," ",INDEX(CU:CU,MATCH(AP17,CR:CR,0))) ->  | AM19: =IF(ISBLANK(AP19)," ",INDEX('Eingabe Spielernamen'!$F:$F,MATCH(AL19,'Eingabe Spielernamen'!$B:$B,0))&", "&INDEX('Eingabe Spielernamen'!$G:$G,MATCH(AL19,'Eingabe Spielernamen'!$B:$B,0))) ->  | AP19: =AP17 -> 0 | AU19: =IF(ISBLANK(AQ19)," ",AQ19+(AR19-AS19)*50+IF(COUNT(AQ17:AQ20)=3,(AS17+AS18+AS20)*40,(AS17+AS18+AS20)*30)) ->  | AV19: 0 | AW19: =IF(COUNTIF(AX$13:AX19,AX19)>1,"X","") -> X | AX19: =IF(ISBLANK(BB17)," ",INDEX(CZ:CZ,MATCH(BB17,CW:CW,0))) ->  | AY19: =IF(ISBLANK(BB19)," ",INDEX('Eingabe Spielernamen'!$F:$F,MATCH(AX19,'Eingabe Spielernamen'!$B:$B,0))&", "&INDEX('Eingabe Spielernamen'!$G:$G,MATCH(AX19,'Eingabe Spielernamen'!$B:$B,0))) ->  | BB19: =BB17 -> 0 | BG19: =IF(ISBLANK(BC19)," ",BC19+(BD19-BE19)*50+IF(COUNT(BC17:BC20)=3,(BE17+BE18+BE20)*40,(BE17+BE18+BE20)*30)) ->  | BH19: 0 | BI19: =IF(COUNTIF(BJ$13:BJ19,BJ19)>1,"X","") -> X | BJ19: =IF(ISBLANK(BN17)," ",INDEX(DE:DE,MATCH(BN17,DB:DB,0))) ->  | BK19: =IF(ISBLANK(BN19)," ",INDEX('Eingabe Spielernamen'!$F:$F,MATCH(BJ19,'Eingabe Spielernamen'!$B:$B,0))&", "&INDEX('Eingabe Spielernamen'!$G:$G,MATCH(BJ19,'Eingabe Spielernamen'!$B:$B,0))) ->  | BN19: =BN17 -> 0 | BS19: =IF(ISBLANK(BO19)," ",BO19+(BP19-BQ19)*50+IF(COUNT(BO17:BO20)=3,(BQ17+BQ18+BQ20)*40,(BQ17+BQ18+BQ20)*30)) ->  | BT19: 0 | CC19: 7 | CD19: ='1. Serie'!$C26 -> 107 | CE19: ='1. Serie'!$C27 -> 208 | CF19: ='1. Serie'!$C28 -> 309 | CG19: ='1. Serie'!$C29 -> 410 | CH19: 7 | CI19: ='2. Serie'!$C26 -> 107 | CJ19: ='2. Serie'!$C27 -> 208 | CK19: ='2. Serie'!$C28 -> 309 | CL19: ='2. Serie'!$C29 -> 410 | CM19: 7 | CN19: ='3. Serie'!$C26 -> 107 | CO19: ='3. Serie'!$C27 -> 208 | CP19: ='3. Serie'!$C28 -> 309 | CQ19: ='3. Serie'!$C29 -> 410 | CR19: 7 | CS19: ='4. Serie'!$C26 -> 107 | CT19: ='4. Serie'!$C27 -> 208 | CU19: ='4. Serie'!$C28 -> 309 | CV19: ='4. Serie'!$C29 -> 410 | CW19: 7 | CX19: ='5. Serie'!$C26 -> 409 | CY19: ='5. Serie'!$C27 -> 112 | CZ19: ='5. Serie'!$C28 -> 211 | DA19: ='5. Serie'!$C29 -> 310 | DB19: 7 | DC19: ='6. Serie'!$C26 -> 107 | DD19: ='6. Serie'!$C27 -> 207 | DE19: ='6. Serie'!$C28 -> 307 | DF19: ='6. Serie'!$C29 -> 407 | DG19: 7 | DH19: =F37 -> 0 | DI19: =R37 -> 0 | DJ19: =AD37 -> 0 | DK19: =AP37 -> 0 | DL19: =BB37 -> 0 | DM19: =BN37 -> 0
A20: =IF(COUNTIF(B$13:B20,B20)>1,"X","") -> X | B20: =IF(ISBLANK(F17)," ",INDEX(CG:CG,MATCH(F17,CC:CC,0))) ->  | C20: =IF(ISBLANK(F20)," ",INDEX('Eingabe Spielernamen'!$F:$F,MATCH(B20,'Eingabe Spielernamen'!$B:$B,0))&", "&INDEX('Eingabe Spielernamen'!$G:$G,MATCH(B20,'Eingabe Spielernamen'!$B:$B,0))) ->  | F20: =F17 -> 0 | K20: =IF(ISBLANK(G20)," ",G20+(H20-I20)*50+IF(COUNT(G17:G20)=3,(I17+I18+I19)*40,(I17+I18+I19)*30)) ->  | L20: 0 | M20: =IF(COUNTIF(N$13:N20,N20)>1,"X","") -> X | N20: =IF(ISBLANK(R17)," ",INDEX(CL:CL,MATCH(R17,CH:CH,0))) ->  | O20: =IF(ISBLANK(R20)," ",INDEX('Eingabe Spielernamen'!$F:$F,MATCH(N20,'Eingabe Spielernamen'!$B:$B,0))&", "&INDEX('Eingabe Spielernamen'!$G:$G,MATCH(N20,'Eingabe Spielernamen'!$B:$B,0))) ->  | R20: =R17 -> 0 | W20: =IF(ISBLANK(S20)," ",S20+(T20-U20)*50+IF(COUNT(S17:S20)=3,(U17+U18+U19)*40,(U17+U18+U19)*30)) ->  | X20: 0 | Y20: =IF(COUNTIF(Z$13:Z20,Z20)>1,"X","") -> X | Z20: =IF(ISBLANK(AD17)," ",INDEX(CQ:CQ,MATCH(AD17,CM:CM,0))) ->  | AA20: =IF(ISBLANK(AD20)," ",INDEX('Eingabe Spielernamen'!$F:$F,MATCH(Z20,'Eingabe Spielernamen'!$B:$B,0))&", "&INDEX('Eingabe Spielernamen'!$G:$G,MATCH(Z20,'Eingabe Spielernamen'!$B:$B,0))) ->  | AD20: =AD17 -> 0 | AI20: =IF(ISBLANK(AE20)," ",AE20+(AF20-AG20)*50+IF(COUNT(AE17:AE20)=3,(AG17+AG18+AG19)*40,(AG17+AG18+AG19)*30)) ->  | AJ20: 0 | AK20: =IF(COUNTIF(AL$13:AL20,AL20)>1,"X","") -> X | AL20: =IF(ISBLANK(AP17)," ",INDEX(CV:CV,MATCH(AP17,CR:CR,0))) ->  | AM20: =IF(ISBLANK(AP20)," ",INDEX('Eingabe Spielernamen'!$F:$F,MATCH(AL20,'Eingabe Spielernamen'!$B:$B,0))&", "&INDEX('Eingabe Spielernamen'!$G:$G,MATCH(AL20,'Eingabe Spielernamen'!$B:$B,0))) ->  | AP20: =AP17 -> 0 | AU20: =IF(ISBLANK(AQ20)," ",AQ20+(AR20-AS20)*50+IF(COUNT(AQ17:AQ20)=3,(AS17+AS18+AS19)*40,(AS17+AS18+AS19)*30)) ->  | AV20: 0 | AW20: =IF(COUNTIF(AX$13:AX20,AX20)>1,"X","") -> X | AX20: =IF(ISBLANK(BB17)," ",INDEX(DA:DA,MATCH(BB17,CW:CW,0))) ->  | AY20: =IF(ISBLANK(BB20)," ",INDEX('Eingabe Spielernamen'!$F:$F,MATCH(AX20,'Eingabe Spielernamen'!$B:$B,0))&", "&INDEX('Eingabe Spielernamen'!$G:$G,MATCH(AX20,'Eingabe Spielernamen'!$B:$B,0))) ->  | BB20: =BB17 -> 0 | BG20: =IF(ISBLANK(BC20)," ",BC20+(BD20-BE20)*50+IF(COUNT(BC17:BC20)=3,(BE17+BE18+BE19)*40,(BE17+BE18+BE19)*30)) ->  | BH20: 0 | BI20: =IF(COUNTIF(BJ$13:BJ20,BJ20)>1,"X","") -> X | BJ20: =IF(ISBLANK(BN17)," ",INDEX(DF:DF,MATCH(BN17,DB:DB,0))) ->  | BK20: =IF(ISBLANK(BN20)," ",INDEX('Eingabe Spielernamen'!$F:$F,MATCH(BJ20,'Eingabe Spielernamen'!$B:$B,0))&", "&INDEX('Eingabe Spielernamen'!$G:$G,MATCH(BJ20,'Eingabe Spielernamen'!$B:$B,0))) ->  | BN20: =BN17 -> 0 | BS20: =IF(ISBLANK(BO20)," ",BO20+(BP20-BQ20)*50+IF(COUNT(BO17:BO20)=3,(BQ17+BQ18+BQ19)*40,(BQ17+BQ18+BQ19)*30)) ->  | BT20: 0 | CC20: 8 | CD20: ='1. Serie'!$C30 -> 108 | CE20: ='1. Serie'!$C31 -> 209 | CF20: ='1. Serie'!$C32 -> 310 | CG20: ='1. Serie'!$C33 -> 411 | CH20: 8 | CI20: ='2. Serie'!$C30 -> 108 | CJ20: ='2. Serie'!$C31 -> 209 | CK20: ='2. Serie'!$C32 -> 310 | CL20: ='2. Serie'!$C33 -> 411 | CM20: 8 | CN20: ='3. Serie'!$C30 -> 108 | CO20: ='3. Serie'!$C31 -> 209 | CP20: ='3. Serie'!$C32 -> 310 | CQ20: ='3. Serie'!$C33 -> 411 | CR20: 8 | CS20: ='4. Serie'!$C30 -> 108 | CT20: ='4. Serie'!$C31 -> 209 | CU20: ='4. Serie'!$C32 -> 310 | CV20: ='4. Serie'!$C33 -> 411 | CW20: 8 | CX20: ='5. Serie'!$C30 -> 410 | CY20: ='5. Serie'!$C31 -> 113 | CZ20: ='5. Serie'!$C32 -> 212 | DA20: ='5. Serie'!$C33 -> 311 | DB20: 8 | DC20: ='6. Serie'!$C30 -> 108 | DD20: ='6. Serie'!$C31 -> 208 | DE20: ='6. Serie'!$C32 -> 308 | DF20: ='6. Serie'!$C33 -> 408 | DG20: 8 | DH20: =F41 -> 0 | DI20: =R41 -> 0 | DJ20: =AD41 -> 0 | DK20: =AP41 -> 0 | DL20: =BB41 -> 0 | DM20: =BN41 -> 0
A21: =IF(COUNTIF(B$13:B21,B21)>1,"X","") -> X | B21: =IF(ISBLANK(F21)," ",INDEX(CD:CD,MATCH(F21,CC:CC,0))) ->  | C21: =IF(ISBLANK(F21)," ",INDEX('Eingabe Spielernamen'!$F:$F,MATCH(B21,'Eingabe Spielernamen'!$B:$B,0))&", "&INDEX('Eingabe Spielernamen'!$G:$G,MATCH(B21,'Eingabe Spielernamen'!$B:$B,0))) ->  | K21: =IF(ISBLANK(G21)," ",G21+(H21-I21)*50+IF(COUNT(G21:G24)=3,(I22+I23+I24)*40,(I22+I23+I24)*30)) ->  | L21: 0 | M21: =IF(COUNTIF(N$13:N21,N21)>1,"X","") -> X | N21: =IF(ISBLANK(R21)," ",INDEX(CI:CI,MATCH(R21,CH:CH,0))) ->  | O21: =IF(ISBLANK(R21)," ",INDEX('Eingabe Spielernamen'!$F:$F,MATCH(N21,'Eingabe Spielernamen'!$B:$B,0))&", "&INDEX('Eingabe Spielernamen'!$G:$G,MATCH(N21,'Eingabe Spielernamen'!$B:$B,0))) ->  | W21: =IF(ISBLANK(S21)," ",S21+(T21-U21)*50+IF(COUNT(S21:S24)=3,(U22+U23+U24)*40,(U22+U23+U24)*30)) ->  | X21: 0 | Y21: =IF(COUNTIF(Z$13:Z21,Z21)>1,"X","") -> X | Z21: =IF(ISBLANK(AD21)," ",INDEX(CN:CN,MATCH(AD21,CM:CM,0))) ->  | AA21: =IF(ISBLANK(AD21)," ",INDEX('Eingabe Spielernamen'!$F:$F,MATCH(Z21,'Eingabe Spielernamen'!$B:$B,0))&", "&INDEX('Eingabe Spielernamen'!$G:$G,MATCH(Z21,'Eingabe Spielernamen'!$B:$B,0))) ->  | AI21: =IF(ISBLANK(AE21)," ",AE21+(AF21-AG21)*50+IF(COUNT(AE21:AE24)=3,(AG22+AG23+AG24)*40,(AG22+AG23+AG24)*30)) ->  | AJ21: 0 | AK21: =IF(COUNTIF(AL$13:AL21,AL21)>1,"X","") -> X | AL21: =IF(ISBLANK(AP21)," ",INDEX(CS:CS,MATCH(AP21,CR:CR,0))) ->  | AM21: =IF(ISBLANK(AP21)," ",INDEX('Eingabe Spielernamen'!$F:$F,MATCH(AL21,'Eingabe Spielernamen'!$B:$B,0))&", "&INDEX('Eingabe Spielernamen'!$G:$G,MATCH(AL21,'Eingabe Spielernamen'!$B:$B,0))) ->  | AU21: =IF(ISBLANK(AQ21)," ",AQ21+(AR21-AS21)*50+IF(COUNT(AQ21:AQ24)=3,(AS22+AS23+AS24)*40,(AS22+AS23+AS24)*30)) ->  | AV21: 0 | AW21: =IF(COUNTIF(AX$13:AX21,AX21)>1,"X","") -> X | AX21: =IF(ISBLANK(BB21)," ",INDEX(CX:CX,MATCH(BB21,CW:CW,0))) ->  | AY21: =IF(ISBLANK(BB21)," ",INDEX('Eingabe Spielernamen'!$F:$F,MATCH(AX21,'Eingabe Spielernamen'!$B:$B,0))&", "&INDEX('Eingabe Spielernamen'!$G:$G,MATCH(AX21,'Eingabe Spielernamen'!$B:$B,0))) ->  | BG21: =IF(ISBLANK(BC21)," ",BC21+(BD21-BE21)*50+IF(COUNT(BC21:BC24)=3,(BE22+BE23+BE24)*40,(BE22+BE23+BE24)*30)) ->  | BH21: 0 | BI21: =IF(COUNTIF(BJ$13:BJ21,BJ21)>1,"X","") -> X | BJ21: =IF(ISBLANK(BN21)," ",INDEX(DC:DC,MATCH(BN21,DB:DB,0))) ->  | BK21: =IF(ISBLANK(BN21)," ",INDEX('Eingabe Spielernamen'!$F:$F,MATCH(BJ21,'Eingabe Spielernamen'!$B:$B,0))&", "&INDEX('Eingabe Spielernamen'!$G:$G,MATCH(BJ21,'Eingabe Spielernamen'!$B:$B,0))) ->  | BS21: =IF(ISBLANK(BO21)," ",BO21+(BP21-BQ21)*50+IF(COUNT(BO21:BO24)=3,(BQ22+BQ23+BQ24)*40,(BQ22+BQ23+BQ24)*30)) ->  | BT21: 0 | BU21: Ausgaben: | BV21: =BV22+BV23+BV24+BV25+BV26+BV27+BV28+BV29+BV30 -> 0 | BW21: =SUM(L21:L24) -> 0 | BX21: =SUM(X21:X24) -> 0 | BY21: =SUM(AJ21:AJ24) -> 0 | BZ21: =SUM(AV21:AV24) -> 0 | CA21: =SUM(BH21:BH24) -> 0 | CB21: =SUM(BT21:BT24) -> 0 | CC21: 9 | CD21: ='1. Serie'!$C34 -> 109 | CE21: ='1. Serie'!$C35 -> 210 | CF21: ='1. Serie'!$C36 -> 311 | CG21: ='1. Serie'!$C37 -> 412 | CH21: 9 | CI21: ='2. Serie'!$C34 -> 109 | CJ21: ='2. Serie'!$C35 -> 210 | CK21: ='2. Serie'!$C36 -> 311 | CL21: ='2. Serie'!$C37 -> 412 | CM21: 9 | CN21: ='3. Serie'!$C34 -> 109 | CO21: ='3. Serie'!$C35 -> 210 | CP21: ='3. Serie'!$C36 -> 311 | CQ21: ='3. Serie'!$C37 -> 412 | CR21: 9 | CS21: ='4. Serie'!$C34 -> 109 | CT21: ='4. Serie'!$C35 -> 210 | CU21: ='4. Serie'!$C36 -> 311 | CV21: ='4. Serie'!$C37 -> 412 | CW21: 9 | CX21: ='5. Serie'!$C34 -> 411 | CY21: ='5. Serie'!$C35 -> 114 | CZ21: ='5. Serie'!$C36 -> 213 | DA21: ='5. Serie'!$C37 -> 312 | DB21: 9 | DC21: ='6. Serie'!$C34 -> 109 | DD21: ='6. Serie'!$C35 -> 209 | DE21: ='6. Serie'!$C36 -> 309 | DF21: ='6. Serie'!$C37 -> 409 | DG21: 9 | DH21: =F45 -> 0 | DI21: =R45 -> 0 | DJ21: =AD45 -> 0 | DK21: =AP45 -> 0 | DL21: =BB45 -> 0 | DM21: =BN45 -> 0
A22: =IF(COUNTIF(B$13:B22,B22)>1,"X","") -> X | B22: =IF(ISBLANK(F21)," ",INDEX(CE:CE,MATCH(F21,CC:CC,0))) ->  | C22: =IF(ISBLANK(F22)," ",INDEX('Eingabe Spielernamen'!$F:$F,MATCH(B22,'Eingabe Spielernamen'!$B:$B,0))&", "&INDEX('Eingabe Spielernamen'!$G:$G,MATCH(B22,'Eingabe Spielernamen'!$B:$B,0))) ->  | F22: =F21 -> 0 | K22: =IF(ISBLANK(G22)," ",G22+(H22-I22)*50+IF(COUNT(G21:G24)=3,(I21+I23+I24)*40,(I21+I23+I24)*30)) ->  | L22: 0 | M22: =IF(COUNTIF(N$13:N22,N22)>1,"X","") -> X | N22: =IF(ISBLANK(R21)," ",INDEX(CJ:CJ,MATCH(R21,CH:CH,0))) ->  | O22: =IF(ISBLANK(R22)," ",INDEX('Eingabe Spielernamen'!$F:$F,MATCH(N22,'Eingabe Spielernamen'!$B:$B,0))&", "&INDEX('Eingabe Spielernamen'!$G:$G,MATCH(N22,'Eingabe Spielernamen'!$B:$B,0))) ->  | R22: =R21 -> 0 | W22: =IF(ISBLANK(S22)," ",S22+(T22-U22)*50+IF(COUNT(S21:S24)=3,(U21+U23+U24)*40,(U21+U23+U24)*30)) ->  | X22: 0 | Y22: =IF(COUNTIF(Z$13:Z22,Z22)>1,"X","") -> X | Z22: =IF(ISBLANK(AD21)," ",INDEX(CO:CO,MATCH(AD21,CM:CM,0))) ->  | AA22: =IF(ISBLANK(AD22)," ",INDEX('Eingabe Spielernamen'!$F:$F,MATCH(Z22,'Eingabe Spielernamen'!$B:$B,0))&", "&INDEX('Eingabe Spielernamen'!$G:$G,MATCH(Z22,'Eingabe Spielernamen'!$B:$B,0))) ->  | AD22: =AD21 -> 0 | AI22: =IF(ISBLANK(AE22)," ",AE22+(AF22-AG22)*50+IF(COUNT(AE21:AE24)=3,(AG21+AG23+AG24)*40,(AG21+AG23+AG24)*30)) ->  | AJ22: 0 | AK22: =IF(COUNTIF(AL$13:AL22,AL22)>1,"X","") -> X | AL22: =IF(ISBLANK(AP21)," ",INDEX(CT:CT,MATCH(AP21,CR:CR,0))) ->  | AM22: =IF(ISBLANK(AP22)," ",INDEX('Eingabe Spielernamen'!$F:$F,MATCH(AL22,'Eingabe Spielernamen'!$B:$B,0))&", "&INDEX('Eingabe Spielernamen'!$G:$G,MATCH(AL22,'Eingabe Spielernamen'!$B:$B,0))) ->  | AP22: =AP21 -> 0 | AU22: =IF(ISBLANK(AQ22)," ",AQ22+(AR22-AS22)*50+IF(COUNT(AQ21:AQ24)=3,(AS21+AS23+AS24)*40,(AS21+AS23+AS24)*30)) ->  | AV22: 0 | AW22: =IF(COUNTIF(AX$13:AX22,AX22)>1,"X","") -> X | AX22: =IF(ISBLANK(BB21)," ",INDEX(CY:CY,MATCH(BB21,CW:CW,0))) ->  | AY22: =IF(ISBLANK(BB22)," ",INDEX('Eingabe Spielernamen'!$F:$F,MATCH(AX22,'Eingabe Spielernamen'!$B:$B,0))&", "&INDEX('Eingabe Spielernamen'!$G:$G,MATCH(AX22,'Eingabe Spielernamen'!$B:$B,0))) ->  | BB22: =BB21 -> 0 | BG22: =IF(ISBLANK(BC22)," ",BC22+(BD22-BE22)*50+IF(COUNT(BC21:BC24)=3,(BE21+BE23+BE24)*40,(BE21+BE23+BE24)*30)) ->  | BH22: 0 | BI22: =IF(COUNTIF(BJ$13:BJ22,BJ22)>1,"X","") -> X | BJ22: =IF(ISBLANK(BN21)," ",INDEX(DD:DD,MATCH(BN21,DB:DB,0))) ->  | BK22: =IF(ISBLANK(BN22)," ",INDEX('Eingabe Spielernamen'!$F:$F,MATCH(BJ22,'Eingabe Spielernamen'!$B:$B,0))&", "&INDEX('Eingabe Spielernamen'!$G:$G,MATCH(BJ22,'Eingabe Spielernamen'!$B:$B,0))) ->  | BN22: =BN21 -> 0 | BS22: =IF(ISBLANK(BO22)," ",BO22+(BP22-BQ22)*50+IF(COUNT(BO21:BO24)=3,(BQ21+BQ23+BQ24)*40,(BQ21+BQ23+BQ24)*30)) ->  | BT22: 0 | BU22: Helfer | CC22: 10 | CD22: ='1. Serie'!$C38 -> 110 | CE22: ='1. Serie'!$C39 -> 211 | CF22: ='1. Serie'!$C40 -> 312 | CG22: ='1. Serie'!$C41 -> 413 | CH22: 10 | CI22: ='2. Serie'!$C38 -> 110 | CJ22: ='2. Serie'!$C39 -> 211 | CK22: ='2. Serie'!$C40 -> 312 | CL22: ='2. Serie'!$C41 -> 413 | CM22: 10 | CN22: ='3. Serie'!$C38 -> 110 | CO22: ='3. Serie'!$C39 -> 211 | CP22: ='3. Serie'!$C40 -> 312 | CQ22: ='3. Serie'!$C41 -> 413 | CR22: 10 | CS22: ='4. Serie'!$C38 -> 110 | CT22: ='4. Serie'!$C39 -> 211 | CU22: ='4. Serie'!$C40 -> 312 | CV22: ='4. Serie'!$C41 -> 413 | CW22: 10 | CX22: ='5. Serie'!$C38 -> 412 | CY22: ='5. Serie'!$C39 -> 115 | CZ22: ='5. Serie'!$C40 -> 214 | DA22: ='5. Serie'!$C41 -> 313 | DB22: 10 | DC22: ='6. Serie'!$C38 -> 110 | DD22: ='6. Serie'!$C39 -> 210 | DE22: ='6. Serie'!$C40 -> 310 | DF22: ='6. Serie'!$C41 -> 410 | DG22: 10 | DH22: =F49 -> 0 | DI22: =R49 -> 0 | DJ22: =AD49 -> 0 | DK22: =AP49 -> 0 | DL22: =BB49 -> 0 | DM22: =BN49 -> 0
A23: =IF(COUNTIF(B$13:B23,B23)>1,"X","") -> X | B23: =IF(ISBLANK(F21)," ",INDEX(CF:CF,MATCH(F21,CC:CC,0))) ->  | C23: =IF(ISBLANK(F23)," ",INDEX('Eingabe Spielernamen'!$F:$F,MATCH(B23,'Eingabe Spielernamen'!$B:$B,0))&", "&INDEX('Eingabe Spielernamen'!$G:$G,MATCH(B23,'Eingabe Spielernamen'!$B:$B,0))) ->  | F23: =F21 -> 0 | K23: =IF(ISBLANK(G23)," ",G23+(H23-I23)*50+IF(COUNT(G21:G24)=3,(I21+I22+I24)*40,(I21+I22+I24)*30)) ->  | L23: 0 | M23: =IF(COUNTIF(N$13:N23,N23)>1,"X","") -> X | N23: =IF(ISBLANK(R21)," ",INDEX(CK:CK,MATCH(R21,CH:CH,0))) ->  | O23: =IF(ISBLANK(R23)," ",INDEX('Eingabe Spielernamen'!$F:$F,MATCH(N23,'Eingabe Spielernamen'!$B:$B,0))&", "&INDEX('Eingabe Spielernamen'!$G:$G,MATCH(N23,'Eingabe Spielernamen'!$B:$B,0))) ->  | R23: =R21 -> 0 | W23: =IF(ISBLANK(S23)," ",S23+(T23-U23)*50+IF(COUNT(S21:S24)=3,(U21+U22+U24)*40,(U21+U22+U24)*30)) ->  | X23: 0 | Y23: =IF(COUNTIF(Z$13:Z23,Z23)>1,"X","") -> X | Z23: =IF(ISBLANK(AD21)," ",INDEX(CP:CP,MATCH(AD21,CM:CM,0))) ->  | AA23: =IF(ISBLANK(AD23)," ",INDEX('Eingabe Spielernamen'!$F:$F,MATCH(Z23,'Eingabe Spielernamen'!$B:$B,0))&", "&INDEX('Eingabe Spielernamen'!$G:$G,MATCH(Z23,'Eingabe Spielernamen'!$B:$B,0))) ->  | AD23: =AD21 -> 0 | AI23: =IF(ISBLANK(AE23)," ",AE23+(AF23-AG23)*50+IF(COUNT(AE21:AE24)=3,(AG21+AG22+AG24)*40,(AG21+AG22+AG24)*30)) ->  | AJ23: 0 | AK23: =IF(COUNTIF(AL$13:AL23,AL23)>1,"X","") -> X | AL23: =IF(ISBLANK(AP21)," ",INDEX(CU:CU,MATCH(AP21,CR:CR,0))) ->  | AM23: =IF(ISBLANK(AP23)," ",INDEX('Eingabe Spielernamen'!$F:$F,MATCH(AL23,'Eingabe Spielernamen'!$B:$B,0))&", "&INDEX('Eingabe Spielernamen'!$G:$G,MATCH(AL23,'Eingabe Spielernamen'!$B:$B,0))) ->  | AP23: =AP21 -> 0 | AU23: =IF(ISBLANK(AQ23)," ",AQ23+(AR23-AS23)*50+IF(COUNT(AQ21:AQ24)=3,(AS21+AS22+AS24)*40,(AS21+AS22+AS24)*30)) ->  | AV23: 0 | AW23: =IF(COUNTIF(AX$13:AX23,AX23)>1,"X","") -> X | AX23: =IF(ISBLANK(BB21)," ",INDEX(CZ:CZ,MATCH(BB21,CW:CW,0))) ->  | AY23: =IF(ISBLANK(BB23)," ",INDEX('Eingabe Spielernamen'!$F:$F,MATCH(AX23,'Eingabe Spielernamen'!$B:$B,0))&", "&INDEX('Eingabe Spielernamen'!$G:$G,MATCH(AX23,'Eingabe Spielernamen'!$B:$B,0))) ->  | BB23: =BB21 -> 0 | BG23: =IF(ISBLANK(BC23)," ",BC23+(BD23-BE23)*50+IF(COUNT(BC21:BC24)=3,(BE21+BE22+BE24)*40,(BE21+BE22+BE24)*30)) ->  | BH23: 0 | BI23: =IF(COUNTIF(BJ$13:BJ23,BJ23)>1,"X","") -> X | BJ23: =IF(ISBLANK(BN21)," ",INDEX(DE:DE,MATCH(BN21,DB:DB,0))) ->  | BK23: =IF(ISBLANK(BN23)," ",INDEX('Eingabe Spielernamen'!$F:$F,MATCH(BJ23,'Eingabe Spielernamen'!$B:$B,0))&", "&INDEX('Eingabe Spielernamen'!$G:$G,MATCH(BJ23,'Eingabe Spielernamen'!$B:$B,0))) ->  | BN23: =BN21 -> 0 | BS23: =IF(ISBLANK(BO23)," ",BO23+(BP23-BQ23)*50+IF(COUNT(BO21:BO24)=3,(BQ21+BQ22+BQ24)*40,(BQ21+BQ22+BQ24)*30)) ->  | BT23: 0 | BU23: Helfer | CC23: 11 | CD23: ='1. Serie'!$C42 -> 111 | CE23: ='1. Serie'!$C43 -> 212 | CF23: ='1. Serie'!$C44 -> 313 | CG23: ='1. Serie'!$C45 -> 414 | CH23: 11 | CI23: ='2. Serie'!$C42 -> 111 | CJ23: ='2. Serie'!$C43 -> 212 | CK23: ='2. Serie'!$C44 -> 313 | CL23: ='2. Serie'!$C45 -> 414 | CM23: 11 | CN23: ='3. Serie'!$C42 -> 111 | CO23: ='3. Serie'!$C43 -> 212 | CP23: ='3. Serie'!$C44 -> 313 | CQ23: ='3. Serie'!$C45 -> 414 | CR23: 11 | CS23: ='4. Serie'!$C42 -> 111 | CT23: ='4. Serie'!$C43 -> 212 | CU23: ='4. Serie'!$C44 -> 313 | CV23: ='4. Serie'!$C45 -> 414 | CW23: 11 | CX23: ='5. Serie'!$C42 -> 413 | CY23: ='5. Serie'!$C43 -> 116 | CZ23: ='5. Serie'!$C44 -> 215 | DA23: ='5. Serie'!$C45 -> 314 | DB23: 11 | DC23: ='6. Serie'!$C42 -> 111 | DD23: ='6. Serie'!$C43 -> 211 | DE23: ='6. Serie'!$C44 -> 311 | DF23: ='6. Serie'!$C45 -> 411 | DG23: 11 | DH23: =F53 -> 0 | DI23: =R53 -> 0 | DJ23: =AD53 -> 0 | DK23: =AP53 -> 0 | DL23: =BB53 -> 0 | DM23: =BN53 -> 0
A24: =IF(COUNTIF(B$13:B24,B24)>1,"X","") -> X | B24: =IF(ISBLANK(F21)," ",INDEX(CG:CG,MATCH(F21,CC:CC,0))) ->  | C24: =IF(ISBLANK(F24)," ",INDEX('Eingabe Spielernamen'!$F:$F,MATCH(B24,'Eingabe Spielernamen'!$B:$B,0))&", "&INDEX('Eingabe Spielernamen'!$G:$G,MATCH(B24,'Eingabe Spielernamen'!$B:$B,0))) ->  | F24: =F21 -> 0 | K24: =IF(ISBLANK(G24)," ",G24+(H24-I24)*50+IF(COUNT(G21:G24)=3,(I21+I22+I23)*40,(I21+I22+I23)*30)) ->  | L24: 0 | M24: =IF(COUNTIF(N$13:N24,N24)>1,"X","") -> X | N24: =IF(ISBLANK(R21)," ",INDEX(CL:CL,MATCH(R21,CH:CH,0))) ->  | O24: =IF(ISBLANK(R24)," ",INDEX('Eingabe Spielernamen'!$F:$F,MATCH(N24,'Eingabe Spielernamen'!$B:$B,0))&", "&INDEX('Eingabe Spielernamen'!$G:$G,MATCH(N24,'Eingabe Spielernamen'!$B:$B,0))) ->  | R24: =R21 -> 0 | W24: =IF(ISBLANK(S24)," ",S24+(T24-U24)*50+IF(COUNT(S21:S24)=3,(U21+U22+U23)*40,(U21+U22+U23)*30)) ->  | X24: 0 | Y24: =IF(COUNTIF(Z$13:Z24,Z24)>1,"X","") -> X | Z24: =IF(ISBLANK(AD21)," ",INDEX(CQ:CQ,MATCH(AD21,CM:CM,0))) ->  | AA24: =IF(ISBLANK(AD24)," ",INDEX('Eingabe Spielernamen'!$F:$F,MATCH(Z24,'Eingabe Spielernamen'!$B:$B,0))&", "&INDEX('Eingabe Spielernamen'!$G:$G,MATCH(Z24,'Eingabe Spielernamen'!$B:$B,0))) ->  | AD24: =AD21 -> 0 | AI24: =IF(ISBLANK(AE24)," ",AE24+(AF24-AG24)*50+IF(COUNT(AE21:AE24)=3,(AG21+AG22+AG23)*40,(AG21+AG22+AG23)*30)) ->  | AJ24: 0 | AK24: =IF(COUNTIF(AL$13:AL24,AL24)>1,"X","") -> X | AL24: =IF(ISBLANK(AP21)," ",INDEX(CV:CV,MATCH(AP21,CR:CR,0))) ->  | AM24: =IF(ISBLANK(AP24)," ",INDEX('Eingabe Spielernamen'!$F:$F,MATCH(AL24,'Eingabe Spielernamen'!$B:$B,0))&", "&INDEX('Eingabe Spielernamen'!$G:$G,MATCH(AL24,'Eingabe Spielernamen'!$B:$B,0))) ->  | AP24: =AP21 -> 0 | AU24: =IF(ISBLANK(AQ24)," ",AQ24+(AR24-AS24)*50+IF(COUNT(AQ21:AQ24)=3,(AS21+AS22+AS23)*40,(AS21+AS22+AS23)*30)) ->  | AV24: 0 | AW24: =IF(COUNTIF(AX$13:AX24,AX24)>1,"X","") -> X | AX24: =IF(ISBLANK(BB21)," ",INDEX(DA:DA,MATCH(BB21,CW:CW,0))) ->  | AY24: =IF(ISBLANK(BB24)," ",INDEX('Eingabe Spielernamen'!$F:$F,MATCH(AX24,'Eingabe Spielernamen'!$B:$B,0))&", "&INDEX('Eingabe Spielernamen'!$G:$G,MATCH(AX24,'Eingabe Spielernamen'!$B:$B,0))) ->  | BB24: =BB21 -> 0 | BG24: =IF(ISBLANK(BC24)," ",BC24+(BD24-BE24)*50+IF(COUNT(BC21:BC24)=3,(BE21+BE22+BE23)*40,(BE21+BE22+BE23)*30)) ->  | BH24: 0 | BI24: =IF(COUNTIF(BJ$13:BJ24,BJ24)>1,"X","") -> X | BJ24: =IF(ISBLANK(BN21)," ",INDEX(DF:DF,MATCH(BN21,DB:DB,0))) ->  | BK24: =IF(ISBLANK(BN24)," ",INDEX('Eingabe Spielernamen'!$F:$F,MATCH(BJ24,'Eingabe Spielernamen'!$B:$B,0))&", "&INDEX('Eingabe Spielernamen'!$G:$G,MATCH(BJ24,'Eingabe Spielernamen'!$B:$B,0))) ->  | BN24: =BN21 -> 0 | BS24: =IF(ISBLANK(BO24)," ",BO24+(BP24-BQ24)*50+IF(COUNT(BO21:BO24)=3,(BQ21+BQ22+BQ23)*40,(BQ21+BQ22+BQ23)*30)) ->  | BT24: 0 | BU24: Helfer | CC24: 12 | CD24: ='1. Serie'!$C46 -> 112 | CE24: ='1. Serie'!$C47 -> 213 | CF24: ='1. Serie'!$C48 -> 314 | CG24: ='1. Serie'!$C49 -> 415 | CH24: 12 | CI24: ='2. Serie'!$C46 -> 112 | CJ24: ='2. Serie'!$C47 -> 213 | CK24: ='2. Serie'!$C48 -> 314 | CL24: ='2. Serie'!$C49 -> 415 | CM24: 12 | CN24: ='3. Serie'!$C46 -> 112 | CO24: ='3. Serie'!$C47 -> 213 | CP24: ='3. Serie'!$C48 -> 314 | CQ24: ='3. Serie'!$C49 -> 415 | CR24: 12 | CS24: ='4. Serie'!$C46 -> 112 | CT24: ='4. Serie'!$C47 -> 213 | CU24: ='4. Serie'!$C48 -> 314 | CV24: ='4. Serie'!$C49 -> 415 | CW24: 12 | CX24: ='5. Serie'!$C46 -> 414 | CY24: ='5. Serie'!$C47 -> 101 | CZ24: ='5. Serie'!$C48 -> 216 | DA24: ='5. Serie'!$C49 -> 315 | DB24: 12 | DC24: ='6. Serie'!$C46 -> 112 | DD24: ='6. Serie'!$C47 -> 212 | DE24: ='6. Serie'!$C48 -> 312 | DF24: ='6. Serie'!$C49 -> 412 | DG24: 12 | DH24: =F57 -> 0 | DI24: =R57 -> 0 | DJ24: =AD57 -> 0 | DK24: =AP57 -> 0 | DL24: =BB57 -> 0 | DM24: =BN57 -> 0
A25: =IF(COUNTIF(B$13:B25,B25)>1,"X","") -> X | B25: =IF(ISBLANK(F25)," ",INDEX(CD:CD,MATCH(F25,CC:CC,0))) ->  | C25: =IF(ISBLANK(F25)," ",INDEX('Eingabe Spielernamen'!$F:$F,MATCH(B25,'Eingabe Spielernamen'!$B:$B,0))&", "&INDEX('Eingabe Spielernamen'!$G:$G,MATCH(B25,'Eingabe Spielernamen'!$B:$B,0))) ->  | K25: =IF(ISBLANK(G25)," ",G25+(H25-I25)*50+IF(COUNT(G25:G28)=3,(I26+I27+I28)*40,(I26+I27+I28)*30)) ->  | L25: 0 | M25: =IF(COUNTIF(N$13:N25,N25)>1,"X","") -> X | N25: =IF(ISBLANK(R25)," ",INDEX(CI:CI,MATCH(R25,CH:CH,0))) ->  | O25: =IF(ISBLANK(R25)," ",INDEX('Eingabe Spielernamen'!$F:$F,MATCH(N25,'Eingabe Spielernamen'!$B:$B,0))&", "&INDEX('Eingabe Spielernamen'!$G:$G,MATCH(N25,'Eingabe Spielernamen'!$B:$B,0))) ->  | W25: =IF(ISBLANK(S25)," ",S25+(T25-U25)*50+IF(COUNT(S25:S28)=3,(U26+U27+U28)*40,(U26+U27+U28)*30)) ->  | X25: 0 | Y25: =IF(COUNTIF(Z$13:Z25,Z25)>1,"X","") -> X | Z25: =IF(ISBLANK(AD25)," ",INDEX(CN:CN,MATCH(AD25,CM:CM,0))) ->  | AA25: =IF(ISBLANK(AD25)," ",INDEX('Eingabe Spielernamen'!$F:$F,MATCH(Z25,'Eingabe Spielernamen'!$B:$B,0))&", "&INDEX('Eingabe Spielernamen'!$G:$G,MATCH(Z25,'Eingabe Spielernamen'!$B:$B,0))) ->  | AI25: =IF(ISBLANK(AE25)," ",AE25+(AF25-AG25)*50+IF(COUNT(AE25:AE28)=3,(AG26+AG27+AG28)*40,(AG26+AG27+AG28)*30)) ->  | AJ25: 0 | AK25: =IF(COUNTIF(AL$13:AL25,AL25)>1,"X","") -> X | AL25: =IF(ISBLANK(AP25)," ",INDEX(CS:CS,MATCH(AP25,CR:CR,0))) ->  | AM25: =IF(ISBLANK(AP25)," ",INDEX('Eingabe Spielernamen'!$F:$F,MATCH(AL25,'Eingabe Spielernamen'!$B:$B,0))&", "&INDEX('Eingabe Spielernamen'!$G:$G,MATCH(AL25,'Eingabe Spielernamen'!$B:$B,0))) ->  | AU25: =IF(ISBLANK(AQ25)," ",AQ25+(AR25-AS25)*50+IF(COUNT(AQ25:AQ28)=3,(AS26+AS27+AS28)*40,(AS26+AS27+AS28)*30)) ->  | AV25: 0 | AW25: =IF(COUNTIF(AX$13:AX25,AX25)>1,"X","") -> X | AX25: =IF(ISBLANK(BB25)," ",INDEX(CX:CX,MATCH(BB25,CW:CW,0))) ->  | AY25: =IF(ISBLANK(BB25)," ",INDEX('Eingabe Spielernamen'!$F:$F,MATCH(AX25,'Eingabe Spielernamen'!$B:$B,0))&", "&INDEX('Eingabe Spielernamen'!$G:$G,MATCH(AX25,'Eingabe Spielernamen'!$B:$B,0))) ->  | BG25: =IF(ISBLANK(BC25)," ",BC25+(BD25-BE25)*50+IF(COUNT(BC25:BC28)=3,(BE26+BE27+BE28)*40,(BE26+BE27+BE28)*30)) ->  | BH25: 0 | BI25: =IF(COUNTIF(BJ$13:BJ25,BJ25)>1,"X","") -> X | BJ25: =IF(ISBLANK(BN25)," ",INDEX(DC:DC,MATCH(BN25,DB:DB,0))) ->  | BK25: =IF(ISBLANK(BN25)," ",INDEX('Eingabe Spielernamen'!$F:$F,MATCH(BJ25,'Eingabe Spielernamen'!$B:$B,0))&", "&INDEX('Eingabe Spielernamen'!$G:$G,MATCH(BJ25,'Eingabe Spielernamen'!$B:$B,0))) ->  | BS25: =IF(ISBLANK(BO25)," ",BO25+(BP25-BQ25)*50+IF(COUNT(BO25:BO28)=3,(BQ26+BQ27+BQ28)*40,(BQ26+BQ27+BQ28)*30)) ->  | BT25: 0 | BU25: Helfer | BW25: =SUM(L25:L28) -> 0 | BX25: =SUM(X25:X28) -> 0 | BY25: =SUM(AJ25:AJ28) -> 0 | BZ25: =SUM(AV25:AV28) -> 0 | CA25: =SUM(BH25:BH28) -> 0 | CB25: =SUM(BT25:BT28) -> 0 | CC25: 13 | CD25: ='1. Serie'!$C50 -> 113 | CE25: ='1. Serie'!$C51 -> 214 | CF25: ='1. Serie'!$C52 -> 315 | CG25: ='1. Serie'!$C53 -> 416 | CH25: 13 | CI25: ='2. Serie'!$C50 -> 113 | CJ25: ='2. Serie'!$C51 -> 214 | CK25: ='2. Serie'!$C52 -> 315 | CL25: ='2. Serie'!$C53 -> 416 | CM25: 13 | CN25: ='3. Serie'!$C50 -> 113 | CO25: ='3. Serie'!$C51 -> 214 | CP25: ='3. Serie'!$C52 -> 315 | CQ25: ='3. Serie'!$C53 -> 416 | CR25: 13 | CS25: ='4. Serie'!$C50 -> 113 | CT25: ='4. Serie'!$C51 -> 214 | CU25: ='4. Serie'!$C52 -> 315 | CV25: ='4. Serie'!$C53 -> 416 | CW25: 13 | CX25: ='5. Serie'!$C50 -> 415 | CY25: ='5. Serie'!$C51 -> 102 | CZ25: ='5. Serie'!$C52 -> 201 | DA25: ='5. Serie'!$C53 -> 316 | DB25: 13 | DC25: ='6. Serie'!$C50 -> 113 | DD25: ='6. Serie'!$C51 -> 213 | DE25: ='6. Serie'!$C52 -> 313 | DF25: ='6. Serie'!$C53 -> 413 | DG25: 13 | DH25: =F61 -> 0 | DI25: =R61 -> 0 | DJ25: =AD61 -> 0 | DK25: =AP61 -> 0 | DL25: =BB61 -> 0 | DM25: =BN61 -> 0
A26: =IF(COUNTIF(B$13:B26,B26)>1,"X","") -> X | B26: =IF(ISBLANK(F25)," ",INDEX(CE:CE,MATCH(F25,CC:CC,0))) ->  | C26: =IF(ISBLANK(F26)," ",INDEX('Eingabe Spielernamen'!$F:$F,MATCH(B26,'Eingabe Spielernamen'!$B:$B,0))&", "&INDEX('Eingabe Spielernamen'!$G:$G,MATCH(B26,'Eingabe Spielernamen'!$B:$B,0))) ->  | F26: =F25 -> 0 | K26: =IF(ISBLANK(G26)," ",G26+(H26-I26)*50+IF(COUNT(G25:G28)=3,(I25+I27+I28)*40,(I25+I27+I28)*30)) ->  | L26: 0 | M26: =IF(COUNTIF(N$13:N26,N26)>1,"X","") -> X | N26: =IF(ISBLANK(R25)," ",INDEX(CJ:CJ,MATCH(R25,CH:CH,0))) ->  | O26: =IF(ISBLANK(R26)," ",INDEX('Eingabe Spielernamen'!$F:$F,MATCH(N26,'Eingabe Spielernamen'!$B:$B,0))&", "&INDEX('Eingabe Spielernamen'!$G:$G,MATCH(N26,'Eingabe Spielernamen'!$B:$B,0))) ->  | R26: =R25 -> 0 | W26: =IF(ISBLANK(S26)," ",S26+(T26-U26)*50+IF(COUNT(S25:S28)=3,(U25+U27+U28)*40,(U25+U27+U28)*30)) ->  | X26: 0 | Y26: =IF(COUNTIF(Z$13:Z26,Z26)>1,"X","") -> X | Z26: =IF(ISBLANK(AD25)," ",INDEX(CO:CO,MATCH(AD25,CM:CM,0))) ->  | AA26: =IF(ISBLANK(AD26)," ",INDEX('Eingabe Spielernamen'!$F:$F,MATCH(Z26,'Eingabe Spielernamen'!$B:$B,0))&", "&INDEX('Eingabe Spielernamen'!$G:$G,MATCH(Z26,'Eingabe Spielernamen'!$B:$B,0))) ->  | AD26: =AD25 -> 0 | AI26: =IF(ISBLANK(AE26)," ",AE26+(AF26-AG26)*50+IF(COUNT(AE25:AE28)=3,(AG25+AG27+AG28)*40,(AG25+AG27+AG28)*30)) ->  | AJ26: 0 | AK26: =IF(COUNTIF(AL$13:AL26,AL26)>1,"X","") -> X | AL26: =IF(ISBLANK(AP25)," ",INDEX(CT:CT,MATCH(AP25,CR:CR,0))) ->  | AM26: =IF(ISBLANK(AP26)," ",INDEX('Eingabe Spielernamen'!$F:$F,MATCH(AL26,'Eingabe Spielernamen'!$B:$B,0))&", "&INDEX('Eingabe Spielernamen'!$G:$G,MATCH(AL26,'Eingabe Spielernamen'!$B:$B,0))) ->  | AP26: =AP25 -> 0 | AU26: =IF(ISBLANK(AQ26)," ",AQ26+(AR26-AS26)*50+IF(COUNT(AQ25:AQ28)=3,(AS25+AS27+AS28)*40,(AS25+AS27+AS28)*30)) ->  | AV26: 0 | AW26: =IF(COUNTIF(AX$13:AX26,AX26)>1,"X","") -> X | AX26: =IF(ISBLANK(BB25)," ",INDEX(CY:CY,MATCH(BB25,CW:CW,0))) ->  | AY26: =IF(ISBLANK(BB26)," ",INDEX('Eingabe Spielernamen'!$F:$F,MATCH(AX26,'Eingabe Spielernamen'!$B:$B,0))&", "&INDEX('Eingabe Spielernamen'!$G:$G,MATCH(AX26,'Eingabe Spielernamen'!$B:$B,0))) ->  | BB26: =BB25 -> 0 | BG26: =IF(ISBLANK(BC26)," ",BC26+(BD26-BE26)*50+IF(COUNT(BC25:BC28)=3,(BE25+BE27+BE28)*40,(BE25+BE27+BE28)*30)) ->  | BH26: 0 | BI26: =IF(COUNTIF(BJ$13:BJ26,BJ26)>1,"X","") -> X | BJ26: =IF(ISBLANK(BN25)," ",INDEX(DD:DD,MATCH(BN25,DB:DB,0))) ->  | BK26: =IF(ISBLANK(BN26)," ",INDEX('Eingabe Spielernamen'!$F:$F,MATCH(BJ26,'Eingabe Spielernamen'!$B:$B,0))&", "&INDEX('Eingabe Spielernamen'!$G:$G,MATCH(BJ26,'Eingabe Spielernamen'!$B:$B,0))) ->  | BN26: =BN25 -> 0 | BS26: =IF(ISBLANK(BO26)," ",BO26+(BP26-BQ26)*50+IF(COUNT(BO25:BO28)=3,(BQ25+BQ27+BQ28)*40,(BQ25+BQ27+BQ28)*30)) ->  | BT26: 0 | BU26: Helfer | CC26: 14 | CD26: ='1. Serie'!$C54 -> 114 | CE26: ='1. Serie'!$C55 -> 215 | CF26: ='1. Serie'!$C56 -> 316 | CG26: ='1. Serie'!$C57 -> 401 | CH26: 14 | CI26: ='2. Serie'!$C54 -> 114 | CJ26: ='2. Serie'!$C55 -> 215 | CK26: ='2. Serie'!$C56 -> 316 | CL26: ='2. Serie'!$C57 -> 401 | CM26: 14 | CN26: ='3. Serie'!$C54 -> 114 | CO26: ='3. Serie'!$C55 -> 215 | CP26: ='3. Serie'!$C56 -> 316 | CQ26: ='3. Serie'!$C57 -> 401 | CR26: 14 | CS26: ='4. Serie'!$C54 -> 114 | CT26: ='4. Serie'!$C55 -> 215 | CU26: ='4. Serie'!$C56 -> 316 | CV26: ='4. Serie'!$C57 -> 401 | CW26: 14 | CX26: ='5. Serie'!$C54 -> 416 | CY26: ='5. Serie'!$C55 -> 103 | CZ26: ='5. Serie'!$C56 -> 202 | DA26: ='5. Serie'!$C57 -> 301 | DB26: 14 | DC26: ='6. Serie'!$C54 -> 114 | DD26: ='6. Serie'!$C55 -> 214 | DE26: ='6. Serie'!$C56 -> 314 | DF26: ='6. Serie'!$C57 -> 414 | DG26: 14 | DH26: =F65 -> 0 | DI26: =R65 -> 0 | DJ26: =AD65 -> 0 | DK26: =AP65 -> 0 | DL26: =BB65 -> 0 | DM26: =BN65 -> 0
A27: =IF(COUNTIF(B$13:B27,B27)>1,"X","") -> X | B27: =IF(ISBLANK(F25)," ",INDEX(CF:CF,MATCH(F25,CC:CC,0))) ->  | C27: =IF(ISBLANK(F27)," ",INDEX('Eingabe Spielernamen'!$F:$F,MATCH(B27,'Eingabe Spielernamen'!$B:$B,0))&", "&INDEX('Eingabe Spielernamen'!$G:$G,MATCH(B27,'Eingabe Spielernamen'!$B:$B,0))) ->  | F27: =F25 -> 0 | K27: =IF(ISBLANK(G27)," ",G27+(H27-I27)*50+IF(COUNT(G25:G28)=3,(I25+I26+I28)*40,(I25+I26+I28)*30)) ->  | L27: 0 | M27: =IF(COUNTIF(N$13:N27,N27)>1,"X","") -> X | N27: =IF(ISBLANK(R25)," ",INDEX(CK:CK,MATCH(R25,CH:CH,0))) ->  | O27: =IF(ISBLANK(R27)," ",INDEX('Eingabe Spielernamen'!$F:$F,MATCH(N27,'Eingabe Spielernamen'!$B:$B,0))&", "&INDEX('Eingabe Spielernamen'!$G:$G,MATCH(N27,'Eingabe Spielernamen'!$B:$B,0))) ->  | R27: =R25 -> 0 | W27: =IF(ISBLANK(S27)," ",S27+(T27-U27)*50+IF(COUNT(S25:S28)=3,(U25+U26+U28)*40,(U25+U26+U28)*30)) ->  | X27: 0 | Y27: =IF(COUNTIF(Z$13:Z27,Z27)>1,"X","") -> X | Z27: =IF(ISBLANK(AD25)," ",INDEX(CP:CP,MATCH(AD25,CM:CM,0))) ->  | AA27: =IF(ISBLANK(AD27)," ",INDEX('Eingabe Spielernamen'!$F:$F,MATCH(Z27,'Eingabe Spielernamen'!$B:$B,0))&", "&INDEX('Eingabe Spielernamen'!$G:$G,MATCH(Z27,'Eingabe Spielernamen'!$B:$B,0))) ->  | AD27: =AD25 -> 0 | AI27: =IF(ISBLANK(AE27)," ",AE27+(AF27-AG27)*50+IF(COUNT(AE25:AE28)=3,(AG25+AG26+AG28)*40,(AG25+AG26+AG28)*30)) ->  | AJ27: 0 | AK27: =IF(COUNTIF(AL$13:AL27,AL27)>1,"X","") -> X | AL27: =IF(ISBLANK(AP25)," ",INDEX(CU:CU,MATCH(AP25,CR:CR,0))) ->  | AM27: =IF(ISBLANK(AP27)," ",INDEX('Eingabe Spielernamen'!$F:$F,MATCH(AL27,'Eingabe Spielernamen'!$B:$B,0))&", "&INDEX('Eingabe Spielernamen'!$G:$G,MATCH(AL27,'Eingabe Spielernamen'!$B:$B,0))) ->  | AP27: =AP25 -> 0 | AU27: =IF(ISBLANK(AQ27)," ",AQ27+(AR27-AS27)*50+IF(COUNT(AQ25:AQ28)=3,(AS25+AS26+AS28)*40,(AS25+AS26+AS28)*30)) ->  | AV27: 0 | AW27: =IF(COUNTIF(AX$13:AX27,AX27)>1,"X","") -> X | AX27: =IF(ISBLANK(BB25)," ",INDEX(CZ:CZ,MATCH(BB25,CW:CW,0))) ->  | AY27: =IF(ISBLANK(BB27)," ",INDEX('Eingabe Spielernamen'!$F:$F,MATCH(AX27,'Eingabe Spielernamen'!$B:$B,0))&", "&INDEX('Eingabe Spielernamen'!$G:$G,MATCH(AX27,'Eingabe Spielernamen'!$B:$B,0))) ->  | BB27: =BB25 -> 0 | BG27: =IF(ISBLANK(BC27)," ",BC27+(BD27-BE27)*50+IF(COUNT(BC25:BC28)=3,(BE25+BE26+BE28)*40,(BE25+BE26+BE28)*30)) ->  | BH27: 0 | BI27: =IF(COUNTIF(BJ$13:BJ27,BJ27)>1,"X","") -> X | BJ27: =IF(ISBLANK(BN25)," ",INDEX(DE:DE,MATCH(BN25,DB:DB,0))) ->  | BK27: =IF(ISBLANK(BN27)," ",INDEX('Eingabe Spielernamen'!$F:$F,MATCH(BJ27,'Eingabe Spielernamen'!$B:$B,0))&", "&INDEX('Eingabe Spielernamen'!$G:$G,MATCH(BJ27,'Eingabe Spielernamen'!$B:$B,0))) ->  | BN27: =BN25 -> 0 | BS27: =IF(ISBLANK(BO27)," ",BO27+(BP27-BQ27)*50+IF(COUNT(BO25:BO28)=3,(BQ25+BQ26+BQ28)*40,(BQ25+BQ26+BQ28)*30)) ->  | BT27: 0 | BU27: Helfer | CC27: 15 | CD27: ='1. Serie'!$C58 -> 115 | CE27: ='1. Serie'!$C59 -> 216 | CF27: ='1. Serie'!$C60 -> 301 | CG27: ='1. Serie'!$C61 -> 402 | CH27: 15 | CI27: ='2. Serie'!$C58 -> 115 | CJ27: ='2. Serie'!$C59 -> 216 | CK27: ='2. Serie'!$C60 -> 301 | CL27: ='2. Serie'!$C61 -> 402 | CM27: 15 | CN27: ='3. Serie'!$C58 -> 115 | CO27: ='3. Serie'!$C59 -> 216 | CP27: ='3. Serie'!$C60 -> 301 | CQ27: ='3. Serie'!$C61 -> 402 | CR27: 15 | CS27: ='4. Serie'!$C58 -> 115 | CT27: ='4. Serie'!$C59 -> 216 | CU27: ='4. Serie'!$C60 -> 301 | CV27: ='4. Serie'!$C61 -> 402 | CW27: 15 | CX27: ='5. Serie'!$C58 -> 401 | CY27: ='5. Serie'!$C59 -> 104 | CZ27: ='5. Serie'!$C60 -> 203 | DA27: ='5. Serie'!$C61 -> 302 | DB27: 15 | DC27: ='6. Serie'!$C58 -> 115 | DD27: ='6. Serie'!$C59 -> 215 | DE27: ='6. Serie'!$C60 -> 315 | DF27: ='6. Serie'!$C61 -> 415 | DG27: 15 | DH27: =F69 -> 0 | DI27: =R69 -> 0 | DJ27: =AD69 -> 0 | DK27: =AP69 -> 0 | DL27: =BB69 -> 0 | DM27: =BN69 -> 0
A28: =IF(COUNTIF(B$13:B28,B28)>1,"X","") -> X | B28: =IF(ISBLANK(F25)," ",INDEX(CG:CG,MATCH(F25,CC:CC,0))) ->  | C28: =IF(ISBLANK(F28)," ",INDEX('Eingabe Spielernamen'!$F:$F,MATCH(B28,'Eingabe Spielernamen'!$B:$B,0))&", "&INDEX('Eingabe Spielernamen'!$G:$G,MATCH(B28,'Eingabe Spielernamen'!$B:$B,0))) ->  | F28: =F25 -> 0 | K28: =IF(ISBLANK(G28)," ",G28+(H28-I28)*50+IF(COUNT(G25:G28)=3,(I25+I26+I27)*40,(I25+I26+I27)*30)) ->  | L28: 0 | M28: =IF(COUNTIF(N$13:N28,N28)>1,"X","") -> X | N28: =IF(ISBLANK(R25)," ",INDEX(CL:CL,MATCH(R25,CH:CH,0))) ->  | O28: =IF(ISBLANK(R28)," ",INDEX('Eingabe Spielernamen'!$F:$F,MATCH(N28,'Eingabe Spielernamen'!$B:$B,0))&", "&INDEX('Eingabe Spielernamen'!$G:$G,MATCH(N28,'Eingabe Spielernamen'!$B:$B,0))) ->  | R28: =R25 -> 0 | W28: =IF(ISBLANK(S28)," ",S28+(T28-U28)*50+IF(COUNT(S25:S28)=3,(U25+U26+U27)*40,(U25+U26+U27)*30)) ->  | X28: 0 | Y28: =IF(COUNTIF(Z$13:Z28,Z28)>1,"X","") -> X | Z28: =IF(ISBLANK(AD25)," ",INDEX(CQ:CQ,MATCH(AD25,CM:CM,0))) ->  | AA28: =IF(ISBLANK(AD28)," ",INDEX('Eingabe Spielernamen'!$F:$F,MATCH(Z28,'Eingabe Spielernamen'!$B:$B,0))&", "&INDEX('Eingabe Spielernamen'!$G:$G,MATCH(Z28,'Eingabe Spielernamen'!$B:$B,0))) ->  | AD28: =AD25 -> 0 | AI28: =IF(ISBLANK(AE28)," ",AE28+(AF28-AG28)*50+IF(COUNT(AE25:AE28)=3,(AG25+AG26+AG27)*40,(AG25+AG26+AG27)*30)) ->  | AJ28: 0 | AK28: =IF(COUNTIF(AL$13:AL28,AL28)>1,"X","") -> X | AL28: =IF(ISBLANK(AP25)," ",INDEX(CV:CV,MATCH(AP25,CR:CR,0))) ->  | AM28: =IF(ISBLANK(AP28)," ",INDEX('Eingabe Spielernamen'!$F:$F,MATCH(AL28,'Eingabe Spielernamen'!$B:$B,0))&", "&INDEX('Eingabe Spielernamen'!$G:$G,MATCH(AL28,'Eingabe Spielernamen'!$B:$B,0))) ->  | AP28: =AP25 -> 0 | AU28: =IF(ISBLANK(AQ28)," ",AQ28+(AR28-AS28)*50+IF(COUNT(AQ25:AQ28)=3,(AS25+AS26+AS27)*40,(AS25+AS26+AS27)*30)) ->  | AV28: 0 | AW28: =IF(COUNTIF(AX$13:AX28,AX28)>1,"X","") -> X | AX28: =IF(ISBLANK(BB25)," ",INDEX(DA:DA,MATCH(BB25,CW:CW,0))) ->  | AY28: =IF(ISBLANK(BB28)," ",INDEX('Eingabe Spielernamen'!$F:$F,MATCH(AX28,'Eingabe Spielernamen'!$B:$B,0))&", "&INDEX('Eingabe Spielernamen'!$G:$G,MATCH(AX28,'Eingabe Spielernamen'!$B:$B,0))) ->  | BB28: =BB25 -> 0 | BG28: =IF(ISBLANK(BC28)," ",BC28+(BD28-BE28)*50+IF(COUNT(BC25:BC28)=3,(BE25+BE26+BE27)*40,(BE25+BE26+BE27)*30)) ->  | BH28: 0 | BI28: =IF(COUNTIF(BJ$13:BJ28,BJ28)>1,"X","") -> X | BJ28: =IF(ISBLANK(BN25)," ",INDEX(DF:DF,MATCH(BN25,DB:DB,0))) ->  | BK28: =IF(ISBLANK(BN28)," ",INDEX('Eingabe Spielernamen'!$F:$F,MATCH(BJ28,'Eingabe Spielernamen'!$B:$B,0))&", "&INDEX('Eingabe Spielernamen'!$G:$G,MATCH(BJ28,'Eingabe Spielernamen'!$B:$B,0))) ->  | BN28: =BN25 -> 0 | BS28: =IF(ISBLANK(BO28)," ",BO28+(BP28-BQ28)*50+IF(COUNT(BO25:BO28)=3,(BQ25+BQ26+BQ27)*40,(BQ25+BQ26+BQ27)*30)) ->  | BT28: 0 | BU28: sonstiges | CC28: 16 | CD28: ='1. Serie'!$C62 -> 116 | CE28: ='1. Serie'!$C63 -> 201 | CF28: ='1. Serie'!$C64 -> 302 | CG28: ='1. Serie'!$C65 -> 403 | CH28: 16 | CI28: ='2. Serie'!$C62 -> 116 | CJ28: ='2. Serie'!$C63 -> 201 | CK28: ='2. Serie'!$C64 -> 302 | CL28: ='2. Serie'!$C65 -> 403 | CM28: 16 | CN28: ='3. Serie'!$C62 -> 116 | CO28: ='3. Serie'!$C63 -> 201 | CP28: ='3. Serie'!$C64 -> 302 | CQ28: ='3. Serie'!$C65 -> 403 | CR28: 16 | CS28: ='4. Serie'!$C62 -> 116 | CT28: ='4. Serie'!$C63 -> 201 | CU28: ='4. Serie'!$C64 -> 302 | CV28: ='4. Serie'!$C65 -> 403 | CW28: 16 | CX28: ='5. Serie'!$C62 -> 402 | CY28: ='5. Serie'!$C63 -> 105 | CZ28: ='5. Serie'!$C64 -> 204 | DA28: ='5. Serie'!$C65 -> 303 | DB28: 16 | DC28: ='6. Serie'!$C62 -> 116 | DD28: ='6. Serie'!$C63 -> 216 | DE28: ='6. Serie'!$C64 -> 316 | DF28: ='6. Serie'!$C65 -> 416 | DG28: 16 | DH28: =F73 -> 0 | DI28: =R73 -> 0 | DJ28: =AD73 -> 0 | DK28: =AP73 -> 0 | DL28: =BB73 -> 0 | DM28: =BN73 -> 0
A29: =IF(COUNTIF(B$13:B29,B29)>1,"X","") -> X | B29: =IF(ISBLANK(F29)," ",INDEX(CD:CD,MATCH(F29,CC:CC,0))) ->  | C29: =IF(ISBLANK(F29)," ",INDEX('Eingabe Spielernamen'!$F:$F,MATCH(B29,'Eingabe Spielernamen'!$B:$B,0))&", "&INDEX('Eingabe Spielernamen'!$G:$G,MATCH(B29,'Eingabe Spielernamen'!$B:$B,0))) ->  | K29: =IF(ISBLANK(G29)," ",G29+(H29-I29)*50+IF(COUNT(G29:G32)=3,(I30+I31+I32)*40,(I30+I31+I32)*30)) ->  | L29: 0 | M29: =IF(COUNTIF(N$13:N29,N29)>1,"X","") -> X | N29: =IF(ISBLANK(R29)," ",INDEX(CI:CI,MATCH(R29,CH:CH,0))) ->  | O29: =IF(ISBLANK(R29)," ",INDEX('Eingabe Spielernamen'!$F:$F,MATCH(N29,'Eingabe Spielernamen'!$B:$B,0))&", "&INDEX('Eingabe Spielernamen'!$G:$G,MATCH(N29,'Eingabe Spielernamen'!$B:$B,0))) ->  | W29: =IF(ISBLANK(S29)," ",S29+(T29-U29)*50+IF(COUNT(S29:S32)=3,(U30+U31+U32)*40,(U30+U31+U32)*30)) ->  | X29: 0 | Y29: =IF(COUNTIF(Z$13:Z29,Z29)>1,"X","") -> X | Z29: =IF(ISBLANK(AD29)," ",INDEX(CN:CN,MATCH(AD29,CM:CM,0))) ->  | AA29: =IF(ISBLANK(AD29)," ",INDEX('Eingabe Spielernamen'!$F:$F,MATCH(Z29,'Eingabe Spielernamen'!$B:$B,0))&", "&INDEX('Eingabe Spielernamen'!$G:$G,MATCH(Z29,'Eingabe Spielernamen'!$B:$B,0))) ->  | AI29: =IF(ISBLANK(AE29)," ",AE29+(AF29-AG29)*50+IF(COUNT(AE29:AE32)=3,(AG30+AG31+AG32)*40,(AG30+AG31+AG32)*30)) ->  | AJ29: 0 | AK29: =IF(COUNTIF(AL$13:AL29,AL29)>1,"X","") -> X | AL29: =IF(ISBLANK(AP29)," ",INDEX(CS:CS,MATCH(AP29,CR:CR,0))) ->  | AM29: =IF(ISBLANK(AP29)," ",INDEX('Eingabe Spielernamen'!$F:$F,MATCH(AL29,'Eingabe Spielernamen'!$B:$B,0))&", "&INDEX('Eingabe Spielernamen'!$G:$G,MATCH(AL29,'Eingabe Spielernamen'!$B:$B,0))) ->  | AU29: =IF(ISBLANK(AQ29)," ",AQ29+(AR29-AS29)*50+IF(COUNT(AQ29:AQ32)=3,(AS30+AS31+AS32)*40,(AS30+AS31+AS32)*30)) ->  | AV29: 0 | AW29: =IF(COUNTIF(AX$13:AX29,AX29)>1,"X","") -> X | AX29: =IF(ISBLANK(BB29)," ",INDEX(CX:CX,MATCH(BB29,CW:CW,0))) ->  | AY29: =IF(ISBLANK(BB29)," ",INDEX('Eingabe Spielernamen'!$F:$F,MATCH(AX29,'Eingabe Spielernamen'!$B:$B,0))&", "&INDEX('Eingabe Spielernamen'!$G:$G,MATCH(AX29,'Eingabe Spielernamen'!$B:$B,0))) ->  | BG29: =IF(ISBLANK(BC29)," ",BC29+(BD29-BE29)*50+IF(COUNT(BC29:BC32)=3,(BE30+BE31+BE32)*40,(BE30+BE31+BE32)*30)) ->  | BH29: 0 | BI29: =IF(COUNTIF(BJ$13:BJ29,BJ29)>1,"X","") -> X | BJ29: =IF(ISBLANK(BN29)," ",INDEX(DC:DC,MATCH(BN29,DB:DB,0))) ->  | BK29: =IF(ISBLANK(BN29)," ",INDEX('Eingabe Spielernamen'!$F:$F,MATCH(BJ29,'Eingabe Spielernamen'!$B:$B,0))&", "&INDEX('Eingabe Spielernamen'!$G:$G,MATCH(BJ29,'Eingabe Spielernamen'!$B:$B,0))) ->  | BS29: =IF(ISBLANK(BO29)," ",BO29+(BP29-BQ29)*50+IF(COUNT(BO29:BO32)=3,(BQ30+BQ31+BQ32)*40,(BQ30+BQ31+BQ32)*30)) ->  | BT29: 0 | BU29: sonstiges | BW29: =SUM(L29:L32) -> 0 | BX29: =SUM(X29:X32) -> 0 | BY29: =SUM(AJ29:AJ32) -> 0 | BZ29: =SUM(AV29:AV32) -> 0 | CA29: =SUM(BH29:BH32) -> 0 | CB29: =SUM(BT29:BT32) -> 0
A30: =IF(COUNTIF(B$13:B30,B30)>1,"X","") -> X | B30: =IF(ISBLANK(F29)," ",INDEX(CE:CE,MATCH(F29,CC:CC,0))) ->  | C30: =IF(ISBLANK(F30)," ",INDEX('Eingabe Spielernamen'!$F:$F,MATCH(B30,'Eingabe Spielernamen'!$B:$B,0))&", "&INDEX('Eingabe Spielernamen'!$G:$G,MATCH(B30,'Eingabe Spielernamen'!$B:$B,0))) ->  | F30: =F29 -> 0 | K30: =IF(ISBLANK(G30)," ",G30+(H30-I30)*50+IF(COUNT(G29:G32)=3,(I29+I31+I32)*40,(I29+I31+I32)*30)) ->  | L30: 0 | M30: =IF(COUNTIF(N$13:N30,N30)>1,"X","") -> X | N30: =IF(ISBLANK(R29)," ",INDEX(CJ:CJ,MATCH(R29,CH:CH,0))) ->  | O30: =IF(ISBLANK(R30)," ",INDEX('Eingabe Spielernamen'!$F:$F,MATCH(N30,'Eingabe Spielernamen'!$B:$B,0))&", "&INDEX('Eingabe Spielernamen'!$G:$G,MATCH(N30,'Eingabe Spielernamen'!$B:$B,0))) ->  | R30: =R29 -> 0 | W30: =IF(ISBLANK(S30)," ",S30+(T30-U30)*50+IF(COUNT(S29:S32)=3,(U29+U31+U32)*40,(U29+U31+U32)*30)) ->  | X30: 0 | Y30: =IF(COUNTIF(Z$13:Z30,Z30)>1,"X","") -> X | Z30: =IF(ISBLANK(AD29)," ",INDEX(CO:CO,MATCH(AD29,CM:CM,0))) ->  | AA30: =IF(ISBLANK(AD30)," ",INDEX('Eingabe Spielernamen'!$F:$F,MATCH(Z30,'Eingabe Spielernamen'!$B:$B,0))&", "&INDEX('Eingabe Spielernamen'!$G:$G,MATCH(Z30,'Eingabe Spielernamen'!$B:$B,0))) ->  | AD30: =AD29 -> 0 | AI30: =IF(ISBLANK(AE30)," ",AE30+(AF30-AG30)*50+IF(COUNT(AE29:AE32)=3,(AG29+AG31+AG32)*40,(AG29+AG31+AG32)*30)) ->  | AJ30: 0 | AK30: =IF(COUNTIF(AL$13:AL30,AL30)>1,"X","") -> X | AL30: =IF(ISBLANK(AP29)," ",INDEX(CT:CT,MATCH(AP29,CR:CR,0))) ->  | AM30: =IF(ISBLANK(AP30)," ",INDEX('Eingabe Spielernamen'!$F:$F,MATCH(AL30,'Eingabe Spielernamen'!$B:$B,0))&", "&INDEX('Eingabe Spielernamen'!$G:$G,MATCH(AL30,'Eingabe Spielernamen'!$B:$B,0))) ->  | AP30: =AP29 -> 0 | AU30: =IF(ISBLANK(AQ30)," ",AQ30+(AR30-AS30)*50+IF(COUNT(AQ29:AQ32)=3,(AS29+AS31+AS32)*40,(AS29+AS31+AS32)*30)) ->  | AV30: 0 | AW30: =IF(COUNTIF(AX$13:AX30,AX30)>1,"X","") -> X | AX30: =IF(ISBLANK(BB29)," ",INDEX(CY:CY,MATCH(BB29,CW:CW,0))) ->  | AY30: =IF(ISBLANK(BB30)," ",INDEX('Eingabe Spielernamen'!$F:$F,MATCH(AX30,'Eingabe Spielernamen'!$B:$B,0))&", "&INDEX('Eingabe Spielernamen'!$G:$G,MATCH(AX30,'Eingabe Spielernamen'!$B:$B,0))) ->  | BB30: =BB29 -> 0 | BG30: =IF(ISBLANK(BC30)," ",BC30+(BD30-BE30)*50+IF(COUNT(BC29:BC32)=3,(BE29+BE31+BE32)*40,(BE29+BE31+BE32)*30)) ->  | BH30: 0 | BI30: =IF(COUNTIF(BJ$13:BJ30,BJ30)>1,"X","") -> X | BJ30: =IF(ISBLANK(BN29)," ",INDEX(DD:DD,MATCH(BN29,DB:DB,0))) ->  | BK30: =IF(ISBLANK(BN30)," ",INDEX('Eingabe Spielernamen'!$F:$F,MATCH(BJ30,'Eingabe Spielernamen'!$B:$B,0))&", "&INDEX('Eingabe Spielernamen'!$G:$G,MATCH(BJ30,'Eingabe Spielernamen'!$B:$B,0))) ->  | BN30: =BN29 -> 0 | BS30: =IF(ISBLANK(BO30)," ",BO30+(BP30-BQ30)*50+IF(COUNT(BO29:BO32)=3,(BQ29+BQ31+BQ32)*40,(BQ29+BQ31+BQ32)*30)) ->  | BT30: 0 | BU30: sonstiges
A31: =IF(COUNTIF(B$13:B31,B31)>1,"X","") -> X | B31: =IF(ISBLANK(F29)," ",INDEX(CF:CF,MATCH(F29,CC:CC,0))) ->  | C31: =IF(ISBLANK(F31)," ",INDEX('Eingabe Spielernamen'!$F:$F,MATCH(B31,'Eingabe Spielernamen'!$B:$B,0))&", "&INDEX('Eingabe Spielernamen'!$G:$G,MATCH(B31,'Eingabe Spielernamen'!$B:$B,0))) ->  | F31: =F29 -> 0 | K31: =IF(ISBLANK(G31)," ",G31+(H31-I31)*50+IF(COUNT(G29:G32)=3,(I29+I30+I32)*40,(I29+I30+I32)*30)) ->  | L31: 0 | M31: =IF(COUNTIF(N$13:N31,N31)>1,"X","") -> X | N31: =IF(ISBLANK(R29)," ",INDEX(CK:CK,MATCH(R29,CH:CH,0))) ->  | O31: =IF(ISBLANK(R31)," ",INDEX('Eingabe Spielernamen'!$F:$F,MATCH(N31,'Eingabe Spielernamen'!$B:$B,0))&", "&INDEX('Eingabe Spielernamen'!$G:$G,MATCH(N31,'Eingabe Spielernamen'!$B:$B,0))) ->  | R31: =R29 -> 0 | W31: =IF(ISBLANK(S31)," ",S31+(T31-U31)*50+IF(COUNT(S29:S32)=3,(U29+U30+U32)*40,(U29+U30+U32)*30)) ->  | X31: 0 | Y31: =IF(COUNTIF(Z$13:Z31,Z31)>1,"X","") -> X | Z31: =IF(ISBLANK(AD29)," ",INDEX(CP:CP,MATCH(AD29,CM:CM,0))) ->  | AA31: =IF(ISBLANK(AD31)," ",INDEX('Eingabe Spielernamen'!$F:$F,MATCH(Z31,'Eingabe Spielernamen'!$B:$B,0))&", "&INDEX('Eingabe Spielernamen'!$G:$G,MATCH(Z31,'Eingabe Spielernamen'!$B:$B,0))) ->  | AD31: =AD29 -> 0 | AI31: =IF(ISBLANK(AE31)," ",AE31+(AF31-AG31)*50+IF(COUNT(AE29:AE32)=3,(AG29+AG30+AG32)*40,(AG29+AG30+AG32)*30)) ->  | AJ31: 0 | AK31: =IF(COUNTIF(AL$13:AL31,AL31)>1,"X","") -> X | AL31: =IF(ISBLANK(AP29)," ",INDEX(CU:CU,MATCH(AP29,CR:CR,0))) ->  | AM31: =IF(ISBLANK(AP31)," ",INDEX('Eingabe Spielernamen'!$F:$F,MATCH(AL31,'Eingabe Spielernamen'!$B:$B,0))&", "&INDEX('Eingabe Spielernamen'!$G:$G,MATCH(AL31,'Eingabe Spielernamen'!$B:$B,0))) ->  | AP31: =AP29 -> 0 | AU31: =IF(ISBLANK(AQ31)," ",AQ31+(AR31-AS31)*50+IF(COUNT(AQ29:AQ32)=3,(AS29+AS30+AS32)*40,(AS29+AS30+AS32)*30)) ->  | AV31: 0 | AW31: =IF(COUNTIF(AX$13:AX31,AX31)>1,"X","") -> X | AX31: =IF(ISBLANK(BB29)," ",INDEX(CZ:CZ,MATCH(BB29,CW:CW,0))) ->  | AY31: =IF(ISBLANK(BB31)," ",INDEX('Eingabe Spielernamen'!$F:$F,MATCH(AX31,'Eingabe Spielernamen'!$B:$B,0))&", "&INDEX('Eingabe Spielernamen'!$G:$G,MATCH(AX31,'Eingabe Spielernamen'!$B:$B,0))) ->  | BB31: =BB29 -> 0 | BG31: =IF(ISBLANK(BC31)," ",BC31+(BD31-BE31)*50+IF(COUNT(BC29:BC32)=3,(BE29+BE30+BE32)*40,(BE29+BE30+BE32)*30)) ->  | BH31: 0 | BI31: =IF(COUNTIF(BJ$13:BJ31,BJ31)>1,"X","") -> X | BJ31: =IF(ISBLANK(BN29)," ",INDEX(DE:DE,MATCH(BN29,DB:DB,0))) ->  | BK31: =IF(ISBLANK(BN31)," ",INDEX('Eingabe Spielernamen'!$F:$F,MATCH(BJ31,'Eingabe Spielernamen'!$B:$B,0))&", "&INDEX('Eingabe Spielernamen'!$G:$G,MATCH(BJ31,'Eingabe Spielernamen'!$B:$B,0))) ->  | BN31: =BN29 -> 0 | BS31: =IF(ISBLANK(BO31)," ",BO31+(BP31-BQ31)*50+IF(COUNT(BO29:BO32)=3,(BQ29+BQ30+BQ32)*40,(BQ29+BQ30+BQ32)*30)) ->  | BT31: 0
A32: =IF(COUNTIF(B$13:B32,B32)>1,"X","") -> X | B32: =IF(ISBLANK(F29)," ",INDEX(CG:CG,MATCH(F29,CC:CC,0))) ->  | C32: =IF(ISBLANK(F32)," ",INDEX('Eingabe Spielernamen'!$F:$F,MATCH(B32,'Eingabe Spielernamen'!$B:$B,0))&", "&INDEX('Eingabe Spielernamen'!$G:$G,MATCH(B32,'Eingabe Spielernamen'!$B:$B,0))) ->  | F32: =F29 -> 0 | K32: =IF(ISBLANK(G32)," ",G32+(H32-I32)*50+IF(COUNT(G29:G32)=3,(I29+I30+I31)*40,(I29+I30+I31)*30)) ->  | L32: 0 | M32: =IF(COUNTIF(N$13:N32,N32)>1,"X","") -> X | N32: =IF(ISBLANK(R29)," ",INDEX(CL:CL,MATCH(R29,CH:CH,0))) ->  | O32: =IF(ISBLANK(R32)," ",INDEX('Eingabe Spielernamen'!$F:$F,MATCH(N32,'Eingabe Spielernamen'!$B:$B,0))&", "&INDEX('Eingabe Spielernamen'!$G:$G,MATCH(N32,'Eingabe Spielernamen'!$B:$B,0))) ->  | R32: =R29 -> 0 | W32: =IF(ISBLANK(S32)," ",S32+(T32-U32)*50+IF(COUNT(S29:S32)=3,(U29+U30+U31)*40,(U29+U30+U31)*30)) ->  | X32: 0 | Y32: =IF(COUNTIF(Z$13:Z32,Z32)>1,"X","") -> X | Z32: =IF(ISBLANK(AD29)," ",INDEX(CQ:CQ,MATCH(AD29,CM:CM,0))) ->  | AA32: =IF(ISBLANK(AD32)," ",INDEX('Eingabe Spielernamen'!$F:$F,MATCH(Z32,'Eingabe Spielernamen'!$B:$B,0))&", "&INDEX('Eingabe Spielernamen'!$G:$G,MATCH(Z32,'Eingabe Spielernamen'!$B:$B,0))) ->  | AD32: =AD29 -> 0 | AI32: =IF(ISBLANK(AE32)," ",AE32+(AF32-AG32)*50+IF(COUNT(AE29:AE32)=3,(AG29+AG30+AG31)*40,(AG29+AG30+AG31)*30)) ->  | AJ32: 0 | AK32: =IF(COUNTIF(AL$13:AL32,AL32)>1,"X","") -> X | AL32: =IF(ISBLANK(AP29)," ",INDEX(CV:CV,MATCH(AP29,CR:CR,0))) ->  | AM32: =IF(ISBLANK(AP32)," ",INDEX('Eingabe Spielernamen'!$F:$F,MATCH(AL32,'Eingabe Spielernamen'!$B:$B,0))&", "&INDEX('Eingabe Spielernamen'!$G:$G,MATCH(AL32,'Eingabe Spielernamen'!$B:$B,0))) ->  | AP32: =AP29 -> 0 | AU32: =IF(ISBLANK(AQ32)," ",AQ32+(AR32-AS32)*50+IF(COUNT(AQ29:AQ32)=3,(AS29+AS30+AS31)*40,(AS29+AS30+AS31)*30)) ->  | AV32: 0 | AW32: =IF(COUNTIF(AX$13:AX32,AX32)>1,"X","") -> X | AX32: =IF(ISBLANK(BB29)," ",INDEX(DA:DA,MATCH(BB29,CW:CW,0))) ->  | AY32: =IF(ISBLANK(BB32)," ",INDEX('Eingabe Spielernamen'!$F:$F,MATCH(AX32,'Eingabe Spielernamen'!$B:$B,0))&", "&INDEX('Eingabe Spielernamen'!$G:$G,MATCH(AX32,'Eingabe Spielernamen'!$B:$B,0))) ->  | BB32: =BB29 -> 0 | BG32: =IF(ISBLANK(BC32)," ",BC32+(BD32-BE32)*50+IF(COUNT(BC29:BC32)=3,(BE29+BE30+BE31)*40,(BE29+BE30+BE31)*30)) ->  | BH32: 0 | BI32: =IF(COUNTIF(BJ$13:BJ32,BJ32)>1,"X","") -> X | BJ32: =IF(ISBLANK(BN29)," ",INDEX(DF:DF,MATCH(BN29,DB:DB,0))) ->  | BK32: =IF(ISBLANK(BN32)," ",INDEX('Eingabe Spielernamen'!$F:$F,MATCH(BJ32,'Eingabe Spielernamen'!$B:$B,0))&", "&INDEX('Eingabe Spielernamen'!$G:$G,MATCH(BJ32,'Eingabe Spielernamen'!$B:$B,0))) ->  | BN32: =BN29 -> 0 | BS32: =IF(ISBLANK(BO32)," ",BO32+(BP32-BQ32)*50+IF(COUNT(BO29:BO32)=3,(BQ29+BQ30+BQ31)*40,(BQ29+BQ30+BQ31)*30)) ->  | BT32: 0
A33: =IF(COUNTIF(B$13:B33,B33)>1,"X","") -> X | B33: =IF(ISBLANK(F33)," ",INDEX(CD:CD,MATCH(F33,CC:CC,0))) ->  | C33: =IF(ISBLANK(F33)," ",INDEX('Eingabe Spielernamen'!$F:$F,MATCH(B33,'Eingabe Spielernamen'!$B:$B,0))&", "&INDEX('Eingabe Spielernamen'!$G:$G,MATCH(B33,'Eingabe Spielernamen'!$B:$B,0))) ->  | K33: =IF(ISBLANK(G33)," ",G33+(H33-I33)*50+IF(COUNT(G33:G36)=3,(I34+I35+I36)*40,(I34+I35+I36)*30)) ->  | L33: 0 | M33: =IF(COUNTIF(N$13:N33,N33)>1,"X","") -> X | N33: =IF(ISBLANK(R33)," ",INDEX(CI:CI,MATCH(R33,CH:CH,0))) ->  | O33: =IF(ISBLANK(R33)," ",INDEX('Eingabe Spielernamen'!$F:$F,MATCH(N33,'Eingabe Spielernamen'!$B:$B,0))&", "&INDEX('Eingabe Spielernamen'!$G:$G,MATCH(N33,'Eingabe Spielernamen'!$B:$B,0))) ->  | W33: =IF(ISBLANK(S33)," ",S33+(T33-U33)*50+IF(COUNT(S33:S36)=3,(U34+U35+U36)*40,(U34+U35+U36)*30)) ->  | X33: 0 | Y33: =IF(COUNTIF(Z$13:Z33,Z33)>1,"X","") -> X | Z33: =IF(ISBLANK(AD33)," ",INDEX(CN:CN,MATCH(AD33,CM:CM,0))) ->  | AA33: =IF(ISBLANK(AD33)," ",INDEX('Eingabe Spielernamen'!$F:$F,MATCH(Z33,'Eingabe Spielernamen'!$B:$B,0))&", "&INDEX('Eingabe Spielernamen'!$G:$G,MATCH(Z33,'Eingabe Spielernamen'!$B:$B,0))) ->  | AI33: =IF(ISBLANK(AE33)," ",AE33+(AF33-AG33)*50+IF(COUNT(AE33:AE36)=3,(AG34+AG35+AG36)*40,(AG34+AG35+AG36)*30)) ->  | AJ33: 0 | AK33: =IF(COUNTIF(AL$13:AL33,AL33)>1,"X","") -> X | AL33: =IF(ISBLANK(AP33)," ",INDEX(CS:CS,MATCH(AP33,CR:CR,0))) ->  | AM33: =IF(ISBLANK(AP33)," ",INDEX('Eingabe Spielernamen'!$F:$F,MATCH(AL33,'Eingabe Spielernamen'!$B:$B,0))&", "&INDEX('Eingabe Spielernamen'!$G:$G,MATCH(AL33,'Eingabe Spielernamen'!$B:$B,0))) ->  | AU33: =IF(ISBLANK(AQ33)," ",AQ33+(AR33-AS33)*50+IF(COUNT(AQ33:AQ36)=3,(AS34+AS35+AS36)*40,(AS34+AS35+AS36)*30)) ->  | AV33: 0 | AW33: =IF(COUNTIF(AX$13:AX33,AX33)>1,"X","") -> X | AX33: =IF(ISBLANK(BB33)," ",INDEX(CX:CX,MATCH(BB33,CW:CW,0))) ->  | AY33: =IF(ISBLANK(BB33)," ",INDEX('Eingabe Spielernamen'!$F:$F,MATCH(AX33,'Eingabe Spielernamen'!$B:$B,0))&", "&INDEX('Eingabe Spielernamen'!$G:$G,MATCH(AX33,'Eingabe Spielernamen'!$B:$B,0))) ->  | BG33: =IF(ISBLANK(BC33)," ",BC33+(BD33-BE33)*50+IF(COUNT(BC33:BC36)=3,(BE34+BE35+BE36)*40,(BE34+BE35+BE36)*30)) ->  | BH33: 0 | BI33: =IF(COUNTIF(BJ$13:BJ33,BJ33)>1,"X","") -> X | BJ33: =IF(ISBLANK(BN33)," ",INDEX(DC:DC,MATCH(BN33,DB:DB,0))) ->  | BK33: =IF(ISBLANK(BN33)," ",INDEX('Eingabe Spielernamen'!$F:$F,MATCH(BJ33,'Eingabe Spielernamen'!$B:$B,0))&", "&INDEX('Eingabe Spielernamen'!$G:$G,MATCH(BJ33,'Eingabe Spielernamen'!$B:$B,0))) ->  | BS33: =IF(ISBLANK(BO33)," ",BO33+(BP33-BQ33)*50+IF(COUNT(BO33:BO36)=3,(BQ34+BQ35+BQ36)*40,(BQ34+BQ35+BQ36)*30)) ->  | BT33: 0 | BW33: =SUM(L33:L36) -> 0 | BX33: =SUM(X33:X36) -> 0 | BY33: =SUM(AJ33:AJ36) -> 0 | BZ33: =SUM(AV33:AV36) -> 0 | CA33: =SUM(BH33:BH36) -> 0 | CB33: =SUM(BT33:BT36) -> 0
A34: =IF(COUNTIF(B$13:B34,B34)>1,"X","") -> X | B34: =IF(ISBLANK(F33)," ",INDEX(CE:CE,MATCH(F33,CC:CC,0))) ->  | C34: =IF(ISBLANK(F34)," ",INDEX('Eingabe Spielernamen'!$F:$F,MATCH(B34,'Eingabe Spielernamen'!$B:$B,0))&", "&INDEX('Eingabe Spielernamen'!$G:$G,MATCH(B34,'Eingabe Spielernamen'!$B:$B,0))) ->  | F34: =F33 -> 0 | K34: =IF(ISBLANK(G34)," ",G34+(H34-I34)*50+IF(COUNT(G33:G36)=3,(I33+I35+I36)*40,(I33+I35+I36)*30)) ->  | L34: 0 | M34: =IF(COUNTIF(N$13:N34,N34)>1,"X","") -> X | N34: =IF(ISBLANK(R33)," ",INDEX(CJ:CJ,MATCH(R33,CH:CH,0))) ->  | O34: =IF(ISBLANK(R34)," ",INDEX('Eingabe Spielernamen'!$F:$F,MATCH(N34,'Eingabe Spielernamen'!$B:$B,0))&", "&INDEX('Eingabe Spielernamen'!$G:$G,MATCH(N34,'Eingabe Spielernamen'!$B:$B,0))) ->  | R34: =R33 -> 0 | W34: =IF(ISBLANK(S34)," ",S34+(T34-U34)*50+IF(COUNT(S33:S36)=3,(U33+U35+U36)*40,(U33+U35+U36)*30)) ->  | X34: 0 | Y34: =IF(COUNTIF(Z$13:Z34,Z34)>1,"X","") -> X | Z34: =IF(ISBLANK(AD33)," ",INDEX(CO:CO,MATCH(AD33,CM:CM,0))) ->  | AA34: =IF(ISBLANK(AD34)," ",INDEX('Eingabe Spielernamen'!$F:$F,MATCH(Z34,'Eingabe Spielernamen'!$B:$B,0))&", "&INDEX('Eingabe Spielernamen'!$G:$G,MATCH(Z34,'Eingabe Spielernamen'!$B:$B,0))) ->  | AD34: =AD33 -> 0 | AI34: =IF(ISBLANK(AE34)," ",AE34+(AF34-AG34)*50+IF(COUNT(AE33:AE36)=3,(AG33+AG35+AG36)*40,(AG33+AG35+AG36)*30)) ->  | AJ34: 0 | AK34: =IF(COUNTIF(AL$13:AL34,AL34)>1,"X","") -> X | AL34: =IF(ISBLANK(AP33)," ",INDEX(CT:CT,MATCH(AP33,CR:CR,0))) ->  | AM34: =IF(ISBLANK(AP34)," ",INDEX('Eingabe Spielernamen'!$F:$F,MATCH(AL34,'Eingabe Spielernamen'!$B:$B,0))&", "&INDEX('Eingabe Spielernamen'!$G:$G,MATCH(AL34,'Eingabe Spielernamen'!$B:$B,0))) ->  | AP34: =AP33 -> 0 | AU34: =IF(ISBLANK(AQ34)," ",AQ34+(AR34-AS34)*50+IF(COUNT(AQ33:AQ36)=3,(AS33+AS35+AS36)*40,(AS33+AS35+AS36)*30)) ->  | AV34: 0 | AW34: =IF(COUNTIF(AX$13:AX34,AX34)>1,"X","") -> X | AX34: =IF(ISBLANK(BB33)," ",INDEX(CY:CY,MATCH(BB33,CW:CW,0))) ->  | AY34: =IF(ISBLANK(BB34)," ",INDEX('Eingabe Spielernamen'!$F:$F,MATCH(AX34,'Eingabe Spielernamen'!$B:$B,0))&", "&INDEX('Eingabe Spielernamen'!$G:$G,MATCH(AX34,'Eingabe Spielernamen'!$B:$B,0))) ->  | BB34: =BB33 -> 0 | BG34: =IF(ISBLANK(BC34)," ",BC34+(BD34-BE34)*50+IF(COUNT(BC33:BC36)=3,(BE33+BE35+BE36)*40,(BE33+BE35+BE36)*30)) ->  | BH34: 0 | BI34: =IF(COUNTIF(BJ$13:BJ34,BJ34)>1,"X","") -> X | BJ34: =IF(ISBLANK(BN33)," ",INDEX(DD:DD,MATCH(BN33,DB:DB,0))) ->  | BK34: =IF(ISBLANK(BN34)," ",INDEX('Eingabe Spielernamen'!$F:$F,MATCH(BJ34,'Eingabe Spielernamen'!$B:$B,0))&", "&INDEX('Eingabe Spielernamen'!$G:$G,MATCH(BJ34,'Eingabe Spielernamen'!$B:$B,0))) ->  | BN34: =BN33 -> 0 | BS34: =IF(ISBLANK(BO34)," ",BO34+(BP34-BQ34)*50+IF(COUNT(BO33:BO36)=3,(BQ33+BQ35+BQ36)*40,(BQ33+BQ35+BQ36)*30)) ->  | BT34: 0
A35: =IF(COUNTIF(B$13:B35,B35)>1,"X","") -> X | B35: =IF(ISBLANK(F33)," ",INDEX(CF:CF,MATCH(F33,CC:CC,0))) ->  | C35: =IF(ISBLANK(F35)," ",INDEX('Eingabe Spielernamen'!$F:$F,MATCH(B35,'Eingabe Spielernamen'!$B:$B,0))&", "&INDEX('Eingabe Spielernamen'!$G:$G,MATCH(B35,'Eingabe Spielernamen'!$B:$B,0))) ->  | F35: =F33 -> 0 | K35: =IF(ISBLANK(G35)," ",G35+(H35-I35)*50+IF(COUNT(G33:G36)=3,(I33+I34+I36)*40,(I33+I34+I36)*30)) ->  | L35: 0 | M35: =IF(COUNTIF(N$13:N35,N35)>1,"X","") -> X | N35: =IF(ISBLANK(R33)," ",INDEX(CK:CK,MATCH(R33,CH:CH,0))) ->  | O35: =IF(ISBLANK(R35)," ",INDEX('Eingabe Spielernamen'!$F:$F,MATCH(N35,'Eingabe Spielernamen'!$B:$B,0))&", "&INDEX('Eingabe Spielernamen'!$G:$G,MATCH(N35,'Eingabe Spielernamen'!$B:$B,0))) ->  | R35: =R33 -> 0 | W35: =IF(ISBLANK(S35)," ",S35+(T35-U35)*50+IF(COUNT(S33:S36)=3,(U33+U34+U36)*40,(U33+U34+U36)*30)) ->  | X35: 0 | Y35: =IF(COUNTIF(Z$13:Z35,Z35)>1,"X","") -> X | Z35: =IF(ISBLANK(AD33)," ",INDEX(CP:CP,MATCH(AD33,CM:CM,0))) ->  | AA35: =IF(ISBLANK(AD35)," ",INDEX('Eingabe Spielernamen'!$F:$F,MATCH(Z35,'Eingabe Spielernamen'!$B:$B,0))&", "&INDEX('Eingabe Spielernamen'!$G:$G,MATCH(Z35,'Eingabe Spielernamen'!$B:$B,0))) ->  | AD35: =AD33 -> 0 | AI35: =IF(ISBLANK(AE35)," ",AE35+(AF35-AG35)*50+IF(COUNT(AE33:AE36)=3,(AG33+AG34+AG36)*40,(AG33+AG34+AG36)*30)) ->  | AJ35: 0 | AK35: =IF(COUNTIF(AL$13:AL35,AL35)>1,"X","") -> X | AL35: =IF(ISBLANK(AP33)," ",INDEX(CU:CU,MATCH(AP33,CR:CR,0))) ->  | AM35: =IF(ISBLANK(AP35)," ",INDEX('Eingabe Spielernamen'!$F:$F,MATCH(AL35,'Eingabe Spielernamen'!$B:$B,0))&", "&INDEX('Eingabe Spielernamen'!$G:$G,MATCH(AL35,'Eingabe Spielernamen'!$B:$B,0))) ->  | AP35: =AP33 -> 0 | AU35: =IF(ISBLANK(AQ35)," ",AQ35+(AR35-AS35)*50+IF(COUNT(AQ33:AQ36)=3,(AS33+AS34+AS36)*40,(AS33+AS34+AS36)*30)) ->  | AV35: 0 | AW35: =IF(COUNTIF(AX$13:AX35,AX35)>1,"X","") -> X | AX35: =IF(ISBLANK(BB33)," ",INDEX(CZ:CZ,MATCH(BB33,CW:CW,0))) ->  | AY35: =IF(ISBLANK(BB35)," ",INDEX('Eingabe Spielernamen'!$F:$F,MATCH(AX35,'Eingabe Spielernamen'!$B:$B,0))&", "&INDEX('Eingabe Spielernamen'!$G:$G,MATCH(AX35,'Eingabe Spielernamen'!$B:$B,0))) ->  | BB35: =BB33 -> 0 | BG35: =IF(ISBLANK(BC35)," ",BC35+(BD35-BE35)*50+IF(COUNT(BC33:BC36)=3,(BE33+BE34+BE36)*40,(BE33+BE34+BE36)*30)) ->  | BH35: 0 | BI35: =IF(COUNTIF(BJ$13:BJ35,BJ35)>1,"X","") -> X | BJ35: =IF(ISBLANK(BN33)," ",INDEX(DE:DE,MATCH(BN33,DB:DB,0))) ->  | BK35: =IF(ISBLANK(BN35)," ",INDEX('Eingabe Spielernamen'!$F:$F,MATCH(BJ35,'Eingabe Spielernamen'!$B:$B,0))&", "&INDEX('Eingabe Spielernamen'!$G:$G,MATCH(BJ35,'Eingabe Spielernamen'!$B:$B,0))) ->  | BN35: =BN33 -> 0 | BS35: =IF(ISBLANK(BO35)," ",BO35+(BP35-BQ35)*50+IF(COUNT(BO33:BO36)=3,(BQ33+BQ34+BQ36)*40,(BQ33+BQ34+BQ36)*30)) ->  | BT35: 0
A36: =IF(COUNTIF(B$13:B36,B36)>1,"X","") -> X | B36: =IF(ISBLANK(F33)," ",INDEX(CG:CG,MATCH(F33,CC:CC,0))) ->  | C36: =IF(ISBLANK(F36)," ",INDEX('Eingabe Spielernamen'!$F:$F,MATCH(B36,'Eingabe Spielernamen'!$B:$B,0))&", "&INDEX('Eingabe Spielernamen'!$G:$G,MATCH(B36,'Eingabe Spielernamen'!$B:$B,0))) ->  | F36: =F33 -> 0 | K36: =IF(ISBLANK(G36)," ",G36+(H36-I36)*50+IF(COUNT(G33:G36)=3,(I33+I34+I35)*40,(I33+I34+I35)*30)) ->  | L36: 0 | M36: =IF(COUNTIF(N$13:N36,N36)>1,"X","") -> X | N36: =IF(ISBLANK(R33)," ",INDEX(CL:CL,MATCH(R33,CH:CH,0))) ->  | O36: =IF(ISBLANK(R36)," ",INDEX('Eingabe Spielernamen'!$F:$F,MATCH(N36,'Eingabe Spielernamen'!$B:$B,0))&", "&INDEX('Eingabe Spielernamen'!$G:$G,MATCH(N36,'Eingabe Spielernamen'!$B:$B,0))) ->  | R36: =R33 -> 0 | W36: =IF(ISBLANK(S36)," ",S36+(T36-U36)*50+IF(COUNT(S33:S36)=3,(U33+U34+U35)*40,(U33+U34+U35)*30)) ->  | X36: 0 | Y36: =IF(COUNTIF(Z$13:Z36,Z36)>1,"X","") -> X | Z36: =IF(ISBLANK(AD33)," ",INDEX(CQ:CQ,MATCH(AD33,CM:CM,0))) ->  | AA36: =IF(ISBLANK(AD36)," ",INDEX('Eingabe Spielernamen'!$F:$F,MATCH(Z36,'Eingabe Spielernamen'!$B:$B,0))&", "&INDEX('Eingabe Spielernamen'!$G:$G,MATCH(Z36,'Eingabe Spielernamen'!$B:$B,0))) ->  | AD36: =AD33 -> 0 | AI36: =IF(ISBLANK(AE36)," ",AE36+(AF36-AG36)*50+IF(COUNT(AE33:AE36)=3,(AG33+AG34+AG35)*40,(AG33+AG34+AG35)*30)) ->  | AJ36: 0 | AK36: =IF(COUNTIF(AL$13:AL36,AL36)>1,"X","") -> X | AL36: =IF(ISBLANK(AP33)," ",INDEX(CV:CV,MATCH(AP33,CR:CR,0))) ->  | AM36: =IF(ISBLANK(AP36)," ",INDEX('Eingabe Spielernamen'!$F:$F,MATCH(AL36,'Eingabe Spielernamen'!$B:$B,0))&", "&INDEX('Eingabe Spielernamen'!$G:$G,MATCH(AL36,'Eingabe Spielernamen'!$B:$B,0))) ->  | AP36: =AP33 -> 0 | AU36: =IF(ISBLANK(AQ36)," ",AQ36+(AR36-AS36)*50+IF(COUNT(AQ33:AQ36)=3,(AS33+AS34+AS35)*40,(AS33+AS34+AS35)*30)) ->  | AV36: 0 | AW36: =IF(COUNTIF(AX$13:AX36,AX36)>1,"X","") -> X | AX36: =IF(ISBLANK(BB33)," ",INDEX(DA:DA,MATCH(BB33,CW:CW,0))) ->  | AY36: =IF(ISBLANK(BB36)," ",INDEX('Eingabe Spielernamen'!$F:$F,MATCH(AX36,'Eingabe Spielernamen'!$B:$B,0))&", "&INDEX('Eingabe Spielernamen'!$G:$G,MATCH(AX36,'Eingabe Spielernamen'!$B:$B,0))) ->  | BB36: =BB33 -> 0 | BG36: =IF(ISBLANK(BC36)," ",BC36+(BD36-BE36)*50+IF(COUNT(BC33:BC36)=3,(BE33+BE34+BE35)*40,(BE33+BE34+BE35)*30)) ->  | BH36: 0 | BI36: =IF(COUNTIF(BJ$13:BJ36,BJ36)>1,"X","") -> X | BJ36: =IF(ISBLANK(BN33)," ",INDEX(DF:DF,MATCH(BN33,DB:DB,0))) ->  | BK36: =IF(ISBLANK(BN36)," ",INDEX('Eingabe Spielernamen'!$F:$F,MATCH(BJ36,'Eingabe Spielernamen'!$B:$B,0))&", "&INDEX('Eingabe Spielernamen'!$G:$G,MATCH(BJ36,'Eingabe Spielernamen'!$B:$B,0))) ->  | BN36: =BN33 -> 0 | BS36: =IF(ISBLANK(BO36)," ",BO36+(BP36-BQ36)*50+IF(COUNT(BO33:BO36)=3,(BQ33+BQ34+BQ35)*40,(BQ33+BQ34+BQ35)*30)) ->  | BT36: 0
A37: =IF(COUNTIF(B$13:B37,B37)>1,"X","") -> X | B37: =IF(ISBLANK(F37)," ",INDEX(CD:CD,MATCH(F37,CC:CC,0))) ->  | C37: =IF(ISBLANK(F37)," ",INDEX('Eingabe Spielernamen'!$F:$F,MATCH(B37,'Eingabe Spielernamen'!$B:$B,0))&", "&INDEX('Eingabe Spielernamen'!$G:$G,MATCH(B37,'Eingabe Spielernamen'!$B:$B,0))) ->  | K37: =IF(ISBLANK(G37)," ",G37+(H37-I37)*50+IF(COUNT(G37:G40)=3,(I38+I39+I40)*40,(I38+I39+I40)*30)) ->  | L37: 0 | M37: =IF(COUNTIF(N$13:N37,N37)>1,"X","") -> X | N37: =IF(ISBLANK(R37)," ",INDEX(CI:CI,MATCH(R37,CH:CH,0))) ->  | O37: =IF(ISBLANK(R37)," ",INDEX('Eingabe Spielernamen'!$F:$F,MATCH(N37,'Eingabe Spielernamen'!$B:$B,0))&", "&INDEX('Eingabe Spielernamen'!$G:$G,MATCH(N37,'Eingabe Spielernamen'!$B:$B,0))) ->  | W37: =IF(ISBLANK(S37)," ",S37+(T37-U37)*50+IF(COUNT(S37:S40)=3,(U38+U39+U40)*40,(U38+U39+U40)*30)) ->  | X37: 0 | Y37: =IF(COUNTIF(Z$13:Z37,Z37)>1,"X","") -> X | Z37: =IF(ISBLANK(AD37)," ",INDEX(CN:CN,MATCH(AD37,CM:CM,0))) ->  | AA37: =IF(ISBLANK(AD37)," ",INDEX('Eingabe Spielernamen'!$F:$F,MATCH(Z37,'Eingabe Spielernamen'!$B:$B,0))&", "&INDEX('Eingabe Spielernamen'!$G:$G,MATCH(Z37,'Eingabe Spielernamen'!$B:$B,0))) ->  | AI37: =IF(ISBLANK(AE37)," ",AE37+(AF37-AG37)*50+IF(COUNT(AE37:AE40)=3,(AG38+AG39+AG40)*40,(AG38+AG39+AG40)*30)) ->  | AJ37: 0 | AK37: =IF(COUNTIF(AL$13:AL37,AL37)>1,"X","") -> X | AL37: =IF(ISBLANK(AP37)," ",INDEX(CS:CS,MATCH(AP37,CR:CR,0))) ->  | AM37: =IF(ISBLANK(AP37)," ",INDEX('Eingabe Spielernamen'!$F:$F,MATCH(AL37,'Eingabe Spielernamen'!$B:$B,0))&", "&INDEX('Eingabe Spielernamen'!$G:$G,MATCH(AL37,'Eingabe Spielernamen'!$B:$B,0))) ->  | AU37: =IF(ISBLANK(AQ37)," ",AQ37+(AR37-AS37)*50+IF(COUNT(AQ37:AQ40)=3,(AS38+AS39+AS40)*40,(AS38+AS39+AS40)*30)) ->  | AV37: 0 | AW37: =IF(COUNTIF(AX$13:AX37,AX37)>1,"X","") -> X | AX37: =IF(ISBLANK(BB37)," ",INDEX(CX:CX,MATCH(BB37,CW:CW,0))) ->  | AY37: =IF(ISBLANK(BB37)," ",INDEX('Eingabe Spielernamen'!$F:$F,MATCH(AX37,'Eingabe Spielernamen'!$B:$B,0))&", "&INDEX('Eingabe Spielernamen'!$G:$G,MATCH(AX37,'Eingabe Spielernamen'!$B:$B,0))) ->  | BG37: =IF(ISBLANK(BC37)," ",BC37+(BD37-BE37)*50+IF(COUNT(BC37:BC40)=3,(BE38+BE39+BE40)*40,(BE38+BE39+BE40)*30)) ->  | BH37: 0 | BI37: =IF(COUNTIF(BJ$13:BJ37,BJ37)>1,"X","") -> X | BJ37: =IF(ISBLANK(BN37)," ",INDEX(DC:DC,MATCH(BN37,DB:DB,0))) ->  | BK37: =IF(ISBLANK(BN37)," ",INDEX('Eingabe Spielernamen'!$F:$F,MATCH(BJ37,'Eingabe Spielernamen'!$B:$B,0))&", "&INDEX('Eingabe Spielernamen'!$G:$G,MATCH(BJ37,'Eingabe Spielernamen'!$B:$B,0))) ->  | BS37: =IF(ISBLANK(BO37)," ",BO37+(BP37-BQ37)*50+IF(COUNT(BO37:BO40)=3,(BQ38+BQ39+BQ40)*40,(BQ38+BQ39+BQ40)*30)) ->  | BT37: 0 | BW37: =SUM(L37:L40) -> 0 | BX37: =SUM(X37:X40) -> 0 | BY37: =SUM(AJ37:AJ40) -> 0 | BZ37: =SUM(AV37:AV40) -> 0 | CA37: =SUM(BH37:BH40) -> 0 | CB37: =SUM(BT37:BT40) -> 0
A38: =IF(COUNTIF(B$13:B38,B38)>1,"X","") -> X | B38: =IF(ISBLANK(F37)," ",INDEX(CE:CE,MATCH(F37,CC:CC,0))) ->  | C38: =IF(ISBLANK(F38)," ",INDEX('Eingabe Spielernamen'!$F:$F,MATCH(B38,'Eingabe Spielernamen'!$B:$B,0))&", "&INDEX('Eingabe Spielernamen'!$G:$G,MATCH(B38,'Eingabe Spielernamen'!$B:$B,0))) ->  | F38: =F37 -> 0 | K38: =IF(ISBLANK(G38)," ",G38+(H38-I38)*50+IF(COUNT(G37:G40)=3,(I37+I39+I40)*40,(I37+I39+I40)*30)) ->  | L38: 0 | M38: =IF(COUNTIF(N$13:N38,N38)>1,"X","") -> X | N38: =IF(ISBLANK(R37)," ",INDEX(CJ:CJ,MATCH(R37,CH:CH,0))) ->  | O38: =IF(ISBLANK(R38)," ",INDEX('Eingabe Spielernamen'!$F:$F,MATCH(N38,'Eingabe Spielernamen'!$B:$B,0))&", "&INDEX('Eingabe Spielernamen'!$G:$G,MATCH(N38,'Eingabe Spielernamen'!$B:$B,0))) ->  | R38: =R37 -> 0 | W38: =IF(ISBLANK(S38)," ",S38+(T38-U38)*50+IF(COUNT(S37:S40)=3,(U37+U39+U40)*40,(U37+U39+U40)*30)) ->  | X38: 0 | Y38: =IF(COUNTIF(Z$13:Z38,Z38)>1,"X","") -> X | Z38: =IF(ISBLANK(AD37)," ",INDEX(CO:CO,MATCH(AD37,CM:CM,0))) ->  | AA38: =IF(ISBLANK(AD38)," ",INDEX('Eingabe Spielernamen'!$F:$F,MATCH(Z38,'Eingabe Spielernamen'!$B:$B,0))&", "&INDEX('Eingabe Spielernamen'!$G:$G,MATCH(Z38,'Eingabe Spielernamen'!$B:$B,0))) ->  | AD38: =AD37 -> 0 | AI38: =IF(ISBLANK(AE38)," ",AE38+(AF38-AG38)*50+IF(COUNT(AE37:AE40)=3,(AG37+AG39+AG40)*40,(AG37+AG39+AG40)*30)) ->  | AJ38: 0 | AK38: =IF(COUNTIF(AL$13:AL38,AL38)>1,"X","") -> X | AL38: =IF(ISBLANK(AP37)," ",INDEX(CT:CT,MATCH(AP37,CR:CR,0))) ->  | AM38: =IF(ISBLANK(AP38)," ",INDEX('Eingabe Spielernamen'!$F:$F,MATCH(AL38,'Eingabe Spielernamen'!$B:$B,0))&", "&INDEX('Eingabe Spielernamen'!$G:$G,MATCH(AL38,'Eingabe Spielernamen'!$B:$B,0))) ->  | AP38: =AP37 -> 0 | AU38: =IF(ISBLANK(AQ38)," ",AQ38+(AR38-AS38)*50+IF(COUNT(AQ37:AQ40)=3,(AS37+AS39+AS40)*40,(AS37+AS39+AS40)*30)) ->  | AV38: 0 | AW38: =IF(COUNTIF(AX$13:AX38,AX38)>1,"X","") -> X | AX38: =IF(ISBLANK(BB37)," ",INDEX(CY:CY,MATCH(BB37,CW:CW,0))) ->  | AY38: =IF(ISBLANK(BB38)," ",INDEX('Eingabe Spielernamen'!$F:$F,MATCH(AX38,'Eingabe Spielernamen'!$B:$B,0))&", "&INDEX('Eingabe Spielernamen'!$G:$G,MATCH(AX38,'Eingabe Spielernamen'!$B:$B,0))) ->  | BB38: =BB37 -> 0 | BG38: =IF(ISBLANK(BC38)," ",BC38+(BD38-BE38)*50+IF(COUNT(BC37:BC40)=3,(BE37+BE39+BE40)*40,(BE37+BE39+BE40)*30)) ->  | BH38: 0 | BI38: =IF(COUNTIF(BJ$13:BJ38,BJ38)>1,"X","") -> X | BJ38: =IF(ISBLANK(BN37)," ",INDEX(DD:DD,MATCH(BN37,DB:DB,0))) ->  | BK38: =IF(ISBLANK(BN38)," ",INDEX('Eingabe Spielernamen'!$F:$F,MATCH(BJ38,'Eingabe Spielernamen'!$B:$B,0))&", "&INDEX('Eingabe Spielernamen'!$G:$G,MATCH(BJ38,'Eingabe Spielernamen'!$B:$B,0))) ->  | BN38: =BN37 -> 0 | BS38: =IF(ISBLANK(BO38)," ",BO38+(BP38-BQ38)*50+IF(COUNT(BO37:BO40)=3,(BQ37+BQ39+BQ40)*40,(BQ37+BQ39+BQ40)*30)) ->  | BT38: 0
A39: =IF(COUNTIF(B$13:B39,B39)>1,"X","") -> X | B39: =IF(ISBLANK(F37)," ",INDEX(CF:CF,MATCH(F37,CC:CC,0))) ->  | C39: =IF(ISBLANK(F39)," ",INDEX('Eingabe Spielernamen'!$F:$F,MATCH(B39,'Eingabe Spielernamen'!$B:$B,0))&", "&INDEX('Eingabe Spielernamen'!$G:$G,MATCH(B39,'Eingabe Spielernamen'!$B:$B,0))) ->  | F39: =F37 -> 0 | K39: =IF(ISBLANK(G39)," ",G39+(H39-I39)*50+IF(COUNT(G37:G40)=3,(I37+I38+I40)*40,(I37+I38+I40)*30)) ->  | L39: 0 | M39: =IF(COUNTIF(N$13:N39,N39)>1,"X","") -> X | N39: =IF(ISBLANK(R37)," ",INDEX(CK:CK,MATCH(R37,CH:CH,0))) ->  | O39: =IF(ISBLANK(R39)," ",INDEX('Eingabe Spielernamen'!$F:$F,MATCH(N39,'Eingabe Spielernamen'!$B:$B,0))&", "&INDEX('Eingabe Spielernamen'!$G:$G,MATCH(N39,'Eingabe Spielernamen'!$B:$B,0))) ->  | R39: =R37 -> 0 | W39: =IF(ISBLANK(S39)," ",S39+(T39-U39)*50+IF(COUNT(S37:S40)=3,(U37+U38+U40)*40,(U37+U38+U40)*30)) ->  | X39: 0 | Y39: =IF(COUNTIF(Z$13:Z39,Z39)>1,"X","") -> X | Z39: =IF(ISBLANK(AD37)," ",INDEX(CP:CP,MATCH(AD37,CM:CM,0))) ->  | AA39: =IF(ISBLANK(AD39)," ",INDEX('Eingabe Spielernamen'!$F:$F,MATCH(Z39,'Eingabe Spielernamen'!$B:$B,0))&", "&INDEX('Eingabe Spielernamen'!$G:$G,MATCH(Z39,'Eingabe Spielernamen'!$B:$B,0))) ->  | AD39: =AD37 -> 0 | AI39: =IF(ISBLANK(AE39)," ",AE39+(AF39-AG39)*50+IF(COUNT(AE37:AE40)=3,(AG37+AG38+AG40)*40,(AG37+AG38+AG40)*30)) ->  | AJ39: 0 | AK39: =IF(COUNTIF(AL$13:AL39,AL39)>1,"X","") -> X | AL39: =IF(ISBLANK(AP37)," ",INDEX(CU:CU,MATCH(AP37,CR:CR,0))) ->  | AM39: =IF(ISBLANK(AP39)," ",INDEX('Eingabe Spielernamen'!$F:$F,MATCH(AL39,'Eingabe Spielernamen'!$B:$B,0))&", "&INDEX('Eingabe Spielernamen'!$G:$G,MATCH(AL39,'Eingabe Spielernamen'!$B:$B,0))) ->  | AP39: =AP37 -> 0 | AU39: =IF(ISBLANK(AQ39)," ",AQ39+(AR39-AS39)*50+IF(COUNT(AQ37:AQ40)=3,(AS37+AS38+AS40)*40,(AS37+AS38+AS40)*30)) ->  | AV39: 0 | AW39: =IF(COUNTIF(AX$13:AX39,AX39)>1,"X","") -> X | AX39: =IF(ISBLANK(BB37)," ",INDEX(CZ:CZ,MATCH(BB37,CW:CW,0))) ->  | AY39: =IF(ISBLANK(BB39)," ",INDEX('Eingabe Spielernamen'!$F:$F,MATCH(AX39,'Eingabe Spielernamen'!$B:$B,0))&", "&INDEX('Eingabe Spielernamen'!$G:$G,MATCH(AX39,'Eingabe Spielernamen'!$B:$B,0))) ->  | BB39: =BB37 -> 0 | BG39: =IF(ISBLANK(BC39)," ",BC39+(BD39-BE39)*50+IF(COUNT(BC37:BC40)=3,(BE37+BE38+BE40)*40,(BE37+BE38+BE40)*30)) ->  | BH39: 0 | BI39: =IF(COUNTIF(BJ$13:BJ39,BJ39)>1,"X","") -> X | BJ39: =IF(ISBLANK(BN37)," ",INDEX(DE:DE,MATCH(BN37,DB:DB,0))) ->  | BK39: =IF(ISBLANK(BN39)," ",INDEX('Eingabe Spielernamen'!$F:$F,MATCH(BJ39,'Eingabe Spielernamen'!$B:$B,0))&", "&INDEX('Eingabe Spielernamen'!$G:$G,MATCH(BJ39,'Eingabe Spielernamen'!$B:$B,0))) ->  | BN39: =BN37 -> 0 | BS39: =IF(ISBLANK(BO39)," ",BO39+(BP39-BQ39)*50+IF(COUNT(BO37:BO40)=3,(BQ37+BQ38+BQ40)*40,(BQ37+BQ38+BQ40)*30)) ->  | BT39: 0
A40: =IF(COUNTIF(B$13:B40,B40)>1,"X","") -> X | B40: =IF(ISBLANK(F37)," ",INDEX(CG:CG,MATCH(F37,CC:CC,0))) ->  | C40: =IF(ISBLANK(F40)," ",INDEX('Eingabe Spielernamen'!$F:$F,MATCH(B40,'Eingabe Spielernamen'!$B:$B,0))&", "&INDEX('Eingabe Spielernamen'!$G:$G,MATCH(B40,'Eingabe Spielernamen'!$B:$B,0))) ->  | F40: =F37 -> 0 | K40: =IF(ISBLANK(G40)," ",G40+(H40-I40)*50+IF(COUNT(G37:G40)=3,(I37+I38+I39)*40,(I37+I38+I39)*30)) ->  | L40: 0 | M40: =IF(COUNTIF(N$13:N40,N40)>1,"X","") -> X | N40: =IF(ISBLANK(R37)," ",INDEX(CL:CL,MATCH(R37,CH:CH,0))) ->  | O40: =IF(ISBLANK(R40)," ",INDEX('Eingabe Spielernamen'!$F:$F,MATCH(N40,'Eingabe Spielernamen'!$B:$B,0))&", "&INDEX('Eingabe Spielernamen'!$G:$G,MATCH(N40,'Eingabe Spielernamen'!$B:$B,0))) ->  | R40: =R37 -> 0 | W40: =IF(ISBLANK(S40)," ",S40+(T40-U40)*50+IF(COUNT(S37:S40)=3,(U37+U38+U39)*40,(U37+U38+U39)*30)) ->  | X40: 0 | Y40: =IF(COUNTIF(Z$13:Z40,Z40)>1,"X","") -> X | Z40: =IF(ISBLANK(AD37)," ",INDEX(CQ:CQ,MATCH(AD37,CM:CM,0))) ->  | AA40: =IF(ISBLANK(AD40)," ",INDEX('Eingabe Spielernamen'!$F:$F,MATCH(Z40,'Eingabe Spielernamen'!$B:$B,0))&", "&INDEX('Eingabe Spielernamen'!$G:$G,MATCH(Z40,'Eingabe Spielernamen'!$B:$B,0))) ->  | AD40: =AD37 -> 0 | AI40: =IF(ISBLANK(AE40)," ",AE40+(AF40-AG40)*50+IF(COUNT(AE37:AE40)=3,(AG37+AG38+AG39)*40,(AG37+AG38+AG39)*30)) ->  | AJ40: 0 | AK40: =IF(COUNTIF(AL$13:AL40,AL40)>1,"X","") -> X | AL40: =IF(ISBLANK(AP37)," ",INDEX(CV:CV,MATCH(AP37,CR:CR,0))) ->  | AM40: =IF(ISBLANK(AP40)," ",INDEX('Eingabe Spielernamen'!$F:$F,MATCH(AL40,'Eingabe Spielernamen'!$B:$B,0))&", "&INDEX('Eingabe Spielernamen'!$G:$G,MATCH(AL40,'Eingabe Spielernamen'!$B:$B,0))) ->  | AP40: =AP37 -> 0 | AU40: =IF(ISBLANK(AQ40)," ",AQ40+(AR40-AS40)*50+IF(COUNT(AQ37:AQ40)=3,(AS37+AS38+AS39)*40,(AS37+AS38+AS39)*30)) ->  | AV40: 0 | AW40: =IF(COUNTIF(AX$13:AX40,AX40)>1,"X","") -> X | AX40: =IF(ISBLANK(BB37)," ",INDEX(DA:DA,MATCH(BB37,CW:CW,0))) ->  | AY40: =IF(ISBLANK(BB40)," ",INDEX('Eingabe Spielernamen'!$F:$F,MATCH(AX40,'Eingabe Spielernamen'!$B:$B,0))&", "&INDEX('Eingabe Spielernamen'!$G:$G,MATCH(AX40,'Eingabe Spielernamen'!$B:$B,0))) ->  | BB40: =BB37 -> 0 | BG40: =IF(ISBLANK(BC40)," ",BC40+(BD40-BE40)*50+IF(COUNT(BC37:BC40)=3,(BE37+BE38+BE39)*40,(BE37+BE38+BE39)*30)) ->  | BH40: 0 | BI40: =IF(COUNTIF(BJ$13:BJ40,BJ40)>1,"X","") -> X | BJ40: =IF(ISBLANK(BN37)," ",INDEX(DF:DF,MATCH(BN37,DB:DB,0))) ->  | BK40: =IF(ISBLANK(BN40)," ",INDEX('Eingabe Spielernamen'!$F:$F,MATCH(BJ40,'Eingabe Spielernamen'!$B:$B,0))&", "&INDEX('Eingabe Spielernamen'!$G:$G,MATCH(BJ40,'Eingabe Spielernamen'!$B:$B,0))) ->  | BN40: =BN37 -> 0 | BS40: =IF(ISBLANK(BO40)," ",BO40+(BP40-BQ40)*50+IF(COUNT(BO37:BO40)=3,(BQ37+BQ38+BQ39)*40,(BQ37+BQ38+BQ39)*30)) ->  | BT40: 0
A41: =IF(COUNTIF(B$13:B41,B41)>1,"X","") -> X | B41: =IF(ISBLANK(F41)," ",INDEX(CD:CD,MATCH(F41,CC:CC,0))) ->  | C41: =IF(ISBLANK(F41)," ",INDEX('Eingabe Spielernamen'!$F:$F,MATCH(B41,'Eingabe Spielernamen'!$B:$B,0))&", "&INDEX('Eingabe Spielernamen'!$G:$G,MATCH(B41,'Eingabe Spielernamen'!$B:$B,0))) ->  | K41: =IF(ISBLANK(G41)," ",G41+(H41-I41)*50+IF(COUNT(G41:G44)=3,(I42+I43+I44)*40,(I42+I43+I44)*30)) ->  | L41: 0 | M41: =IF(COUNTIF(N$13:N41,N41)>1,"X","") -> X | N41: =IF(ISBLANK(R41)," ",INDEX(CI:CI,MATCH(R41,CH:CH,0))) ->  | O41: =IF(ISBLANK(R41)," ",INDEX('Eingabe Spielernamen'!$F:$F,MATCH(N41,'Eingabe Spielernamen'!$B:$B,0))&", "&INDEX('Eingabe Spielernamen'!$G:$G,MATCH(N41,'Eingabe Spielernamen'!$B:$B,0))) ->  | W41: =IF(ISBLANK(S41)," ",S41+(T41-U41)*50+IF(COUNT(S41:S44)=3,(U42+U43+U44)*40,(U42+U43+U44)*30)) ->  | X41: 0 | Y41: =IF(COUNTIF(Z$13:Z41,Z41)>1,"X","") -> X | Z41: =IF(ISBLANK(AD41)," ",INDEX(CN:CN,MATCH(AD41,CM:CM,0))) ->  | AA41: =IF(ISBLANK(AD41)," ",INDEX('Eingabe Spielernamen'!$F:$F,MATCH(Z41,'Eingabe Spielernamen'!$B:$B,0))&", "&INDEX('Eingabe Spielernamen'!$G:$G,MATCH(Z41,'Eingabe Spielernamen'!$B:$B,0))) ->  | AI41: =IF(ISBLANK(AE41)," ",AE41+(AF41-AG41)*50+IF(COUNT(AE41:AE44)=3,(AG42+AG43+AG44)*40,(AG42+AG43+AG44)*30)) ->  | AJ41: 0 | AK41: =IF(COUNTIF(AL$13:AL41,AL41)>1,"X","") -> X | AL41: =IF(ISBLANK(AP41)," ",INDEX(CS:CS,MATCH(AP41,CR:CR,0))) ->  | AM41: =IF(ISBLANK(AP41)," ",INDEX('Eingabe Spielernamen'!$F:$F,MATCH(AL41,'Eingabe Spielernamen'!$B:$B,0))&", "&INDEX('Eingabe Spielernamen'!$G:$G,MATCH(AL41,'Eingabe Spielernamen'!$B:$B,0))) ->  | AU41: =IF(ISBLANK(AQ41)," ",AQ41+(AR41-AS41)*50+IF(COUNT(AQ41:AQ44)=3,(AS42+AS43+AS44)*40,(AS42+AS43+AS44)*30)) ->  | AV41: 0 | AW41: =IF(COUNTIF(AX$13:AX41,AX41)>1,"X","") -> X | AX41: =IF(ISBLANK(BB41)," ",INDEX(CX:CX,MATCH(BB41,CW:CW,0))) ->  | AY41: =IF(ISBLANK(BB41)," ",INDEX('Eingabe Spielernamen'!$F:$F,MATCH(AX41,'Eingabe Spielernamen'!$B:$B,0))&", "&INDEX('Eingabe Spielernamen'!$G:$G,MATCH(AX41,'Eingabe Spielernamen'!$B:$B,0))) ->  | BG41: =IF(ISBLANK(BC41)," ",BC41+(BD41-BE41)*50+IF(COUNT(BC41:BC44)=3,(BE42+BE43+BE44)*40,(BE42+BE43+BE44)*30)) ->  | BH41: 0 | BI41: =IF(COUNTIF(BJ$13:BJ41,BJ41)>1,"X","") -> X | BJ41: =IF(ISBLANK(BN41)," ",INDEX(DC:DC,MATCH(BN41,DB:DB,0))) ->  | BK41: =IF(ISBLANK(BN41)," ",INDEX('Eingabe Spielernamen'!$F:$F,MATCH(BJ41,'Eingabe Spielernamen'!$B:$B,0))&", "&INDEX('Eingabe Spielernamen'!$G:$G,MATCH(BJ41,'Eingabe Spielernamen'!$B:$B,0))) ->  | BS41: =IF(ISBLANK(BO41)," ",BO41+(BP41-BQ41)*50+IF(COUNT(BO41:BO44)=3,(BQ42+BQ43+BQ44)*40,(BQ42+BQ43+BQ44)*30)) ->  | BT41: 0 | BW41: =SUM(L41:L44) -> 0 | BX41: =SUM(X41:X44) -> 0 | BY41: =SUM(AJ41:AJ44) -> 0 | BZ41: =SUM(AV41:AV44) -> 0 | CA41: =SUM(BH41:BH44) -> 0 | CB41: =SUM(BT41:BT44) -> 0
A42: =IF(COUNTIF(B$13:B42,B42)>1,"X","") -> X | B42: =IF(ISBLANK(F41)," ",INDEX(CE:CE,MATCH(F41,CC:CC,0))) ->  | C42: =IF(ISBLANK(F42)," ",INDEX('Eingabe Spielernamen'!$F:$F,MATCH(B42,'Eingabe Spielernamen'!$B:$B,0))&", "&INDEX('Eingabe Spielernamen'!$G:$G,MATCH(B42,'Eingabe Spielernamen'!$B:$B,0))) ->  | F42: =F41 -> 0 | K42: =IF(ISBLANK(G42)," ",G42+(H42-I42)*50+IF(COUNT(G41:G44)=3,(I41+I43+I44)*40,(I41+I43+I44)*30)) ->  | L42: 0 | M42: =IF(COUNTIF(N$13:N42,N42)>1,"X","") -> X | N42: =IF(ISBLANK(R41)," ",INDEX(CJ:CJ,MATCH(R41,CH:CH,0))) ->  | O42: =IF(ISBLANK(R42)," ",INDEX('Eingabe Spielernamen'!$F:$F,MATCH(N42,'Eingabe Spielernamen'!$B:$B,0))&", "&INDEX('Eingabe Spielernamen'!$G:$G,MATCH(N42,'Eingabe Spielernamen'!$B:$B,0))) ->  | R42: =R41 -> 0 | W42: =IF(ISBLANK(S42)," ",S42+(T42-U42)*50+IF(COUNT(S41:S44)=3,(U41+U43+U44)*40,(U41+U43+U44)*30)) ->  | X42: 0 | Y42: =IF(COUNTIF(Z$13:Z42,Z42)>1,"X","") -> X | Z42: =IF(ISBLANK(AD41)," ",INDEX(CO:CO,MATCH(AD41,CM:CM,0))) ->  | AA42: =IF(ISBLANK(AD42)," ",INDEX('Eingabe Spielernamen'!$F:$F,MATCH(Z42,'Eingabe Spielernamen'!$B:$B,0))&", "&INDEX('Eingabe Spielernamen'!$G:$G,MATCH(Z42,'Eingabe Spielernamen'!$B:$B,0))) ->  | AD42: =AD41 -> 0 | AI42: =IF(ISBLANK(AE42)," ",AE42+(AF42-AG42)*50+IF(COUNT(AE41:AE44)=3,(AG41+AG43+AG44)*40,(AG41+AG43+AG44)*30)) ->  | AJ42: 0 | AK42: =IF(COUNTIF(AL$13:AL42,AL42)>1,"X","") -> X | AL42: =IF(ISBLANK(AP41)," ",INDEX(CT:CT,MATCH(AP41,CR:CR,0))) ->  | AM42: =IF(ISBLANK(AP42)," ",INDEX('Eingabe Spielernamen'!$F:$F,MATCH(AL42,'Eingabe Spielernamen'!$B:$B,0))&", "&INDEX('Eingabe Spielernamen'!$G:$G,MATCH(AL42,'Eingabe Spielernamen'!$B:$B,0))) ->  | AP42: =AP41 -> 0 | AU42: =IF(ISBLANK(AQ42)," ",AQ42+(AR42-AS42)*50+IF(COUNT(AQ41:AQ44)=3,(AS41+AS43+AS44)*40,(AS41+AS43+AS44)*30)) ->  | AV42: 0 | AW42: =IF(COUNTIF(AX$13:AX42,AX42)>1,"X","") -> X | AX42: =IF(ISBLANK(BB41)," ",INDEX(CY:CY,MATCH(BB41,CW:CW,0))) ->  | AY42: =IF(ISBLANK(BB42)," ",INDEX('Eingabe Spielernamen'!$F:$F,MATCH(AX42,'Eingabe Spielernamen'!$B:$B,0))&", "&INDEX('Eingabe Spielernamen'!$G:$G,MATCH(AX42,'Eingabe Spielernamen'!$B:$B,0))) ->  | BB42: =BB41 -> 0 | BG42: =IF(ISBLANK(BC42)," ",BC42+(BD42-BE42)*50+IF(COUNT(BC41:BC44)=3,(BE41+BE43+BE44)*40,(BE41+BE43+BE44)*30)) ->  | BH42: 0 | BI42: =IF(COUNTIF(BJ$13:BJ42,BJ42)>1,"X","") -> X | BJ42: =IF(ISBLANK(BN41)," ",INDEX(DD:DD,MATCH(BN41,DB:DB,0))) ->  | BK42: =IF(ISBLANK(BN42)," ",INDEX('Eingabe Spielernamen'!$F:$F,MATCH(BJ42,'Eingabe Spielernamen'!$B:$B,0))&", "&INDEX('Eingabe Spielernamen'!$G:$G,MATCH(BJ42,'Eingabe Spielernamen'!$B:$B,0))) ->  | BN42: =BN41 -> 0 | BS42: =IF(ISBLANK(BO42)," ",BO42+(BP42-BQ42)*50+IF(COUNT(BO41:BO44)=3,(BQ41+BQ43+BQ44)*40,(BQ41+BQ43+BQ44)*30)) ->  | BT42: 0
A43: =IF(COUNTIF(B$13:B43,B43)>1,"X","") -> X | B43: =IF(ISBLANK(F41)," ",INDEX(CF:CF,MATCH(F41,CC:CC,0))) ->  | C43: =IF(ISBLANK(F43)," ",INDEX('Eingabe Spielernamen'!$F:$F,MATCH(B43,'Eingabe Spielernamen'!$B:$B,0))&", "&INDEX('Eingabe Spielernamen'!$G:$G,MATCH(B43,'Eingabe Spielernamen'!$B:$B,0))) ->  | F43: =F41 -> 0 | K43: =IF(ISBLANK(G43)," ",G43+(H43-I43)*50+IF(COUNT(G41:G44)=3,(I41+I42+I44)*40,(I41+I42+I44)*30)) ->  | L43: 0 | M43: =IF(COUNTIF(N$13:N43,N43)>1,"X","") -> X | N43: =IF(ISBLANK(R41)," ",INDEX(CK:CK,MATCH(R41,CH:CH,0))) ->  | O43: =IF(ISBLANK(R43)," ",INDEX('Eingabe Spielernamen'!$F:$F,MATCH(N43,'Eingabe Spielernamen'!$B:$B,0))&", "&INDEX('Eingabe Spielernamen'!$G:$G,MATCH(N43,'Eingabe Spielernamen'!$B:$B,0))) ->  | R43: =R41 -> 0 | W43: =IF(ISBLANK(S43)," ",S43+(T43-U43)*50+IF(COUNT(S41:S44)=3,(U41+U42+U44)*40,(U41+U42+U44)*30)) ->  | X43: 0 | Y43: =IF(COUNTIF(Z$13:Z43,Z43)>1,"X","") -> X | Z43: =IF(ISBLANK(AD41)," ",INDEX(CP:CP,MATCH(AD41,CM:CM,0))) ->  | AA43: =IF(ISBLANK(AD43)," ",INDEX('Eingabe Spielernamen'!$F:$F,MATCH(Z43,'Eingabe Spielernamen'!$B:$B,0))&", "&INDEX('Eingabe Spielernamen'!$G:$G,MATCH(Z43,'Eingabe Spielernamen'!$B:$B,0))) ->  | AD43: =AD41 -> 0 | AI43: =IF(ISBLANK(AE43)," ",AE43+(AF43-AG43)*50+IF(COUNT(AE41:AE44)=3,(AG41+AG42+AG44)*40,(AG41+AG42+AG44)*30)) ->  | AJ43: 0 | AK43: =IF(COUNTIF(AL$13:AL43,AL43)>1,"X","") -> X | AL43: =IF(ISBLANK(AP41)," ",INDEX(CU:CU,MATCH(AP41,CR:CR,0))) ->  | AM43: =IF(ISBLANK(AP43)," ",INDEX('Eingabe Spielernamen'!$F:$F,MATCH(AL43,'Eingabe Spielernamen'!$B:$B,0))&", "&INDEX('Eingabe Spielernamen'!$G:$G,MATCH(AL43,'Eingabe Spielernamen'!$B:$B,0))) ->  | AP43: =AP41 -> 0 | AU43: =IF(ISBLANK(AQ43)," ",AQ43+(AR43-AS43)*50+IF(COUNT(AQ41:AQ44)=3,(AS41+AS42+AS44)*40,(AS41+AS42+AS44)*30)) ->  | AV43: 0 | AW43: =IF(COUNTIF(AX$13:AX43,AX43)>1,"X","") -> X | AX43: =IF(ISBLANK(BB41)," ",INDEX(CZ:CZ,MATCH(BB41,CW:CW,0))) ->  | AY43: =IF(ISBLANK(BB43)," ",INDEX('Eingabe Spielernamen'!$F:$F,MATCH(AX43,'Eingabe Spielernamen'!$B:$B,0))&", "&INDEX('Eingabe Spielernamen'!$G:$G,MATCH(AX43,'Eingabe Spielernamen'!$B:$B,0))) ->  | BB43: =BB41 -> 0 | BG43: =IF(ISBLANK(BC43)," ",BC43+(BD43-BE43)*50+IF(COUNT(BC41:BC44)=3,(BE41+BE42+BE44)*40,(BE41+BE42+BE44)*30)) ->  | BH43: 0 | BI43: =IF(COUNTIF(BJ$13:BJ43,BJ43)>1,"X","") -> X | BJ43: =IF(ISBLANK(BN41)," ",INDEX(DE:DE,MATCH(BN41,DB:DB,0))) ->  | BK43: =IF(ISBLANK(BN43)," ",INDEX('Eingabe Spielernamen'!$F:$F,MATCH(BJ43,'Eingabe Spielernamen'!$B:$B,0))&", "&INDEX('Eingabe Spielernamen'!$G:$G,MATCH(BJ43,'Eingabe Spielernamen'!$B:$B,0))) ->  | BN43: =BN41 -> 0 | BS43: =IF(ISBLANK(BO43)," ",BO43+(BP43-BQ43)*50+IF(COUNT(BO41:BO44)=3,(BQ41+BQ42+BQ44)*40,(BQ41+BQ42+BQ44)*30)) ->  | BT43: 0
A44: =IF(COUNTIF(B$13:B44,B44)>1,"X","") -> X | B44: =IF(ISBLANK(F41)," ",INDEX(CG:CG,MATCH(F41,CC:CC,0))) ->  | C44: =IF(ISBLANK(F44)," ",INDEX('Eingabe Spielernamen'!$F:$F,MATCH(B44,'Eingabe Spielernamen'!$B:$B,0))&", "&INDEX('Eingabe Spielernamen'!$G:$G,MATCH(B44,'Eingabe Spielernamen'!$B:$B,0))) ->  | F44: =F41 -> 0 | K44: =IF(ISBLANK(G44)," ",G44+(H44-I44)*50+IF(COUNT(G41:G44)=3,(I41+I42+I43)*40,(I41+I42+I43)*30)) ->  | L44: 0 | M44: =IF(COUNTIF(N$13:N44,N44)>1,"X","") -> X | N44: =IF(ISBLANK(R41)," ",INDEX(CL:CL,MATCH(R41,CH:CH,0))) ->  | O44: =IF(ISBLANK(R44)," ",INDEX('Eingabe Spielernamen'!$F:$F,MATCH(N44,'Eingabe Spielernamen'!$B:$B,0))&", "&INDEX('Eingabe Spielernamen'!$G:$G,MATCH(N44,'Eingabe Spielernamen'!$B:$B,0))) ->  | R44: =R41 -> 0 | W44: =IF(ISBLANK(S44)," ",S44+(T44-U44)*50+IF(COUNT(S41:S44)=3,(U41+U42+U43)*40,(U41+U42+U43)*30)) ->  | X44: 0 | Y44: =IF(COUNTIF(Z$13:Z44,Z44)>1,"X","") -> X | Z44: =IF(ISBLANK(AD41)," ",INDEX(CQ:CQ,MATCH(AD41,CM:CM,0))) ->  | AA44: =IF(ISBLANK(AD44)," ",INDEX('Eingabe Spielernamen'!$F:$F,MATCH(Z44,'Eingabe Spielernamen'!$B:$B,0))&", "&INDEX('Eingabe Spielernamen'!$G:$G,MATCH(Z44,'Eingabe Spielernamen'!$B:$B,0))) ->  | AD44: =AD41 -> 0 | AI44: =IF(ISBLANK(AE44)," ",AE44+(AF44-AG44)*50+IF(COUNT(AE41:AE44)=3,(AG41+AG42+AG43)*40,(AG41+AG42+AG43)*30)) ->  | AJ44: 0 | AK44: =IF(COUNTIF(AL$13:AL44,AL44)>1,"X","") -> X | AL44: =IF(ISBLANK(AP41)," ",INDEX(CV:CV,MATCH(AP41,CR:CR,0))) ->  | AM44: =IF(ISBLANK(AP44)," ",INDEX('Eingabe Spielernamen'!$F:$F,MATCH(AL44,'Eingabe Spielernamen'!$B:$B,0))&", "&INDEX('Eingabe Spielernamen'!$G:$G,MATCH(AL44,'Eingabe Spielernamen'!$B:$B,0))) ->  | AP44: =AP41 -> 0 | AU44: =IF(ISBLANK(AQ44)," ",AQ44+(AR44-AS44)*50+IF(COUNT(AQ41:AQ44)=3,(AS41+AS42+AS43)*40,(AS41+AS42+AS43)*30)) ->  | AV44: 0 | AW44: =IF(COUNTIF(AX$13:AX44,AX44)>1,"X","") -> X | AX44: =IF(ISBLANK(BB41)," ",INDEX(DA:DA,MATCH(BB41,CW:CW,0))) ->  | AY44: =IF(ISBLANK(BB44)," ",INDEX('Eingabe Spielernamen'!$F:$F,MATCH(AX44,'Eingabe Spielernamen'!$B:$B,0))&", "&INDEX('Eingabe Spielernamen'!$G:$G,MATCH(AX44,'Eingabe Spielernamen'!$B:$B,0))) ->  | BB44: =BB41 -> 0 | BG44: =IF(ISBLANK(BC44)," ",BC44+(BD44-BE44)*50+IF(COUNT(BC41:BC44)=3,(BE41+BE42+BE43)*40,(BE41+BE42+BE43)*30)) ->  | BH44: 0 | BI44: =IF(COUNTIF(BJ$13:BJ44,BJ44)>1,"X","") -> X | BJ44: =IF(ISBLANK(BN41)," ",INDEX(DF:DF,MATCH(BN41,DB:DB,0))) ->  | BK44: =IF(ISBLANK(BN44)," ",INDEX('Eingabe Spielernamen'!$F:$F,MATCH(BJ44,'Eingabe Spielernamen'!$B:$B,0))&", "&INDEX('Eingabe Spielernamen'!$G:$G,MATCH(BJ44,'Eingabe Spielernamen'!$B:$B,0))) ->  | BN44: =BN41 -> 0 | BS44: =IF(ISBLANK(BO44)," ",BO44+(BP44-BQ44)*50+IF(COUNT(BO41:BO44)=3,(BQ41+BQ42+BQ43)*40,(BQ41+BQ42+BQ43)*30)) ->  | BT44: 0
A45: =IF(COUNTIF(B$13:B45,B45)>1,"X","") -> X | B45: =IF(ISBLANK(F45)," ",INDEX(CD:CD,MATCH(F45,CC:CC,0))) ->  | C45: =IF(ISBLANK(F45)," ",INDEX('Eingabe Spielernamen'!$F:$F,MATCH(B45,'Eingabe Spielernamen'!$B:$B,0))&", "&INDEX('Eingabe Spielernamen'!$G:$G,MATCH(B45,'Eingabe Spielernamen'!$B:$B,0))) ->  | K45: =IF(ISBLANK(G45)," ",G45+(H45-I45)*50+IF(COUNT(G45:G48)=3,(I46+I47+I48)*40,(I46+I47+I48)*30)) ->  | L45: =IF(I45<4,I45*1,IF(I45>3,I45*1)) -> 0 | M45: =IF(COUNTIF(N$13:N45,N45)>1,"X","") -> X | N45: =IF(ISBLANK(R45)," ",INDEX(CI:CI,MATCH(R45,CH:CH,0))) ->  | O45: =IF(ISBLANK(R45)," ",INDEX('Eingabe Spielernamen'!$F:$F,MATCH(N45,'Eingabe Spielernamen'!$B:$B,0))&", "&INDEX('Eingabe Spielernamen'!$G:$G,MATCH(N45,'Eingabe Spielernamen'!$B:$B,0))) ->  | W45: =IF(ISBLANK(S45)," ",S45+(T45-U45)*50+IF(COUNT(S45:S48)=3,(U46+U47+U48)*40,(U46+U47+U48)*30)) ->  | X45: =IF(U45<4,U45*1,IF(U45>3,U45*1)) -> 0 | Y45: =IF(COUNTIF(Z$13:Z45,Z45)>1,"X","") -> X | Z45: =IF(ISBLANK(AD45)," ",INDEX(CN:CN,MATCH(AD45,CM:CM,0))) ->  | AA45: =IF(ISBLANK(AD45)," ",INDEX('Eingabe Spielernamen'!$F:$F,MATCH(Z45,'Eingabe Spielernamen'!$B:$B,0))&", "&INDEX('Eingabe Spielernamen'!$G:$G,MATCH(Z45,'Eingabe Spielernamen'!$B:$B,0))) ->  | AI45: =IF(ISBLANK(AE45)," ",AE45+(AF45-AG45)*50+IF(COUNT(AE45:AE48)=3,(AG46+AG47+AG48)*40,(AG46+AG47+AG48)*30)) ->  | AJ45: 0 | AK45: =IF(COUNTIF(AL$13:AL45,AL45)>1,"X","") -> X | AL45: =IF(ISBLANK(AP45)," ",INDEX(CS:CS,MATCH(AP45,CR:CR,0))) ->  | AM45: =IF(ISBLANK(AP45)," ",INDEX('Eingabe Spielernamen'!$F:$F,MATCH(AL45,'Eingabe Spielernamen'!$B:$B,0))&", "&INDEX('Eingabe Spielernamen'!$G:$G,MATCH(AL45,'Eingabe Spielernamen'!$B:$B,0))) ->  | AU45: =IF(ISBLANK(AQ45)," ",AQ45+(AR45-AS45)*50+IF(COUNT(AQ45:AQ48)=3,(AS46+AS47+AS48)*40,(AS46+AS47+AS48)*30)) ->  | AV45: 0 | AW45: =IF(COUNTIF(AX$13:AX45,AX45)>1,"X","") -> X | AX45: =IF(ISBLANK(BB45)," ",INDEX(CX:CX,MATCH(BB45,CW:CW,0))) ->  | AY45: =IF(ISBLANK(BB45)," ",INDEX('Eingabe Spielernamen'!$F:$F,MATCH(AX45,'Eingabe Spielernamen'!$B:$B,0))&", "&INDEX('Eingabe Spielernamen'!$G:$G,MATCH(AX45,'Eingabe Spielernamen'!$B:$B,0))) ->  | BG45: =IF(ISBLANK(BC45)," ",BC45+(BD45-BE45)*50+IF(COUNT(BC45:BC48)=3,(BE46+BE47+BE48)*40,(BE46+BE47+BE48)*30)) ->  | BH45: 0 | BI45: =IF(COUNTIF(BJ$13:BJ45,BJ45)>1,"X","") -> X | BJ45: =IF(ISBLANK(BN45)," ",INDEX(DC:DC,MATCH(BN45,DB:DB,0))) ->  | BK45: =IF(ISBLANK(BN45)," ",INDEX('Eingabe Spielernamen'!$F:$F,MATCH(BJ45,'Eingabe Spielernamen'!$B:$B,0))&", "&INDEX('Eingabe Spielernamen'!$G:$G,MATCH(BJ45,'Eingabe Spielernamen'!$B:$B,0))) ->  | BS45: =IF(ISBLANK(BO45)," ",BO45+(BP45-BQ45)*50+IF(COUNT(BO45:BO48)=3,(BQ46+BQ47+BQ48)*40,(BQ46+BQ47+BQ48)*30)) ->  | BT45: 0 | BW45: =SUM(L45:L48) -> 0 | BX45: =SUM(X45:X48) -> 0 | BY45: =SUM(AJ45:AJ48) -> 0 | BZ45: =SUM(AV45:AV48) -> 0 | CA45: =SUM(BH45:BH48) -> 0 | CB45: =SUM(BT45:BT48) -> 0
A46: =IF(COUNTIF(B$13:B46,B46)>1,"X","") -> X | B46: =IF(ISBLANK(F45)," ",INDEX(CE:CE,MATCH(F45,CC:CC,0))) ->  | C46: =IF(ISBLANK(F46)," ",INDEX('Eingabe Spielernamen'!$F:$F,MATCH(B46,'Eingabe Spielernamen'!$B:$B,0))&", "&INDEX('Eingabe Spielernamen'!$G:$G,MATCH(B46,'Eingabe Spielernamen'!$B:$B,0))) ->  | F46: =F45 -> 0 | K46: =IF(ISBLANK(G46)," ",G46+(H46-I46)*50+IF(COUNT(G45:G48)=3,(I45+I47+I48)*40,(I45+I47+I48)*30)) ->  | L46: 0 | M46: =IF(COUNTIF(N$13:N46,N46)>1,"X","") -> X | N46: =IF(ISBLANK(R45)," ",INDEX(CJ:CJ,MATCH(R45,CH:CH,0))) ->  | O46: =IF(ISBLANK(R46)," ",INDEX('Eingabe Spielernamen'!$F:$F,MATCH(N46,'Eingabe Spielernamen'!$B:$B,0))&", "&INDEX('Eingabe Spielernamen'!$G:$G,MATCH(N46,'Eingabe Spielernamen'!$B:$B,0))) ->  | R46: =R45 -> 0 | W46: =IF(ISBLANK(S46)," ",S46+(T46-U46)*50+IF(COUNT(S45:S48)=3,(U45+U47+U48)*40,(U45+U47+U48)*30)) ->  | X46: 0 | Y46: =IF(COUNTIF(Z$13:Z46,Z46)>1,"X","") -> X | Z46: =IF(ISBLANK(AD45)," ",INDEX(CO:CO,MATCH(AD45,CM:CM,0))) ->  | AA46: =IF(ISBLANK(AD46)," ",INDEX('Eingabe Spielernamen'!$F:$F,MATCH(Z46,'Eingabe Spielernamen'!$B:$B,0))&", "&INDEX('Eingabe Spielernamen'!$G:$G,MATCH(Z46,'Eingabe Spielernamen'!$B:$B,0))) ->  | AD46: =AD45 -> 0 | AI46: =IF(ISBLANK(AE46)," ",AE46+(AF46-AG46)*50+IF(COUNT(AE45:AE48)=3,(AG45+AG47+AG48)*40,(AG45+AG47+AG48)*30)) ->  | AJ46: 0 | AK46: =IF(COUNTIF(AL$13:AL46,AL46)>1,"X","") -> X | AL46: =IF(ISBLANK(AP45)," ",INDEX(CT:CT,MATCH(AP45,CR:CR,0))) ->  | AM46: =IF(ISBLANK(AP46)," ",INDEX('Eingabe Spielernamen'!$F:$F,MATCH(AL46,'Eingabe Spielernamen'!$B:$B,0))&", "&INDEX('Eingabe Spielernamen'!$G:$G,MATCH(AL46,'Eingabe Spielernamen'!$B:$B,0))) ->  | AP46: =AP45 -> 0 | AU46: =IF(ISBLANK(AQ46)," ",AQ46+(AR46-AS46)*50+IF(COUNT(AQ45:AQ48)=3,(AS45+AS47+AS48)*40,(AS45+AS47+AS48)*30)) ->  | AV46: 0 | AW46: =IF(COUNTIF(AX$13:AX46,AX46)>1,"X","") -> X | AX46: =IF(ISBLANK(BB45)," ",INDEX(CY:CY,MATCH(BB45,CW:CW,0))) ->  | AY46: =IF(ISBLANK(BB46)," ",INDEX('Eingabe Spielernamen'!$F:$F,MATCH(AX46,'Eingabe Spielernamen'!$B:$B,0))&", "&INDEX('Eingabe Spielernamen'!$G:$G,MATCH(AX46,'Eingabe Spielernamen'!$B:$B,0))) ->  | BB46: =BB45 -> 0 | BG46: =IF(ISBLANK(BC46)," ",BC46+(BD46-BE46)*50+IF(COUNT(BC45:BC48)=3,(BE45+BE47+BE48)*40,(BE45+BE47+BE48)*30)) ->  | BH46: 0 | BI46: =IF(COUNTIF(BJ$13:BJ46,BJ46)>1,"X","") -> X | BJ46: =IF(ISBLANK(BN45)," ",INDEX(DD:DD,MATCH(BN45,DB:DB,0))) ->  | BK46: =IF(ISBLANK(BN46)," ",INDEX('Eingabe Spielernamen'!$F:$F,MATCH(BJ46,'Eingabe Spielernamen'!$B:$B,0))&", "&INDEX('Eingabe Spielernamen'!$G:$G,MATCH(BJ46,'Eingabe Spielernamen'!$B:$B,0))) ->  | BN46: =BN45 -> 0 | BS46: =IF(ISBLANK(BO46)," ",BO46+(BP46-BQ46)*50+IF(COUNT(BO45:BO48)=3,(BQ45+BQ47+BQ48)*40,(BQ45+BQ47+BQ48)*30)) ->  | BT46: 0
A47: =IF(COUNTIF(B$13:B47,B47)>1,"X","") -> X | B47: =IF(ISBLANK(F45)," ",INDEX(CF:CF,MATCH(F45,CC:CC,0))) ->  | C47: =IF(ISBLANK(F47)," ",INDEX('Eingabe Spielernamen'!$F:$F,MATCH(B47,'Eingabe Spielernamen'!$B:$B,0))&", "&INDEX('Eingabe Spielernamen'!$G:$G,MATCH(B47,'Eingabe Spielernamen'!$B:$B,0))) ->  | F47: =F45 -> 0 | K47: =IF(ISBLANK(G47)," ",G47+(H47-I47)*50+IF(COUNT(G45:G48)=3,(I45+I46+I48)*40,(I45+I46+I48)*30)) ->  | L47: 0 | M47: =IF(COUNTIF(N$13:N47,N47)>1,"X","") -> X | N47: =IF(ISBLANK(R45)," ",INDEX(CK:CK,MATCH(R45,CH:CH,0))) ->  | O47: =IF(ISBLANK(R47)," ",INDEX('Eingabe Spielernamen'!$F:$F,MATCH(N47,'Eingabe Spielernamen'!$B:$B,0))&", "&INDEX('Eingabe Spielernamen'!$G:$G,MATCH(N47,'Eingabe Spielernamen'!$B:$B,0))) ->  | R47: =R45 -> 0 | W47: =IF(ISBLANK(S47)," ",S47+(T47-U47)*50+IF(COUNT(S45:S48)=3,(U45+U46+U48)*40,(U45+U46+U48)*30)) ->  | X47: 0 | Y47: =IF(COUNTIF(Z$13:Z47,Z47)>1,"X","") -> X | Z47: =IF(ISBLANK(AD45)," ",INDEX(CP:CP,MATCH(AD45,CM:CM,0))) ->  | AA47: =IF(ISBLANK(AD47)," ",INDEX('Eingabe Spielernamen'!$F:$F,MATCH(Z47,'Eingabe Spielernamen'!$B:$B,0))&", "&INDEX('Eingabe Spielernamen'!$G:$G,MATCH(Z47,'Eingabe Spielernamen'!$B:$B,0))) ->  | AD47: =AD45 -> 0 | AI47: =IF(ISBLANK(AE47)," ",AE47+(AF47-AG47)*50+IF(COUNT(AE45:AE48)=3,(AG45+AG46+AG48)*40,(AG45+AG46+AG48)*30)) ->  | AJ47: 0 | AK47: =IF(COUNTIF(AL$13:AL47,AL47)>1,"X","") -> X | AL47: =IF(ISBLANK(AP45)," ",INDEX(CU:CU,MATCH(AP45,CR:CR,0))) ->  | AM47: =IF(ISBLANK(AP47)," ",INDEX('Eingabe Spielernamen'!$F:$F,MATCH(AL47,'Eingabe Spielernamen'!$B:$B,0))&", "&INDEX('Eingabe Spielernamen'!$G:$G,MATCH(AL47,'Eingabe Spielernamen'!$B:$B,0))) ->  | AP47: =AP45 -> 0 | AU47: =IF(ISBLANK(AQ47)," ",AQ47+(AR47-AS47)*50+IF(COUNT(AQ45:AQ48)=3,(AS45+AS46+AS48)*40,(AS45+AS46+AS48)*30)) ->  | AV47: 0 | AW47: =IF(COUNTIF(AX$13:AX47,AX47)>1,"X","") -> X | AX47: =IF(ISBLANK(BB45)," ",INDEX(CZ:CZ,MATCH(BB45,CW:CW,0))) ->  | AY47: =IF(ISBLANK(BB47)," ",INDEX('Eingabe Spielernamen'!$F:$F,MATCH(AX47,'Eingabe Spielernamen'!$B:$B,0))&", "&INDEX('Eingabe Spielernamen'!$G:$G,MATCH(AX47,'Eingabe Spielernamen'!$B:$B,0))) ->  | BB47: =BB45 -> 0 | BG47: =IF(ISBLANK(BC47)," ",BC47+(BD47-BE47)*50+IF(COUNT(BC45:BC48)=3,(BE45+BE46+BE48)*40,(BE45+BE46+BE48)*30)) ->  | BH47: 0 | BI47: =IF(COUNTIF(BJ$13:BJ47,BJ47)>1,"X","") -> X | BJ47: =IF(ISBLANK(BN45)," ",INDEX(DE:DE,MATCH(BN45,DB:DB,0))) ->  | BK47: =IF(ISBLANK(BN47)," ",INDEX('Eingabe Spielernamen'!$F:$F,MATCH(BJ47,'Eingabe Spielernamen'!$B:$B,0))&", "&INDEX('Eingabe Spielernamen'!$G:$G,MATCH(BJ47,'Eingabe Spielernamen'!$B:$B,0))) ->  | BN47: =BN45 -> 0 | BS47: =IF(ISBLANK(BO47)," ",BO47+(BP47-BQ47)*50+IF(COUNT(BO45:BO48)=3,(BQ45+BQ46+BQ48)*40,(BQ45+BQ46+BQ48)*30)) ->  | BT47: 0
A48: =IF(COUNTIF(B$13:B48,B48)>1,"X","") -> X | B48: =IF(ISBLANK(F45)," ",INDEX(CG:CG,MATCH(F45,CC:CC,0))) ->  | C48: =IF(ISBLANK(F48)," ",INDEX('Eingabe Spielernamen'!$F:$F,MATCH(B48,'Eingabe Spielernamen'!$B:$B,0))&", "&INDEX('Eingabe Spielernamen'!$G:$G,MATCH(B48,'Eingabe Spielernamen'!$B:$B,0))) ->  | F48: =F45 -> 0 | K48: =IF(ISBLANK(G48)," ",G48+(H48-I48)*50+IF(COUNT(G45:G48)=3,(I45+I46+I47)*40,(I45+I46+I47)*30)) ->  | L48: 0 | M48: =IF(COUNTIF(N$13:N48,N48)>1,"X","") -> X | N48: =IF(ISBLANK(R45)," ",INDEX(CL:CL,MATCH(R45,CH:CH,0))) ->  | O48: =IF(ISBLANK(R48)," ",INDEX('Eingabe Spielernamen'!$F:$F,MATCH(N48,'Eingabe Spielernamen'!$B:$B,0))&", "&INDEX('Eingabe Spielernamen'!$G:$G,MATCH(N48,'Eingabe Spielernamen'!$B:$B,0))) ->  | R48: =R45 -> 0 | W48: =IF(ISBLANK(S48)," ",S48+(T48-U48)*50+IF(COUNT(S45:S48)=3,(U45+U46+U47)*40,(U45+U46+U47)*30)) ->  | X48: 0 | Y48: =IF(COUNTIF(Z$13:Z48,Z48)>1,"X","") -> X | Z48: =IF(ISBLANK(AD45)," ",INDEX(CQ:CQ,MATCH(AD45,CM:CM,0))) ->  | AA48: =IF(ISBLANK(AD48)," ",INDEX('Eingabe Spielernamen'!$F:$F,MATCH(Z48,'Eingabe Spielernamen'!$B:$B,0))&", "&INDEX('Eingabe Spielernamen'!$G:$G,MATCH(Z48,'Eingabe Spielernamen'!$B:$B,0))) ->  | AD48: =AD45 -> 0 | AI48: =IF(ISBLANK(AE48)," ",AE48+(AF48-AG48)*50+IF(COUNT(AE45:AE48)=3,(AG45+AG46+AG47)*40,(AG45+AG46+AG47)*30)) ->  | AJ48: 0 | AK48: =IF(COUNTIF(AL$13:AL48,AL48)>1,"X","") -> X | AL48: =IF(ISBLANK(AP45)," ",INDEX(CV:CV,MATCH(AP45,CR:CR,0))) ->  | AM48: =IF(ISBLANK(AP48)," ",INDEX('Eingabe Spielernamen'!$F:$F,MATCH(AL48,'Eingabe Spielernamen'!$B:$B,0))&", "&INDEX('Eingabe Spielernamen'!$G:$G,MATCH(AL48,'Eingabe Spielernamen'!$B:$B,0))) ->  | AP48: =AP45 -> 0 | AU48: =IF(ISBLANK(AQ48)," ",AQ48+(AR48-AS48)*50+IF(COUNT(AQ45:AQ48)=3,(AS45+AS46+AS47)*40,(AS45+AS46+AS47)*30)) ->  | AV48: 0 | AW48: =IF(COUNTIF(AX$13:AX48,AX48)>1,"X","") -> X | AX48: =IF(ISBLANK(BB45)," ",INDEX(DA:DA,MATCH(BB45,CW:CW,0))) ->  | AY48: =IF(ISBLANK(BB48)," ",INDEX('Eingabe Spielernamen'!$F:$F,MATCH(AX48,'Eingabe Spielernamen'!$B:$B,0))&", "&INDEX('Eingabe Spielernamen'!$G:$G,MATCH(AX48,'Eingabe Spielernamen'!$B:$B,0))) ->  | BB48: =BB45 -> 0 | BG48: =IF(ISBLANK(BC48)," ",BC48+(BD48-BE48)*50+IF(COUNT(BC45:BC48)=3,(BE45+BE46+BE47)*40,(BE45+BE46+BE47)*30)) ->  | BH48: 0 | BI48: =IF(COUNTIF(BJ$13:BJ48,BJ48)>1,"X","") -> X | BJ48: =IF(ISBLANK(BN45)," ",INDEX(DF:DF,MATCH(BN45,DB:DB,0))) ->  | BK48: =IF(ISBLANK(BN48)," ",INDEX('Eingabe Spielernamen'!$F:$F,MATCH(BJ48,'Eingabe Spielernamen'!$B:$B,0))&", "&INDEX('Eingabe Spielernamen'!$G:$G,MATCH(BJ48,'Eingabe Spielernamen'!$B:$B,0))) ->  | BN48: =BN45 -> 0 | BS48: =IF(ISBLANK(BO48)," ",BO48+(BP48-BQ48)*50+IF(COUNT(BO45:BO48)=3,(BQ45+BQ46+BQ47)*40,(BQ45+BQ46+BQ47)*30)) ->  | BT48: 0
A49: =IF(COUNTIF(B$13:B49,B49)>1,"X","") -> X | B49: =IF(ISBLANK(F49)," ",INDEX(CD:CD,MATCH(F49,CC:CC,0))) ->  | C49: =IF(ISBLANK(F49)," ",INDEX('Eingabe Spielernamen'!$F:$F,MATCH(B49,'Eingabe Spielernamen'!$B:$B,0))&", "&INDEX('Eingabe Spielernamen'!$G:$G,MATCH(B49,'Eingabe Spielernamen'!$B:$B,0))) ->  | K49: =IF(ISBLANK(G49)," ",G49+(H49-I49)*50+IF(COUNT(G49:G52)=3,(I50+I51+I52)*40,(I50+I51+I52)*30)) ->  | L49: 0 | M49: =IF(COUNTIF(N$13:N49,N49)>1,"X","") -> X | N49: =IF(ISBLANK(R49)," ",INDEX(CI:CI,MATCH(R49,CH:CH,0))) ->  | O49: =IF(ISBLANK(R49)," ",INDEX('Eingabe Spielernamen'!$F:$F,MATCH(N49,'Eingabe Spielernamen'!$B:$B,0))&", "&INDEX('Eingabe Spielernamen'!$G:$G,MATCH(N49,'Eingabe Spielernamen'!$B:$B,0))) ->  | W49: =IF(ISBLANK(S49)," ",S49+(T49-U49)*50+IF(COUNT(S49:S52)=3,(U50+U51+U52)*40,(U50+U51+U52)*30)) ->  | X49: 0 | Y49: =IF(COUNTIF(Z$13:Z49,Z49)>1,"X","") -> X | Z49: =IF(ISBLANK(AD49)," ",INDEX(CN:CN,MATCH(AD49,CM:CM,0))) ->  | AA49: =IF(ISBLANK(AD49)," ",INDEX('Eingabe Spielernamen'!$F:$F,MATCH(Z49,'Eingabe Spielernamen'!$B:$B,0))&", "&INDEX('Eingabe Spielernamen'!$G:$G,MATCH(Z49,'Eingabe Spielernamen'!$B:$B,0))) ->  | AI49: =IF(ISBLANK(AE49)," ",AE49+(AF49-AG49)*50+IF(COUNT(AE49:AE52)=3,(AG50+AG51+AG52)*40,(AG50+AG51+AG52)*30)) ->  | AJ49: 0 | AK49: =IF(COUNTIF(AL$13:AL49,AL49)>1,"X","") -> X | AL49: =IF(ISBLANK(AP49)," ",INDEX(CS:CS,MATCH(AP49,CR:CR,0))) ->  | AM49: =IF(ISBLANK(AP49)," ",INDEX('Eingabe Spielernamen'!$F:$F,MATCH(AL49,'Eingabe Spielernamen'!$B:$B,0))&", "&INDEX('Eingabe Spielernamen'!$G:$G,MATCH(AL49,'Eingabe Spielernamen'!$B:$B,0))) ->  | AU49: =IF(ISBLANK(AQ49)," ",AQ49+(AR49-AS49)*50+IF(COUNT(AQ49:AQ52)=3,(AS50+AS51+AS52)*40,(AS50+AS51+AS52)*30)) ->  | AV49: 0 | AW49: =IF(COUNTIF(AX$13:AX49,AX49)>1,"X","") -> X | AX49: =IF(ISBLANK(BB49)," ",INDEX(CX:CX,MATCH(BB49,CW:CW,0))) ->  | AY49: =IF(ISBLANK(BB49)," ",INDEX('Eingabe Spielernamen'!$F:$F,MATCH(AX49,'Eingabe Spielernamen'!$B:$B,0))&", "&INDEX('Eingabe Spielernamen'!$G:$G,MATCH(AX49,'Eingabe Spielernamen'!$B:$B,0))) ->  | BG49: =IF(ISBLANK(BC49)," ",BC49+(BD49-BE49)*50+IF(COUNT(BC49:BC52)=3,(BE50+BE51+BE52)*40,(BE50+BE51+BE52)*30)) ->  | BH49: 0 | BI49: =IF(COUNTIF(BJ$13:BJ49,BJ49)>1,"X","") -> X | BJ49: =IF(ISBLANK(BN49)," ",INDEX(DC:DC,MATCH(BN49,DB:DB,0))) ->  | BK49: =IF(ISBLANK(BN49)," ",INDEX('Eingabe Spielernamen'!$F:$F,MATCH(BJ49,'Eingabe Spielernamen'!$B:$B,0))&", "&INDEX('Eingabe Spielernamen'!$G:$G,MATCH(BJ49,'Eingabe Spielernamen'!$B:$B,0))) ->  | BS49: =IF(ISBLANK(BO49)," ",BO49+(BP49-BQ49)*50+IF(COUNT(BO49:BO52)=3,(BQ50+BQ51+BQ52)*40,(BQ50+BQ51+BQ52)*30)) ->  | BT49: 0 | BW49: =SUM(L49:L52) -> 0 | BX49: =SUM(X49:X52) -> 0 | BY49: =SUM(AJ49:AJ52) -> 0 | BZ49: =SUM(AV49:AV52) -> 0 | CA49: =SUM(BH49:BH52) -> 0 | CB49: =SUM(BT49:BT52) -> 0
A50: =IF(COUNTIF(B$13:B50,B50)>1,"X","") -> X | B50: =IF(ISBLANK(F49)," ",INDEX(CE:CE,MATCH(F49,CC:CC,0))) ->  | C50: =IF(ISBLANK(F50)," ",INDEX('Eingabe Spielernamen'!$F:$F,MATCH(B50,'Eingabe Spielernamen'!$B:$B,0))&", "&INDEX('Eingabe Spielernamen'!$G:$G,MATCH(B50,'Eingabe Spielernamen'!$B:$B,0))) ->  | F50: =F49 -> 0 | K50: =IF(ISBLANK(G50)," ",G50+(H50-I50)*50+IF(COUNT(G49:G52)=3,(I49+I51+I52)*40,(I49+I51+I52)*30)) ->  | L50: 0 | M50: =IF(COUNTIF(N$13:N50,N50)>1,"X","") -> X | N50: =IF(ISBLANK(R49)," ",INDEX(CJ:CJ,MATCH(R49,CH:CH,0))) ->  | O50: =IF(ISBLANK(R50)," ",INDEX('Eingabe Spielernamen'!$F:$F,MATCH(N50,'Eingabe Spielernamen'!$B:$B,0))&", "&INDEX('Eingabe Spielernamen'!$G:$G,MATCH(N50,'Eingabe Spielernamen'!$B:$B,0))) ->  | R50: =R49 -> 0 | W50: =IF(ISBLANK(S50)," ",S50+(T50-U50)*50+IF(COUNT(S49:S52)=3,(U49+U51+U52)*40,(U49+U51+U52)*30)) ->  | X50: 0 | Y50: =IF(COUNTIF(Z$13:Z50,Z50)>1,"X","") -> X | Z50: =IF(ISBLANK(AD49)," ",INDEX(CO:CO,MATCH(AD49,CM:CM,0))) ->  | AA50: =IF(ISBLANK(AD50)," ",INDEX('Eingabe Spielernamen'!$F:$F,MATCH(Z50,'Eingabe Spielernamen'!$B:$B,0))&", "&INDEX('Eingabe Spielernamen'!$G:$G,MATCH(Z50,'Eingabe Spielernamen'!$B:$B,0))) ->  | AD50: =AD49 -> 0 | AI50: =IF(ISBLANK(AE50)," ",AE50+(AF50-AG50)*50+IF(COUNT(AE49:AE52)=3,(AG49+AG51+AG52)*40,(AG49+AG51+AG52)*30)) ->  | AJ50: 0 | AK50: =IF(COUNTIF(AL$13:AL50,AL50)>1,"X","") -> X | AL50: =IF(ISBLANK(AP49)," ",INDEX(CT:CT,MATCH(AP49,CR:CR,0))) ->  | AM50: =IF(ISBLANK(AP50)," ",INDEX('Eingabe Spielernamen'!$F:$F,MATCH(AL50,'Eingabe Spielernamen'!$B:$B,0))&", "&INDEX('Eingabe Spielernamen'!$G:$G,MATCH(AL50,'Eingabe Spielernamen'!$B:$B,0))) ->  | AP50: =AP49 -> 0 | AU50: =IF(ISBLANK(AQ50)," ",AQ50+(AR50-AS50)*50+IF(COUNT(AQ49:AQ52)=3,(AS49+AS51+AS52)*40,(AS49+AS51+AS52)*30)) ->  | AV50: 0 | AW50: =IF(COUNTIF(AX$13:AX50,AX50)>1,"X","") -> X | AX50: =IF(ISBLANK(BB49)," ",INDEX(CY:CY,MATCH(BB49,CW:CW,0))) ->  | AY50: =IF(ISBLANK(BB50)," ",INDEX('Eingabe Spielernamen'!$F:$F,MATCH(AX50,'Eingabe Spielernamen'!$B:$B,0))&", "&INDEX('Eingabe Spielernamen'!$G:$G,MATCH(AX50,'Eingabe Spielernamen'!$B:$B,0))) ->  | BB50: =BB49 -> 0 | BG50: =IF(ISBLANK(BC50)," ",BC50+(BD50-BE50)*50+IF(COUNT(BC49:BC52)=3,(BE49+BE51+BE52)*40,(BE49+BE51+BE52)*30)) ->  | BH50: 0 | BI50: =IF(COUNTIF(BJ$13:BJ50,BJ50)>1,"X","") -> X | BJ50: =IF(ISBLANK(BN49)," ",INDEX(DD:DD,MATCH(BN49,DB:DB,0))) ->  | BK50: =IF(ISBLANK(BN50)," ",INDEX('Eingabe Spielernamen'!$F:$F,MATCH(BJ50,'Eingabe Spielernamen'!$B:$B,0))&", "&INDEX('Eingabe Spielernamen'!$G:$G,MATCH(BJ50,'Eingabe Spielernamen'!$B:$B,0))) ->  | BN50: =BN49 -> 0 | BS50: =IF(ISBLANK(BO50)," ",BO50+(BP50-BQ50)*50+IF(COUNT(BO49:BO52)=3,(BQ49+BQ51+BQ52)*40,(BQ49+BQ51+BQ52)*30)) ->  | BT50: 0
A51: =IF(COUNTIF(B$13:B51,B51)>1,"X","") -> X | B51: =IF(ISBLANK(F49)," ",INDEX(CF:CF,MATCH(F49,CC:CC,0))) ->  | C51: =IF(ISBLANK(F51)," ",INDEX('Eingabe Spielernamen'!$F:$F,MATCH(B51,'Eingabe Spielernamen'!$B:$B,0))&", "&INDEX('Eingabe Spielernamen'!$G:$G,MATCH(B51,'Eingabe Spielernamen'!$B:$B,0))) ->  | F51: =F49 -> 0 | K51: =IF(ISBLANK(G51)," ",G51+(H51-I51)*50+IF(COUNT(G49:G52)=3,(I49+I50+I52)*40,(I49+I50+I52)*30)) ->  | L51: 0 | M51: =IF(COUNTIF(N$13:N51,N51)>1,"X","") -> X | N51: =IF(ISBLANK(R49)," ",INDEX(CK:CK,MATCH(R49,CH:CH,0))) ->  | O51: =IF(ISBLANK(R51)," ",INDEX('Eingabe Spielernamen'!$F:$F,MATCH(N51,'Eingabe Spielernamen'!$B:$B,0))&", "&INDEX('Eingabe Spielernamen'!$G:$G,MATCH(N51,'Eingabe Spielernamen'!$B:$B,0))) ->  | R51: =R49 -> 0 | W51: =IF(ISBLANK(S51)," ",S51+(T51-U51)*50+IF(COUNT(S49:S52)=3,(U49+U50+U52)*40,(U49+U50+U52)*30)) ->  | X51: 0 | Y51: =IF(COUNTIF(Z$13:Z51,Z51)>1,"X","") -> X | Z51: =IF(ISBLANK(AD49)," ",INDEX(CP:CP,MATCH(AD49,CM:CM,0))) ->  | AA51: =IF(ISBLANK(AD51)," ",INDEX('Eingabe Spielernamen'!$F:$F,MATCH(Z51,'Eingabe Spielernamen'!$B:$B,0))&", "&INDEX('Eingabe Spielernamen'!$G:$G,MATCH(Z51,'Eingabe Spielernamen'!$B:$B,0))) ->  | AD51: =AD49 -> 0 | AI51: =IF(ISBLANK(AE51)," ",AE51+(AF51-AG51)*50+IF(COUNT(AE49:AE52)=3,(AG49+AG50+AG52)*40,(AG49+AG50+AG52)*30)) ->  | AJ51: 0 | AK51: =IF(COUNTIF(AL$13:AL51,AL51)>1,"X","") -> X | AL51: =IF(ISBLANK(AP49)," ",INDEX(CU:CU,MATCH(AP49,CR:CR,0))) ->  | AM51: =IF(ISBLANK(AP51)," ",INDEX('Eingabe Spielernamen'!$F:$F,MATCH(AL51,'Eingabe Spielernamen'!$B:$B,0))&", "&INDEX('Eingabe Spielernamen'!$G:$G,MATCH(AL51,'Eingabe Spielernamen'!$B:$B,0))) ->  | AP51: =AP49 -> 0 | AU51: =IF(ISBLANK(AQ51)," ",AQ51+(AR51-AS51)*50+IF(COUNT(AQ49:AQ52)=3,(AS49+AS50+AS52)*40,(AS49+AS50+AS52)*30)) ->  | AV51: 0 | AW51: =IF(COUNTIF(AX$13:AX51,AX51)>1,"X","") -> X | AX51: =IF(ISBLANK(BB49)," ",INDEX(CZ:CZ,MATCH(BB49,CW:CW,0))) ->  | AY51: =IF(ISBLANK(BB51)," ",INDEX('Eingabe Spielernamen'!$F:$F,MATCH(AX51,'Eingabe Spielernamen'!$B:$B,0))&", "&INDEX('Eingabe Spielernamen'!$G:$G,MATCH(AX51,'Eingabe Spielernamen'!$B:$B,0))) ->  | BB51: =BB49 -> 0 | BG51: =IF(ISBLANK(BC51)," ",BC51+(BD51-BE51)*50+IF(COUNT(BC49:BC52)=3,(BE49+BE50+BE52)*40,(BE49+BE50+BE52)*30)) ->  | BH51: 0 | BI51: =IF(COUNTIF(BJ$13:BJ51,BJ51)>1,"X","") -> X | BJ51: =IF(ISBLANK(BN49)," ",INDEX(DE:DE,MATCH(BN49,DB:DB,0))) ->  | BK51: =IF(ISBLANK(BN51)," ",INDEX('Eingabe Spielernamen'!$F:$F,MATCH(BJ51,'Eingabe Spielernamen'!$B:$B,0))&", "&INDEX('Eingabe Spielernamen'!$G:$G,MATCH(BJ51,'Eingabe Spielernamen'!$B:$B,0))) ->  | BN51: =BN49 -> 0 | BS51: =IF(ISBLANK(BO51)," ",BO51+(BP51-BQ51)*50+IF(COUNT(BO49:BO52)=3,(BQ49+BQ50+BQ52)*40,(BQ49+BQ50+BQ52)*30)) ->  | BT51: 0
A52: =IF(COUNTIF(B$13:B52,B52)>1,"X","") -> X | B52: =IF(ISBLANK(F49)," ",INDEX(CG:CG,MATCH(F49,CC:CC,0))) ->  | C52: =IF(ISBLANK(F52)," ",INDEX('Eingabe Spielernamen'!$F:$F,MATCH(B52,'Eingabe Spielernamen'!$B:$B,0))&", "&INDEX('Eingabe Spielernamen'!$G:$G,MATCH(B52,'Eingabe Spielernamen'!$B:$B,0))) ->  | F52: =F49 -> 0 | K52: =IF(ISBLANK(G52)," ",G52+(H52-I52)*50+IF(COUNT(G49:G52)=3,(I49+I50+I51)*40,(I49+I50+I51)*30)) ->  | L52: 0 | M52: =IF(COUNTIF(N$13:N52,N52)>1,"X","") -> X | N52: =IF(ISBLANK(R49)," ",INDEX(CL:CL,MATCH(R49,CH:CH,0))) ->  | O52: =IF(ISBLANK(R52)," ",INDEX('Eingabe Spielernamen'!$F:$F,MATCH(N52,'Eingabe Spielernamen'!$B:$B,0))&", "&INDEX('Eingabe Spielernamen'!$G:$G,MATCH(N52,'Eingabe Spielernamen'!$B:$B,0))) ->  | R52: =R49 -> 0 | W52: =IF(ISBLANK(S52)," ",S52+(T52-U52)*50+IF(COUNT(S49:S52)=3,(U49+U50+U51)*40,(U49+U50+U51)*30)) ->  | X52: 0 | Y52: =IF(COUNTIF(Z$13:Z52,Z52)>1,"X","") -> X | Z52: =IF(ISBLANK(AD49)," ",INDEX(CQ:CQ,MATCH(AD49,CM:CM,0))) ->  | AA52: =IF(ISBLANK(AD52)," ",INDEX('Eingabe Spielernamen'!$F:$F,MATCH(Z52,'Eingabe Spielernamen'!$B:$B,0))&", "&INDEX('Eingabe Spielernamen'!$G:$G,MATCH(Z52,'Eingabe Spielernamen'!$B:$B,0))) ->  | AD52: =AD49 -> 0 | AI52: =IF(ISBLANK(AE52)," ",AE52+(AF52-AG52)*50+IF(COUNT(AE49:AE52)=3,(AG49+AG50+AG51)*40,(AG49+AG50+AG51)*30)) ->  | AJ52: 0 | AK52: =IF(COUNTIF(AL$13:AL52,AL52)>1,"X","") -> X | AL52: =IF(ISBLANK(AP49)," ",INDEX(CV:CV,MATCH(AP49,CR:CR,0))) ->  | AM52: =IF(ISBLANK(AP52)," ",INDEX('Eingabe Spielernamen'!$F:$F,MATCH(AL52,'Eingabe Spielernamen'!$B:$B,0))&", "&INDEX('Eingabe Spielernamen'!$G:$G,MATCH(AL52,'Eingabe Spielernamen'!$B:$B,0))) ->  | AP52: =AP49 -> 0 | AU52: =IF(ISBLANK(AQ52)," ",AQ52+(AR52-AS52)*50+IF(COUNT(AQ49:AQ52)=3,(AS49+AS50+AS51)*40,(AS49+AS50+AS51)*30)) ->  | AV52: 0 | AW52: =IF(COUNTIF(AX$13:AX52,AX52)>1,"X","") -> X | AX52: =IF(ISBLANK(BB49)," ",INDEX(DA:DA,MATCH(BB49,CW:CW,0))) ->  | AY52: =IF(ISBLANK(BB52)," ",INDEX('Eingabe Spielernamen'!$F:$F,MATCH(AX52,'Eingabe Spielernamen'!$B:$B,0))&", "&INDEX('Eingabe Spielernamen'!$G:$G,MATCH(AX52,'Eingabe Spielernamen'!$B:$B,0))) ->  | BB52: =BB49 -> 0 | BG52: =IF(ISBLANK(BC52)," ",BC52+(BD52-BE52)*50+IF(COUNT(BC49:BC52)=3,(BE49+BE50+BE51)*40,(BE49+BE50+BE51)*30)) ->  | BH52: 0 | BI52: =IF(COUNTIF(BJ$13:BJ52,BJ52)>1,"X","") -> X | BJ52: =IF(ISBLANK(BN49)," ",INDEX(DF:DF,MATCH(BN49,DB:DB,0))) ->  | BK52: =IF(ISBLANK(BN52)," ",INDEX('Eingabe Spielernamen'!$F:$F,MATCH(BJ52,'Eingabe Spielernamen'!$B:$B,0))&", "&INDEX('Eingabe Spielernamen'!$G:$G,MATCH(BJ52,'Eingabe Spielernamen'!$B:$B,0))) ->  | BN52: =BN49 -> 0 | BS52: =IF(ISBLANK(BO52)," ",BO52+(BP52-BQ52)*50+IF(COUNT(BO49:BO52)=3,(BQ49+BQ50+BQ51)*40,(BQ49+BQ50+BQ51)*30)) ->  | BT52: 0
A53: =IF(COUNTIF(B$13:B53,B53)>1,"X","") -> X | B53: =IF(ISBLANK(F53)," ",INDEX(CD:CD,MATCH(F53,CC:CC,0))) ->  | C53: =IF(ISBLANK(F53)," ",INDEX('Eingabe Spielernamen'!$F:$F,MATCH(B53,'Eingabe Spielernamen'!$B:$B,0))&", "&INDEX('Eingabe Spielernamen'!$G:$G,MATCH(B53,'Eingabe Spielernamen'!$B:$B,0))) ->  | K53: =IF(ISBLANK(G53)," ",G53+(H53-I53)*50+IF(COUNT(G53:G56)=3,(I54+I55+I56)*40,(I54+I55+I56)*30)) ->  | L53: 0 | M53: =IF(COUNTIF(N$13:N53,N53)>1,"X","") -> X | N53: =IF(ISBLANK(R53)," ",INDEX(CI:CI,MATCH(R53,CH:CH,0))) ->  | O53: =IF(ISBLANK(R53)," ",INDEX('Eingabe Spielernamen'!$F:$F,MATCH(N53,'Eingabe Spielernamen'!$B:$B,0))&", "&INDEX('Eingabe Spielernamen'!$G:$G,MATCH(N53,'Eingabe Spielernamen'!$B:$B,0))) ->  | W53: =IF(ISBLANK(S53)," ",S53+(T53-U53)*50+IF(COUNT(S53:S56)=3,(U54+U55+U56)*40,(U54+U55+U56)*30)) ->  | X53: 0 | Y53: =IF(COUNTIF(Z$13:Z53,Z53)>1,"X","") -> X | Z53: =IF(ISBLANK(AD53)," ",INDEX(CN:CN,MATCH(AD53,CM:CM,0))) ->  | AA53: =IF(ISBLANK(AD53)," ",INDEX('Eingabe Spielernamen'!$F:$F,MATCH(Z53,'Eingabe Spielernamen'!$B:$B,0))&", "&INDEX('Eingabe Spielernamen'!$G:$G,MATCH(Z53,'Eingabe Spielernamen'!$B:$B,0))) ->  | AI53: =IF(ISBLANK(AE53)," ",AE53+(AF53-AG53)*50+IF(COUNT(AE53:AE56)=3,(AG54+AG55+AG56)*40,(AG54+AG55+AG56)*30)) ->  | AJ53: 0 | AK53: =IF(COUNTIF(AL$13:AL53,AL53)>1,"X","") -> X | AL53: =IF(ISBLANK(AP53)," ",INDEX(CS:CS,MATCH(AP53,CR:CR,0))) ->  | AM53: =IF(ISBLANK(AP53)," ",INDEX('Eingabe Spielernamen'!$F:$F,MATCH(AL53,'Eingabe Spielernamen'!$B:$B,0))&", "&INDEX('Eingabe Spielernamen'!$G:$G,MATCH(AL53,'Eingabe Spielernamen'!$B:$B,0))) ->  | AU53: =IF(ISBLANK(AQ53)," ",AQ53+(AR53-AS53)*50+IF(COUNT(AQ53:AQ56)=3,(AS54+AS55+AS56)*40,(AS54+AS55+AS56)*30)) ->  | AV53: 0 | AW53: =IF(COUNTIF(AX$13:AX53,AX53)>1,"X","") -> X | AX53: =IF(ISBLANK(BB53)," ",INDEX(CX:CX,MATCH(BB53,CW:CW,0))) ->  | AY53: =IF(ISBLANK(BB53)," ",INDEX('Eingabe Spielernamen'!$F:$F,MATCH(AX53,'Eingabe Spielernamen'!$B:$B,0))&", "&INDEX('Eingabe Spielernamen'!$G:$G,MATCH(AX53,'Eingabe Spielernamen'!$B:$B,0))) ->  | BG53: =IF(ISBLANK(BC53)," ",BC53+(BD53-BE53)*50+IF(COUNT(BC53:BC56)=3,(BE54+BE55+BE56)*40,(BE54+BE55+BE56)*30)) ->  | BH53: 0 | BI53: =IF(COUNTIF(BJ$13:BJ53,BJ53)>1,"X","") -> X | BJ53: =IF(ISBLANK(BN53)," ",INDEX(DC:DC,MATCH(BN53,DB:DB,0))) ->  | BK53: =IF(ISBLANK(BN53)," ",INDEX('Eingabe Spielernamen'!$F:$F,MATCH(BJ53,'Eingabe Spielernamen'!$B:$B,0))&", "&INDEX('Eingabe Spielernamen'!$G:$G,MATCH(BJ53,'Eingabe Spielernamen'!$B:$B,0))) ->  | BS53: =IF(ISBLANK(BO53)," ",BO53+(BP53-BQ53)*50+IF(COUNT(BO53:BO56)=3,(BQ54+BQ55+BQ56)*40,(BQ54+BQ55+BQ56)*30)) ->  | BT53: 0 | BW53: =SUM(L53:L56) -> 0 | BX53: =SUM(X53:X56) -> 0 | BY53: =SUM(AJ53:AJ56) -> 0 | BZ53: =SUM(AV53:AV56) -> 0 | CA53: =SUM(BH53:BH56) -> 0 | CB53: =SUM(BT53:BT56) -> 0
A54: =IF(COUNTIF(B$13:B54,B54)>1,"X","") -> X | B54: =IF(ISBLANK(F53)," ",INDEX(CE:CE,MATCH(F53,CC:CC,0))) ->  | C54: =IF(ISBLANK(F54)," ",INDEX('Eingabe Spielernamen'!$F:$F,MATCH(B54,'Eingabe Spielernamen'!$B:$B,0))&", "&INDEX('Eingabe Spielernamen'!$G:$G,MATCH(B54,'Eingabe Spielernamen'!$B:$B,0))) ->  | F54: =F53 -> 0 | K54: =IF(ISBLANK(G54)," ",G54+(H54-I54)*50+IF(COUNT(G53:G56)=3,(I53+I55+I56)*40,(I53+I55+I56)*30)) ->  | L54: 0 | M54: =IF(COUNTIF(N$13:N54,N54)>1,"X","") -> X | N54: =IF(ISBLANK(R53)," ",INDEX(CJ:CJ,MATCH(R53,CH:CH,0))) ->  | O54: =IF(ISBLANK(R54)," ",INDEX('Eingabe Spielernamen'!$F:$F,MATCH(N54,'Eingabe Spielernamen'!$B:$B,0))&", "&INDEX('Eingabe Spielernamen'!$G:$G,MATCH(N54,'Eingabe Spielernamen'!$B:$B,0))) ->  | R54: =R53 -> 0 | W54: =IF(ISBLANK(S54)," ",S54+(T54-U54)*50+IF(COUNT(S53:S56)=3,(U53+U55+U56)*40,(U53+U55+U56)*30)) ->  | X54: 0 | Y54: =IF(COUNTIF(Z$13:Z54,Z54)>1,"X","") -> X | Z54: =IF(ISBLANK(AD53)," ",INDEX(CO:CO,MATCH(AD53,CM:CM,0))) ->  | AA54: =IF(ISBLANK(AD54)," ",INDEX('Eingabe Spielernamen'!$F:$F,MATCH(Z54,'Eingabe Spielernamen'!$B:$B,0))&", "&INDEX('Eingabe Spielernamen'!$G:$G,MATCH(Z54,'Eingabe Spielernamen'!$B:$B,0))) ->  | AD54: =AD53 -> 0 | AI54: =IF(ISBLANK(AE54)," ",AE54+(AF54-AG54)*50+IF(COUNT(AE53:AE56)=3,(AG53+AG55+AG56)*40,(AG53+AG55+AG56)*30)) ->  | AJ54: 0 | AK54: =IF(COUNTIF(AL$13:AL54,AL54)>1,"X","") -> X | AL54: =IF(ISBLANK(AP53)," ",INDEX(CT:CT,MATCH(AP53,CR:CR,0))) ->  | AM54: =IF(ISBLANK(AP54)," ",INDEX('Eingabe Spielernamen'!$F:$F,MATCH(AL54,'Eingabe Spielernamen'!$B:$B,0))&", "&INDEX('Eingabe Spielernamen'!$G:$G,MATCH(AL54,'Eingabe Spielernamen'!$B:$B,0))) ->  | AP54: =AP53 -> 0 | AU54: =IF(ISBLANK(AQ54)," ",AQ54+(AR54-AS54)*50+IF(COUNT(AQ53:AQ56)=3,(AS53+AS55+AS56)*40,(AS53+AS55+AS56)*30)) ->  | AV54: 0 | AW54: =IF(COUNTIF(AX$13:AX54,AX54)>1,"X","") -> X | AX54: =IF(ISBLANK(BB53)," ",INDEX(CY:CY,MATCH(BB53,CW:CW,0))) ->  | AY54: =IF(ISBLANK(BB54)," ",INDEX('Eingabe Spielernamen'!$F:$F,MATCH(AX54,'Eingabe Spielernamen'!$B:$B,0))&", "&INDEX('Eingabe Spielernamen'!$G:$G,MATCH(AX54,'Eingabe Spielernamen'!$B:$B,0))) ->  | BB54: =BB53 -> 0 | BG54: =IF(ISBLANK(BC54)," ",BC54+(BD54-BE54)*50+IF(COUNT(BC53:BC56)=3,(BE53+BE55+BE56)*40,(BE53+BE55+BE56)*30)) ->  | BH54: 0 | BI54: =IF(COUNTIF(BJ$13:BJ54,BJ54)>1,"X","") -> X | BJ54: =IF(ISBLANK(BN53)," ",INDEX(DD:DD,MATCH(BN53,DB:DB,0))) ->  | BK54: =IF(ISBLANK(BN54)," ",INDEX('Eingabe Spielernamen'!$F:$F,MATCH(BJ54,'Eingabe Spielernamen'!$B:$B,0))&", "&INDEX('Eingabe Spielernamen'!$G:$G,MATCH(BJ54,'Eingabe Spielernamen'!$B:$B,0))) ->  | BN54: =BN53 -> 0 | BS54: =IF(ISBLANK(BO54)," ",BO54+(BP54-BQ54)*50+IF(COUNT(BO53:BO56)=3,(BQ53+BQ55+BQ56)*40,(BQ53+BQ55+BQ56)*30)) ->  | BT54: 0
A55: =IF(COUNTIF(B$13:B55,B55)>1,"X","") -> X | B55: =IF(ISBLANK(F53)," ",INDEX(CF:CF,MATCH(F53,CC:CC,0))) ->  | C55: =IF(ISBLANK(F55)," ",INDEX('Eingabe Spielernamen'!$F:$F,MATCH(B55,'Eingabe Spielernamen'!$B:$B,0))&", "&INDEX('Eingabe Spielernamen'!$G:$G,MATCH(B55,'Eingabe Spielernamen'!$B:$B,0))) ->  | F55: =F53 -> 0 | K55: =IF(ISBLANK(G55)," ",G55+(H55-I55)*50+IF(COUNT(G53:G56)=3,(I53+I54+I56)*40,(I53+I54+I56)*30)) ->  | L55: 0 | M55: =IF(COUNTIF(N$13:N55,N55)>1,"X","") -> X | N55: =IF(ISBLANK(R53)," ",INDEX(CK:CK,MATCH(R53,CH:CH,0))) ->  | O55: =IF(ISBLANK(R55)," ",INDEX('Eingabe Spielernamen'!$F:$F,MATCH(N55,'Eingabe Spielernamen'!$B:$B,0))&", "&INDEX('Eingabe Spielernamen'!$G:$G,MATCH(N55,'Eingabe Spielernamen'!$B:$B,0))) ->  | R55: =R53 -> 0 | W55: =IF(ISBLANK(S55)," ",S55+(T55-U55)*50+IF(COUNT(S53:S56)=3,(U53+U54+U56)*40,(U53+U54+U56)*30)) ->  | X55: 0 | Y55: =IF(COUNTIF(Z$13:Z55,Z55)>1,"X","") -> X | Z55: =IF(ISBLANK(AD53)," ",INDEX(CP:CP,MATCH(AD53,CM:CM,0))) ->  | AA55: =IF(ISBLANK(AD55)," ",INDEX('Eingabe Spielernamen'!$F:$F,MATCH(Z55,'Eingabe Spielernamen'!$B:$B,0))&", "&INDEX('Eingabe Spielernamen'!$G:$G,MATCH(Z55,'Eingabe Spielernamen'!$B:$B,0))) ->  | AD55: =AD53 -> 0 | AI55: =IF(ISBLANK(AE55)," ",AE55+(AF55-AG55)*50+IF(COUNT(AE53:AE56)=3,(AG53+AG54+AG56)*40,(AG53+AG54+AG56)*30)) ->  | AJ55: 0 | AK55: =IF(COUNTIF(AL$13:AL55,AL55)>1,"X","") -> X | AL55: =IF(ISBLANK(AP53)," ",INDEX(CU:CU,MATCH(AP53,CR:CR,0))) ->  | AM55: =IF(ISBLANK(AP55)," ",INDEX('Eingabe Spielernamen'!$F:$F,MATCH(AL55,'Eingabe Spielernamen'!$B:$B,0))&", "&INDEX('Eingabe Spielernamen'!$G:$G,MATCH(AL55,'Eingabe Spielernamen'!$B:$B,0))) ->  | AP55: =AP53 -> 0 | AU55: =IF(ISBLANK(AQ55)," ",AQ55+(AR55-AS55)*50+IF(COUNT(AQ53:AQ56)=3,(AS53+AS54+AS56)*40,(AS53+AS54+AS56)*30)) ->  | AV55: 0 | AW55: =IF(COUNTIF(AX$13:AX55,AX55)>1,"X","") -> X | AX55: =IF(ISBLANK(BB53)," ",INDEX(CZ:CZ,MATCH(BB53,CW:CW,0))) ->  | AY55: =IF(ISBLANK(BB55)," ",INDEX('Eingabe Spielernamen'!$F:$F,MATCH(AX55,'Eingabe Spielernamen'!$B:$B,0))&", "&INDEX('Eingabe Spielernamen'!$G:$G,MATCH(AX55,'Eingabe Spielernamen'!$B:$B,0))) ->  | BB55: =BB53 -> 0 | BG55: =IF(ISBLANK(BC55)," ",BC55+(BD55-BE55)*50+IF(COUNT(BC53:BC56)=3,(BE53+BE54+BE56)*40,(BE53+BE54+BE56)*30)) ->  | BH55: 0 | BI55: =IF(COUNTIF(BJ$13:BJ55,BJ55)>1,"X","") -> X | BJ55: =IF(ISBLANK(BN53)," ",INDEX(DE:DE,MATCH(BN53,DB:DB,0))) ->  | BK55: =IF(ISBLANK(BN55)," ",INDEX('Eingabe Spielernamen'!$F:$F,MATCH(BJ55,'Eingabe Spielernamen'!$B:$B,0))&", "&INDEX('Eingabe Spielernamen'!$G:$G,MATCH(BJ55,'Eingabe Spielernamen'!$B:$B,0))) ->  | BN55: =BN53 -> 0 | BS55: =IF(ISBLANK(BO55)," ",BO55+(BP55-BQ55)*50+IF(COUNT(BO53:BO56)=3,(BQ53+BQ54+BQ56)*40,(BQ53+BQ54+BQ56)*30)) ->  | BT55: 0
A56: =IF(COUNTIF(B$13:B56,B56)>1,"X","") -> X | B56: =IF(ISBLANK(F53)," ",INDEX(CG:CG,MATCH(F53,CC:CC,0))) ->  | C56: =IF(ISBLANK(F56)," ",INDEX('Eingabe Spielernamen'!$F:$F,MATCH(B56,'Eingabe Spielernamen'!$B:$B,0))&", "&INDEX('Eingabe Spielernamen'!$G:$G,MATCH(B56,'Eingabe Spielernamen'!$B:$B,0))) ->  | F56: =F53 -> 0 | K56: =IF(ISBLANK(G56)," ",G56+(H56-I56)*50+IF(COUNT(G53:G56)=3,(I53+I54+I55)*40,(I53+I54+I55)*30)) ->  | L56: 0 | M56: =IF(COUNTIF(N$13:N56,N56)>1,"X","") -> X | N56: =IF(ISBLANK(R53)," ",INDEX(CL:CL,MATCH(R53,CH:CH,0))) ->  | O56: =IF(ISBLANK(R56)," ",INDEX('Eingabe Spielernamen'!$F:$F,MATCH(N56,'Eingabe Spielernamen'!$B:$B,0))&", "&INDEX('Eingabe Spielernamen'!$G:$G,MATCH(N56,'Eingabe Spielernamen'!$B:$B,0))) ->  | R56: =R53 -> 0 | W56: =IF(ISBLANK(S56)," ",S56+(T56-U56)*50+IF(COUNT(S53:S56)=3,(U53+U54+U55)*40,(U53+U54+U55)*30)) ->  | X56: 0 | Y56: =IF(COUNTIF(Z$13:Z56,Z56)>1,"X","") -> X | Z56: =IF(ISBLANK(AD53)," ",INDEX(CQ:CQ,MATCH(AD53,CM:CM,0))) ->  | AA56: =IF(ISBLANK(AD56)," ",INDEX('Eingabe Spielernamen'!$F:$F,MATCH(Z56,'Eingabe Spielernamen'!$B:$B,0))&", "&INDEX('Eingabe Spielernamen'!$G:$G,MATCH(Z56,'Eingabe Spielernamen'!$B:$B,0))) ->  | AD56: =AD53 -> 0 | AI56: =IF(ISBLANK(AE56)," ",AE56+(AF56-AG56)*50+IF(COUNT(AE53:AE56)=3,(AG53+AG54+AG55)*40,(AG53+AG54+AG55)*30)) ->  | AJ56: 0 | AK56: =IF(COUNTIF(AL$13:AL56,AL56)>1,"X","") -> X | AL56: =IF(ISBLANK(AP53)," ",INDEX(CV:CV,MATCH(AP53,CR:CR,0))) ->  | AM56: =IF(ISBLANK(AP56)," ",INDEX('Eingabe Spielernamen'!$F:$F,MATCH(AL56,'Eingabe Spielernamen'!$B:$B,0))&", "&INDEX('Eingabe Spielernamen'!$G:$G,MATCH(AL56,'Eingabe Spielernamen'!$B:$B,0))) ->  | AP56: =AP53 -> 0 | AU56: =IF(ISBLANK(AQ56)," ",AQ56+(AR56-AS56)*50+IF(COUNT(AQ53:AQ56)=3,(AS53+AS54+AS55)*40,(AS53+AS54+AS55)*30)) ->  | AV56: 0 | AW56: =IF(COUNTIF(AX$13:AX56,AX56)>1,"X","") -> X | AX56: =IF(ISBLANK(BB53)," ",INDEX(DA:DA,MATCH(BB53,CW:CW,0))) ->  | AY56: =IF(ISBLANK(BB56)," ",INDEX('Eingabe Spielernamen'!$F:$F,MATCH(AX56,'Eingabe Spielernamen'!$B:$B,0))&", "&INDEX('Eingabe Spielernamen'!$G:$G,MATCH(AX56,'Eingabe Spielernamen'!$B:$B,0))) ->  | BB56: =BB53 -> 0 | BG56: =IF(ISBLANK(BC56)," ",BC56+(BD56-BE56)*50+IF(COUNT(BC53:BC56)=3,(BE53+BE54+BE55)*40,(BE53+BE54+BE55)*30)) ->  | BH56: 0 | BI56: =IF(COUNTIF(BJ$13:BJ56,BJ56)>1,"X","") -> X | BJ56: =IF(ISBLANK(BN53)," ",INDEX(DF:DF,MATCH(BN53,DB:DB,0))) ->  | BK56: =IF(ISBLANK(BN56)," ",INDEX('Eingabe Spielernamen'!$F:$F,MATCH(BJ56,'Eingabe Spielernamen'!$B:$B,0))&", "&INDEX('Eingabe Spielernamen'!$G:$G,MATCH(BJ56,'Eingabe Spielernamen'!$B:$B,0))) ->  | BN56: =BN53 -> 0 | BS56: =IF(ISBLANK(BO56)," ",BO56+(BP56-BQ56)*50+IF(COUNT(BO53:BO56)=3,(BQ53+BQ54+BQ55)*40,(BQ53+BQ54+BQ55)*30)) ->  | BT56: 0
A57: =IF(COUNTIF(B$13:B57,B57)>1,"X","") -> X | B57: =IF(ISBLANK(F57)," ",INDEX(CD:CD,MATCH(F57,CC:CC,0))) ->  | C57: =IF(ISBLANK(F57)," ",INDEX('Eingabe Spielernamen'!$F:$F,MATCH(B57,'Eingabe Spielernamen'!$B:$B,0))&", "&INDEX('Eingabe Spielernamen'!$G:$G,MATCH(B57,'Eingabe Spielernamen'!$B:$B,0))) ->  | K57: =IF(ISBLANK(G57)," ",G57+(H57-I57)*50+IF(COUNT(G57:G60)=3,(I58+I59+I60)*40,(I58+I59+I60)*30)) ->  | L57: 0 | M57: =IF(COUNTIF(N$13:N57,N57)>1,"X","") -> X | N57: =IF(ISBLANK(R57)," ",INDEX(CI:CI,MATCH(R57,CH:CH,0))) ->  | O57: =IF(ISBLANK(R57)," ",INDEX('Eingabe Spielernamen'!$F:$F,MATCH(N57,'Eingabe Spielernamen'!$B:$B,0))&", "&INDEX('Eingabe Spielernamen'!$G:$G,MATCH(N57,'Eingabe Spielernamen'!$B:$B,0))) ->  | W57: =IF(ISBLANK(S57)," ",S57+(T57-U57)*50+IF(COUNT(S57:S60)=3,(U58+U59+U60)*40,(U58+U59+U60)*30)) ->  | X57: 0 | Y57: =IF(COUNTIF(Z$13:Z57,Z57)>1,"X","") -> X | Z57: =IF(ISBLANK(AD57)," ",INDEX(CN:CN,MATCH(AD57,CM:CM,0))) ->  | AA57: =IF(ISBLANK(AD57)," ",INDEX('Eingabe Spielernamen'!$F:$F,MATCH(Z57,'Eingabe Spielernamen'!$B:$B,0))&", "&INDEX('Eingabe Spielernamen'!$G:$G,MATCH(Z57,'Eingabe Spielernamen'!$B:$B,0))) ->  | AI57: =IF(ISBLANK(AE57)," ",AE57+(AF57-AG57)*50+IF(COUNT(AE57:AE60)=3,(AG58+AG59+AG60)*40,(AG58+AG59+AG60)*30)) ->  | AJ57: 0 | AK57: =IF(COUNTIF(AL$13:AL57,AL57)>1,"X","") -> X | AL57: =IF(ISBLANK(AP57)," ",INDEX(CS:CS,MATCH(AP57,CR:CR,0))) ->  | AM57: =IF(ISBLANK(AP57)," ",INDEX('Eingabe Spielernamen'!$F:$F,MATCH(AL57,'Eingabe Spielernamen'!$B:$B,0))&", "&INDEX('Eingabe Spielernamen'!$G:$G,MATCH(AL57,'Eingabe Spielernamen'!$B:$B,0))) ->  | AU57: =IF(ISBLANK(AQ57)," ",AQ57+(AR57-AS57)*50+IF(COUNT(AQ57:AQ60)=3,(AS58+AS59+AS60)*40,(AS58+AS59+AS60)*30)) ->  | AV57: 0 | AW57: =IF(COUNTIF(AX$13:AX57,AX57)>1,"X","") -> X | AX57: =IF(ISBLANK(BB57)," ",INDEX(CX:CX,MATCH(BB57,CW:CW,0))) ->  | AY57: =IF(ISBLANK(BB57)," ",INDEX('Eingabe Spielernamen'!$F:$F,MATCH(AX57,'Eingabe Spielernamen'!$B:$B,0))&", "&INDEX('Eingabe Spielernamen'!$G:$G,MATCH(AX57,'Eingabe Spielernamen'!$B:$B,0))) ->  | BG57: =IF(ISBLANK(BC57)," ",BC57+(BD57-BE57)*50+IF(COUNT(BC57:BC60)=3,(BE58+BE59+BE60)*40,(BE58+BE59+BE60)*30)) ->  | BH57: 0 | BI57: =IF(COUNTIF(BJ$13:BJ57,BJ57)>1,"X","") -> X | BJ57: =IF(ISBLANK(BN57)," ",INDEX(DC:DC,MATCH(BN57,DB:DB,0))) ->  | BK57: =IF(ISBLANK(BN57)," ",INDEX('Eingabe Spielernamen'!$F:$F,MATCH(BJ57,'Eingabe Spielernamen'!$B:$B,0))&", "&INDEX('Eingabe Spielernamen'!$G:$G,MATCH(BJ57,'Eingabe Spielernamen'!$B:$B,0))) ->  | BS57: =IF(ISBLANK(BO57)," ",BO57+(BP57-BQ57)*50+IF(COUNT(BO57:BO60)=3,(BQ58+BQ59+BQ60)*40,(BQ58+BQ59+BQ60)*30)) ->  | BT57: 0 | BW57: =SUM(L57:L60) -> 0 | BX57: =SUM(X57:X60) -> 0 | BY57: =SUM(AJ57:AJ60) -> 0 | BZ57: =SUM(AV57:AV60) -> 0 | CA57: =SUM(BH57:BH60) -> 0 | CB57: =SUM(BT57:BT60) -> 0
A58: =IF(COUNTIF(B$13:B58,B58)>1,"X","") -> X | B58: =IF(ISBLANK(F57)," ",INDEX(CE:CE,MATCH(F57,CC:CC,0))) ->  | C58: =IF(ISBLANK(F58)," ",INDEX('Eingabe Spielernamen'!$F:$F,MATCH(B58,'Eingabe Spielernamen'!$B:$B,0))&", "&INDEX('Eingabe Spielernamen'!$G:$G,MATCH(B58,'Eingabe Spielernamen'!$B:$B,0))) ->  | F58: =F57 -> 0 | K58: =IF(ISBLANK(G58)," ",G58+(H58-I58)*50+IF(COUNT(G57:G60)=3,(I57+I59+I60)*40,(I57+I59+I60)*30)) ->  | L58: 0 | M58: =IF(COUNTIF(N$13:N58,N58)>1,"X","") -> X | N58: =IF(ISBLANK(R57)," ",INDEX(CJ:CJ,MATCH(R57,CH:CH,0))) ->  | O58: =IF(ISBLANK(R58)," ",INDEX('Eingabe Spielernamen'!$F:$F,MATCH(N58,'Eingabe Spielernamen'!$B:$B,0))&", "&INDEX('Eingabe Spielernamen'!$G:$G,MATCH(N58,'Eingabe Spielernamen'!$B:$B,0))) ->  | R58: =R57 -> 0 | W58: =IF(ISBLANK(S58)," ",S58+(T58-U58)*50+IF(COUNT(S57:S60)=3,(U57+U59+U60)*40,(U57+U59+U60)*30)) ->  | X58: 0 | Y58: =IF(COUNTIF(Z$13:Z58,Z58)>1,"X","") -> X | Z58: =IF(ISBLANK(AD57)," ",INDEX(CO:CO,MATCH(AD57,CM:CM,0))) ->  | AA58: =IF(ISBLANK(AD58)," ",INDEX('Eingabe Spielernamen'!$F:$F,MATCH(Z58,'Eingabe Spielernamen'!$B:$B,0))&", "&INDEX('Eingabe Spielernamen'!$G:$G,MATCH(Z58,'Eingabe Spielernamen'!$B:$B,0))) ->  | AD58: =AD57 -> 0 | AI58: =IF(ISBLANK(AE58)," ",AE58+(AF58-AG58)*50+IF(COUNT(AE57:AE60)=3,(AG57+AG59+AG60)*40,(AG57+AG59+AG60)*30)) ->  | AJ58: 0 | AK58: =IF(COUNTIF(AL$13:AL58,AL58)>1,"X","") -> X | AL58: =IF(ISBLANK(AP57)," ",INDEX(CT:CT,MATCH(AP57,CR:CR,0))) ->  | AM58: =IF(ISBLANK(AP58)," ",INDEX('Eingabe Spielernamen'!$F:$F,MATCH(AL58,'Eingabe Spielernamen'!$B:$B,0))&", "&INDEX('Eingabe Spielernamen'!$G:$G,MATCH(AL58,'Eingabe Spielernamen'!$B:$B,0))) ->  | AP58: =AP57 -> 0 | AU58: =IF(ISBLANK(AQ58)," ",AQ58+(AR58-AS58)*50+IF(COUNT(AQ57:AQ60)=3,(AS57+AS59+AS60)*40,(AS57+AS59+AS60)*30)) ->  | AV58: 0 | AW58: =IF(COUNTIF(AX$13:AX58,AX58)>1,"X","") -> X | AX58: =IF(ISBLANK(BB57)," ",INDEX(CY:CY,MATCH(BB57,CW:CW,0))) ->  | AY58: =IF(ISBLANK(BB58)," ",INDEX('Eingabe Spielernamen'!$F:$F,MATCH(AX58,'Eingabe Spielernamen'!$B:$B,0))&", "&INDEX('Eingabe Spielernamen'!$G:$G,MATCH(AX58,'Eingabe Spielernamen'!$B:$B,0))) ->  | BB58: =BB57 -> 0 | BG58: =IF(ISBLANK(BC58)," ",BC58+(BD58-BE58)*50+IF(COUNT(BC57:BC60)=3,(BE57+BE59+BE60)*40,(BE57+BE59+BE60)*30)) ->  | BH58: 0 | BI58: =IF(COUNTIF(BJ$13:BJ58,BJ58)>1,"X","") -> X | BJ58: =IF(ISBLANK(BN57)," ",INDEX(DD:DD,MATCH(BN57,DB:DB,0))) ->  | BK58: =IF(ISBLANK(BN58)," ",INDEX('Eingabe Spielernamen'!$F:$F,MATCH(BJ58,'Eingabe Spielernamen'!$B:$B,0))&", "&INDEX('Eingabe Spielernamen'!$G:$G,MATCH(BJ58,'Eingabe Spielernamen'!$B:$B,0))) ->  | BN58: =BN57 -> 0 | BS58: =IF(ISBLANK(BO58)," ",BO58+(BP58-BQ58)*50+IF(COUNT(BO57:BO60)=3,(BQ57+BQ59+BQ60)*40,(BQ57+BQ59+BQ60)*30)) ->  | BT58: 0
A59: =IF(COUNTIF(B$13:B59,B59)>1,"X","") -> X | B59: =IF(ISBLANK(F57)," ",INDEX(CF:CF,MATCH(F57,CC:CC,0))) ->  | C59: =IF(ISBLANK(F59)," ",INDEX('Eingabe Spielernamen'!$F:$F,MATCH(B59,'Eingabe Spielernamen'!$B:$B,0))&", "&INDEX('Eingabe Spielernamen'!$G:$G,MATCH(B59,'Eingabe Spielernamen'!$B:$B,0))) ->  | F59: =F57 -> 0 | K59: =IF(ISBLANK(G59)," ",G59+(H59-I59)*50+IF(COUNT(G57:G60)=3,(I57+I58+I60)*40,(I57+I58+I60)*30)) ->  | L59: 0 | M59: =IF(COUNTIF(N$13:N59,N59)>1,"X","") -> X | N59: =IF(ISBLANK(R57)," ",INDEX(CK:CK,MATCH(R57,CH:CH,0))) ->  | O59: =IF(ISBLANK(R59)," ",INDEX('Eingabe Spielernamen'!$F:$F,MATCH(N59,'Eingabe Spielernamen'!$B:$B,0))&", "&INDEX('Eingabe Spielernamen'!$G:$G,MATCH(N59,'Eingabe Spielernamen'!$B:$B,0))) ->  | R59: =R57 -> 0 | W59: =IF(ISBLANK(S59)," ",S59+(T59-U59)*50+IF(COUNT(S57:S60)=3,(U57+U58+U60)*40,(U57+U58+U60)*30)) ->  | X59: 0 | Y59: =IF(COUNTIF(Z$13:Z59,Z59)>1,"X","") -> X | Z59: =IF(ISBLANK(AD57)," ",INDEX(CP:CP,MATCH(AD57,CM:CM,0))) ->  | AA59: =IF(ISBLANK(AD59)," ",INDEX('Eingabe Spielernamen'!$F:$F,MATCH(Z59,'Eingabe Spielernamen'!$B:$B,0))&", "&INDEX('Eingabe Spielernamen'!$G:$G,MATCH(Z59,'Eingabe Spielernamen'!$B:$B,0))) ->  | AD59: =AD57 -> 0 | AI59: =IF(ISBLANK(AE59)," ",AE59+(AF59-AG59)*50+IF(COUNT(AE57:AE60)=3,(AG57+AG58+AG60)*40,(AG57+AG58+AG60)*30)) ->  | AJ59: 0 | AK59: =IF(COUNTIF(AL$13:AL59,AL59)>1,"X","") -> X | AL59: =IF(ISBLANK(AP57)," ",INDEX(CU:CU,MATCH(AP57,CR:CR,0))) ->  | AM59: =IF(ISBLANK(AP59)," ",INDEX('Eingabe Spielernamen'!$F:$F,MATCH(AL59,'Eingabe Spielernamen'!$B:$B,0))&", "&INDEX('Eingabe Spielernamen'!$G:$G,MATCH(AL59,'Eingabe Spielernamen'!$B:$B,0))) ->  | AP59: =AP57 -> 0 | AU59: =IF(ISBLANK(AQ59)," ",AQ59+(AR59-AS59)*50+IF(COUNT(AQ57:AQ60)=3,(AS57+AS58+AS60)*40,(AS57+AS58+AS60)*30)) ->  | AV59: 0 | AW59: =IF(COUNTIF(AX$13:AX59,AX59)>1,"X","") -> X | AX59: =IF(ISBLANK(BB57)," ",INDEX(CZ:CZ,MATCH(BB57,CW:CW,0))) ->  | AY59: =IF(ISBLANK(BB59)," ",INDEX('Eingabe Spielernamen'!$F:$F,MATCH(AX59,'Eingabe Spielernamen'!$B:$B,0))&", "&INDEX('Eingabe Spielernamen'!$G:$G,MATCH(AX59,'Eingabe Spielernamen'!$B:$B,0))) ->  | BB59: =BB57 -> 0 | BG59: =IF(ISBLANK(BC59)," ",BC59+(BD59-BE59)*50+IF(COUNT(BC57:BC60)=3,(BE57+BE58+BE60)*40,(BE57+BE58+BE60)*30)) ->  | BH59: 0 | BI59: =IF(COUNTIF(BJ$13:BJ59,BJ59)>1,"X","") -> X | BJ59: =IF(ISBLANK(BN57)," ",INDEX(DE:DE,MATCH(BN57,DB:DB,0))) ->  | BK59: =IF(ISBLANK(BN59)," ",INDEX('Eingabe Spielernamen'!$F:$F,MATCH(BJ59,'Eingabe Spielernamen'!$B:$B,0))&", "&INDEX('Eingabe Spielernamen'!$G:$G,MATCH(BJ59,'Eingabe Spielernamen'!$B:$B,0))) ->  | BN59: =BN57 -> 0 | BS59: =IF(ISBLANK(BO59)," ",BO59+(BP59-BQ59)*50+IF(COUNT(BO57:BO60)=3,(BQ57+BQ58+BQ60)*40,(BQ57+BQ58+BQ60)*30)) ->  | BT59: 0
A60: =IF(COUNTIF(B$13:B60,B60)>1,"X","") -> X | B60: =IF(ISBLANK(F57)," ",INDEX(CG:CG,MATCH(F57,CC:CC,0))) ->  | C60: =IF(ISBLANK(F60)," ",INDEX('Eingabe Spielernamen'!$F:$F,MATCH(B60,'Eingabe Spielernamen'!$B:$B,0))&", "&INDEX('Eingabe Spielernamen'!$G:$G,MATCH(B60,'Eingabe Spielernamen'!$B:$B,0))) ->  | F60: =F57 -> 0 | K60: =IF(ISBLANK(G60)," ",G60+(H60-I60)*50+IF(COUNT(G57:G60)=3,(I57+I58+I59)*40,(I57+I58+I59)*30)) ->  | L60: 0 | M60: =IF(COUNTIF(N$13:N60,N60)>1,"X","") -> X | N60: =IF(ISBLANK(R57)," ",INDEX(CL:CL,MATCH(R57,CH:CH,0))) ->  | O60: =IF(ISBLANK(R60)," ",INDEX('Eingabe Spielernamen'!$F:$F,MATCH(N60,'Eingabe Spielernamen'!$B:$B,0))&", "&INDEX('Eingabe Spielernamen'!$G:$G,MATCH(N60,'Eingabe Spielernamen'!$B:$B,0))) ->  | R60: =R57 -> 0 | W60: =IF(ISBLANK(S60)," ",S60+(T60-U60)*50+IF(COUNT(S57:S60)=3,(U57+U58+U59)*40,(U57+U58+U59)*30)) ->  | X60: 0 | Y60: =IF(COUNTIF(Z$13:Z60,Z60)>1,"X","") -> X | Z60: =IF(ISBLANK(AD57)," ",INDEX(CQ:CQ,MATCH(AD57,CM:CM,0))) ->  | AA60: =IF(ISBLANK(AD60)," ",INDEX('Eingabe Spielernamen'!$F:$F,MATCH(Z60,'Eingabe Spielernamen'!$B:$B,0))&", "&INDEX('Eingabe Spielernamen'!$G:$G,MATCH(Z60,'Eingabe Spielernamen'!$B:$B,0))) ->  | AD60: =AD57 -> 0 | AI60: =IF(ISBLANK(AE60)," ",AE60+(AF60-AG60)*50+IF(COUNT(AE57:AE60)=3,(AG57+AG58+AG59)*40,(AG57+AG58+AG59)*30)) ->  | AJ60: 0 | AK60: =IF(COUNTIF(AL$13:AL60,AL60)>1,"X","") -> X | AL60: =IF(ISBLANK(AP57)," ",INDEX(CV:CV,MATCH(AP57,CR:CR,0))) ->  | AM60: =IF(ISBLANK(AP60)," ",INDEX('Eingabe Spielernamen'!$F:$F,MATCH(AL60,'Eingabe Spielernamen'!$B:$B,0))&", "&INDEX('Eingabe Spielernamen'!$G:$G,MATCH(AL60,'Eingabe Spielernamen'!$B:$B,0))) ->  | AP60: =AP57 -> 0 | AU60: =IF(ISBLANK(AQ60)," ",AQ60+(AR60-AS60)*50+IF(COUNT(AQ57:AQ60)=3,(AS57+AS58+AS59)*40,(AS57+AS58+AS59)*30)) ->  | AV60: 0 | AW60: =IF(COUNTIF(AX$13:AX60,AX60)>1,"X","") -> X | AX60: =IF(ISBLANK(BB57)," ",INDEX(DA:DA,MATCH(BB57,CW:CW,0))) ->  | AY60: =IF(ISBLANK(BB60)," ",INDEX('Eingabe Spielernamen'!$F:$F,MATCH(AX60,'Eingabe Spielernamen'!$B:$B,0))&", "&INDEX('Eingabe Spielernamen'!$G:$G,MATCH(AX60,'Eingabe Spielernamen'!$B:$B,0))) ->  | BB60: =BB57 -> 0 | BG60: =IF(ISBLANK(BC60)," ",BC60+(BD60-BE60)*50+IF(COUNT(BC57:BC60)=3,(BE57+BE58+BE59)*40,(BE57+BE58+BE59)*30)) ->  | BH60: 0 | BI60: =IF(COUNTIF(BJ$13:BJ60,BJ60)>1,"X","") -> X | BJ60: =IF(ISBLANK(BN57)," ",INDEX(DF:DF,MATCH(BN57,DB:DB,0))) ->  | BK60: =IF(ISBLANK(BN60)," ",INDEX('Eingabe Spielernamen'!$F:$F,MATCH(BJ60,'Eingabe Spielernamen'!$B:$B,0))&", "&INDEX('Eingabe Spielernamen'!$G:$G,MATCH(BJ60,'Eingabe Spielernamen'!$B:$B,0))) ->  | BN60: =BN57 -> 0 | BS60: =IF(ISBLANK(BO60)," ",BO60+(BP60-BQ60)*50+IF(COUNT(BO57:BO60)=3,(BQ57+BQ58+BQ59)*40,(BQ57+BQ58+BQ59)*30)) ->  | BT60: 0
A61: =IF(COUNTIF(B$13:B61,B61)>1,"X","") -> X | B61: =IF(ISBLANK(F61)," ",INDEX(CD:CD,MATCH(F61,CC:CC,0))) ->  | C61: =IF(ISBLANK(F61)," ",INDEX('Eingabe Spielernamen'!$F:$F,MATCH(B61,'Eingabe Spielernamen'!$B:$B,0))&", "&INDEX('Eingabe Spielernamen'!$G:$G,MATCH(B61,'Eingabe Spielernamen'!$B:$B,0))) ->  | K61: =IF(ISBLANK(G61)," ",G61+(H61-I61)*50+IF(COUNT(G61:G64)=3,(I62+I63+I64)*40,(I62+I63+I64)*30)) ->  | L61: 0 | M61: =IF(COUNTIF(N$13:N61,N61)>1,"X","") -> X | N61: =IF(ISBLANK(R61)," ",INDEX(CI:CI,MATCH(R61,CH:CH,0))) ->  | O61: =IF(ISBLANK(R61)," ",INDEX('Eingabe Spielernamen'!$F:$F,MATCH(N61,'Eingabe Spielernamen'!$B:$B,0))&", "&INDEX('Eingabe Spielernamen'!$G:$G,MATCH(N61,'Eingabe Spielernamen'!$B:$B,0))) ->  | W61: =IF(ISBLANK(S61)," ",S61+(T61-U61)*50+IF(COUNT(S61:S64)=3,(U62+U63+U64)*40,(U62+U63+U64)*30)) ->  | X61: 0 | Y61: =IF(COUNTIF(Z$13:Z61,Z61)>1,"X","") -> X | Z61: =IF(ISBLANK(AD61)," ",INDEX(CN:CN,MATCH(AD61,CM:CM,0))) ->  | AA61: =IF(ISBLANK(AD61)," ",INDEX('Eingabe Spielernamen'!$F:$F,MATCH(Z61,'Eingabe Spielernamen'!$B:$B,0))&", "&INDEX('Eingabe Spielernamen'!$G:$G,MATCH(Z61,'Eingabe Spielernamen'!$B:$B,0))) ->  | AI61: =IF(ISBLANK(AE61)," ",AE61+(AF61-AG61)*50+IF(COUNT(AE61:AE64)=3,(AG62+AG63+AG64)*40,(AG62+AG63+AG64)*30)) ->  | AJ61: 0 | AK61: =IF(COUNTIF(AL$13:AL61,AL61)>1,"X","") -> X | AL61: =IF(ISBLANK(AP61)," ",INDEX(CS:CS,MATCH(AP61,CR:CR,0))) ->  | AM61: =IF(ISBLANK(AP61)," ",INDEX('Eingabe Spielernamen'!$F:$F,MATCH(AL61,'Eingabe Spielernamen'!$B:$B,0))&", "&INDEX('Eingabe Spielernamen'!$G:$G,MATCH(AL61,'Eingabe Spielernamen'!$B:$B,0))) ->  | AU61: =IF(ISBLANK(AQ61)," ",AQ61+(AR61-AS61)*50+IF(COUNT(AQ61:AQ64)=3,(AS62+AS63+AS64)*40,(AS62+AS63+AS64)*30)) ->  | AV61: 0 | AW61: =IF(COUNTIF(AX$13:AX61,AX61)>1,"X","") -> X | AX61: =IF(ISBLANK(BB61)," ",INDEX(CX:CX,MATCH(BB61,CW:CW,0))) ->  | AY61: =IF(ISBLANK(BB61)," ",INDEX('Eingabe Spielernamen'!$F:$F,MATCH(AX61,'Eingabe Spielernamen'!$B:$B,0))&", "&INDEX('Eingabe Spielernamen'!$G:$G,MATCH(AX61,'Eingabe Spielernamen'!$B:$B,0))) ->  | BG61: =IF(ISBLANK(BC61)," ",BC61+(BD61-BE61)*50+IF(COUNT(BC61:BC64)=3,(BE62+BE63+BE64)*40,(BE62+BE63+BE64)*30)) ->  | BH61: 0 | BI61: =IF(COUNTIF(BJ$13:BJ61,BJ61)>1,"X","") -> X | BJ61: =IF(ISBLANK(BN61)," ",INDEX(DC:DC,MATCH(BN61,DB:DB,0))) ->  | BK61: =IF(ISBLANK(BN61)," ",INDEX('Eingabe Spielernamen'!$F:$F,MATCH(BJ61,'Eingabe Spielernamen'!$B:$B,0))&", "&INDEX('Eingabe Spielernamen'!$G:$G,MATCH(BJ61,'Eingabe Spielernamen'!$B:$B,0))) ->  | BS61: =IF(ISBLANK(BO61)," ",BO61+(BP61-BQ61)*50+IF(COUNT(BO61:BO64)=3,(BQ62+BQ63+BQ64)*40,(BQ62+BQ63+BQ64)*30)) ->  | BT61: 0 | BW61: =SUM(L61:L64) -> 0 | BX61: =SUM(X61:X64) -> 0 | BY61: =SUM(AJ61:AJ64) -> 0 | BZ61: =SUM(AV61:AV64) -> 0 | CA61: =SUM(BH61:BH64) -> 0 | CB61: =SUM(BT61:BT64) -> 0
A62: =IF(COUNTIF(B$13:B62,B62)>1,"X","") -> X | B62: =IF(ISBLANK(F61)," ",INDEX(CE:CE,MATCH(F61,CC:CC,0))) ->  | C62: =IF(ISBLANK(F62)," ",INDEX('Eingabe Spielernamen'!$F:$F,MATCH(B62,'Eingabe Spielernamen'!$B:$B,0))&", "&INDEX('Eingabe Spielernamen'!$G:$G,MATCH(B62,'Eingabe Spielernamen'!$B:$B,0))) ->  | F62: =F61 -> 0 | K62: =IF(ISBLANK(G62)," ",G62+(H62-I62)*50+IF(COUNT(G61:G64)=3,(I61+I63+I64)*40,(I61+I63+I64)*30)) ->  | L62: 0 | M62: =IF(COUNTIF(N$13:N62,N62)>1,"X","") -> X | N62: =IF(ISBLANK(R61)," ",INDEX(CJ:CJ,MATCH(R61,CH:CH,0))) ->  | O62: =IF(ISBLANK(R62)," ",INDEX('Eingabe Spielernamen'!$F:$F,MATCH(N62,'Eingabe Spielernamen'!$B:$B,0))&", "&INDEX('Eingabe Spielernamen'!$G:$G,MATCH(N62,'Eingabe Spielernamen'!$B:$B,0))) ->  | R62: =R61 -> 0 | W62: =IF(ISBLANK(S62)," ",S62+(T62-U62)*50+IF(COUNT(S61:S64)=3,(U61+U63+U64)*40,(U61+U63+U64)*30)) ->  | X62: 0 | Y62: =IF(COUNTIF(Z$13:Z62,Z62)>1,"X","") -> X | Z62: =IF(ISBLANK(AD61)," ",INDEX(CO:CO,MATCH(AD61,CM:CM,0))) ->  | AA62: =IF(ISBLANK(AD62)," ",INDEX('Eingabe Spielernamen'!$F:$F,MATCH(Z62,'Eingabe Spielernamen'!$B:$B,0))&", "&INDEX('Eingabe Spielernamen'!$G:$G,MATCH(Z62,'Eingabe Spielernamen'!$B:$B,0))) ->  | AD62: =AD61 -> 0 | AI62: =IF(ISBLANK(AE62)," ",AE62+(AF62-AG62)*50+IF(COUNT(AE61:AE64)=3,(AG61+AG63+AG64)*40,(AG61+AG63+AG64)*30)) ->  | AJ62: 0 | AK62: =IF(COUNTIF(AL$13:AL62,AL62)>1,"X","") -> X | AL62: =IF(ISBLANK(AP61)," ",INDEX(CT:CT,MATCH(AP61,CR:CR,0))) ->  | AM62: =IF(ISBLANK(AP62)," ",INDEX('Eingabe Spielernamen'!$F:$F,MATCH(AL62,'Eingabe Spielernamen'!$B:$B,0))&", "&INDEX('Eingabe Spielernamen'!$G:$G,MATCH(AL62,'Eingabe Spielernamen'!$B:$B,0))) ->  | AP62: =AP61 -> 0 | AU62: =IF(ISBLANK(AQ62)," ",AQ62+(AR62-AS62)*50+IF(COUNT(AQ61:AQ64)=3,(AS61+AS63+AS64)*40,(AS61+AS63+AS64)*30)) ->  | AV62: 0 | AW62: =IF(COUNTIF(AX$13:AX62,AX62)>1,"X","") -> X | AX62: =IF(ISBLANK(BB61)," ",INDEX(CY:CY,MATCH(BB61,CW:CW,0))) ->  | AY62: =IF(ISBLANK(BB62)," ",INDEX('Eingabe Spielernamen'!$F:$F,MATCH(AX62,'Eingabe Spielernamen'!$B:$B,0))&", "&INDEX('Eingabe Spielernamen'!$G:$G,MATCH(AX62,'Eingabe Spielernamen'!$B:$B,0))) ->  | BB62: =BB61 -> 0 | BG62: =IF(ISBLANK(BC62)," ",BC62+(BD62-BE62)*50+IF(COUNT(BC61:BC64)=3,(BE61+BE63+BE64)*40,(BE61+BE63+BE64)*30)) ->  | BH62: 0 | BI62: =IF(COUNTIF(BJ$13:BJ62,BJ62)>1,"X","") -> X | BJ62: =IF(ISBLANK(BN61)," ",INDEX(DD:DD,MATCH(BN61,DB:DB,0))) ->  | BK62: =IF(ISBLANK(BN62)," ",INDEX('Eingabe Spielernamen'!$F:$F,MATCH(BJ62,'Eingabe Spielernamen'!$B:$B,0))&", "&INDEX('Eingabe Spielernamen'!$G:$G,MATCH(BJ62,'Eingabe Spielernamen'!$B:$B,0))) ->  | BN62: =BN61 -> 0 | BS62: =IF(ISBLANK(BO62)," ",BO62+(BP62-BQ62)*50+IF(COUNT(BO61:BO64)=3,(BQ61+BQ63+BQ64)*40,(BQ61+BQ63+BQ64)*30)) ->  | BT62: 0
A63: =IF(COUNTIF(B$13:B63,B63)>1,"X","") -> X | B63: =IF(ISBLANK(F61)," ",INDEX(CF:CF,MATCH(F61,CC:CC,0))) ->  | C63: =IF(ISBLANK(F63)," ",INDEX('Eingabe Spielernamen'!$F:$F,MATCH(B63,'Eingabe Spielernamen'!$B:$B,0))&", "&INDEX('Eingabe Spielernamen'!$G:$G,MATCH(B63,'Eingabe Spielernamen'!$B:$B,0))) ->  | F63: =F61 -> 0 | K63: =IF(ISBLANK(G63)," ",G63+(H63-I63)*50+IF(COUNT(G61:G64)=3,(I61+I62+I64)*40,(I61+I62+I64)*30)) ->  | L63: 0 | M63: =IF(COUNTIF(N$13:N63,N63)>1,"X","") -> X | N63: =IF(ISBLANK(R61)," ",INDEX(CK:CK,MATCH(R61,CH:CH,0))) ->  | O63: =IF(ISBLANK(R63)," ",INDEX('Eingabe Spielernamen'!$F:$F,MATCH(N63,'Eingabe Spielernamen'!$B:$B,0))&", "&INDEX('Eingabe Spielernamen'!$G:$G,MATCH(N63,'Eingabe Spielernamen'!$B:$B,0))) ->  | R63: =R61 -> 0 | W63: =IF(ISBLANK(S63)," ",S63+(T63-U63)*50+IF(COUNT(S61:S64)=3,(U61+U62+U64)*40,(U61+U62+U64)*30)) ->  | X63: 0 | Y63: =IF(COUNTIF(Z$13:Z63,Z63)>1,"X","") -> X | Z63: =IF(ISBLANK(AD61)," ",INDEX(CP:CP,MATCH(AD61,CM:CM,0))) ->  | AA63: =IF(ISBLANK(AD63)," ",INDEX('Eingabe Spielernamen'!$F:$F,MATCH(Z63,'Eingabe Spielernamen'!$B:$B,0))&", "&INDEX('Eingabe Spielernamen'!$G:$G,MATCH(Z63,'Eingabe Spielernamen'!$B:$B,0))) ->  | AD63: =AD61 -> 0 | AI63: =IF(ISBLANK(AE63)," ",AE63+(AF63-AG63)*50+IF(COUNT(AE61:AE64)=3,(AG61+AG62+AG64)*40,(AG61+AG62+AG64)*30)) ->  | AJ63: 0 | AK63: =IF(COUNTIF(AL$13:AL63,AL63)>1,"X","") -> X | AL63: =IF(ISBLANK(AP61)," ",INDEX(CU:CU,MATCH(AP61,CR:CR,0))) ->  | AM63: =IF(ISBLANK(AP63)," ",INDEX('Eingabe Spielernamen'!$F:$F,MATCH(AL63,'Eingabe Spielernamen'!$B:$B,0))&", "&INDEX('Eingabe Spielernamen'!$G:$G,MATCH(AL63,'Eingabe Spielernamen'!$B:$B,0))) ->  | AP63: =AP61 -> 0 | AU63: =IF(ISBLANK(AQ63)," ",AQ63+(AR63-AS63)*50+IF(COUNT(AQ61:AQ64)=3,(AS61+AS62+AS64)*40,(AS61+AS62+AS64)*30)) ->  | AV63: 0 | AW63: =IF(COUNTIF(AX$13:AX63,AX63)>1,"X","") -> X | AX63: =IF(ISBLANK(BB61)," ",INDEX(CZ:CZ,MATCH(BB61,CW:CW,0))) ->  | AY63: =IF(ISBLANK(BB63)," ",INDEX('Eingabe Spielernamen'!$F:$F,MATCH(AX63,'Eingabe Spielernamen'!$B:$B,0))&", "&INDEX('Eingabe Spielernamen'!$G:$G,MATCH(AX63,'Eingabe Spielernamen'!$B:$B,0))) ->  | BB63: =BB61 -> 0 | BG63: =IF(ISBLANK(BC63)," ",BC63+(BD63-BE63)*50+IF(COUNT(BC61:BC64)=3,(BE61+BE62+BE64)*40,(BE61+BE62+BE64)*30)) ->  | BH63: 0 | BI63: =IF(COUNTIF(BJ$13:BJ63,BJ63)>1,"X","") -> X | BJ63: =IF(ISBLANK(BN61)," ",INDEX(DE:DE,MATCH(BN61,DB:DB,0))) ->  | BK63: =IF(ISBLANK(BN63)," ",INDEX('Eingabe Spielernamen'!$F:$F,MATCH(BJ63,'Eingabe Spielernamen'!$B:$B,0))&", "&INDEX('Eingabe Spielernamen'!$G:$G,MATCH(BJ63,'Eingabe Spielernamen'!$B:$B,0))) ->  | BN63: =BN61 -> 0 | BS63: =IF(ISBLANK(BO63)," ",BO63+(BP63-BQ63)*50+IF(COUNT(BO61:BO64)=3,(BQ61+BQ62+BQ64)*40,(BQ61+BQ62+BQ64)*30)) ->  | BT63: 0
A64: =IF(COUNTIF(B$13:B64,B64)>1,"X","") -> X | B64: =IF(ISBLANK(F61)," ",INDEX(CG:CG,MATCH(F61,CC:CC,0))) ->  | C64: =IF(ISBLANK(F64)," ",INDEX('Eingabe Spielernamen'!$F:$F,MATCH(B64,'Eingabe Spielernamen'!$B:$B,0))&", "&INDEX('Eingabe Spielernamen'!$G:$G,MATCH(B64,'Eingabe Spielernamen'!$B:$B,0))) ->  | F64: =F61 -> 0 | K64: =IF(ISBLANK(G64)," ",G64+(H64-I64)*50+IF(COUNT(G61:G64)=3,(I61+I62+I63)*40,(I61+I62+I63)*30)) ->  | L64: 0 | M64: =IF(COUNTIF(N$13:N64,N64)>1,"X","") -> X | N64: =IF(ISBLANK(R61)," ",INDEX(CL:CL,MATCH(R61,CH:CH,0))) ->  | O64: =IF(ISBLANK(R64)," ",INDEX('Eingabe Spielernamen'!$F:$F,MATCH(N64,'Eingabe Spielernamen'!$B:$B,0))&", "&INDEX('Eingabe Spielernamen'!$G:$G,MATCH(N64,'Eingabe Spielernamen'!$B:$B,0))) ->  | R64: =R61 -> 0 | W64: =IF(ISBLANK(S64)," ",S64+(T64-U64)*50+IF(COUNT(S61:S64)=3,(U61+U62+U63)*40,(U61+U62+U63)*30)) ->  | X64: 0 | Y64: =IF(COUNTIF(Z$13:Z64,Z64)>1,"X","") -> X | Z64: =IF(ISBLANK(AD61)," ",INDEX(CQ:CQ,MATCH(AD61,CM:CM,0))) ->  | AA64: =IF(ISBLANK(AD64)," ",INDEX('Eingabe Spielernamen'!$F:$F,MATCH(Z64,'Eingabe Spielernamen'!$B:$B,0))&", "&INDEX('Eingabe Spielernamen'!$G:$G,MATCH(Z64,'Eingabe Spielernamen'!$B:$B,0))) ->  | AD64: =AD61 -> 0 | AI64: =IF(ISBLANK(AE64)," ",AE64+(AF64-AG64)*50+IF(COUNT(AE61:AE64)=3,(AG61+AG62+AG63)*40,(AG61+AG62+AG63)*30)) ->  | AJ64: 0 | AK64: =IF(COUNTIF(AL$13:AL64,AL64)>1,"X","") -> X | AL64: =IF(ISBLANK(AP61)," ",INDEX(CV:CV,MATCH(AP61,CR:CR,0))) ->  | AM64: =IF(ISBLANK(AP64)," ",INDEX('Eingabe Spielernamen'!$F:$F,MATCH(AL64,'Eingabe Spielernamen'!$B:$B,0))&", "&INDEX('Eingabe Spielernamen'!$G:$G,MATCH(AL64,'Eingabe Spielernamen'!$B:$B,0))) ->  | AP64: =AP61 -> 0 | AU64: =IF(ISBLANK(AQ64)," ",AQ64+(AR64-AS64)*50+IF(COUNT(AQ61:AQ64)=3,(AS61+AS62+AS63)*40,(AS61+AS62+AS63)*30)) ->  | AV64: 0 | AW64: =IF(COUNTIF(AX$13:AX64,AX64)>1,"X","") -> X | AX64: =IF(ISBLANK(BB61)," ",INDEX(DA:DA,MATCH(BB61,CW:CW,0))) ->  | AY64: =IF(ISBLANK(BB64)," ",INDEX('Eingabe Spielernamen'!$F:$F,MATCH(AX64,'Eingabe Spielernamen'!$B:$B,0))&", "&INDEX('Eingabe Spielernamen'!$G:$G,MATCH(AX64,'Eingabe Spielernamen'!$B:$B,0))) ->  | BB64: =BB61 -> 0 | BG64: =IF(ISBLANK(BC64)," ",BC64+(BD64-BE64)*50+IF(COUNT(BC61:BC64)=3,(BE61+BE62+BE63)*40,(BE61+BE62+BE63)*30)) ->  | BH64: 0 | BI64: =IF(COUNTIF(BJ$13:BJ64,BJ64)>1,"X","") -> X | BJ64: =IF(ISBLANK(BN61)," ",INDEX(DF:DF,MATCH(BN61,DB:DB,0))) ->  | BK64: =IF(ISBLANK(BN64)," ",INDEX('Eingabe Spielernamen'!$F:$F,MATCH(BJ64,'Eingabe Spielernamen'!$B:$B,0))&", "&INDEX('Eingabe Spielernamen'!$G:$G,MATCH(BJ64,'Eingabe Spielernamen'!$B:$B,0))) ->  | BN64: =BN61 -> 0 | BS64: =IF(ISBLANK(BO64)," ",BO64+(BP64-BQ64)*50+IF(COUNT(BO61:BO64)=3,(BQ61+BQ62+BQ63)*40,(BQ61+BQ62+BQ63)*30)) ->  | BT64: 0
A65: =IF(COUNTIF(B$13:B65,B65)>1,"X","") -> X | B65: =IF(ISBLANK(F65)," ",INDEX(CD:CD,MATCH(F65,CC:CC,0))) ->  | C65: =IF(ISBLANK(F65)," ",INDEX('Eingabe Spielernamen'!$F:$F,MATCH(B65,'Eingabe Spielernamen'!$B:$B,0))&", "&INDEX('Eingabe Spielernamen'!$G:$G,MATCH(B65,'Eingabe Spielernamen'!$B:$B,0))) ->  | K65: =IF(ISBLANK(G65)," ",G65+(H65-I65)*50+IF(COUNT(G65:G68)=3,(I66+I67+I68)*40,(I66+I67+I68)*30)) ->  | L65: 0 | M65: =IF(COUNTIF(N$13:N65,N65)>1,"X","") -> X | N65: =IF(ISBLANK(R65)," ",INDEX(CI:CI,MATCH(R65,CH:CH,0))) ->  | O65: =IF(ISBLANK(R65)," ",INDEX('Eingabe Spielernamen'!$F:$F,MATCH(N65,'Eingabe Spielernamen'!$B:$B,0))&", "&INDEX('Eingabe Spielernamen'!$G:$G,MATCH(N65,'Eingabe Spielernamen'!$B:$B,0))) ->  | W65: =IF(ISBLANK(S65)," ",S65+(T65-U65)*50+IF(COUNT(S65:S68)=3,(U66+U67+U68)*40,(U66+U67+U68)*30)) ->  | X65: 0 | Y65: =IF(COUNTIF(Z$13:Z65,Z65)>1,"X","") -> X | Z65: =IF(ISBLANK(AD65)," ",INDEX(CN:CN,MATCH(AD65,CM:CM,0))) ->  | AA65: =IF(ISBLANK(AD65)," ",INDEX('Eingabe Spielernamen'!$F:$F,MATCH(Z65,'Eingabe Spielernamen'!$B:$B,0))&", "&INDEX('Eingabe Spielernamen'!$G:$G,MATCH(Z65,'Eingabe Spielernamen'!$B:$B,0))) ->  | AI65: =IF(ISBLANK(AE65)," ",AE65+(AF65-AG65)*50+IF(COUNT(AE65:AE68)=3,(AG66+AG67+AG68)*40,(AG66+AG67+AG68)*30)) ->  | AJ65: 0 | AK65: =IF(COUNTIF(AL$13:AL65,AL65)>1,"X","") -> X | AL65: =IF(ISBLANK(AP65)," ",INDEX(CS:CS,MATCH(AP65,CR:CR,0))) ->  | AM65: =IF(ISBLANK(AP65)," ",INDEX('Eingabe Spielernamen'!$F:$F,MATCH(AL65,'Eingabe Spielernamen'!$B:$B,0))&", "&INDEX('Eingabe Spielernamen'!$G:$G,MATCH(AL65,'Eingabe Spielernamen'!$B:$B,0))) ->  | AU65: =IF(ISBLANK(AQ65)," ",AQ65+(AR65-AS65)*50+IF(COUNT(AQ65:AQ68)=3,(AS66+AS67+AS68)*40,(AS66+AS67+AS68)*30)) ->  | AV65: 0 | AW65: =IF(COUNTIF(AX$13:AX65,AX65)>1,"X","") -> X | AX65: =IF(ISBLANK(BB65)," ",INDEX(CX:CX,MATCH(BB65,CW:CW,0))) ->  | AY65: =IF(ISBLANK(BB65)," ",INDEX('Eingabe Spielernamen'!$F:$F,MATCH(AX65,'Eingabe Spielernamen'!$B:$B,0))&", "&INDEX('Eingabe Spielernamen'!$G:$G,MATCH(AX65,'Eingabe Spielernamen'!$B:$B,0))) ->  | BG65: =IF(ISBLANK(BC65)," ",BC65+(BD65-BE65)*50+IF(COUNT(BC65:BC68)=3,(BE66+BE67+BE68)*40,(BE66+BE67+BE68)*30)) ->  | BH65: 0 | BI65: =IF(COUNTIF(BJ$13:BJ65,BJ65)>1,"X","") -> X | BJ65: =IF(ISBLANK(BN65)," ",INDEX(DC:DC,MATCH(BN65,DB:DB,0))) ->  | BK65: =IF(ISBLANK(BN65)," ",INDEX('Eingabe Spielernamen'!$F:$F,MATCH(BJ65,'Eingabe Spielernamen'!$B:$B,0))&", "&INDEX('Eingabe Spielernamen'!$G:$G,MATCH(BJ65,'Eingabe Spielernamen'!$B:$B,0))) ->  | BS65: =IF(ISBLANK(BO65)," ",BO65+(BP65-BQ65)*50+IF(COUNT(BO65:BO68)=3,(BQ66+BQ67+BQ68)*40,(BQ66+BQ67+BQ68)*30)) ->  | BT65: 0 | BW65: =SUM(L65:L68) -> 0 | BX65: =SUM(X65:X68) -> 0 | BY65: =SUM(AJ65:AJ68) -> 0 | BZ65: =SUM(AV65:AV68) -> 0 | CA65: =SUM(BH65:BH68) -> 0 | CB65: =SUM(BT65:BT68) -> 0
A66: =IF(COUNTIF(B$13:B66,B66)>1,"X","") -> X | B66: =IF(ISBLANK(F65)," ",INDEX(CE:CE,MATCH(F65,CC:CC,0))) ->  | C66: =IF(ISBLANK(F66)," ",INDEX('Eingabe Spielernamen'!$F:$F,MATCH(B66,'Eingabe Spielernamen'!$B:$B,0))&", "&INDEX('Eingabe Spielernamen'!$G:$G,MATCH(B66,'Eingabe Spielernamen'!$B:$B,0))) ->  | F66: =F65 -> 0 | K66: =IF(ISBLANK(G66)," ",G66+(H66-I66)*50+IF(COUNT(G65:G68)=3,(I65+I67+I68)*40,(I65+I67+I68)*30)) ->  | L66: 0 | M66: =IF(COUNTIF(N$13:N66,N66)>1,"X","") -> X | N66: =IF(ISBLANK(R65)," ",INDEX(CJ:CJ,MATCH(R65,CH:CH,0))) ->  | O66: =IF(ISBLANK(R66)," ",INDEX('Eingabe Spielernamen'!$F:$F,MATCH(N66,'Eingabe Spielernamen'!$B:$B,0))&", "&INDEX('Eingabe Spielernamen'!$G:$G,MATCH(N66,'Eingabe Spielernamen'!$B:$B,0))) ->  | R66: =R65 -> 0 | W66: =IF(ISBLANK(S66)," ",S66+(T66-U66)*50+IF(COUNT(S65:S68)=3,(U65+U67+U68)*40,(U65+U67+U68)*30)) ->  | X66: 0 | Y66: =IF(COUNTIF(Z$13:Z66,Z66)>1,"X","") -> X | Z66: =IF(ISBLANK(AD65)," ",INDEX(CO:CO,MATCH(AD65,CM:CM,0))) ->  | AA66: =IF(ISBLANK(AD66)," ",INDEX('Eingabe Spielernamen'!$F:$F,MATCH(Z66,'Eingabe Spielernamen'!$B:$B,0))&", "&INDEX('Eingabe Spielernamen'!$G:$G,MATCH(Z66,'Eingabe Spielernamen'!$B:$B,0))) ->  | AD66: =AD65 -> 0 | AI66: =IF(ISBLANK(AE66)," ",AE66+(AF66-AG66)*50+IF(COUNT(AE65:AE68)=3,(AG65+AG67+AG68)*40,(AG65+AG67+AG68)*30)) ->  | AJ66: 0 | AK66: =IF(COUNTIF(AL$13:AL66,AL66)>1,"X","") -> X | AL66: =IF(ISBLANK(AP65)," ",INDEX(CT:CT,MATCH(AP65,CR:CR,0))) ->  | AM66: =IF(ISBLANK(AP66)," ",INDEX('Eingabe Spielernamen'!$F:$F,MATCH(AL66,'Eingabe Spielernamen'!$B:$B,0))&", "&INDEX('Eingabe Spielernamen'!$G:$G,MATCH(AL66,'Eingabe Spielernamen'!$B:$B,0))) ->  | AP66: =AP65 -> 0 | AU66: =IF(ISBLANK(AQ66)," ",AQ66+(AR66-AS66)*50+IF(COUNT(AQ65:AQ68)=3,(AS65+AS67+AS68)*40,(AS65+AS67+AS68)*30)) ->  | AV66: 0 | AW66: =IF(COUNTIF(AX$13:AX66,AX66)>1,"X","") -> X | AX66: =IF(ISBLANK(BB65)," ",INDEX(CY:CY,MATCH(BB65,CW:CW,0))) ->  | AY66: =IF(ISBLANK(BB66)," ",INDEX('Eingabe Spielernamen'!$F:$F,MATCH(AX66,'Eingabe Spielernamen'!$B:$B,0))&", "&INDEX('Eingabe Spielernamen'!$G:$G,MATCH(AX66,'Eingabe Spielernamen'!$B:$B,0))) ->  | BB66: =BB65 -> 0 | BG66: =IF(ISBLANK(BC66)," ",BC66+(BD66-BE66)*50+IF(COUNT(BC65:BC68)=3,(BE65+BE67+BE68)*40,(BE65+BE67+BE68)*30)) ->  | BH66: 0 | BI66: =IF(COUNTIF(BJ$13:BJ66,BJ66)>1,"X","") -> X | BJ66: =IF(ISBLANK(BN65)," ",INDEX(DD:DD,MATCH(BN65,DB:DB,0))) ->  | BK66: =IF(ISBLANK(BN66)," ",INDEX('Eingabe Spielernamen'!$F:$F,MATCH(BJ66,'Eingabe Spielernamen'!$B:$B,0))&", "&INDEX('Eingabe Spielernamen'!$G:$G,MATCH(BJ66,'Eingabe Spielernamen'!$B:$B,0))) ->  | BN66: =BN65 -> 0 | BS66: =IF(ISBLANK(BO66)," ",BO66+(BP66-BQ66)*50+IF(COUNT(BO65:BO68)=3,(BQ65+BQ67+BQ68)*40,(BQ65+BQ67+BQ68)*30)) ->  | BT66: 0
A67: =IF(COUNTIF(B$13:B67,B67)>1,"X","") -> X | B67: =IF(ISBLANK(F65)," ",INDEX(CF:CF,MATCH(F65,CC:CC,0))) ->  | C67: =IF(ISBLANK(F67)," ",INDEX('Eingabe Spielernamen'!$F:$F,MATCH(B67,'Eingabe Spielernamen'!$B:$B,0))&", "&INDEX('Eingabe Spielernamen'!$G:$G,MATCH(B67,'Eingabe Spielernamen'!$B:$B,0))) ->  | F67: =F65 -> 0 | K67: =IF(ISBLANK(G67)," ",G67+(H67-I67)*50+IF(COUNT(G65:G68)=3,(I65+I66+I68)*40,(I65+I66+I68)*30)) ->  | L67: 0 | M67: =IF(COUNTIF(N$13:N67,N67)>1,"X","") -> X | N67: =IF(ISBLANK(R65)," ",INDEX(CK:CK,MATCH(R65,CH:CH,0))) ->  | O67: =IF(ISBLANK(R67)," ",INDEX('Eingabe Spielernamen'!$F:$F,MATCH(N67,'Eingabe Spielernamen'!$B:$B,0))&", "&INDEX('Eingabe Spielernamen'!$G:$G,MATCH(N67,'Eingabe Spielernamen'!$B:$B,0))) ->  | R67: =R65 -> 0 | W67: =IF(ISBLANK(S67)," ",S67+(T67-U67)*50+IF(COUNT(S65:S68)=3,(U65+U66+U68)*40,(U65+U66+U68)*30)) ->  | X67: 0 | Y67: =IF(COUNTIF(Z$13:Z67,Z67)>1,"X","") -> X | Z67: =IF(ISBLANK(AD65)," ",INDEX(CP:CP,MATCH(AD65,CM:CM,0))) ->  | AA67: =IF(ISBLANK(AD67)," ",INDEX('Eingabe Spielernamen'!$F:$F,MATCH(Z67,'Eingabe Spielernamen'!$B:$B,0))&", "&INDEX('Eingabe Spielernamen'!$G:$G,MATCH(Z67,'Eingabe Spielernamen'!$B:$B,0))) ->  | AD67: =AD65 -> 0 | AI67: =IF(ISBLANK(AE67)," ",AE67+(AF67-AG67)*50+IF(COUNT(AE65:AE68)=3,(AG65+AG66+AG68)*40,(AG65+AG66+AG68)*30)) ->  | AJ67: 0 | AK67: =IF(COUNTIF(AL$13:AL67,AL67)>1,"X","") -> X | AL67: =IF(ISBLANK(AP65)," ",INDEX(CU:CU,MATCH(AP65,CR:CR,0))) ->  | AM67: =IF(ISBLANK(AP67)," ",INDEX('Eingabe Spielernamen'!$F:$F,MATCH(AL67,'Eingabe Spielernamen'!$B:$B,0))&", "&INDEX('Eingabe Spielernamen'!$G:$G,MATCH(AL67,'Eingabe Spielernamen'!$B:$B,0))) ->  | AP67: =AP65 -> 0 | AU67: =IF(ISBLANK(AQ67)," ",AQ67+(AR67-AS67)*50+IF(COUNT(AQ65:AQ68)=3,(AS65+AS66+AS68)*40,(AS65+AS66+AS68)*30)) ->  | AV67: 0 | AW67: =IF(COUNTIF(AX$13:AX67,AX67)>1,"X","") -> X | AX67: =IF(ISBLANK(BB65)," ",INDEX(CZ:CZ,MATCH(BB65,CW:CW,0))) ->  | AY67: =IF(ISBLANK(BB67)," ",INDEX('Eingabe Spielernamen'!$F:$F,MATCH(AX67,'Eingabe Spielernamen'!$B:$B,0))&", "&INDEX('Eingabe Spielernamen'!$G:$G,MATCH(AX67,'Eingabe Spielernamen'!$B:$B,0))) ->  | BB67: =BB65 -> 0 | BG67: =IF(ISBLANK(BC67)," ",BC67+(BD67-BE67)*50+IF(COUNT(BC65:BC68)=3,(BE65+BE66+BE68)*40,(BE65+BE66+BE68)*30)) ->  | BH67: 0 | BI67: =IF(COUNTIF(BJ$13:BJ67,BJ67)>1,"X","") -> X | BJ67: =IF(ISBLANK(BN65)," ",INDEX(DE:DE,MATCH(BN65,DB:DB,0))) ->  | BK67: =IF(ISBLANK(BN67)," ",INDEX('Eingabe Spielernamen'!$F:$F,MATCH(BJ67,'Eingabe Spielernamen'!$B:$B,0))&", "&INDEX('Eingabe Spielernamen'!$G:$G,MATCH(BJ67,'Eingabe Spielernamen'!$B:$B,0))) ->  | BN67: =BN65 -> 0 | BS67: =IF(ISBLANK(BO67)," ",BO67+(BP67-BQ67)*50+IF(COUNT(BO65:BO68)=3,(BQ65+BQ66+BQ68)*40,(BQ65+BQ66+BQ68)*30)) ->  | BT67: 0
A68: =IF(COUNTIF(B$13:B68,B68)>1,"X","") -> X | B68: =IF(ISBLANK(F65)," ",INDEX(CG:CG,MATCH(F65,CC:CC,0))) ->  | C68: =IF(ISBLANK(F68)," ",INDEX('Eingabe Spielernamen'!$F:$F,MATCH(B68,'Eingabe Spielernamen'!$B:$B,0))&", "&INDEX('Eingabe Spielernamen'!$G:$G,MATCH(B68,'Eingabe Spielernamen'!$B:$B,0))) ->  | F68: =F65 -> 0 | K68: =IF(ISBLANK(G68)," ",G68+(H68-I68)*50+IF(COUNT(G65:G68)=3,(I65+I66+I67)*40,(I65+I66+I67)*30)) ->  | L68: 0 | M68: =IF(COUNTIF(N$13:N68,N68)>1,"X","") -> X | N68: =IF(ISBLANK(R65)," ",INDEX(CL:CL,MATCH(R65,CH:CH,0))) ->  | O68: =IF(ISBLANK(R68)," ",INDEX('Eingabe Spielernamen'!$F:$F,MATCH(N68,'Eingabe Spielernamen'!$B:$B,0))&", "&INDEX('Eingabe Spielernamen'!$G:$G,MATCH(N68,'Eingabe Spielernamen'!$B:$B,0))) ->  | R68: =R65 -> 0 | W68: =IF(ISBLANK(S68)," ",S68+(T68-U68)*50+IF(COUNT(S65:S68)=3,(U65+U66+U67)*40,(U65+U66+U67)*30)) ->  | X68: 0 | Y68: =IF(COUNTIF(Z$13:Z68,Z68)>1,"X","") -> X | Z68: =IF(ISBLANK(AD65)," ",INDEX(CQ:CQ,MATCH(AD65,CM:CM,0))) ->  | AA68: =IF(ISBLANK(AD68)," ",INDEX('Eingabe Spielernamen'!$F:$F,MATCH(Z68,'Eingabe Spielernamen'!$B:$B,0))&", "&INDEX('Eingabe Spielernamen'!$G:$G,MATCH(Z68,'Eingabe Spielernamen'!$B:$B,0))) ->  | AD68: =AD65 -> 0 | AI68: =IF(ISBLANK(AE68)," ",AE68+(AF68-AG68)*50+IF(COUNT(AE65:AE68)=3,(AG65+AG66+AG67)*40,(AG65+AG66+AG67)*30)) ->  | AJ68: 0 | AK68: =IF(COUNTIF(AL$13:AL68,AL68)>1,"X","") -> X | AL68: =IF(ISBLANK(AP65)," ",INDEX(CV:CV,MATCH(AP65,CR:CR,0))) ->  | AM68: =IF(ISBLANK(AP68)," ",INDEX('Eingabe Spielernamen'!$F:$F,MATCH(AL68,'Eingabe Spielernamen'!$B:$B,0))&", "&INDEX('Eingabe Spielernamen'!$G:$G,MATCH(AL68,'Eingabe Spielernamen'!$B:$B,0))) ->  | AP68: =AP65 -> 0 | AU68: =IF(ISBLANK(AQ68)," ",AQ68+(AR68-AS68)*50+IF(COUNT(AQ65:AQ68)=3,(AS65+AS66+AS67)*40,(AS65+AS66+AS67)*30)) ->  | AV68: 0 | AW68: =IF(COUNTIF(AX$13:AX68,AX68)>1,"X","") -> X | AX68: =IF(ISBLANK(BB65)," ",INDEX(DA:DA,MATCH(BB65,CW:CW,0))) ->  | AY68: =IF(ISBLANK(BB68)," ",INDEX('Eingabe Spielernamen'!$F:$F,MATCH(AX68,'Eingabe Spielernamen'!$B:$B,0))&", "&INDEX('Eingabe Spielernamen'!$G:$G,MATCH(AX68,'Eingabe Spielernamen'!$B:$B,0))) ->  | BB68: =BB65 -> 0 | BG68: =IF(ISBLANK(BC68)," ",BC68+(BD68-BE68)*50+IF(COUNT(BC65:BC68)=3,(BE65+BE66+BE67)*40,(BE65+BE66+BE67)*30)) ->  | BH68: 0 | BI68: =IF(COUNTIF(BJ$13:BJ68,BJ68)>1,"X","") -> X | BJ68: =IF(ISBLANK(BN65)," ",INDEX(DF:DF,MATCH(BN65,DB:DB,0))) ->  | BK68: =IF(ISBLANK(BN68)," ",INDEX('Eingabe Spielernamen'!$F:$F,MATCH(BJ68,'Eingabe Spielernamen'!$B:$B,0))&", "&INDEX('Eingabe Spielernamen'!$G:$G,MATCH(BJ68,'Eingabe Spielernamen'!$B:$B,0))) ->  | BN68: =BN65 -> 0 | BS68: =IF(ISBLANK(BO68)," ",BO68+(BP68-BQ68)*50+IF(COUNT(BO65:BO68)=3,(BQ65+BQ66+BQ67)*40,(BQ65+BQ66+BQ67)*30)) ->  | BT68: 0
A69: =IF(COUNTIF(B$13:B69,B69)>1,"X","") -> X | B69: =IF(ISBLANK(F69)," ",INDEX(CD:CD,MATCH(F69,CC:CC,0))) ->  | C69: =IF(ISBLANK(F69)," ",INDEX('Eingabe Spielernamen'!$F:$F,MATCH(B69,'Eingabe Spielernamen'!$B:$B,0))&", "&INDEX('Eingabe Spielernamen'!$G:$G,MATCH(B69,'Eingabe Spielernamen'!$B:$B,0))) ->  | K69: =IF(ISBLANK(G69)," ",G69+(H69-I69)*50+IF(COUNT(G69:G72)=3,(I70+I71+I72)*40,(I70+I71+I72)*30)) ->  | L69: 0 | M69: =IF(COUNTIF(N$13:N69,N69)>1,"X","") -> X | N69: =IF(ISBLANK(R69)," ",INDEX(CI:CI,MATCH(R69,CH:CH,0))) ->  | O69: =IF(ISBLANK(R69)," ",INDEX('Eingabe Spielernamen'!$F:$F,MATCH(N69,'Eingabe Spielernamen'!$B:$B,0))&", "&INDEX('Eingabe Spielernamen'!$G:$G,MATCH(N69,'Eingabe Spielernamen'!$B:$B,0))) ->  | W69: =IF(ISBLANK(S69)," ",S69+(T69-U69)*50+IF(COUNT(S69:S72)=3,(U70+U71+U72)*40,(U70+U71+U72)*30)) ->  | X69: 0 | Y69: =IF(COUNTIF(Z$13:Z69,Z69)>1,"X","") -> X | Z69: =IF(ISBLANK(AD69)," ",INDEX(CN:CN,MATCH(AD69,CM:CM,0))) ->  | AA69: =IF(ISBLANK(AD69)," ",INDEX('Eingabe Spielernamen'!$F:$F,MATCH(Z69,'Eingabe Spielernamen'!$B:$B,0))&", "&INDEX('Eingabe Spielernamen'!$G:$G,MATCH(Z69,'Eingabe Spielernamen'!$B:$B,0))) ->  | AI69: =IF(ISBLANK(AE69)," ",AE69+(AF69-AG69)*50+IF(COUNT(AE69:AE72)=3,(AG70+AG71+AG72)*40,(AG70+AG71+AG72)*30)) ->  | AJ69: 0 | AK69: =IF(COUNTIF(AL$13:AL69,AL69)>1,"X","") -> X | AL69: =IF(ISBLANK(AP69)," ",INDEX(CS:CS,MATCH(AP69,CR:CR,0))) ->  | AM69: =IF(ISBLANK(AP69)," ",INDEX('Eingabe Spielernamen'!$F:$F,MATCH(AL69,'Eingabe Spielernamen'!$B:$B,0))&", "&INDEX('Eingabe Spielernamen'!$G:$G,MATCH(AL69,'Eingabe Spielernamen'!$B:$B,0))) ->  | AU69: =IF(ISBLANK(AQ69)," ",AQ69+(AR69-AS69)*50+IF(COUNT(AQ69:AQ72)=3,(AS70+AS71+AS72)*40,(AS70+AS71+AS72)*30)) ->  | AV69: 0 | AW69: =IF(COUNTIF(AX$13:AX69,AX69)>1,"X","") -> X | AX69: =IF(ISBLANK(BB69)," ",INDEX(CX:CX,MATCH(BB69,CW:CW,0))) ->  | AY69: =IF(ISBLANK(BB69)," ",INDEX('Eingabe Spielernamen'!$F:$F,MATCH(AX69,'Eingabe Spielernamen'!$B:$B,0))&", "&INDEX('Eingabe Spielernamen'!$G:$G,MATCH(AX69,'Eingabe Spielernamen'!$B:$B,0))) ->  | BG69: =IF(ISBLANK(BC69)," ",BC69+(BD69-BE69)*50+IF(COUNT(BC69:BC72)=3,(BE70+BE71+BE72)*40,(BE70+BE71+BE72)*30)) ->  | BH69: 0 | BI69: =IF(COUNTIF(BJ$13:BJ69,BJ69)>1,"X","") -> X | BJ69: =IF(ISBLANK(BN69)," ",INDEX(DC:DC,MATCH(BN69,DB:DB,0))) ->  | BK69: =IF(ISBLANK(BN69)," ",INDEX('Eingabe Spielernamen'!$F:$F,MATCH(BJ69,'Eingabe Spielernamen'!$B:$B,0))&", "&INDEX('Eingabe Spielernamen'!$G:$G,MATCH(BJ69,'Eingabe Spielernamen'!$B:$B,0))) ->  | BS69: =IF(ISBLANK(BO69)," ",BO69+(BP69-BQ69)*50+IF(COUNT(BO69:BO72)=3,(BQ70+BQ71+BQ72)*40,(BQ70+BQ71+BQ72)*30)) ->  | BT69: 0 | BW69: =SUM(L69:L72) -> 0 | BX69: =SUM(X69:X72) -> 0 | BY69: =SUM(AJ69:AJ72) -> 0 | BZ69: =SUM(AV69:AV72) -> 0 | CA69: =SUM(BH69:BH72) -> 0 | CB69: =SUM(BT69:BT72) -> 0
A70: =IF(COUNTIF(B$13:B70,B70)>1,"X","") -> X | B70: =IF(ISBLANK(F69)," ",INDEX(CE:CE,MATCH(F69,CC:CC,0))) ->  | C70: =IF(ISBLANK(F70)," ",INDEX('Eingabe Spielernamen'!$F:$F,MATCH(B70,'Eingabe Spielernamen'!$B:$B,0))&", "&INDEX('Eingabe Spielernamen'!$G:$G,MATCH(B70,'Eingabe Spielernamen'!$B:$B,0))) ->  | F70: =F69 -> 0 | K70: =IF(ISBLANK(G70)," ",G70+(H70-I70)*50+IF(COUNT(G69:G72)=3,(I69+I71+I72)*40,(I69+I71+I72)*30)) ->  | L70: 0 | M70: =IF(COUNTIF(N$13:N70,N70)>1,"X","") -> X | N70: =IF(ISBLANK(R69)," ",INDEX(CJ:CJ,MATCH(R69,CH:CH,0))) ->  | O70: =IF(ISBLANK(R70)," ",INDEX('Eingabe Spielernamen'!$F:$F,MATCH(N70,'Eingabe Spielernamen'!$B:$B,0))&", "&INDEX('Eingabe Spielernamen'!$G:$G,MATCH(N70,'Eingabe Spielernamen'!$B:$B,0))) ->  | R70: =R69 -> 0 | W70: =IF(ISBLANK(S70)," ",S70+(T70-U70)*50+IF(COUNT(S69:S72)=3,(U69+U71+U72)*40,(U69+U71+U72)*30)) ->  | X70: 0 | Y70: =IF(COUNTIF(Z$13:Z70,Z70)>1,"X","") -> X | Z70: =IF(ISBLANK(AD69)," ",INDEX(CO:CO,MATCH(AD69,CM:CM,0))) ->  | AA70: =IF(ISBLANK(AD70)," ",INDEX('Eingabe Spielernamen'!$F:$F,MATCH(Z70,'Eingabe Spielernamen'!$B:$B,0))&", "&INDEX('Eingabe Spielernamen'!$G:$G,MATCH(Z70,'Eingabe Spielernamen'!$B:$B,0))) ->  | AD70: =AD69 -> 0 | AI70: =IF(ISBLANK(AE70)," ",AE70+(AF70-AG70)*50+IF(COUNT(AE69:AE72)=3,(AG69+AG71+AG72)*40,(AG69+AG71+AG72)*30)) ->  | AJ70: 0 | AK70: =IF(COUNTIF(AL$13:AL70,AL70)>1,"X","") -> X | AL70: =IF(ISBLANK(AP69)," ",INDEX(CT:CT,MATCH(AP69,CR:CR,0))) ->  | AM70: =IF(ISBLANK(AP70)," ",INDEX('Eingabe Spielernamen'!$F:$F,MATCH(AL70,'Eingabe Spielernamen'!$B:$B,0))&", "&INDEX('Eingabe Spielernamen'!$G:$G,MATCH(AL70,'Eingabe Spielernamen'!$B:$B,0))) ->  | AP70: =AP69 -> 0 | AU70: =IF(ISBLANK(AQ70)," ",AQ70+(AR70-AS70)*50+IF(COUNT(AQ69:AQ72)=3,(AS69+AS71+AS72)*40,(AS69+AS71+AS72)*30)) ->  | AV70: 0 | AW70: =IF(COUNTIF(AX$13:AX70,AX70)>1,"X","") -> X | AX70: =IF(ISBLANK(BB69)," ",INDEX(CY:CY,MATCH(BB69,CW:CW,0))) ->  | AY70: =IF(ISBLANK(BB70)," ",INDEX('Eingabe Spielernamen'!$F:$F,MATCH(AX70,'Eingabe Spielernamen'!$B:$B,0))&", "&INDEX('Eingabe Spielernamen'!$G:$G,MATCH(AX70,'Eingabe Spielernamen'!$B:$B,0))) ->  | BB70: =BB69 -> 0 | BG70: =IF(ISBLANK(BC70)," ",BC70+(BD70-BE70)*50+IF(COUNT(BC69:BC72)=3,(BE69+BE71+BE72)*40,(BE69+BE71+BE72)*30)) ->  | BH70: 0 | BI70: =IF(COUNTIF(BJ$13:BJ70,BJ70)>1,"X","") -> X | BJ70: =IF(ISBLANK(BN69)," ",INDEX(DD:DD,MATCH(BN69,DB:DB,0))) ->  | BK70: =IF(ISBLANK(BN70)," ",INDEX('Eingabe Spielernamen'!$F:$F,MATCH(BJ70,'Eingabe Spielernamen'!$B:$B,0))&", "&INDEX('Eingabe Spielernamen'!$G:$G,MATCH(BJ70,'Eingabe Spielernamen'!$B:$B,0))) ->  | BN70: =BN69 -> 0 | BS70: =IF(ISBLANK(BO70)," ",BO70+(BP70-BQ70)*50+IF(COUNT(BO69:BO72)=3,(BQ69+BQ71+BQ72)*40,(BQ69+BQ71+BQ72)*30)) ->  | BT70: 0
A71: =IF(COUNTIF(B$13:B71,B71)>1,"X","") -> X | B71: =IF(ISBLANK(F69)," ",INDEX(CF:CF,MATCH(F69,CC:CC,0))) ->  | C71: =IF(ISBLANK(F71)," ",INDEX('Eingabe Spielernamen'!$F:$F,MATCH(B71,'Eingabe Spielernamen'!$B:$B,0))&", "&INDEX('Eingabe Spielernamen'!$G:$G,MATCH(B71,'Eingabe Spielernamen'!$B:$B,0))) ->  | F71: =F69 -> 0 | K71: =IF(ISBLANK(G71)," ",G71+(H71-I71)*50+IF(COUNT(G69:G72)=3,(I69+I70+I72)*40,(I69+I70+I72)*30)) ->  | L71: 0 | M71: =IF(COUNTIF(N$13:N71,N71)>1,"X","") -> X | N71: =IF(ISBLANK(R69)," ",INDEX(CK:CK,MATCH(R69,CH:CH,0))) ->  | O71: =IF(ISBLANK(R71)," ",INDEX('Eingabe Spielernamen'!$F:$F,MATCH(N71,'Eingabe Spielernamen'!$B:$B,0))&", "&INDEX('Eingabe Spielernamen'!$G:$G,MATCH(N71,'Eingabe Spielernamen'!$B:$B,0))) ->  | R71: =R69 -> 0 | W71: =IF(ISBLANK(S71)," ",S71+(T71-U71)*50+IF(COUNT(S69:S72)=3,(U69+U70+U72)*40,(U69+U70+U72)*30)) ->  | X71: 0 | Y71: =IF(COUNTIF(Z$13:Z71,Z71)>1,"X","") -> X | Z71: =IF(ISBLANK(AD69)," ",INDEX(CP:CP,MATCH(AD69,CM:CM,0))) ->  | AA71: =IF(ISBLANK(AD71)," ",INDEX('Eingabe Spielernamen'!$F:$F,MATCH(Z71,'Eingabe Spielernamen'!$B:$B,0))&", "&INDEX('Eingabe Spielernamen'!$G:$G,MATCH(Z71,'Eingabe Spielernamen'!$B:$B,0))) ->  | AD71: =AD69 -> 0 | AI71: =IF(ISBLANK(AE71)," ",AE71+(AF71-AG71)*50+IF(COUNT(AE69:AE72)=3,(AG69+AG70+AG72)*40,(AG69+AG70+AG72)*30)) ->  | AJ71: 0 | AK71: =IF(COUNTIF(AL$13:AL71,AL71)>1,"X","") -> X | AL71: =IF(ISBLANK(AP69)," ",INDEX(CU:CU,MATCH(AP69,CR:CR,0))) ->  | AM71: =IF(ISBLANK(AP71)," ",INDEX('Eingabe Spielernamen'!$F:$F,MATCH(AL71,'Eingabe Spielernamen'!$B:$B,0))&", "&INDEX('Eingabe Spielernamen'!$G:$G,MATCH(AL71,'Eingabe Spielernamen'!$B:$B,0))) ->  | AP71: =AP69 -> 0 | AU71: =IF(ISBLANK(AQ71)," ",AQ71+(AR71-AS71)*50+IF(COUNT(AQ69:AQ72)=3,(AS69+AS70+AS72)*40,(AS69+AS70+AS72)*30)) ->  | AV71: 0 | AW71: =IF(COUNTIF(AX$13:AX71,AX71)>1,"X","") -> X | AX71: =IF(ISBLANK(BB69)," ",INDEX(CZ:CZ,MATCH(BB69,CW:CW,0))) ->  | AY71: =IF(ISBLANK(BB71)," ",INDEX('Eingabe Spielernamen'!$F:$F,MATCH(AX71,'Eingabe Spielernamen'!$B:$B,0))&", "&INDEX('Eingabe Spielernamen'!$G:$G,MATCH(AX71,'Eingabe Spielernamen'!$B:$B,0))) ->  | BB71: =BB69 -> 0 | BG71: =IF(ISBLANK(BC71)," ",BC71+(BD71-BE71)*50+IF(COUNT(BC69:BC72)=3,(BE69+BE70+BE72)*40,(BE69+BE70+BE72)*30)) ->  | BH71: 0 | BI71: =IF(COUNTIF(BJ$13:BJ71,BJ71)>1,"X","") -> X | BJ71: =IF(ISBLANK(BN69)," ",INDEX(DE:DE,MATCH(BN69,DB:DB,0))) ->  | BK71: =IF(ISBLANK(BN71)," ",INDEX('Eingabe Spielernamen'!$F:$F,MATCH(BJ71,'Eingabe Spielernamen'!$B:$B,0))&", "&INDEX('Eingabe Spielernamen'!$G:$G,MATCH(BJ71,'Eingabe Spielernamen'!$B:$B,0))) ->  | BN71: =BN69 -> 0 | BS71: =IF(ISBLANK(BO71)," ",BO71+(BP71-BQ71)*50+IF(COUNT(BO69:BO72)=3,(BQ69+BQ70+BQ72)*40,(BQ69+BQ70+BQ72)*30)) ->  | BT71: 0
A72: =IF(COUNTIF(B$13:B72,B72)>1,"X","") -> X | B72: =IF(ISBLANK(F69)," ",INDEX(CG:CG,MATCH(F69,CC:CC,0))) ->  | C72: =IF(ISBLANK(F72)," ",INDEX('Eingabe Spielernamen'!$F:$F,MATCH(B72,'Eingabe Spielernamen'!$B:$B,0))&", "&INDEX('Eingabe Spielernamen'!$G:$G,MATCH(B72,'Eingabe Spielernamen'!$B:$B,0))) ->  | F72: =F69 -> 0 | K72: =IF(ISBLANK(G72)," ",G72+(H72-I72)*50+IF(COUNT(G69:G72)=3,(I69+I70+I71)*40,(I69+I70+I71)*30)) ->  | L72: 0 | M72: =IF(COUNTIF(N$13:N72,N72)>1,"X","") -> X | N72: =IF(ISBLANK(R69)," ",INDEX(CL:CL,MATCH(R69,CH:CH,0))) ->  | O72: =IF(ISBLANK(R72)," ",INDEX('Eingabe Spielernamen'!$F:$F,MATCH(N72,'Eingabe Spielernamen'!$B:$B,0))&", "&INDEX('Eingabe Spielernamen'!$G:$G,MATCH(N72,'Eingabe Spielernamen'!$B:$B,0))) ->  | R72: =R69 -> 0 | W72: =IF(ISBLANK(S72)," ",S72+(T72-U72)*50+IF(COUNT(S69:S72)=3,(U69+U70+U71)*40,(U69+U70+U71)*30)) ->  | X72: 0 | Y72: =IF(COUNTIF(Z$13:Z72,Z72)>1,"X","") -> X | Z72: =IF(ISBLANK(AD69)," ",INDEX(CQ:CQ,MATCH(AD69,CM:CM,0))) ->  | AA72: =IF(ISBLANK(AD72)," ",INDEX('Eingabe Spielernamen'!$F:$F,MATCH(Z72,'Eingabe Spielernamen'!$B:$B,0))&", "&INDEX('Eingabe Spielernamen'!$G:$G,MATCH(Z72,'Eingabe Spielernamen'!$B:$B,0))) ->  | AD72: =AD69 -> 0 | AI72: =IF(ISBLANK(AE72)," ",AE72+(AF72-AG72)*50+IF(COUNT(AE69:AE72)=3,(AG69+AG70+AG71)*40,(AG69+AG70+AG71)*30)) ->  | AJ72: 0 | AK72: =IF(COUNTIF(AL$13:AL72,AL72)>1,"X","") -> X | AL72: =IF(ISBLANK(AP69)," ",INDEX(CV:CV,MATCH(AP69,CR:CR,0))) ->  | AM72: =IF(ISBLANK(AP72)," ",INDEX('Eingabe Spielernamen'!$F:$F,MATCH(AL72,'Eingabe Spielernamen'!$B:$B,0))&", "&INDEX('Eingabe Spielernamen'!$G:$G,MATCH(AL72,'Eingabe Spielernamen'!$B:$B,0))) ->  | AP72: =AP69 -> 0 | AU72: =IF(ISBLANK(AQ72)," ",AQ72+(AR72-AS72)*50+IF(COUNT(AQ69:AQ72)=3,(AS69+AS70+AS71)*40,(AS69+AS70+AS71)*30)) ->  | AV72: 0 | AW72: =IF(COUNTIF(AX$13:AX72,AX72)>1,"X","") -> X | AX72: =IF(ISBLANK(BB69)," ",INDEX(DA:DA,MATCH(BB69,CW:CW,0))) ->  | AY72: =IF(ISBLANK(BB72)," ",INDEX('Eingabe Spielernamen'!$F:$F,MATCH(AX72,'Eingabe Spielernamen'!$B:$B,0))&", "&INDEX('Eingabe Spielernamen'!$G:$G,MATCH(AX72,'Eingabe Spielernamen'!$B:$B,0))) ->  | BB72: =BB69 -> 0 | BG72: =IF(ISBLANK(BC72)," ",BC72+(BD72-BE72)*50+IF(COUNT(BC69:BC72)=3,(BE69+BE70+BE71)*40,(BE69+BE70+BE71)*30)) ->  | BH72: 0 | BI72: =IF(COUNTIF(BJ$13:BJ72,BJ72)>1,"X","") -> X | BJ72: =IF(ISBLANK(BN69)," ",INDEX(DF:DF,MATCH(BN69,DB:DB,0))) ->  | BK72: =IF(ISBLANK(BN72)," ",INDEX('Eingabe Spielernamen'!$F:$F,MATCH(BJ72,'Eingabe Spielernamen'!$B:$B,0))&", "&INDEX('Eingabe Spielernamen'!$G:$G,MATCH(BJ72,'Eingabe Spielernamen'!$B:$B,0))) ->  | BN72: =BN69 -> 0 | BS72: =IF(ISBLANK(BO72)," ",BO72+(BP72-BQ72)*50+IF(COUNT(BO69:BO72)=3,(BQ69+BQ70+BQ71)*40,(BQ69+BQ70+BQ71)*30)) ->  | BT72: 0
A73: =IF(COUNTIF(B$13:B73,B73)>1,"X","") -> X | B73: =IF(ISBLANK(F73)," ",INDEX(CD:CD,MATCH(F73,CC:CC,0))) ->  | C73: =IF(ISBLANK(F73)," ",INDEX('Eingabe Spielernamen'!$F:$F,MATCH(B73,'Eingabe Spielernamen'!$B:$B,0))&", "&INDEX('Eingabe Spielernamen'!$G:$G,MATCH(B73,'Eingabe Spielernamen'!$B:$B,0))) ->  | K73: =IF(ISBLANK(G73)," ",G73+(H73-I73)*50+IF(COUNT(G73:G76)=3,(I74+I75+I76)*40,(I74+I75+I76)*30)) ->  | L73: 0 | M73: =IF(COUNTIF(N$13:N73,N73)>1,"X","") -> X | N73: =IF(ISBLANK(R73)," ",INDEX(CI:CI,MATCH(R73,CH:CH,0))) ->  | O73: =IF(ISBLANK(R73)," ",INDEX('Eingabe Spielernamen'!$F:$F,MATCH(N73,'Eingabe Spielernamen'!$B:$B,0))&", "&INDEX('Eingabe Spielernamen'!$G:$G,MATCH(N73,'Eingabe Spielernamen'!$B:$B,0))) ->  | W73: =IF(ISBLANK(S73)," ",S73+(T73-U73)*50+IF(COUNT(S73:S76)=3,(U74+U75+U76)*40,(U74+U75+U76)*30)) ->  | X73: 0 | Y73: =IF(COUNTIF(Z$13:Z73,Z73)>1,"X","") -> X | Z73: =IF(ISBLANK(AD73)," ",INDEX(CN:CN,MATCH(AD73,CM:CM,0))) ->  | AA73: =IF(ISBLANK(AD73)," ",INDEX('Eingabe Spielernamen'!$F:$F,MATCH(Z73,'Eingabe Spielernamen'!$B:$B,0))&", "&INDEX('Eingabe Spielernamen'!$G:$G,MATCH(Z73,'Eingabe Spielernamen'!$B:$B,0))) ->  | AI73: =IF(ISBLANK(AE73)," ",AE73+(AF73-AG73)*50+IF(COUNT(AE73:AE76)=3,(AG74+AG75+AG76)*40,(AG74+AG75+AG76)*30)) ->  | AJ73: 0 | AK73: =IF(COUNTIF(AL$13:AL73,AL73)>1,"X","") -> X | AL73: =IF(ISBLANK(AP73)," ",INDEX(CS:CS,MATCH(AP73,CR:CR,0))) ->  | AM73: =IF(ISBLANK(AP73)," ",INDEX('Eingabe Spielernamen'!$F:$F,MATCH(AL73,'Eingabe Spielernamen'!$B:$B,0))&", "&INDEX('Eingabe Spielernamen'!$G:$G,MATCH(AL73,'Eingabe Spielernamen'!$B:$B,0))) ->  | AU73: =IF(ISBLANK(AQ73)," ",AQ73+(AR73-AS73)*50+IF(COUNT(AQ73:AQ76)=3,(AS74+AS75+AS76)*40,(AS74+AS75+AS76)*30)) ->  | AV73: 0 | AW73: =IF(COUNTIF(AX$13:AX73,AX73)>1,"X","") -> X | AX73: =IF(ISBLANK(BB73)," ",INDEX(CX:CX,MATCH(BB73,CW:CW,0))) ->  | AY73: =IF(ISBLANK(BB73)," ",INDEX('Eingabe Spielernamen'!$F:$F,MATCH(AX73,'Eingabe Spielernamen'!$B:$B,0))&", "&INDEX('Eingabe Spielernamen'!$G:$G,MATCH(AX73,'Eingabe Spielernamen'!$B:$B,0))) ->  | BG73: =IF(ISBLANK(BC73)," ",BC73+(BD73-BE73)*50+IF(COUNT(BC73:BC76)=3,(BE74+BE75+BE76)*40,(BE74+BE75+BE76)*30)) ->  | BH73: 0 | BI73: =IF(COUNTIF(BJ$13:BJ73,BJ73)>1,"X","") -> X | BJ73: =IF(ISBLANK(BN73)," ",INDEX(DC:DC,MATCH(BN73,DB:DB,0))) ->  | BK73: =IF(ISBLANK(BN73)," ",INDEX('Eingabe Spielernamen'!$F:$F,MATCH(BJ73,'Eingabe Spielernamen'!$B:$B,0))&", "&INDEX('Eingabe Spielernamen'!$G:$G,MATCH(BJ73,'Eingabe Spielernamen'!$B:$B,0))) ->  | BS73: =IF(ISBLANK(BO73)," ",BO73+(BP73-BQ73)*50+IF(COUNT(BO73:BO76)=3,(BQ74+BQ75+BQ76)*40,(BQ74+BQ75+BQ76)*30)) ->  | BT73: 0 | BW73: =SUM(L73:L76) -> 0 | BX73: =SUM(X73:X76) -> 0 | BY73: =SUM(AJ73:AJ76) -> 0 | BZ73: =SUM(AV73:AV76) -> 0 | CA73: =SUM(BH73:BH76) -> 0 | CB73: =SUM(BT73:BT76) -> 0
A74: =IF(COUNTIF(B$13:B74,B74)>1,"X","") -> X | B74: =IF(ISBLANK(F73)," ",INDEX(CE:CE,MATCH(F73,CC:CC,0))) ->  | C74: =IF(ISBLANK(F74)," ",INDEX('Eingabe Spielernamen'!$F:$F,MATCH(B74,'Eingabe Spielernamen'!$B:$B,0))&", "&INDEX('Eingabe Spielernamen'!$G:$G,MATCH(B74,'Eingabe Spielernamen'!$B:$B,0))) ->  | F74: =F73 -> 0 | K74: =IF(ISBLANK(G74)," ",G74+(H74-I74)*50+IF(COUNT(G73:G76)=3,(I73+I75+I76)*40,(I73+I75+I76)*30)) ->  | L74: 0 | M74: =IF(COUNTIF(N$13:N74,N74)>1,"X","") -> X | N74: =IF(ISBLANK(R73)," ",INDEX(CJ:CJ,MATCH(R73,CH:CH,0))) ->  | O74: =IF(ISBLANK(R74)," ",INDEX('Eingabe Spielernamen'!$F:$F,MATCH(N74,'Eingabe Spielernamen'!$B:$B,0))&", "&INDEX('Eingabe Spielernamen'!$G:$G,MATCH(N74,'Eingabe Spielernamen'!$B:$B,0))) ->  | R74: =R73 -> 0 | W74: =IF(ISBLANK(S74)," ",S74+(T74-U74)*50+IF(COUNT(S73:S76)=3,(U73+U75+U76)*40,(U73+U75+U76)*30)) ->  | X74: 0 | Y74: =IF(COUNTIF(Z$13:Z74,Z74)>1,"X","") -> X | Z74: =IF(ISBLANK(AD73)," ",INDEX(CO:CO,MATCH(AD73,CM:CM,0))) ->  | AA74: =IF(ISBLANK(AD74)," ",INDEX('Eingabe Spielernamen'!$F:$F,MATCH(Z74,'Eingabe Spielernamen'!$B:$B,0))&", "&INDEX('Eingabe Spielernamen'!$G:$G,MATCH(Z74,'Eingabe Spielernamen'!$B:$B,0))) ->  | AD74: =AD73 -> 0 | AI74: =IF(ISBLANK(AE74)," ",AE74+(AF74-AG74)*50+IF(COUNT(AE73:AE76)=3,(AG73+AG75+AG76)*40,(AG73+AG75+AG76)*30)) ->  | AJ74: 0 | AK74: =IF(COUNTIF(AL$13:AL74,AL74)>1,"X","") -> X | AL74: =IF(ISBLANK(AP73)," ",INDEX(CT:CT,MATCH(AP73,CR:CR,0))) ->  | AM74: =IF(ISBLANK(AP74)," ",INDEX('Eingabe Spielernamen'!$F:$F,MATCH(AL74,'Eingabe Spielernamen'!$B:$B,0))&", "&INDEX('Eingabe Spielernamen'!$G:$G,MATCH(AL74,'Eingabe Spielernamen'!$B:$B,0))) ->  | AP74: =AP73 -> 0 | AU74: =IF(ISBLANK(AQ74)," ",AQ74+(AR74-AS74)*50+IF(COUNT(AQ73:AQ76)=3,(AS73+AS75+AS76)*40,(AS73+AS75+AS76)*30)) ->  | AV74: 0 | AW74: =IF(COUNTIF(AX$13:AX74,AX74)>1,"X","") -> X | AX74: =IF(ISBLANK(BB73)," ",INDEX(CY:CY,MATCH(BB73,CW:CW,0))) ->  | AY74: =IF(ISBLANK(BB74)," ",INDEX('Eingabe Spielernamen'!$F:$F,MATCH(AX74,'Eingabe Spielernamen'!$B:$B,0))&", "&INDEX('Eingabe Spielernamen'!$G:$G,MATCH(AX74,'Eingabe Spielernamen'!$B:$B,0))) ->  | BB74: =BB73 -> 0 | BG74: =IF(ISBLANK(BC74)," ",BC74+(BD74-BE74)*50+IF(COUNT(BC73:BC76)=3,(BE73+BE75+BE76)*40,(BE73+BE75+BE76)*30)) ->  | BH74: 0 | BI74: =IF(COUNTIF(BJ$13:BJ74,BJ74)>1,"X","") -> X | BJ74: =IF(ISBLANK(BN73)," ",INDEX(DD:DD,MATCH(BN73,DB:DB,0))) ->  | BK74: =IF(ISBLANK(BN74)," ",INDEX('Eingabe Spielernamen'!$F:$F,MATCH(BJ74,'Eingabe Spielernamen'!$B:$B,0))&", "&INDEX('Eingabe Spielernamen'!$G:$G,MATCH(BJ74,'Eingabe Spielernamen'!$B:$B,0))) ->  | BN74: =BN73 -> 0 | BS74: =IF(ISBLANK(BO74)," ",BO74+(BP74-BQ74)*50+IF(COUNT(BO73:BO76)=3,(BQ73+BQ75+BQ76)*40,(BQ73+BQ75+BQ76)*30)) ->  | BT74: 0
A75: =IF(COUNTIF(B$13:B75,B75)>1,"X","") -> X | B75: =IF(ISBLANK(F73)," ",INDEX(CF:CF,MATCH(F73,CC:CC,0))) ->  | C75: =IF(ISBLANK(F75)," ",INDEX('Eingabe Spielernamen'!$F:$F,MATCH(B75,'Eingabe Spielernamen'!$B:$B,0))&", "&INDEX('Eingabe Spielernamen'!$G:$G,MATCH(B75,'Eingabe Spielernamen'!$B:$B,0))) ->  | F75: =F73 -> 0 | K75: =IF(ISBLANK(G75)," ",G75+(H75-I75)*50+IF(COUNT(G73:G76)=3,(I73+I74+I76)*40,(I73+I74+I76)*30)) ->  | L75: 0 | M75: =IF(COUNTIF(N$13:N75,N75)>1,"X","") -> X | N75: =IF(ISBLANK(R73)," ",INDEX(CK:CK,MATCH(R73,CH:CH,0))) ->  | O75: =IF(ISBLANK(R75)," ",INDEX('Eingabe Spielernamen'!$F:$F,MATCH(N75,'Eingabe Spielernamen'!$B:$B,0))&", "&INDEX('Eingabe Spielernamen'!$G:$G,MATCH(N75,'Eingabe Spielernamen'!$B:$B,0))) ->  | R75: =R73 -> 0 | W75: =IF(ISBLANK(S75)," ",S75+(T75-U75)*50+IF(COUNT(S73:S76)=3,(U73+U74+U76)*40,(U73+U74+U76)*30)) ->  | X75: 0 | Y75: =IF(COUNTIF(Z$13:Z75,Z75)>1,"X","") -> X | Z75: =IF(ISBLANK(AD73)," ",INDEX(CP:CP,MATCH(AD73,CM:CM,0))) ->  | AA75: =IF(ISBLANK(AD75)," ",INDEX('Eingabe Spielernamen'!$F:$F,MATCH(Z75,'Eingabe Spielernamen'!$B:$B,0))&", "&INDEX('Eingabe Spielernamen'!$G:$G,MATCH(Z75,'Eingabe Spielernamen'!$B:$B,0))) ->  | AD75: =AD73 -> 0 | AI75: =IF(ISBLANK(AE75)," ",AE75+(AF75-AG75)*50+IF(COUNT(AE73:AE76)=3,(AG73+AG74+AG76)*40,(AG73+AG74+AG76)*30)) ->  | AJ75: 0 | AK75: =IF(COUNTIF(AL$13:AL75,AL75)>1,"X","") -> X | AL75: =IF(ISBLANK(AP73)," ",INDEX(CU:CU,MATCH(AP73,CR:CR,0))) ->  | AM75: =IF(ISBLANK(AP75)," ",INDEX('Eingabe Spielernamen'!$F:$F,MATCH(AL75,'Eingabe Spielernamen'!$B:$B,0))&", "&INDEX('Eingabe Spielernamen'!$G:$G,MATCH(AL75,'Eingabe Spielernamen'!$B:$B,0))) ->  | AP75: =AP73 -> 0 | AU75: =IF(ISBLANK(AQ75)," ",AQ75+(AR75-AS75)*50+IF(COUNT(AQ73:AQ76)=3,(AS73+AS74+AS76)*40,(AS73+AS74+AS76)*30)) ->  | AV75: 0 | AW75: =IF(COUNTIF(AX$13:AX75,AX75)>1,"X","") -> X | AX75: =IF(ISBLANK(BB73)," ",INDEX(CZ:CZ,MATCH(BB73,CW:CW,0))) ->  | AY75: =IF(ISBLANK(BB75)," ",INDEX('Eingabe Spielernamen'!$F:$F,MATCH(AX75,'Eingabe Spielernamen'!$B:$B,0))&", "&INDEX('Eingabe Spielernamen'!$G:$G,MATCH(AX75,'Eingabe Spielernamen'!$B:$B,0))) ->  | BB75: =BB73 -> 0 | BG75: =IF(ISBLANK(BC75)," ",BC75+(BD75-BE75)*50+IF(COUNT(BC73:BC76)=3,(BE73+BE74+BE76)*40,(BE73+BE74+BE76)*30)) ->  | BH75: 0 | BI75: =IF(COUNTIF(BJ$13:BJ75,BJ75)>1,"X","") -> X | BJ75: =IF(ISBLANK(BN73)," ",INDEX(DE:DE,MATCH(BN73,DB:DB,0))) ->  | BK75: =IF(ISBLANK(BN75)," ",INDEX('Eingabe Spielernamen'!$F:$F,MATCH(BJ75,'Eingabe Spielernamen'!$B:$B,0))&", "&INDEX('Eingabe Spielernamen'!$G:$G,MATCH(BJ75,'Eingabe Spielernamen'!$B:$B,0))) ->  | BN75: =BN73 -> 0 | BS75: =IF(ISBLANK(BO75)," ",BO75+(BP75-BQ75)*50+IF(COUNT(BO73:BO76)=3,(BQ73+BQ74+BQ76)*40,(BQ73+BQ74+BQ76)*30)) ->  | BT75: 0
A76: =IF(COUNTIF(B$13:B76,B76)>1,"X","") -> X | B76: =IF(ISBLANK(F73)," ",INDEX(CG:CG,MATCH(F73,CC:CC,0))) ->  | C76: =IF(ISBLANK(F76)," ",INDEX('Eingabe Spielernamen'!$F:$F,MATCH(B76,'Eingabe Spielernamen'!$B:$B,0))&", "&INDEX('Eingabe Spielernamen'!$G:$G,MATCH(B76,'Eingabe Spielernamen'!$B:$B,0))) ->  | F76: =F73 -> 0 | K76: =IF(ISBLANK(G76)," ",G76+(H76-I76)*50+IF(COUNT(G73:G76)=3,(I73+I74+I75)*40,(I73+I74+I75)*30)) ->  | L76: 0 | M76: =IF(COUNTIF(N$13:N76,N76)>1,"X","") -> X | N76: =IF(ISBLANK(R73)," ",INDEX(CL:CL,MATCH(R73,CH:CH,0))) ->  | O76: =IF(ISBLANK(R76)," ",INDEX('Eingabe Spielernamen'!$F:$F,MATCH(N76,'Eingabe Spielernamen'!$B:$B,0))&", "&INDEX('Eingabe Spielernamen'!$G:$G,MATCH(N76,'Eingabe Spielernamen'!$B:$B,0))) ->  | R76: =R73 -> 0 | W76: =IF(ISBLANK(S76)," ",S76+(T76-U76)*50+IF(COUNT(S73:S76)=3,(U73+U74+U75)*40,(U73+U74+U75)*30)) ->  | X76: 0 | Y76: =IF(COUNTIF(Z$13:Z76,Z76)>1,"X","") -> X | Z76: =IF(ISBLANK(AD73)," ",INDEX(CQ:CQ,MATCH(AD73,CM:CM,0))) ->  | AA76: =IF(ISBLANK(AD76)," ",INDEX('Eingabe Spielernamen'!$F:$F,MATCH(Z76,'Eingabe Spielernamen'!$B:$B,0))&", "&INDEX('Eingabe Spielernamen'!$G:$G,MATCH(Z76,'Eingabe Spielernamen'!$B:$B,0))) ->  | AD76: =AD73 -> 0 | AI76: =IF(ISBLANK(AE76)," ",AE76+(AF76-AG76)*50+IF(COUNT(AE73:AE76)=3,(AG73+AG74+AG75)*40,(AG73+AG74+AG75)*30)) ->  | AJ76: 0 | AK76: =IF(COUNTIF(AL$13:AL76,AL76)>1,"X","") -> X | AL76: =IF(ISBLANK(AP73)," ",INDEX(CV:CV,MATCH(AP73,CR:CR,0))) ->  | AM76: =IF(ISBLANK(AP76)," ",INDEX('Eingabe Spielernamen'!$F:$F,MATCH(AL76,'Eingabe Spielernamen'!$B:$B,0))&", "&INDEX('Eingabe Spielernamen'!$G:$G,MATCH(AL76,'Eingabe Spielernamen'!$B:$B,0))) ->  | AP76: =AP73 -> 0 | AU76: =IF(ISBLANK(AQ76)," ",AQ76+(AR76-AS76)*50+IF(COUNT(AQ73:AQ76)=3,(AS73+AS74+AS75)*40,(AS73+AS74+AS75)*30)) ->  | AV76: 0 | AW76: =IF(COUNTIF(AX$13:AX76,AX76)>1,"X","") -> X | AX76: =IF(ISBLANK(BB73)," ",INDEX(DA:DA,MATCH(BB73,CW:CW,0))) ->  | AY76: =IF(ISBLANK(BB76)," ",INDEX('Eingabe Spielernamen'!$F:$F,MATCH(AX76,'Eingabe Spielernamen'!$B:$B,0))&", "&INDEX('Eingabe Spielernamen'!$G:$G,MATCH(AX76,'Eingabe Spielernamen'!$B:$B,0))) ->  | BB76: =BB73 -> 0 | BG76: =IF(ISBLANK(BC76)," ",BC76+(BD76-BE76)*50+IF(COUNT(BC73:BC76)=3,(BE73+BE74+BE75)*40,(BE73+BE74+BE75)*30)) ->  | BH76: 0 | BI76: =IF(COUNTIF(BJ$13:BJ76,BJ76)>1,"X","") -> X | BJ76: =IF(ISBLANK(BN73)," ",INDEX(DF:DF,MATCH(BN73,DB:DB,0))) ->  | BK76: =IF(ISBLANK(BN76)," ",INDEX('Eingabe Spielernamen'!$F:$F,MATCH(BJ76,'Eingabe Spielernamen'!$B:$B,0))&", "&INDEX('Eingabe Spielernamen'!$G:$G,MATCH(BJ76,'Eingabe Spielernamen'!$B:$B,0))) ->  | BN76: =BN73 -> 0 | BS76: =IF(ISBLANK(BO76)," ",BO76+(BP76-BQ76)*50+IF(COUNT(BO73:BO76)=3,(BQ73+BQ74+BQ75)*40,(BQ73+BQ74+BQ75)*30)) ->  | BT76: 0
B77: Nach erfolgter Eingabe kann man die eingegebenen Tische (B-L) nach "F" sortieren | N77: Nach erfolgter Eingabe kann man die eingegebenen Tische (N-X) nach "R" sortieren | Z77: Nach erfolgter Eingabe kann man die eingegebenen Tische (Z-AJ) nach "AD" sortieren | AL77: Nach erfolgter Eingabe kann man die eingegebenen Tische (AL-AV) nach "AP" sortieren | AX77: Nach erfolgter Eingabe kann man die eingegebenen Tische (AX-BH) nach "BB" sortieren | BJ77: Nach erfolgter Eingabe kann man die eingegebenen Tische (BJ-BT) nach "BN" sortieren
B78: Vorher den Blattschutz aufheben! | N78: Vorher den Blattschutz aufheben! | Z78: Vorher den Blattschutz aufheben! | AL78: Vorher den Blattschutz aufheben! | AX78: Vorher den Blattschutz aufheben! | BJ78: Vorher den Blattschutz aufheben!

Sheet Ausgabe Einzel
A1: Platzierung | B1: Start- | C1: Delegation | D1: Name | E1: Vorname | F1: 1. Serie | G1: 2. Serie | H1: Summe | I1: 3. Serie | J1: 4. Serie | K1: Summe | L1: Summe | M1: 5. Serie | N1: 6. Serie | O1: Summe | P1: Summe | Q1: Preise:
B2: Nummer | H2: 1. + 2. Serie | K2: 3. + 4. Serie | L2: 1. - 4. Serie | O2: 5. + 6. Serie | P2: 1. - 6. Serie
A3: =TODAY() -> 2021-11-16 | D3: ='Eingabe Spielernamen'!G3 -> Vier - Städte - Turnier | E3: ='Eingabe Spielernamen'!H3 -> 2020 | Q3: =SUM(Q4:Q67) -> 440
A4: 1 | B4: 101 | C4: =IF($B4<>0,INDEX('Eingabe Spielernamen'!A:A,MATCH(B4,'Eingabe Spielernamen'!B:B,))," ") -> 0 | D4: =IF($B4<>0,INDEX('Eingabe Spielernamen'!F:F,MATCH(B4,'Eingabe Spielernamen'!B:B,))," ") -> 0 | E4: =IF($B4<>0,INDEX('Eingabe Spielernamen'!G:G,MATCH(B4,'Eingabe Spielernamen'!B:B,))," ") -> 0 | F4: =IF($B4<>0,INDEX('Eingabe Spielernamen'!H:H,MATCH(B4,'Eingabe Spielernamen'!B:B,))," ") -> 0 | G4: =IF($B4<>0,INDEX('Eingabe Spielernamen'!I:I,MATCH(B4,'Eingabe Spielernamen'!B:B,))," ") -> 0 | H4: =SUM(F4:G4) -> 0 | I4: =IF($B4<>0,INDEX('Eingabe Spielernamen'!K:K,MATCH(B4,'Eingabe Spielernamen'!B:B,))," ") -> 0 | J4: =IF($B4<>0,INDEX('Eingabe Spielernamen'!L:L,MATCH(B4,'Eingabe Spielernamen'!B:B,))," ") -> 0 | K4: =SUM(I4:J4) -> 0 | L4: =H4+K4 -> 0 | M4: =IF($B4<>0,INDEX('Eingabe Spielernamen'!O:O,MATCH(B4,'Eingabe Spielernamen'!B:B,))," ") -> 0 | N4: =IF($B4<>0,INDEX('Eingabe Spielernamen'!P:P,MATCH(B4,'Eingabe Spielernamen'!B:B,))," ") -> 0 | O4: =SUM(M4:N4) -> 0 | P4: =L4+O4 -> 0 | Q4: 80
A5: 2 | B5: 102 | C5: =IF($B5<>0,INDEX('Eingabe Spielernamen'!A:A,MATCH(B5,'Eingabe Spielernamen'!B:B,))," ") -> 0 | D5: =IF($B5<>0,INDEX('Eingabe Spielernamen'!F:F,MATCH(B5,'Eingabe Spielernamen'!B:B,))," ") -> 0 | E5: =IF($B5<>0,INDEX('Eingabe Spielernamen'!G:G,MATCH(B5,'Eingabe Spielernamen'!B:B,))," ") -> 0 | F5: =IF($B5<>0,INDEX('Eingabe Spielernamen'!H:H,MATCH(B5,'Eingabe Spielernamen'!B:B,))," ") -> 0 | G5: =IF($B5<>0,INDEX('Eingabe Spielernamen'!I:I,MATCH(B5,'Eingabe Spielernamen'!B:B,))," ") -> 0 | H5: 0 | I5: =IF($B5<>0,INDEX('Eingabe Spielernamen'!K:K,MATCH(B5,'Eingabe Spielernamen'!B:B,))," ") -> 0 | J5: =IF($B5<>0,INDEX('Eingabe Spielernamen'!L:L,MATCH(B5,'Eingabe Spielernamen'!B:B,))," ") -> 0 | K5: 0 | L5: 0 | M5: =IF($B5<>0,INDEX('Eingabe Spielernamen'!O:O,MATCH(B5,'Eingabe Spielernamen'!B:B,))," ") -> 0 | N5: =IF($B5<>0,INDEX('Eingabe Spielernamen'!P:P,MATCH(B5,'Eingabe Spielernamen'!B:B,))," ") -> 0 | O5: 0 | P5: 0 | Q5: 70
A6: 3 | B6: 103 | C6: =IF($B6<>0,INDEX('Eingabe Spielernamen'!A:A,MATCH(B6,'Eingabe Spielernamen'!B:B,))," ") -> 0 | D6: =IF($B6<>0,INDEX('Eingabe Spielernamen'!F:F,MATCH(B6,'Eingabe Spielernamen'!B:B,))," ") -> 0 | E6: =IF($B6<>0,INDEX('Eingabe Spielernamen'!G:G,MATCH(B6,'Eingabe Spielernamen'!B:B,))," ") -> 0 | F6: =IF($B6<>0,INDEX('Eingabe Spielernamen'!H:H,MATCH(B6,'Eingabe Spielernamen'!B:B,))," ") -> 0 | G6: =IF($B6<>0,INDEX('Eingabe Spielernamen'!I:I,MATCH(B6,'Eingabe Spielernamen'!B:B,))," ") -> 0 | H6: 0 | I6: =IF($B6<>0,INDEX('Eingabe Spielernamen'!K:K,MATCH(B6,'Eingabe Spielernamen'!B:B,))," ") -> 0 | J6: =IF($B6<>0,INDEX('Eingabe Spielernamen'!L:L,MATCH(B6,'Eingabe Spielernamen'!B:B,))," ") -> 0 | K6: 0 | L6: 0 | M6: =IF($B6<>0,INDEX('Eingabe Spielernamen'!O:O,MATCH(B6,'Eingabe Spielernamen'!B:B,))," ") -> 0 | N6: =IF($B6<>0,INDEX('Eingabe Spielernamen'!P:P,MATCH(B6,'Eingabe Spielernamen'!B:B,))," ") -> 0 | O6: 0 | P6: 0 | Q6: 60
A7: 4 | B7: 104 | C7: =IF($B7<>0,INDEX('Eingabe Spielernamen'!A:A,MATCH(B7,'Eingabe Spielernamen'!B:B,))," ") -> 0 | D7: =IF($B7<>0,INDEX('Eingabe Spielernamen'!F:F,MATCH(B7,'Eingabe Spielernamen'!B:B,))," ") -> 0 | E7: =IF($B7<>0,INDEX('Eingabe Spielernamen'!G:G,MATCH(B7,'Eingabe Spielernamen'!B:B,))," ") -> 0 | F7: =IF($B7<>0,INDEX('Eingabe Spielernamen'!H:H,MATCH(B7,'Eingabe Spielernamen'!B:B,))," ") -> 0 | G7: =IF($B7<>0,INDEX('Eingabe Spielernamen'!I:I,MATCH(B7,'Eingabe Spielernamen'!B:B,))," ") -> 0 | H7: 0 | I7: =IF($B7<>0,INDEX('Eingabe Spielernamen'!K:K,MATCH(B7,'Eingabe Spielernamen'!B:B,))," ") -> 0 | J7: =IF($B7<>0,INDEX('Eingabe Spielernamen'!L:L,MATCH(B7,'Eingabe Spielernamen'!B:B,))," ") -> 0 | K7: 0 | L7: 0 | M7: =IF($B7<>0,INDEX('Eingabe Spielernamen'!O:O,MATCH(B7,'Eingabe Spielernamen'!B:B,))," ") -> 0 | N7: =IF($B7<>0,INDEX('Eingabe Spielernamen'!P:P,MATCH(B7,'Eingabe Spielernamen'!B:B,))," ") -> 0 | O7: 0 | P7: 0 | Q7: 50
A8: 5 | B8: 105 | C8: =IF($B8<>0,INDEX('Eingabe Spielernamen'!A:A,MATCH(B8,'Eingabe Spielernamen'!B:B,))," ") -> 0 | D8: =IF($B8<>0,INDEX('Eingabe Spielernamen'!F:F,MATCH(B8,'Eingabe Spielernamen'!B:B,))," ") -> 0 | E8: =IF($B8<>0,INDEX('Eingabe Spielernamen'!G:G,MATCH(B8,'Eingabe Spielernamen'!B:B,))," ") -> 0 | F8: =IF($B8<>0,INDEX('Eingabe Spielernamen'!H:H,MATCH(B8,'Eingabe Spielernamen'!B:B,))," ") -> 0 | G8: =IF($B8<>0,INDEX('Eingabe Spielernamen'!I:I,MATCH(B8,'Eingabe Spielernamen'!B:B,))," ") -> 0 | H8: 0 | I8: =IF($B8<>0,INDEX('Eingabe Spielernamen'!K:K,MATCH(B8,'Eingabe Spielernamen'!B:B,))," ") -> 0 | J8: =IF($B8<>0,INDEX('Eingabe Spielernamen'!L:L,MATCH(B8,'Eingabe Spielernamen'!B:B,))," ") -> 0 | K8: 0 | L8: 0 | M8: =IF($B8<>0,INDEX('Eingabe Spielernamen'!O:O,MATCH(B8,'Eingabe Spielernamen'!B:B,))," ") -> 0 | N8: =IF($B8<>0,INDEX('Eingabe Spielernamen'!P:P,MATCH(B8,'Eingabe Spielernamen'!B:B,))," ") -> 0 | O8: 0 | P8: 0 | Q8: 40
A9: 6 | B9: 106 | C9: =IF($B9<>0,INDEX('Eingabe Spielernamen'!A:A,MATCH(B9,'Eingabe Spielernamen'!B:B,))," ") -> 0 | D9: =IF($B9<>0,INDEX('Eingabe Spielernamen'!F:F,MATCH(B9,'Eingabe Spielernamen'!B:B,))," ") -> 0 | E9: =IF($B9<>0,INDEX('Eingabe Spielernamen'!G:G,MATCH(B9,'Eingabe Spielernamen'!B:B,))," ") -> 0 | F9: =IF($B9<>0,INDEX('Eingabe Spielernamen'!H:H,MATCH(B9,'Eingabe Spielernamen'!B:B,))," ") -> 0 | G9: =IF($B9<>0,INDEX('Eingabe Spielernamen'!I:I,MATCH(B9,'Eingabe Spielernamen'!B:B,))," ") -> 0 | H9: 0 | I9: =IF($B9<>0,INDEX('Eingabe Spielernamen'!K:K,MATCH(B9,'Eingabe Spielernamen'!B:B,))," ") -> 0 | J9: =IF($B9<>0,INDEX('Eingabe Spielernamen'!L:L,MATCH(B9,'Eingabe Spielernamen'!B:B,))," ") -> 0 | K9: 0 | L9: 0 | M9: =IF($B9<>0,INDEX('Eingabe Spielernamen'!O:O,MATCH(B9,'Eingabe Spielernamen'!B:B,))," ") -> 0 | N9: =IF($B9<>0,INDEX('Eingabe Spielernamen'!P:P,MATCH(B9,'Eingabe Spielernamen'!B:B,))," ") -> 0 | O9: 0 | P9: 0 | Q9: 35
A10: 7 | B10: 107 | C10: =IF($B10<>0,INDEX('Eingabe Spielernamen'!A:A,MATCH(B10,'Eingabe Spielernamen'!B:B,))," ") -> 0 | D10: =IF($B10<>0,INDEX('Eingabe Spielernamen'!F:F,MATCH(B10,'Eingabe Spielernamen'!B:B,))," ") -> 0 | E10: =IF($B10<>0,INDEX('Eingabe Spielernamen'!G:G,MATCH(B10,'Eingabe Spielernamen'!B:B,))," ") -> 0 | F10: =IF($B10<>0,INDEX('Eingabe Spielernamen'!H:H,MATCH(B10,'Eingabe Spielernamen'!B:B,))," ") -> 0 | G10: =IF($B10<>0,INDEX('Eingabe Spielernamen'!I:I,MATCH(B10,'Eingabe Spielernamen'!B:B,))," ") -> 0 | H10: 0 | I10: =IF($B10<>0,INDEX('Eingabe Spielernamen'!K:K,MATCH(B10,'Eingabe Spielernamen'!B:B,))," ") -> 0 | J10: =IF($B10<>0,INDEX('Eingabe Spielernamen'!L:L,MATCH(B10,'Eingabe Spielernamen'!B:B,))," ") -> 0 | K10: 0 | L10: 0 | M10: =IF($B10<>0,INDEX('Eingabe Spielernamen'!O:O,MATCH(B10,'Eingabe Spielernamen'!B:B,))," ") -> 0 | N10: =IF($B10<>0,INDEX('Eingabe Spielernamen'!P:P,MATCH(B10,'Eingabe Spielernamen'!B:B,))," ") -> 0 | O10: 0 | P10: 0 | Q10: 30
A11: 8 | B11: 108 | C11: =IF($B11<>0,INDEX('Eingabe Spielernamen'!A:A,MATCH(B11,'Eingabe Spielernamen'!B:B,))," ") -> 0 | D11: =IF($B11<>0,INDEX('Eingabe Spielernamen'!F:F,MATCH(B11,'Eingabe Spielernamen'!B:B,))," ") -> 0 | E11: =IF($B11<>0,INDEX('Eingabe Spielernamen'!G:G,MATCH(B11,'Eingabe Spielernamen'!B:B,))," ") -> 0 | F11: =IF($B11<>0,INDEX('Eingabe Spielernamen'!H:H,MATCH(B11,'Eingabe Spielernamen'!B:B,))," ") -> 0 | G11: =IF($B11<>0,INDEX('Eingabe Spielernamen'!I:I,MATCH(B11,'Eingabe Spielernamen'!B:B,))," ") -> 0 | H11: 0 | I11: =IF($B11<>0,INDEX('Eingabe Spielernamen'!K:K,MATCH(B11,'Eingabe Spielernamen'!B:B,))," ") -> 0 | J11: =IF($B11<>0,INDEX('Eingabe Spielernamen'!L:L,MATCH(B11,'Eingabe Spielernamen'!B:B,))," ") -> 0 | K11: 0 | L11: 0 | M11: =IF($B11<>0,INDEX('Eingabe Spielernamen'!O:O,MATCH(B11,'Eingabe Spielernamen'!B:B,))," ") -> 0 | N11: =IF($B11<>0,INDEX('Eingabe Spielernamen'!P:P,MATCH(B11,'Eingabe Spielernamen'!B:B,))," ") -> 0 | O11: 0 | P11: 0 | Q11: 25
A12: 9 | B12: 109 | C12: =IF($B12<>0,INDEX('Eingabe Spielernamen'!A:A,MATCH(B12,'Eingabe Spielernamen'!B:B,))," ") -> 0 | D12: =IF($B12<>0,INDEX('Eingabe Spielernamen'!F:F,MATCH(B12,'Eingabe Spielernamen'!B:B,))," ") -> 0 | E12: =IF($B12<>0,INDEX('Eingabe Spielernamen'!G:G,MATCH(B12,'Eingabe Spielernamen'!B:B,))," ") -> 0 | F12: =IF($B12<>0,INDEX('Eingabe Spielernamen'!H:H,MATCH(B12,'Eingabe Spielernamen'!B:B,))," ") -> 0 | G12: =IF($B12<>0,INDEX('Eingabe Spielernamen'!I:I,MATCH(B12,'Eingabe Spielernamen'!B:B,))," ") -> 0 | H12: 0 | I12: =IF($B12<>0,INDEX('Eingabe Spielernamen'!K:K,MATCH(B12,'Eingabe Spielernamen'!B:B,))," ") -> 0 | J12: =IF($B12<>0,INDEX('Eingabe Spielernamen'!L:L,MATCH(B12,'Eingabe Spielernamen'!B:B,))," ") -> 0 | K12: 0 | L12: 0 | M12: =IF($B12<>0,INDEX('Eingabe Spielernamen'!O:O,MATCH(B12,'Eingabe Spielernamen'!B:B,))," ") -> 0 | N12: =IF($B12<>0,INDEX('Eingabe Spielernamen'!P:P,MATCH(B12,'Eingabe Spielernamen'!B:B,))," ") -> 0 | O12: 0 | P12: 0 | Q12: 20
A13: 10 | B13: 110 | C13: =IF($B13<>0,INDEX('Eingabe Spielernamen'!A:A,MATCH(B13,'Eingabe Spielernamen'!B:B,))," ") -> 0 | D13: =IF($B13<>0,INDEX('Eingabe Spielernamen'!F:F,MATCH(B13,'Eingabe Spielernamen'!B:B,))," ") -> 0 | E13: =IF($B13<>0,INDEX('Eingabe Spielernamen'!G:G,MATCH(B13,'Eingabe Spielernamen'!B:B,))," ") -> 0 | F13: =IF($B13<>0,INDEX('Eingabe Spielernamen'!H:H,MATCH(B13,'Eingabe Spielernamen'!B:B,))," ") -> 0 | G13: =IF($B13<>0,INDEX('Eingabe Spielernamen'!I:I,MATCH(B13,'Eingabe Spielernamen'!B:B,))," ") -> 0 | H13: 0 | I13: =IF($B13<>0,INDEX('Eingabe Spielernamen'!K:K,MATCH(B13,'Eingabe Spielernamen'!B:B,))," ") -> 0 | J13: =IF($B13<>0,INDEX('Eingabe Spielernamen'!L:L,MATCH(B13,'Eingabe Spielernamen'!B:B,))," ") -> 0 | K13: 0 | L13: 0 | M13: =IF($B13<>0,INDEX('Eingabe Spielernamen'!O:O,MATCH(B13,'Eingabe Spielernamen'!B:B,))," ") -> 0 | N13: =IF($B13<>0,INDEX('Eingabe Spielernamen'!P:P,MATCH(B13,'Eingabe Spielernamen'!B:B,))," ") -> 0 | O13: 0 | P13: 0 | Q13: 15
A14: 11 | B14: 111 | C14: =IF($B14<>0,INDEX('Eingabe Spielernamen'!A:A,MATCH(B14,'Eingabe Spielernamen'!B:B,))," ") -> 0 | D14: =IF($B14<>0,INDEX('Eingabe Spielernamen'!F:F,MATCH(B14,'Eingabe Spielernamen'!B:B,))," ") -> 0 | E14: =IF($B14<>0,INDEX('Eingabe Spielernamen'!G:G,MATCH(B14,'Eingabe Spielernamen'!B:B,))," ") -> 0 | F14: =IF($B14<>0,INDEX('Eingabe Spielernamen'!H:H,MATCH(B14,'Eingabe Spielernamen'!B:B,))," ") -> 0 | G14: =IF($B14<>0,INDEX('Eingabe Spielernamen'!I:I,MATCH(B14,'Eingabe Spielernamen'!B:B,))," ") -> 0 | H14: 0 | I14: =IF($B14<>0,INDEX('Eingabe Spielernamen'!K:K,MATCH(B14,'Eingabe Spielernamen'!B:B,))," ") -> 0 | J14: =IF($B14<>0,INDEX('Eingabe Spielernamen'!L:L,MATCH(B14,'Eingabe Spielernamen'!B:B,))," ") -> 0 | K14: 0 | L14: 0 | M14: =IF($B14<>0,INDEX('Eingabe Spielernamen'!O:O,MATCH(B14,'Eingabe Spielernamen'!B:B,))," ") -> 0 | N14: =IF($B14<>0,INDEX('Eingabe Spielernamen'!P:P,MATCH(B14,'Eingabe Spielernamen'!B:B,))," ") -> 0 | O14: 0 | P14: 0 | Q14: 15
A15: 12 | B15: 112 | C15: =IF($B15<>0,INDEX('Eingabe Spielernamen'!A:A,MATCH(B15,'Eingabe Spielernamen'!B:B,))," ") -> 0 | D15: =IF($B15<>0,INDEX('Eingabe Spielernamen'!F:F,MATCH(B15,'Eingabe Spielernamen'!B:B,))," ") -> 0 | E15: =IF($B15<>0,INDEX('Eingabe Spielernamen'!G:G,MATCH(B15,'Eingabe Spielernamen'!B:B,))," ") -> 0 | F15: =IF($B15<>0,INDEX('Eingabe Spielernamen'!H:H,MATCH(B15,'Eingabe Spielernamen'!B:B,))," ") -> 0 | G15: =IF($B15<>0,INDEX('Eingabe Spielernamen'!I:I,MATCH(B15,'Eingabe Spielernamen'!B:B,))," ") -> 0 | H15: 0 | I15: =IF($B15<>0,INDEX('Eingabe Spielernamen'!K:K,MATCH(B15,'Eingabe Spielernamen'!B:B,))," ") -> 0 | J15: =IF($B15<>0,INDEX('Eingabe Spielernamen'!L:L,MATCH(B15,'Eingabe Spielernamen'!B:B,))," ") -> 0 | K15: 0 | L15: 0 | M15: =IF($B15<>0,INDEX('Eingabe Spielernamen'!O:O,MATCH(B15,'Eingabe Spielernamen'!B:B,))," ") -> 0 | N15: =IF($B15<>0,INDEX('Eingabe Spielernamen'!P:P,MATCH(B15,'Eingabe Spielernamen'!B:B,))," ") -> 0 | O15: 0 | P15: 0
A16: 13 | B16: 113 | C16: =IF($B16<>0,INDEX('Eingabe Spielernamen'!A:A,MATCH(B16,'Eingabe Spielernamen'!B:B,))," ") -> 0 | D16: =IF($B16<>0,INDEX('Eingabe Spielernamen'!F:F,MATCH(B16,'Eingabe Spielernamen'!B:B,))," ") -> 0 | E16: =IF($B16<>0,INDEX('Eingabe Spielernamen'!G:G,MATCH(B16,'Eingabe Spielernamen'!B:B,))," ") -> 0 | F16: =IF($B16<>0,INDEX('Eingabe Spielernamen'!H:H,MATCH(B16,'Eingabe Spielernamen'!B:B,))," ") -> 0 | G16: =IF($B16<>0,INDEX('Eingabe Spielernamen'!I:I,MATCH(B16,'Eingabe Spielernamen'!B:B,))," ") -> 0 | H16: 0 | I16: =IF($B16<>0,INDEX('Eingabe Spielernamen'!K:K,MATCH(B16,'Eingabe Spielernamen'!B:B,))," ") -> 0 | J16: =IF($B16<>0,INDEX('Eingabe Spielernamen'!L:L,MATCH(B16,'Eingabe Spielernamen'!B:B,))," ") -> 0 | K16: 0 | L16: 0 | M16: =IF($B16<>0,INDEX('Eingabe Spielernamen'!O:O,MATCH(B16,'Eingabe Spielernamen'!B:B,))," ") -> 0 | N16: =IF($B16<>0,INDEX('Eingabe Spielernamen'!P:P,MATCH(B16,'Eingabe Spielernamen'!B:B,))," ") -> 0 | O16: 0 | P16: 0
A17: 14 | B17: 114 | C17: =IF($B17<>0,INDEX('Eingabe Spielernamen'!A:A,MATCH(B17,'Eingabe Spielernamen'!B:B,))," ") -> 0 | D17: =IF($B17<>0,INDEX('Eingabe Spielernamen'!F:F,MATCH(B17,'Eingabe Spielernamen'!B:B,))," ") -> 0 | E17: =IF($B17<>0,INDEX('Eingabe Spielernamen'!G:G,MATCH(B17,'Eingabe Spielernamen'!B:B,))," ") -> 0 | F17: =IF($B17<>0,INDEX('Eingabe Spielernamen'!H:H,MATCH(B17,'Eingabe Spielernamen'!B:B,))," ") -> 0 | G17: =IF($B17<>0,INDEX('Eingabe Spielernamen'!I:I,MATCH(B17,'Eingabe Spielernamen'!B:B,))," ") -> 0 | H17: 0 | I17: =IF($B17<>0,INDEX('Eingabe Spielernamen'!K:K,MATCH(B17,'Eingabe Spielernamen'!B:B,))," ") -> 0 | J17: =IF($B17<>0,INDEX('Eingabe Spielernamen'!L:L,MATCH(B17,'Eingabe Spielernamen'!B:B,))," ") -> 0 | K17: 0 | L17: 0 | M17: =IF($B17<>0,INDEX('Eingabe Spielernamen'!O:O,MATCH(B17,'Eingabe Spielernamen'!B:B,))," ") -> 0 | N17: =IF($B17<>0,INDEX('Eingabe Spielernamen'!P:P,MATCH(B17,'Eingabe Spielernamen'!B:B,))," ") -> 0 | O17: 0 | P17: 0
A18: 15 | B18: 115 | C18: =IF($B18<>0,INDEX('Eingabe Spielernamen'!A:A,MATCH(B18,'Eingabe Spielernamen'!B:B,))," ") -> 0 | D18: =IF($B18<>0,INDEX('Eingabe Spielernamen'!F:F,MATCH(B18,'Eingabe Spielernamen'!B:B,))," ") -> 0 | E18: =IF($B18<>0,INDEX('Eingabe Spielernamen'!G:G,MATCH(B18,'Eingabe Spielernamen'!B:B,))," ") -> 0 | F18: =IF($B18<>0,INDEX('Eingabe Spielernamen'!H:H,MATCH(B18,'Eingabe Spielernamen'!B:B,))," ") -> 0 | G18: =IF($B18<>0,INDEX('Eingabe Spielernamen'!I:I,MATCH(B18,'Eingabe Spielernamen'!B:B,))," ") -> 0 | H18: 0 | I18: =IF($B18<>0,INDEX('Eingabe Spielernamen'!K:K,MATCH(B18,'Eingabe Spielernamen'!B:B,))," ") -> 0 | J18: =IF($B18<>0,INDEX('Eingabe Spielernamen'!L:L,MATCH(B18,'Eingabe Spielernamen'!B:B,))," ") -> 0 | K18: 0 | L18: 0 | M18: =IF($B18<>0,INDEX('Eingabe Spielernamen'!O:O,MATCH(B18,'Eingabe Spielernamen'!B:B,))," ") -> 0 | N18: =IF($B18<>0,INDEX('Eingabe Spielernamen'!P:P,MATCH(B18,'Eingabe Spielernamen'!B:B,))," ") -> 0 | O18: 0 | P18: 0
A19: 16 | B19: 116 | C19: =IF($B19<>0,INDEX('Eingabe Spielernamen'!A:A,MATCH(B19,'Eingabe Spielernamen'!B:B,))," ") -> 0 | D19: =IF($B19<>0,INDEX('Eingabe Spielernamen'!F:F,MATCH(B19,'Eingabe Spielernamen'!B:B,))," ") -> 0 | E19: =IF($B19<>0,INDEX('Eingabe Spielernamen'!G:G,MATCH(B19,'Eingabe Spielernamen'!B:B,))," ") -> 0 | F19: =IF($B19<>0,INDEX('Eingabe Spielernamen'!H:H,MATCH(B19,'Eingabe Spielernamen'!B:B,))," ") -> 0 | G19: =IF($B19<>0,INDEX('Eingabe Spielernamen'!I:I,MATCH(B19,'Eingabe Spielernamen'!B:B,))," ") -> 0 | H19: 0 | I19: =IF($B19<>0,INDEX('Eingabe Spielernamen'!K:K,MATCH(B19,'Eingabe Spielernamen'!B:B,))," ") -> 0 | J19: =IF($B19<>0,INDEX('Eingabe Spielernamen'!L:L,MATCH(B19,'Eingabe Spielernamen'!B:B,))," ") -> 0 | K19: 0 | L19: 0 | M19: =IF($B19<>0,INDEX('Eingabe Spielernamen'!O:O,MATCH(B19,'Eingabe Spielernamen'!B:B,))," ") -> 0 | N19: =IF($B19<>0,INDEX('Eingabe Spielernamen'!P:P,MATCH(B19,'Eingabe Spielernamen'!B:B,))," ") -> 0 | O19: 0 | P19: 0
A20: 17 | B20: 201 | C20: =IF($B20<>0,INDEX('Eingabe Spielernamen'!A:A,MATCH(B20,'Eingabe Spielernamen'!B:B,))," ") -> 0 | D20: =IF($B20<>0,INDEX('Eingabe Spielernamen'!F:F,MATCH(B20,'Eingabe Spielernamen'!B:B,))," ") -> 0 | E20: =IF($B20<>0,INDEX('Eingabe Spielernamen'!G:G,MATCH(B20,'Eingabe Spielernamen'!B:B,))," ") -> 0 | F20: =IF($B20<>0,INDEX('Eingabe Spielernamen'!H:H,MATCH(B20,'Eingabe Spielernamen'!B:B,))," ") -> 0 | G20: =IF($B20<>0,INDEX('Eingabe Spielernamen'!I:I,MATCH(B20,'Eingabe Spielernamen'!B:B,))," ") -> 0 | H20: 0 | I20: =IF($B20<>0,INDEX('Eingabe Spielernamen'!K:K,MATCH(B20,'Eingabe Spielernamen'!B:B,))," ") -> 0 | J20: =IF($B20<>0,INDEX('Eingabe Spielernamen'!L:L,MATCH(B20,'Eingabe Spielernamen'!B:B,))," ") -> 0 | K20: 0 | L20: 0 | M20: =IF($B20<>0,INDEX('Eingabe Spielernamen'!O:O,MATCH(B20,'Eingabe Spielernamen'!B:B,))," ") -> 0 | N20: =IF($B20<>0,INDEX('Eingabe Spielernamen'!P:P,MATCH(B20,'Eingabe Spielernamen'!B:B,))," ") -> 0 | O20: 0 | P20: 0
A21: 18 | B21: 202 | C21: =IF($B21<>0,INDEX('Eingabe Spielernamen'!A:A,MATCH(B21,'Eingabe Spielernamen'!B:B,))," ") -> 0 | D21: =IF($B21<>0,INDEX('Eingabe Spielernamen'!F:F,MATCH(B21,'Eingabe Spielernamen'!B:B,))," ") -> 0 | E21: =IF($B21<>0,INDEX('Eingabe Spielernamen'!G:G,MATCH(B21,'Eingabe Spielernamen'!B:B,))," ") -> 0 | F21: =IF($B21<>0,INDEX('Eingabe Spielernamen'!H:H,MATCH(B21,'Eingabe Spielernamen'!B:B,))," ") -> 0 | G21: =IF($B21<>0,INDEX('Eingabe Spielernamen'!I:I,MATCH(B21,'Eingabe Spielernamen'!B:B,))," ") -> 0 | H21: 0 | I21: =IF($B21<>0,INDEX('Eingabe Spielernamen'!K:K,MATCH(B21,'Eingabe Spielernamen'!B:B,))," ") -> 0 | J21: =IF($B21<>0,INDEX('Eingabe Spielernamen'!L:L,MATCH(B21,'Eingabe Spielernamen'!B:B,))," ") -> 0 | K21: 0 | L21: 0 | M21: =IF($B21<>0,INDEX('Eingabe Spielernamen'!O:O,MATCH(B21,'Eingabe Spielernamen'!B:B,))," ") -> 0 | N21: =IF($B21<>0,INDEX('Eingabe Spielernamen'!P:P,MATCH(B21,'Eingabe Spielernamen'!B:B,))," ") -> 0 | O21: 0 | P21: 0
A22: 19 | B22: 203 | C22: =IF($B22<>0,INDEX('Eingabe Spielernamen'!A:A,MATCH(B22,'Eingabe Spielernamen'!B:B,))," ") -> 0 | D22: =IF($B22<>0,INDEX('Eingabe Spielernamen'!F:F,MATCH(B22,'Eingabe Spielernamen'!B:B,))," ") -> 0 | E22: =IF($B22<>0,INDEX('Eingabe Spielernamen'!G:G,MATCH(B22,'Eingabe Spielernamen'!B:B,))," ") -> 0 | F22: =IF($B22<>0,INDEX('Eingabe Spielernamen'!H:H,MATCH(B22,'Eingabe Spielernamen'!B:B,))," ") -> 0 | G22: =IF($B22<>0,INDEX('Eingabe Spielernamen'!I:I,MATCH(B22,'Eingabe Spielernamen'!B:B,))," ") -> 0 | H22: 0 | I22: =IF($B22<>0,INDEX('Eingabe Spielernamen'!K:K,MATCH(B22,'Eingabe Spielernamen'!B:B,))," ") -> 0 | J22: =IF($B22<>0,INDEX('Eingabe Spielernamen'!L:L,MATCH(B22,'Eingabe Spielernamen'!B:B,))," ") -> 0 | K22: 0 | L22: 0 | M22: =IF($B22<>0,INDEX('Eingabe Spielernamen'!O:O,MATCH(B22,'Eingabe Spielernamen'!B:B,))," ") -> 0 | N22: =IF($B22<>0,INDEX('Eingabe Spielernamen'!P:P,MATCH(B22,'Eingabe Spielernamen'!B:B,))," ") -> 0 | O22: 0 | P22: 0
A23: 20 | B23: 204 | C23: =IF($B23<>0,INDEX('Eingabe Spielernamen'!A:A,MATCH(B23,'Eingabe Spielernamen'!B:B,))," ") -> 0 | D23: =IF($B23<>0,INDEX('Eingabe Spielernamen'!F:F,MATCH(B23,'Eingabe Spielernamen'!B:B,))," ") -> 0 | E23: =IF($B23<>0,INDEX('Eingabe Spielernamen'!G:G,MATCH(B23,'Eingabe Spielernamen'!B:B,))," ") -> 0 | F23: =IF($B23<>0,INDEX('Eingabe Spielernamen'!H:H,MATCH(B23,'Eingabe Spielernamen'!B:B,))," ") -> 0 | G23: =IF($B23<>0,INDEX('Eingabe Spielernamen'!I:I,MATCH(B23,'Eingabe Spielernamen'!B:B,))," ") -> 0 | H23: 0 | I23: =IF($B23<>0,INDEX('Eingabe Spielernamen'!K:K,MATCH(B23,'Eingabe Spielernamen'!B:B,))," ") -> 0 | J23: =IF($B23<>0,INDEX('Eingabe Spielernamen'!L:L,MATCH(B23,'Eingabe Spielernamen'!B:B,))," ") -> 0 | K23: 0 | L23: 0 | M23: =IF($B23<>0,INDEX('Eingabe Spielernamen'!O:O,MATCH(B23,'Eingabe Spielernamen'!B:B,))," ") -> 0 | N23: =IF($B23<>0,INDEX('Eingabe Spielernamen'!P:P,MATCH(B23,'Eingabe Spielernamen'!B:B,))," ") -> 0 | O23: 0 | P23: 0
A24: 21 | B24: 205 | C24: =IF($B24<>0,INDEX('Eingabe Spielernamen'!A:A,MATCH(B24,'Eingabe Spielernamen'!B:B,))," ") -> 0 | D24: =IF($B24<>0,INDEX('Eingabe Spielernamen'!F:F,MATCH(B24,'Eingabe Spielernamen'!B:B,))," ") -> 0 | E24: =IF($B24<>0,INDEX('Eingabe Spielernamen'!G:G,MATCH(B24,'Eingabe Spielernamen'!B:B,))," ") -> 0 | F24: =IF($B24<>0,INDEX('Eingabe Spielernamen'!H:H,MATCH(B24,'Eingabe Spielernamen'!B:B,))," ") -> 0 | G24: =IF($B24<>0,INDEX('Eingabe Spielernamen'!I:I,MATCH(B24,'Eingabe Spielernamen'!B:B,))," ") -> 0 | H24: 0 | I24: =IF($B24<>0,INDEX('Eingabe Spielernamen'!K:K,MATCH(B24,'Eingabe Spielernamen'!B:B,))," ") -> 0 | J24: =IF($B24<>0,INDEX('Eingabe Spielernamen'!L:L,MATCH(B24,'Eingabe Spielernamen'!B:B,))," ") -> 0 | K24: 0 | L24: 0 | M24: =IF($B24<>0,INDEX('Eingabe Spielernamen'!O:O,MATCH(B24,'Eingabe Spielernamen'!B:B,))," ") -> 0 | N24: =IF($B24<>0,INDEX('Eingabe Spielernamen'!P:P,MATCH(B24,'Eingabe Spielernamen'!B:B,))," ") -> 0 | O24: 0 | P24: 0
A25: 22 | B25: 206 | C25: =IF($B25<>0,INDEX('Eingabe Spielernamen'!A:A,MATCH(B25,'Eingabe Spielernamen'!B:B,))," ") -> 0 | D25: =IF($B25<>0,INDEX('Eingabe Spielernamen'!F:F,MATCH(B25,'Eingabe Spielernamen'!B:B,))," ") -> 0 | E25: =IF($B25<>0,INDEX('Eingabe Spielernamen'!G:G,MATCH(B25,'Eingabe Spielernamen'!B:B,))," ") -> 0 | F25: =IF($B25<>0,INDEX('Eingabe Spielernamen'!H:H,MATCH(B25,'Eingabe Spielernamen'!B:B,))," ") -> 0 | G25: =IF($B25<>0,INDEX('Eingabe Spielernamen'!I:I,MATCH(B25,'Eingabe Spielernamen'!B:B,))," ") -> 0 | H25: 0 | I25: =IF($B25<>0,INDEX('Eingabe Spielernamen'!K:K,MATCH(B25,'Eingabe Spielernamen'!B:B,))," ") -> 0 | J25: =IF($B25<>0,INDEX('Eingabe Spielernamen'!L:L,MATCH(B25,'Eingabe Spielernamen'!B:B,))," ") -> 0 | K25: 0 | L25: 0 | M25: =IF($B25<>0,INDEX('Eingabe Spielernamen'!O:O,MATCH(B25,'Eingabe Spielernamen'!B:B,))," ") -> 0 | N25: =IF($B25<>0,INDEX('Eingabe Spielernamen'!P:P,MATCH(B25,'Eingabe Spielernamen'!B:B,))," ") -> 0 | O25: 0 | P25: 0
A26: 23 | B26: 207 | C26: =IF($B26<>0,INDEX('Eingabe Spielernamen'!A:A,MATCH(B26,'Eingabe Spielernamen'!B:B,))," ") -> 0 | D26: =IF($B26<>0,INDEX('Eingabe Spielernamen'!F:F,MATCH(B26,'Eingabe Spielernamen'!B:B,))," ") -> 0 | E26: =IF($B26<>0,INDEX('Eingabe Spielernamen'!G:G,MATCH(B26,'Eingabe Spielernamen'!B:B,))," ") -> 0 | F26: =IF($B26<>0,INDEX('Eingabe Spielernamen'!H:H,MATCH(B26,'Eingabe Spielernamen'!B:B,))," ") -> 0 | G26: =IF($B26<>0,INDEX('Eingabe Spielernamen'!I:I,MATCH(B26,'Eingabe Spielernamen'!B:B,))," ") -> 0 | H26: 0 | I26: =IF($B26<>0,INDEX('Eingabe Spielernamen'!K:K,MATCH(B26,'Eingabe Spielernamen'!B:B,))," ") -> 0 | J26: =IF($B26<>0,INDEX('Eingabe Spielernamen'!L:L,MATCH(B26,'Eingabe Spielernamen'!B:B,))," ") -> 0 | K26: 0 | L26: 0 | M26: =IF($B26<>0,INDEX('Eingabe Spielernamen'!O:O,MATCH(B26,'Eingabe Spielernamen'!B:B,))," ") -> 0 | N26: =IF($B26<>0,INDEX('Eingabe Spielernamen'!P:P,MATCH(B26,'Eingabe Spielernamen'!B:B,))," ") -> 0 | O26: 0 | P26: 0
A27: 24 | B27: 208 | C27: =IF($B27<>0,INDEX('Eingabe Spielernamen'!A:A,MATCH(B27,'Eingabe Spielernamen'!B:B,))," ") -> 0 | D27: =IF($B27<>0,INDEX('Eingabe Spielernamen'!F:F,MATCH(B27,'Eingabe Spielernamen'!B:B,))," ") -> 0 | E27: =IF($B27<>0,INDEX('Eingabe Spielernamen'!G:G,MATCH(B27,'Eingabe Spielernamen'!B:B,))," ") -> 0 | F27: =IF($B27<>0,INDEX('Eingabe Spielernamen'!H:H,MATCH(B27,'Eingabe Spielernamen'!B:B,))," ") -> 0 | G27: =IF($B27<>0,INDEX('Eingabe Spielernamen'!I:I,MATCH(B27,'Eingabe Spielernamen'!B:B,))," ") -> 0 | H27: 0 | I27: =IF($B27<>0,INDEX('Eingabe Spielernamen'!K:K,MATCH(B27,'Eingabe Spielernamen'!B:B,))," ") -> 0 | J27: =IF($B27<>0,INDEX('Eingabe Spielernamen'!L:L,MATCH(B27,'Eingabe Spielernamen'!B:B,))," ") -> 0 | K27: 0 | L27: 0 | M27: =IF($B27<>0,INDEX('Eingabe Spielernamen'!O:O,MATCH(B27,'Eingabe Spielernamen'!B:B,))," ") -> 0 | N27: =IF($B27<>0,INDEX('Eingabe Spielernamen'!P:P,MATCH(B27,'Eingabe Spielernamen'!B:B,))," ") -> 0 | O27: 0 | P27: 0
A28: 25 | B28: 209 | C28: =IF($B28<>0,INDEX('Eingabe Spielernamen'!A:A,MATCH(B28,'Eingabe Spielernamen'!B:B,))," ") -> 0 | D28: =IF($B28<>0,INDEX('Eingabe Spielernamen'!F:F,MATCH(B28,'Eingabe Spielernamen'!B:B,))," ") -> 0 | E28: =IF($B28<>0,INDEX('Eingabe Spielernamen'!G:G,MATCH(B28,'Eingabe Spielernamen'!B:B,))," ") -> 0 | F28: =IF($B28<>0,INDEX('Eingabe Spielernamen'!H:H,MATCH(B28,'Eingabe Spielernamen'!B:B,))," ") -> 0 | G28: =IF($B28<>0,INDEX('Eingabe Spielernamen'!I:I,MATCH(B28,'Eingabe Spielernamen'!B:B,))," ") -> 0 | H28: 0 | I28: =IF($B28<>0,INDEX('Eingabe Spielernamen'!K:K,MATCH(B28,'Eingabe Spielernamen'!B:B,))," ") -> 0 | J28: =IF($B28<>0,INDEX('Eingabe Spielernamen'!L:L,MATCH(B28,'Eingabe Spielernamen'!B:B,))," ") -> 0 | K28: 0 | L28: 0 | M28: =IF($B28<>0,INDEX('Eingabe Spielernamen'!O:O,MATCH(B28,'Eingabe Spielernamen'!B:B,))," ") -> 0 | N28: =IF($B28<>0,INDEX('Eingabe Spielernamen'!P:P,MATCH(B28,'Eingabe Spielernamen'!B:B,))," ") -> 0 | O28: 0 | P28: 0
A29: 26 | B29: 210 | C29: =IF($B29<>0,INDEX('Eingabe Spielernamen'!A:A,MATCH(B29,'Eingabe Spielernamen'!B:B,))," ") -> 0 | D29: =IF($B29<>0,INDEX('Eingabe Spielernamen'!F:F,MATCH(B29,'Eingabe Spielernamen'!B:B,))," ") -> 0 | E29: =IF($B29<>0,INDEX('Eingabe Spielernamen'!G:G,MATCH(B29,'Eingabe Spielernamen'!B:B,))," ") -> 0 | F29: =IF($B29<>0,INDEX('Eingabe Spielernamen'!H:H,MATCH(B29,'Eingabe Spielernamen'!B:B,))," ") -> 0 | G29: =IF($B29<>0,INDEX('Eingabe Spielernamen'!I:I,MATCH(B29,'Eingabe Spielernamen'!B:B,))," ") -> 0 | H29: 0 | I29: =IF($B29<>0,INDEX('Eingabe Spielernamen'!K:K,MATCH(B29,'Eingabe Spielernamen'!B:B,))," ") -> 0 | J29: =IF($B29<>0,INDEX('Eingabe Spielernamen'!L:L,MATCH(B29,'Eingabe Spielernamen'!B:B,))," ") -> 0 | K29: 0 | L29: 0 | M29: =IF($B29<>0,INDEX('Eingabe Spielernamen'!O:O,MATCH(B29,'Eingabe Spielernamen'!B:B,))," ") -> 0 | N29: =IF($B29<>0,INDEX('Eingabe Spielernamen'!P:P,MATCH(B29,'Eingabe Spielernamen'!B:B,))," ") -> 0 | O29: 0 | P29: 0
A30: 27 | B30: 211 | C30: =IF($B30<>0,INDEX('Eingabe Spielernamen'!A:A,MATCH(B30,'Eingabe Spielernamen'!B:B,))," ") -> 0 | D30: =IF($B30<>0,INDEX('Eingabe Spielernamen'!F:F,MATCH(B30,'Eingabe Spielernamen'!B:B,))," ") -> 0 | E30: =IF($B30<>0,INDEX('Eingabe Spielernamen'!G:G,MATCH(B30,'Eingabe Spielernamen'!B:B,))," ") -> 0 | F30: =IF($B30<>0,INDEX('Eingabe Spielernamen'!H:H,MATCH(B30,'Eingabe Spielernamen'!B:B,))," ") -> 0 | G30: =IF($B30<>0,INDEX('Eingabe Spielernamen'!I:I,MATCH(B30,'Eingabe Spielernamen'!B:B,))," ") -> 0 | H30: 0 | I30: =IF($B30<>0,INDEX('Eingabe Spielernamen'!K:K,MATCH(B30,'Eingabe Spielernamen'!B:B,))," ") -> 0 | J30: =IF($B30<>0,INDEX('Eingabe Spielernamen'!L:L,MATCH(B30,'Eingabe Spielernamen'!B:B,))," ") -> 0 | K30: 0 | L30: 0 | M30: =IF($B30<>0,INDEX('Eingabe Spielernamen'!O:O,MATCH(B30,'Eingabe Spielernamen'!B:B,))," ") -> 0 | N30: =IF($B30<>0,INDEX('Eingabe Spielernamen'!P:P,MATCH(B30,'Eingabe Spielernamen'!B:B,))," ") -> 0 | O30: 0 | P30: 0
A31: 28 | B31: 212 | C31: =IF($B31<>0,INDEX('Eingabe Spielernamen'!A:A,MATCH(B31,'Eingabe Spielernamen'!B:B,))," ") -> 0 | D31: =IF($B31<>0,INDEX('Eingabe Spielernamen'!F:F,MATCH(B31,'Eingabe Spielernamen'!B:B,))," ") -> 0 | E31: =IF($B31<>0,INDEX('Eingabe Spielernamen'!G:G,MATCH(B31,'Eingabe Spielernamen'!B:B,))," ") -> 0 | F31: =IF($B31<>0,INDEX('Eingabe Spielernamen'!H:H,MATCH(B31,'Eingabe Spielernamen'!B:B,))," ") -> 0 | G31: =IF($B31<>0,INDEX('Eingabe Spielernamen'!I:I,MATCH(B31,'Eingabe Spielernamen'!B:B,))," ") -> 0 | H31: 0 | I31: =IF($B31<>0,INDEX('Eingabe Spielernamen'!K:K,MATCH(B31,'Eingabe Spielernamen'!B:B,))," ") -> 0 | J31: =IF($B31<>0,INDEX('Eingabe Spielernamen'!L:L,MATCH(B31,'Eingabe Spielernamen'!B:B,))," ") -> 0 | K31: 0 | L31: 0 | M31: =IF($B31<>0,INDEX('Eingabe Spielernamen'!O:O,MATCH(B31,'Eingabe Spielernamen'!B:B,))," ") -> 0 | N31: =IF($B31<>0,INDEX('Eingabe Spielernamen'!P:P,MATCH(B31,'Eingabe Spielernamen'!B:B,))," ") -> 0 | O31: 0 | P31: 0
A32: 29 | B32: 213 | C32: =IF($B32<>0,INDEX('Eingabe Spielernamen'!A:A,MATCH(B32,'Eingabe Spielernamen'!B:B,))," ") -> 0 | D32: =IF($B32<>0,INDEX('Eingabe Spielernamen'!F:F,MATCH(B32,'Eingabe Spielernamen'!B:B,))," ") -> 0 | E32: =IF($B32<>0,INDEX('Eingabe Spielernamen'!G:G,MATCH(B32,'Eingabe Spielernamen'!B:B,))," ") -> 0 | F32: =IF($B32<>0,INDEX('Eingabe Spielernamen'!H:H,MATCH(B32,'Eingabe Spielernamen'!B:B,))," ") -> 0 | G32: =IF($B32<>0,INDEX('Eingabe Spielernamen'!I:I,MATCH(B32,'Eingabe Spielernamen'!B:B,))," ") -> 0 | H32: 0 | I32: =IF($B32<>0,INDEX('Eingabe Spielernamen'!K:K,MATCH(B32,'Eingabe Spielernamen'!B:B,))," ") -> 0 | J32: =IF($B32<>0,INDEX('Eingabe Spielernamen'!L:L,MATCH(B32,'Eingabe Spielernamen'!B:B,))," ") -> 0 | K32: 0 | L32: 0 | M32: =IF($B32<>0,INDEX('Eingabe Spielernamen'!O:O,MATCH(B32,'Eingabe Spielernamen'!B:B,))," ") -> 0 | N32: =IF($B32<>0,INDEX('Eingabe Spielernamen'!P:P,MATCH(B32,'Eingabe Spielernamen'!B:B,))," ") -> 0 | O32: 0 | P32: 0
A33: 30 | B33: 214 | C33: =IF($B33<>0,INDEX('Eingabe Spielernamen'!A:A,MATCH(B33,'Eingabe Spielernamen'!B:B,))," ") -> 0 | D33: =IF($B33<>0,INDEX('Eingabe Spielernamen'!F:F,MATCH(B33,'Eingabe Spielernamen'!B:B,))," ") -> 0 | E33: =IF($B33<>0,INDEX('Eingabe Spielernamen'!G:G,MATCH(B33,'Eingabe Spielernamen'!B:B,))," ") -> 0 | F33: =IF($B33<>0,INDEX('Eingabe Spielernamen'!H:H,MATCH(B33,'Eingabe Spielernamen'!B:B,))," ") -> 0 | G33: =IF($B33<>0,INDEX('Eingabe Spielernamen'!I:I,MATCH(B33,'Eingabe Spielernamen'!B:B,))," ") -> 0 | H33: 0 | I33: =IF($B33<>0,INDEX('Eingabe Spielernamen'!K:K,MATCH(B33,'Eingabe Spielernamen'!B:B,))," ") -> 0 | J33: =IF($B33<>0,INDEX('Eingabe Spielernamen'!L:L,MATCH(B33,'Eingabe Spielernamen'!B:B,))," ") -> 0 | K33: 0 | L33: 0 | M33: =IF($B33<>0,INDEX('Eingabe Spielernamen'!O:O,MATCH(B33,'Eingabe Spielernamen'!B:B,))," ") -> 0 | N33: =IF($B33<>0,INDEX('Eingabe Spielernamen'!P:P,MATCH(B33,'Eingabe Spielernamen'!B:B,))," ") -> 0 | O33: 0 | P33: 0
A34: 31 | B34: 215 | C34: =IF($B34<>0,INDEX('Eingabe Spielernamen'!A:A,MATCH(B34,'Eingabe Spielernamen'!B:B,))," ") -> 0 | D34: =IF($B34<>0,INDEX('Eingabe Spielernamen'!F:F,MATCH(B34,'Eingabe Spielernamen'!B:B,))," ") -> 0 | E34: =IF($B34<>0,INDEX('Eingabe Spielernamen'!G:G,MATCH(B34,'Eingabe Spielernamen'!B:B,))," ") -> 0 | F34: =IF($B34<>0,INDEX('Eingabe Spielernamen'!H:H,MATCH(B34,'Eingabe Spielernamen'!B:B,))," ") -> 0 | G34: =IF($B34<>0,INDEX('Eingabe Spielernamen'!I:I,MATCH(B34,'Eingabe Spielernamen'!B:B,))," ") -> 0 | H34: 0 | I34: =IF($B34<>0,INDEX('Eingabe Spielernamen'!K:K,MATCH(B34,'Eingabe Spielernamen'!B:B,))," ") -> 0 | J34: =IF($B34<>0,INDEX('Eingabe Spielernamen'!L:L,MATCH(B34,'Eingabe Spielernamen'!B:B,))," ") -> 0 | K34: 0 | L34: 0 | M34: =IF($B34<>0,INDEX('Eingabe Spielernamen'!O:O,MATCH(B34,'Eingabe Spielernamen'!B:B,))," ") -> 0 | N34: =IF($B34<>0,INDEX('Eingabe Spielernamen'!P:P,MATCH(B34,'Eingabe Spielernamen'!B:B,))," ") -> 0 | O34: 0 | P34: 0
A35: 32 | B35: 216 | C35: =IF($B35<>0,INDEX('Eingabe Spielernamen'!A:A,MATCH(B35,'Eingabe Spielernamen'!B:B,))," ") -> 0 | D35: =IF($B35<>0,INDEX('Eingabe Spielernamen'!F:F,MATCH(B35,'Eingabe Spielernamen'!B:B,))," ") -> 0 | E35: =IF($B35<>0,INDEX('Eingabe Spielernamen'!G:G,MATCH(B35,'Eingabe Spielernamen'!B:B,))," ") -> 0 | F35: =IF($B35<>0,INDEX('Eingabe Spielernamen'!H:H,MATCH(B35,'Eingabe Spielernamen'!B:B,))," ") -> 0 | G35: =IF($B35<>0,INDEX('Eingabe Spielernamen'!I:I,MATCH(B35,'Eingabe Spielernamen'!B:B,))," ") -> 0 | H35: 0 | I35: =IF($B35<>0,INDEX('Eingabe Spielernamen'!K:K,MATCH(B35,'Eingabe Spielernamen'!B:B,))," ") -> 0 | J35: =IF($B35<>0,INDEX('Eingabe Spielernamen'!L:L,MATCH(B35,'Eingabe Spielernamen'!B:B,))," ") -> 0 | K35: 0 | L35: 0 | M35: =IF($B35<>0,INDEX('Eingabe Spielernamen'!O:O,MATCH(B35,'Eingabe Spielernamen'!B:B,))," ") -> 0 | N35: =IF($B35<>0,INDEX('Eingabe Spielernamen'!P:P,MATCH(B35,'Eingabe Spielernamen'!B:B,))," ") -> 0 | O35: 0 | P35: 0
A36: 33 | B36: 301 | C36: =IF($B36<>0,INDEX('Eingabe Spielernamen'!A:A,MATCH(B36,'Eingabe Spielernamen'!B:B,))," ") -> 0 | D36: =IF($B36<>0,INDEX('Eingabe Spielernamen'!F:F,MATCH(B36,'Eingabe Spielernamen'!B:B,))," ") -> 0 | E36: =IF($B36<>0,INDEX('Eingabe Spielernamen'!G:G,MATCH(B36,'Eingabe Spielernamen'!B:B,))," ") -> 0 | F36: =IF($B36<>0,INDEX('Eingabe Spielernamen'!H:H,MATCH(B36,'Eingabe Spielernamen'!B:B,))," ") -> 0 | G36: =IF($B36<>0,INDEX('Eingabe Spielernamen'!I:I,MATCH(B36,'Eingabe Spielernamen'!B:B,))," ") -> 0 | H36: =SUM(F36:G36) -> 0 | I36: =IF($B36<>0,INDEX('Eingabe Spielernamen'!K:K,MATCH(B36,'Eingabe Spielernamen'!B:B,))," ") -> 0 | J36: =IF($B36<>0,INDEX('Eingabe Spielernamen'!L:L,MATCH(B36,'Eingabe Spielernamen'!B:B,))," ") -> 0 | K36: =SUM(I36:J36) -> 0 | L36: =H36+K36 -> 0 | M36: =IF($B36<>0,INDEX('Eingabe Spielernamen'!O:O,MATCH(B36,'Eingabe Spielernamen'!B:B,))," ") -> 0 | N36: =IF($B36<>0,INDEX('Eingabe Spielernamen'!P:P,MATCH(B36,'Eingabe Spielernamen'!B:B,))," ") -> 0 | O36: =SUM(M36:N36) -> 0 | P36: =L36+O36 -> 0
A37: 34 | B37: 302 | C37: =IF($B37<>0,INDEX('Eingabe Spielernamen'!A:A,MATCH(B37,'Eingabe Spielernamen'!B:B,))," ") -> 0 | D37: =IF($B37<>0,INDEX('Eingabe Spielernamen'!F:F,MATCH(B37,'Eingabe Spielernamen'!B:B,))," ") -> 0 | E37: =IF($B37<>0,INDEX('Eingabe Spielernamen'!G:G,MATCH(B37,'Eingabe Spielernamen'!B:B,))," ") -> 0 | F37: =IF($B37<>0,INDEX('Eingabe Spielernamen'!H:H,MATCH(B37,'Eingabe Spielernamen'!B:B,))," ") -> 0 | G37: =IF($B37<>0,INDEX('Eingabe Spielernamen'!I:I,MATCH(B37,'Eingabe Spielernamen'!B:B,))," ") -> 0 | H37: 0 | I37: =IF($B37<>0,INDEX('Eingabe Spielernamen'!K:K,MATCH(B37,'Eingabe Spielernamen'!B:B,))," ") -> 0 | J37: =IF($B37<>0,INDEX('Eingabe Spielernamen'!L:L,MATCH(B37,'Eingabe Spielernamen'!B:B,))," ") -> 0 | K37: 0 | L37: 0 | M37: =IF($B37<>0,INDEX('Eingabe Spielernamen'!O:O,MATCH(B37,'Eingabe Spielernamen'!B:B,))," ") -> 0 | N37: =IF($B37<>0,INDEX('Eingabe Spielernamen'!P:P,MATCH(B37,'Eingabe Spielernamen'!B:B,))," ") -> 0 | O37: 0 | P37: 0
A38: 35 | B38: 303 | C38: =IF($B38<>0,INDEX('Eingabe Spielernamen'!A:A,MATCH(B38,'Eingabe Spielernamen'!B:B,))," ") -> 0 | D38: =IF($B38<>0,INDEX('Eingabe Spielernamen'!F:F,MATCH(B38,'Eingabe Spielernamen'!B:B,))," ") -> 0 | E38: =IF($B38<>0,INDEX('Eingabe Spielernamen'!G:G,MATCH(B38,'Eingabe Spielernamen'!B:B,))," ") -> 0 | F38: =IF($B38<>0,INDEX('Eingabe Spielernamen'!H:H,MATCH(B38,'Eingabe Spielernamen'!B:B,))," ") -> 0 | G38: =IF($B38<>0,INDEX('Eingabe Spielernamen'!I:I,MATCH(B38,'Eingabe Spielernamen'!B:B,))," ") -> 0 | H38: 0 | I38: =IF($B38<>0,INDEX('Eingabe Spielernamen'!K:K,MATCH(B38,'Eingabe Spielernamen'!B:B,))," ") -> 0 | J38: =IF($B38<>0,INDEX('Eingabe Spielernamen'!L:L,MATCH(B38,'Eingabe Spielernamen'!B:B,))," ") -> 0 | K38: 0 | L38: 0 | M38: =IF($B38<>0,INDEX('Eingabe Spielernamen'!O:O,MATCH(B38,'Eingabe Spielernamen'!B:B,))," ") -> 0 | N38: =IF($B38<>0,INDEX('Eingabe Spielernamen'!P:P,MATCH(B38,'Eingabe Spielernamen'!B:B,))," ") -> 0 | O38: 0 | P38: 0
A39: 36 | B39: 304 | C39: =IF($B39<>0,INDEX('Eingabe Spielernamen'!A:A,MATCH(B39,'Eingabe Spielernamen'!B:B,))," ") -> 0 | D39: =IF($B39<>0,INDEX('Eingabe Spielernamen'!F:F,MATCH(B39,'Eingabe Spielernamen'!B:B,))," ") -> 0 | E39: =IF($B39<>0,INDEX('Eingabe Spielernamen'!G:G,MATCH(B39,'Eingabe Spielernamen'!B:B,))," ") -> 0 | F39: =IF($B39<>0,INDEX('Eingabe Spielernamen'!H:H,MATCH(B39,'Eingabe Spielernamen'!B:B,))," ") -> 0 | G39: =IF($B39<>0,INDEX('Eingabe Spielernamen'!I:I,MATCH(B39,'Eingabe Spielernamen'!B:B,))," ") -> 0 | H39: 0 | I39: =IF($B39<>0,INDEX('Eingabe Spielernamen'!K:K,MATCH(B39,'Eingabe Spielernamen'!B:B,))," ") -> 0 | J39: =IF($B39<>0,INDEX('Eingabe Spielernamen'!L:L,MATCH(B39,'Eingabe Spielernamen'!B:B,))," ") -> 0 | K39: 0 | L39: 0 | M39: =IF($B39<>0,INDEX('Eingabe Spielernamen'!O:O,MATCH(B39,'Eingabe Spielernamen'!B:B,))," ") -> 0 | N39: =IF($B39<>0,INDEX('Eingabe Spielernamen'!P:P,MATCH(B39,'Eingabe Spielernamen'!B:B,))," ") -> 0 | O39: 0 | P39: 0
A40: 37 | B40: 305 | C40: =IF($B40<>0,INDEX('Eingabe Spielernamen'!A:A,MATCH(B40,'Eingabe Spielernamen'!B:B,))," ") -> 0 | D40: =IF($B40<>0,INDEX('Eingabe Spielernamen'!F:F,MATCH(B40,'Eingabe Spielernamen'!B:B,))," ") -> 0 | E40: =IF($B40<>0,INDEX('Eingabe Spielernamen'!G:G,MATCH(B40,'Eingabe Spielernamen'!B:B,))," ") -> 0 | F40: =IF($B40<>0,INDEX('Eingabe Spielernamen'!H:H,MATCH(B40,'Eingabe Spielernamen'!B:B,))," ") -> 0 | G40: =IF($B40<>0,INDEX('Eingabe Spielernamen'!I:I,MATCH(B40,'Eingabe Spielernamen'!B:B,))," ") -> 0 | H40: 0 | I40: =IF($B40<>0,INDEX('Eingabe Spielernamen'!K:K,MATCH(B40,'Eingabe Spielernamen'!B:B,))," ") -> 0 | J40: =IF($B40<>0,INDEX('Eingabe Spielernamen'!L:L,MATCH(B40,'Eingabe Spielernamen'!B:B,))," ") -> 0 | K40: 0 | L40: 0 | M40: =IF($B40<>0,INDEX('Eingabe Spielernamen'!O:O,MATCH(B40,'Eingabe Spielernamen'!B:B,))," ") -> 0 | N40: =IF($B40<>0,INDEX('Eingabe Spielernamen'!P:P,MATCH(B40,'Eingabe Spielernamen'!B:B,))," ") -> 0 | O40: 0 | P40: 0
A41: 38 | B41: 306 | C41: =IF($B41<>0,INDEX('Eingabe Spielernamen'!A:A,MATCH(B41,'Eingabe Spielernamen'!B:B,))," ") -> 0 | D41: =IF($B41<>0,INDEX('Eingabe Spielernamen'!F:F,MATCH(B41,'Eingabe Spielernamen'!B:B,))," ") -> 0 | E41: =IF($B41<>0,INDEX('Eingabe Spielernamen'!G:G,MATCH(B41,'Eingabe Spielernamen'!B:B,))," ") -> 0 | F41: =IF($B41<>0,INDEX('Eingabe Spielernamen'!H:H,MATCH(B41,'Eingabe Spielernamen'!B:B,))," ") -> 0 | G41: =IF($B41<>0,INDEX('Eingabe Spielernamen'!I:I,MATCH(B41,'Eingabe Spielernamen'!B:B,))," ") -> 0 | H41: 0 | I41: =IF($B41<>0,INDEX('Eingabe Spielernamen'!K:K,MATCH(B41,'Eingabe Spielernamen'!B:B,))," ") -> 0 | J41: =IF($B41<>0,INDEX('Eingabe Spielernamen'!L:L,MATCH(B41,'Eingabe Spielernamen'!B:B,))," ") -> 0 | K41: 0 | L41: 0 | M41: =IF($B41<>0,INDEX('Eingabe Spielernamen'!O:O,MATCH(B41,'Eingabe Spielernamen'!B:B,))," ") -> 0 | N41: =IF($B41<>0,INDEX('Eingabe Spielernamen'!P:P,MATCH(B41,'Eingabe Spielernamen'!B:B,))," ") -> 0 | O41: 0 | P41: 0
A42: 39 | B42: 307 | C42: =IF($B42<>0,INDEX('Eingabe Spielernamen'!A:A,MATCH(B42,'Eingabe Spielernamen'!B:B,))," ") -> 0 | D42: =IF($B42<>0,INDEX('Eingabe Spielernamen'!F:F,MATCH(B42,'Eingabe Spielernamen'!B:B,))," ") -> 0 | E42: =IF($B42<>0,INDEX('Eingabe Spielernamen'!G:G,MATCH(B42,'Eingabe Spielernamen'!B:B,))," ") -> 0 | F42: =IF($B42<>0,INDEX('Eingabe Spielernamen'!H:H,MATCH(B42,'Eingabe Spielernamen'!B:B,))," ") -> 0 | G42: =IF($B42<>0,INDEX('Eingabe Spielernamen'!I:I,MATCH(B42,'Eingabe Spielernamen'!B:B,))," ") -> 0 | H42: 0 | I42: =IF($B42<>0,INDEX('Eingabe Spielernamen'!K:K,MATCH(B42,'Eingabe Spielernamen'!B:B,))," ") -> 0 | J42: =IF($B42<>0,INDEX('Eingabe Spielernamen'!L:L,MATCH(B42,'Eingabe Spielernamen'!B:B,))," ") -> 0 | K42: 0 | L42: 0 | M42: =IF($B42<>0,INDEX('Eingabe Spielernamen'!O:O,MATCH(B42,'Eingabe Spielernamen'!B:B,))," ") -> 0 | N42: =IF($B42<>0,INDEX('Eingabe Spielernamen'!P:P,MATCH(B42,'Eingabe Spielernamen'!B:B,))," ") -> 0 | O42: 0 | P42: 0
A43: 40 | B43: 308 | C43: =IF($B43<>0,INDEX('Eingabe Spielernamen'!A:A,MATCH(B43,'Eingabe Spielernamen'!B:B,))," ") -> 0 | D43: =IF($B43<>0,INDEX('Eingabe Spielernamen'!F:F,MATCH(B43,'Eingabe Spielernamen'!B:B,))," ") -> 0 | E43: =IF($B43<>0,INDEX('Eingabe Spielernamen'!G:G,MATCH(B43,'Eingabe Spielernamen'!B:B,))," ") -> 0 | F43: =IF($B43<>0,INDEX('Eingabe Spielernamen'!H:H,MATCH(B43,'Eingabe Spielernamen'!B:B,))," ") -> 0 | G43: =IF($B43<>0,INDEX('Eingabe Spielernamen'!I:I,MATCH(B43,'Eingabe Spielernamen'!B:B,))," ") -> 0 | H43: 0 | I43: =IF($B43<>0,INDEX('Eingabe Spielernamen'!K:K,MATCH(B43,'Eingabe Spielernamen'!B:B,))," ") -> 0 | J43: =IF($B43<>0,INDEX('Eingabe Spielernamen'!L:L,MATCH(B43,'Eingabe Spielernamen'!B:B,))," ") -> 0 | K43: 0 | L43: 0 | M43: =IF($B43<>0,INDEX('Eingabe Spielernamen'!O:O,MATCH(B43,'Eingabe Spielernamen'!B:B,))," ") -> 0 | N43: =IF($B43<>0,INDEX('Eingabe Spielernamen'!P:P,MATCH(B43,'Eingabe Spielernamen'!B:B,))," ") -> 0 | O43: 0 | P43: 0
A44: 41 | B44: 309 | C44: =IF($B44<>0,INDEX('Eingabe Spielernamen'!A:A,MATCH(B44,'Eingabe Spielernamen'!B:B,))," ") -> 0 | D44: =IF($B44<>0,INDEX('Eingabe Spielernamen'!F:F,MATCH(B44,'Eingabe Spielernamen'!B:B,))," ") -> 0 | E44: =IF($B44<>0,INDEX('Eingabe Spielernamen'!G:G,MATCH(B44,'Eingabe Spielernamen'!B:B,))," ") -> 0 | F44: =IF($B44<>0,INDEX('Eingabe Spielernamen'!H:H,MATCH(B44,'Eingabe Spielernamen'!B:B,))," ") -> 0 | G44: =IF($B44<>0,INDEX('Eingabe Spielernamen'!I:I,MATCH(B44,'Eingabe Spielernamen'!B:B,))," ") -> 0 | H44: 0 | I44: =IF($B44<>0,INDEX('Eingabe Spielernamen'!K:K,MATCH(B44,'Eingabe Spielernamen'!B:B,))," ") -> 0 | J44: =IF($B44<>0,INDEX('Eingabe Spielernamen'!L:L,MATCH(B44,'Eingabe Spielernamen'!B:B,))," ") -> 0 | K44: 0 | L44: 0 | M44: =IF($B44<>0,INDEX('Eingabe Spielernamen'!O:O,MATCH(B44,'Eingabe Spielernamen'!B:B,))," ") -> 0 | N44: =IF($B44<>0,INDEX('Eingabe Spielernamen'!P:P,MATCH(B44,'Eingabe Spielernamen'!B:B,))," ") -> 0 | O44: 0 | P44: 0
A45: 42 | B45: 310 | C45: =IF($B45<>0,INDEX('Eingabe Spielernamen'!A:A,MATCH(B45,'Eingabe Spielernamen'!B:B,))," ") -> 0 | D45: =IF($B45<>0,INDEX('Eingabe Spielernamen'!F:F,MATCH(B45,'Eingabe Spielernamen'!B:B,))," ") -> 0 | E45: =IF($B45<>0,INDEX('Eingabe Spielernamen'!G:G,MATCH(B45,'Eingabe Spielernamen'!B:B,))," ") -> 0 | F45: =IF($B45<>0,INDEX('Eingabe Spielernamen'!H:H,MATCH(B45,'Eingabe Spielernamen'!B:B,))," ") -> 0 | G45: =IF($B45<>0,INDEX('Eingabe Spielernamen'!I:I,MATCH(B45,'Eingabe Spielernamen'!B:B,))," ") -> 0 | H45: 0 | I45: =IF($B45<>0,INDEX('Eingabe Spielernamen'!K:K,MATCH(B45,'Eingabe Spielernamen'!B:B,))," ") -> 0 | J45: =IF($B45<>0,INDEX('Eingabe Spielernamen'!L:L,MATCH(B45,'Eingabe Spielernamen'!B:B,))," ") -> 0 | K45: 0 | L45: 0 | M45: =IF($B45<>0,INDEX('Eingabe Spielernamen'!O:O,MATCH(B45,'Eingabe Spielernamen'!B:B,))," ") -> 0 | N45: =IF($B45<>0,INDEX('Eingabe Spielernamen'!P:P,MATCH(B45,'Eingabe Spielernamen'!B:B,))," ") -> 0 | O45: 0 | P45: 0
A46: 43 | B46: 311 | C46: =IF($B46<>0,INDEX('Eingabe Spielernamen'!A:A,MATCH(B46,'Eingabe Spielernamen'!B:B,))," ") -> 0 | D46: =IF($B46<>0,INDEX('Eingabe Spielernamen'!F:F,MATCH(B46,'Eingabe Spielernamen'!B:B,))," ") -> 0 | E46: =IF($B46<>0,INDEX('Eingabe Spielernamen'!G:G,MATCH(B46,'Eingabe Spielernamen'!B:B,))," ") -> 0 | F46: =IF($B46<>0,INDEX('Eingabe Spielernamen'!H:H,MATCH(B46,'Eingabe Spielernamen'!B:B,))," ") -> 0 | G46: =IF($B46<>0,INDEX('Eingabe Spielernamen'!I:I,MATCH(B46,'Eingabe Spielernamen'!B:B,))," ") -> 0 | H46: 0 | I46: =IF($B46<>0,INDEX('Eingabe Spielernamen'!K:K,MATCH(B46,'Eingabe Spielernamen'!B:B,))," ") -> 0 | J46: =IF($B46<>0,INDEX('Eingabe Spielernamen'!L:L,MATCH(B46,'Eingabe Spielernamen'!B:B,))," ") -> 0 | K46: 0 | L46: 0 | M46: =IF($B46<>0,INDEX('Eingabe Spielernamen'!O:O,MATCH(B46,'Eingabe Spielernamen'!B:B,))," ") -> 0 | N46: =IF($B46<>0,INDEX('Eingabe Spielernamen'!P:P,MATCH(B46,'Eingabe Spielernamen'!B:B,))," ") -> 0 | O46: 0 | P46: 0
A47: 44 | B47: 312 | C47: =IF($B47<>0,INDEX('Eingabe Spielernamen'!A:A,MATCH(B47,'Eingabe Spielernamen'!B:B,))," ") -> 0 | D47: =IF($B47<>0,INDEX('Eingabe Spielernamen'!F:F,MATCH(B47,'Eingabe Spielernamen'!B:B,))," ") -> 0 | E47: =IF($B47<>0,INDEX('Eingabe Spielernamen'!G:G,MATCH(B47,'Eingabe Spielernamen'!B:B,))," ") -> 0 | F47: =IF($B47<>0,INDEX('Eingabe Spielernamen'!H:H,MATCH(B47,'Eingabe Spielernamen'!B:B,))," ") -> 0 | G47: =IF($B47<>0,INDEX('Eingabe Spielernamen'!I:I,MATCH(B47,'Eingabe Spielernamen'!B:B,))," ") -> 0 | H47: 0 | I47: =IF($B47<>0,INDEX('Eingabe Spielernamen'!K:K,MATCH(B47,'Eingabe Spielernamen'!B:B,))," ") -> 0 | J47: =IF($B47<>0,INDEX('Eingabe Spielernamen'!L:L,MATCH(B47,'Eingabe Spielernamen'!B:B,))," ") -> 0 | K47: 0 | L47: 0 | M47: =IF($B47<>0,INDEX('Eingabe Spielernamen'!O:O,MATCH(B47,'Eingabe Spielernamen'!B:B,))," ") -> 0 | N47: =IF($B47<>0,INDEX('Eingabe Spielernamen'!P:P,MATCH(B47,'Eingabe Spielernamen'!B:B,))," ") -> 0 | O47: 0 | P47: 0
A48: 45 | B48: 313 | C48: =IF($B48<>0,INDEX('Eingabe Spielernamen'!A:A,MATCH(B48,'Eingabe Spielernamen'!B:B,))," ") -> 0 | D48: =IF($B48<>0,INDEX('Eingabe Spielernamen'!F:F,MATCH(B48,'Eingabe Spielernamen'!B:B,))," ") -> 0 | E48: =IF($B48<>0,INDEX('Eingabe Spielernamen'!G:G,MATCH(B48,'Eingabe Spielernamen'!B:B,))," ") -> 0 | F48: =IF($B48<>0,INDEX('Eingabe Spielernamen'!H:H,MATCH(B48,'Eingabe Spielernamen'!B:B,))," ") -> 0 | G48: =IF($B48<>0,INDEX('Eingabe Spielernamen'!I:I,MATCH(B48,'Eingabe Spielernamen'!B:B,))," ") -> 0 | H48: 0 | I48: =IF($B48<>0,INDEX('Eingabe Spielernamen'!K:K,MATCH(B48,'Eingabe Spielernamen'!B:B,))," ") -> 0 | J48: =IF($B48<>0,INDEX('Eingabe Spielernamen'!L:L,MATCH(B48,'Eingabe Spielernamen'!B:B,))," ") -> 0 | K48: 0 | L48: 0 | M48: =IF($B48<>0,INDEX('Eingabe Spielernamen'!O:O,MATCH(B48,'Eingabe Spielernamen'!B:B,))," ") -> 0 | N48: =IF($B48<>0,INDEX('Eingabe Spielernamen'!P:P,MATCH(B48,'Eingabe Spielernamen'!B:B,))," ") -> 0 | O48: 0 | P48: 0
A49: 46 | B49: 314 | C49: =IF($B49<>0,INDEX('Eingabe Spielernamen'!A:A,MATCH(B49,'Eingabe Spielernamen'!B:B,))," ") -> 0 | D49: =IF($B49<>0,INDEX('Eingabe Spielernamen'!F:F,MATCH(B49,'Eingabe Spielernamen'!B:B,))," ") -> 0 | E49: =IF($B49<>0,INDEX('Eingabe Spielernamen'!G:G,MATCH(B49,'Eingabe Spielernamen'!B:B,))," ") -> 0 | F49: =IF($B49<>0,INDEX('Eingabe Spielernamen'!H:H,MATCH(B49,'Eingabe Spielernamen'!B:B,))," ") -> 0 | G49: =IF($B49<>0,INDEX('Eingabe Spielernamen'!I:I,MATCH(B49,'Eingabe Spielernamen'!B:B,))," ") -> 0 | H49: 0 | I49: =IF($B49<>0,INDEX('Eingabe Spielernamen'!K:K,MATCH(B49,'Eingabe Spielernamen'!B:B,))," ") -> 0 | J49: =IF($B49<>0,INDEX('Eingabe Spielernamen'!L:L,MATCH(B49,'Eingabe Spielernamen'!B:B,))," ") -> 0 | K49: 0 | L49: 0 | M49: =IF($B49<>0,INDEX('Eingabe Spielernamen'!O:O,MATCH(B49,'Eingabe Spielernamen'!B:B,))," ") -> 0 | N49: =IF($B49<>0,INDEX('Eingabe Spielernamen'!P:P,MATCH(B49,'Eingabe Spielernamen'!B:B,))," ") -> 0 | O49: 0 | P49: 0
A50: 47 | B50: 315 | C50: =IF($B50<>0,INDEX('Eingabe Spielernamen'!A:A,MATCH(B50,'Eingabe Spielernamen'!B:B,))," ") -> 0 | D50: =IF($B50<>0,INDEX('Eingabe Spielernamen'!F:F,MATCH(B50,'Eingabe Spielernamen'!B:B,))," ") -> 0 | E50: =IF($B50<>0,INDEX('Eingabe Spielernamen'!G:G,MATCH(B50,'Eingabe Spielernamen'!B:B,))," ") -> 0 | F50: =IF($B50<>0,INDEX('Eingabe Spielernamen'!H:H,MATCH(B50,'Eingabe Spielernamen'!B:B,))," ") -> 0 | G50: =IF($B50<>0,INDEX('Eingabe Spielernamen'!I:I,MATCH(B50,'Eingabe Spielernamen'!B:B,))," ") -> 0 | H50: 0 | I50: =IF($B50<>0,INDEX('Eingabe Spielernamen'!K:K,MATCH(B50,'Eingabe Spielernamen'!B:B,))," ") -> 0 | J50: =IF($B50<>0,INDEX('Eingabe Spielernamen'!L:L,MATCH(B50,'Eingabe Spielernamen'!B:B,))," ") -> 0 | K50: 0 | L50: 0 | M50: =IF($B50<>0,INDEX('Eingabe Spielernamen'!O:O,MATCH(B50,'Eingabe Spielernamen'!B:B,))," ") -> 0 | N50: =IF($B50<>0,INDEX('Eingabe Spielernamen'!P:P,MATCH(B50,'Eingabe Spielernamen'!B:B,))," ") -> 0 | O50: 0 | P50: 0
A51: 48 | B51: 316 | C51: =IF($B51<>0,INDEX('Eingabe Spielernamen'!A:A,MATCH(B51,'Eingabe Spielernamen'!B:B,))," ") -> 0 | D51: =IF($B51<>0,INDEX('Eingabe Spielernamen'!F:F,MATCH(B51,'Eingabe Spielernamen'!B:B,))," ") -> 0 | E51: =IF($B51<>0,INDEX('Eingabe Spielernamen'!G:G,MATCH(B51,'Eingabe Spielernamen'!B:B,))," ") -> 0 | F51: =IF($B51<>0,INDEX('Eingabe Spielernamen'!H:H,MATCH(B51,'Eingabe Spielernamen'!B:B,))," ") -> 0 | G51: =IF($B51<>0,INDEX('Eingabe Spielernamen'!I:I,MATCH(B51,'Eingabe Spielernamen'!B:B,))," ") -> 0 | H51: 0 | I51: =IF($B51<>0,INDEX('Eingabe Spielernamen'!K:K,MATCH(B51,'Eingabe Spielernamen'!B:B,))," ") -> 0 | J51: =IF($B51<>0,INDEX('Eingabe Spielernamen'!L:L,MATCH(B51,'Eingabe Spielernamen'!B:B,))," ") -> 0 | K51: 0 | L51: 0 | M51: =IF($B51<>0,INDEX('Eingabe Spielernamen'!O:O,MATCH(B51,'Eingabe Spielernamen'!B:B,))," ") -> 0 | N51: =IF($B51<>0,INDEX('Eingabe Spielernamen'!P:P,MATCH(B51,'Eingabe Spielernamen'!B:B,))," ") -> 0 | O51: 0 | P51: 0
A52: 49 | B52: 401 | C52: =IF($B52<>0,INDEX('Eingabe Spielernamen'!A:A,MATCH(B52,'Eingabe Spielernamen'!B:B,))," ") -> 0 | D52: =IF($B52<>0,INDEX('Eingabe Spielernamen'!F:F,MATCH(B52,'Eingabe Spielernamen'!B:B,))," ") -> 0 | E52: =IF($B52<>0,INDEX('Eingabe Spielernamen'!G:G,MATCH(B52,'Eingabe Spielernamen'!B:B,))," ") -> 0 | F52: =IF($B52<>0,INDEX('Eingabe Spielernamen'!H:H,MATCH(B52,'Eingabe Spielernamen'!B:B,))," ") -> 0 | G52: =IF($B52<>0,INDEX('Eingabe Spielernamen'!I:I,MATCH(B52,'Eingabe Spielernamen'!B:B,))," ") -> 0 | H52: 0 | I52: =IF($B52<>0,INDEX('Eingabe Spielernamen'!K:K,MATCH(B52,'Eingabe Spielernamen'!B:B,))," ") -> 0 | J52: =IF($B52<>0,INDEX('Eingabe Spielernamen'!L:L,MATCH(B52,'Eingabe Spielernamen'!B:B,))," ") -> 0 | K52: 0 | L52: 0 | M52: =IF($B52<>0,INDEX('Eingabe Spielernamen'!O:O,MATCH(B52,'Eingabe Spielernamen'!B:B,))," ") -> 0 | N52: =IF($B52<>0,INDEX('Eingabe Spielernamen'!P:P,MATCH(B52,'Eingabe Spielernamen'!B:B,))," ") -> 0 | O52: 0 | P52: 0
A53: 50 | B53: 402 | C53: =IF($B53<>0,INDEX('Eingabe Spielernamen'!A:A,MATCH(B53,'Eingabe Spielernamen'!B:B,))," ") -> 0 | D53: =IF($B53<>0,INDEX('Eingabe Spielernamen'!F:F,MATCH(B53,'Eingabe Spielernamen'!B:B,))," ") -> 0 | E53: =IF($B53<>0,INDEX('Eingabe Spielernamen'!G:G,MATCH(B53,'Eingabe Spielernamen'!B:B,))," ") -> 0 | F53: =IF($B53<>0,INDEX('Eingabe Spielernamen'!H:H,MATCH(B53,'Eingabe Spielernamen'!B:B,))," ") -> 0 | G53: =IF($B53<>0,INDEX('Eingabe Spielernamen'!I:I,MATCH(B53,'Eingabe Spielernamen'!B:B,))," ") -> 0 | H53: 0 | I53: =IF($B53<>0,INDEX('Eingabe Spielernamen'!K:K,MATCH(B53,'Eingabe Spielernamen'!B:B,))," ") -> 0 | J53: =IF($B53<>0,INDEX('Eingabe Spielernamen'!L:L,MATCH(B53,'Eingabe Spielernamen'!B:B,))," ") -> 0 | K53: 0 | L53: 0 | M53: =IF($B53<>0,INDEX('Eingabe Spielernamen'!O:O,MATCH(B53,'Eingabe Spielernamen'!B:B,))," ") -> 0 | N53: =IF($B53<>0,INDEX('Eingabe Spielernamen'!P:P,MATCH(B53,'Eingabe Spielernamen'!B:B,))," ") -> 0 | O53: 0 | P53: 0
A54: 51 | B54: 403 | C54: =IF($B54<>0,INDEX('Eingabe Spielernamen'!A:A,MATCH(B54,'Eingabe Spielernamen'!B:B,))," ") -> 0 | D54: =IF($B54<>0,INDEX('Eingabe Spielernamen'!F:F,MATCH(B54,'Eingabe Spielernamen'!B:B,))," ") -> 0 | E54: =IF($B54<>0,INDEX('Eingabe Spielernamen'!G:G,MATCH(B54,'Eingabe Spielernamen'!B:B,))," ") -> 0 | F54: =IF($B54<>0,INDEX('Eingabe Spielernamen'!H:H,MATCH(B54,'Eingabe Spielernamen'!B:B,))," ") -> 0 | G54: =IF($B54<>0,INDEX('Eingabe Spielernamen'!I:I,MATCH(B54,'Eingabe Spielernamen'!B:B,))," ") -> 0 | H54: 0 | I54: =IF($B54<>0,INDEX('Eingabe Spielernamen'!K:K,MATCH(B54,'Eingabe Spielernamen'!B:B,))," ") -> 0 | J54: =IF($B54<>0,INDEX('Eingabe Spielernamen'!L:L,MATCH(B54,'Eingabe Spielernamen'!B:B,))," ") -> 0 | K54: 0 | L54: 0 | M54: =IF($B54<>0,INDEX('Eingabe Spielernamen'!O:O,MATCH(B54,'Eingabe Spielernamen'!B:B,))," ") -> 0 | N54: =IF($B54<>0,INDEX('Eingabe Spielernamen'!P:P,MATCH(B54,'Eingabe Spielernamen'!B:B,))," ") -> 0 | O54: 0 | P54: 0
A55: 52 | B55: 404 | C55: =IF($B55<>0,INDEX('Eingabe Spielernamen'!A:A,MATCH(B55,'Eingabe Spielernamen'!B:B,))," ") -> 0 | D55: =IF($B55<>0,INDEX('Eingabe Spielernamen'!F:F,MATCH(B55,'Eingabe Spielernamen'!B:B,))," ") -> 0 | E55: =IF($B55<>0,INDEX('Eingabe Spielernamen'!G:G,MATCH(B55,'Eingabe Spielernamen'!B:B,))," ") -> 0 | F55: =IF($B55<>0,INDEX('Eingabe Spielernamen'!H:H,MATCH(B55,'Eingabe Spielernamen'!B:B,))," ") -> 0 | G55: =IF($B55<>0,INDEX('Eingabe Spielernamen'!I:I,MATCH(B55,'Eingabe Spielernamen'!B:B,))," ") -> 0 | H55: 0 | I55: =IF($B55<>0,INDEX('Eingabe Spielernamen'!K:K,MATCH(B55,'Eingabe Spielernamen'!B:B,))," ") -> 0 | J55: =IF($B55<>0,INDEX('Eingabe Spielernamen'!L:L,MATCH(B55,'Eingabe Spielernamen'!B:B,))," ") -> 0 | K55: 0 | L55: 0 | M55: =IF($B55<>0,INDEX('Eingabe Spielernamen'!O:O,MATCH(B55,'Eingabe Spielernamen'!B:B,))," ") -> 0 | N55: =IF($B55<>0,INDEX('Eingabe Spielernamen'!P:P,MATCH(B55,'Eingabe Spielernamen'!B:B,))," ") -> 0 | O55: 0 | P55: 0
A56: 53 | B56: 405 | C56: =IF($B56<>0,INDEX('Eingabe Spielernamen'!A:A,MATCH(B56,'Eingabe Spielernamen'!B:B,))," ") -> 0 | D56: =IF($B56<>0,INDEX('Eingabe Spielernamen'!F:F,MATCH(B56,'Eingabe Spielernamen'!B:B,))," ") -> 0 | E56: =IF($B56<>0,INDEX('Eingabe Spielernamen'!G:G,MATCH(B56,'Eingabe Spielernamen'!B:B,))," ") -> 0 | F56: =IF($B56<>0,INDEX('Eingabe Spielernamen'!H:H,MATCH(B56,'Eingabe Spielernamen'!B:B,))," ") -> 0 | G56: =IF($B56<>0,INDEX('Eingabe Spielernamen'!I:I,MATCH(B56,'Eingabe Spielernamen'!B:B,))," ") -> 0 | H56: 0 | I56: =IF($B56<>0,INDEX('Eingabe Spielernamen'!K:K,MATCH(B56,'Eingabe Spielernamen'!B:B,))," ") -> 0 | J56: =IF($B56<>0,INDEX('Eingabe Spielernamen'!L:L,MATCH(B56,'Eingabe Spielernamen'!B:B,))," ") -> 0 | K56: 0 | L56: 0 | M56: =IF($B56<>0,INDEX('Eingabe Spielernamen'!O:O,MATCH(B56,'Eingabe Spielernamen'!B:B,))," ") -> 0 | N56: =IF($B56<>0,INDEX('Eingabe Spielernamen'!P:P,MATCH(B56,'Eingabe Spielernamen'!B:B,))," ") -> 0 | O56: 0 | P56: 0
A57: 54 | B57: 406 | C57: =IF($B57<>0,INDEX('Eingabe Spielernamen'!A:A,MATCH(B57,'Eingabe Spielernamen'!B:B,))," ") -> 0 | D57: =IF($B57<>0,INDEX('Eingabe Spielernamen'!F:F,MATCH(B57,'Eingabe Spielernamen'!B:B,))," ") -> 0 | E57: =IF($B57<>0,INDEX('Eingabe Spielernamen'!G:G,MATCH(B57,'Eingabe Spielernamen'!B:B,))," ") -> 0 | F57: =IF($B57<>0,INDEX('Eingabe Spielernamen'!H:H,MATCH(B57,'Eingabe Spielernamen'!B:B,))," ") -> 0 | G57: =IF($B57<>0,INDEX('Eingabe Spielernamen'!I:I,MATCH(B57,'Eingabe Spielernamen'!B:B,))," ") -> 0 | H57: 0 | I57: =IF($B57<>0,INDEX('Eingabe Spielernamen'!K:K,MATCH(B57,'Eingabe Spielernamen'!B:B,))," ") -> 0 | J57: =IF($B57<>0,INDEX('Eingabe Spielernamen'!L:L,MATCH(B57,'Eingabe Spielernamen'!B:B,))," ") -> 0 | K57: 0 | L57: 0 | M57: =IF($B57<>0,INDEX('Eingabe Spielernamen'!O:O,MATCH(B57,'Eingabe Spielernamen'!B:B,))," ") -> 0 | N57: =IF($B57<>0,INDEX('Eingabe Spielernamen'!P:P,MATCH(B57,'Eingabe Spielernamen'!B:B,))," ") -> 0 | O57: 0 | P57: 0
